Workbook

Sheet Documentation
A1: COMMENTS AND INSTRUCTIONS
A2: kr | B2: There are two ways to accomplish data entry:
A3: kr | B3: 1 | C3: Enter the number of trips in each mode and a single distance from home to school (the David Griswold way), using the DataByTrips sheet.
A4: kr | B4: 2 | C4: Enter the distances traveled in each mode, per week (the Doug Streblow way), using the DataByMiles sheets.
A5: kr | B5: If you use the first way, Excel will figure out the values for the DataByMiles sheets and populate them, then use them to do the GHG calcs.
A6: kr | B6: If you use the second way, you will be overwriting the formulas that convert DataByTrips inputs, so you won't be able to switch back to the first way unless you open a new file.
A7: kr
A8: kr | B8: The place-holder student names add some visual clutter but they help prevent the graphs from "rethinking" their size & shape when the real names are plugged in.
A9: kr
A10: kr | B10: Note bug in Pre vs Post statistics page - am working on getting consistent results for the two graphs.
A11: kr
A12: kr | B12: Basis for effort-related GHG's (largely from work by Pacific Institute, provided by Mark Spencer):
A13: kr | B13: GHG from Food Production
A14: kr | C14: METS = factor that expresses metabolic rate: 1 = basal (staying alive & conscious); 3.3 = moderate walking 3MPH; 8 = bicycling, moderate effort.
A15: kr
A16: kr | C16: For walking 3 mph (METS=3.3), using a male age 11, 100 lb, 5 ft tall, the work metabolic rate is 186 kcal/hr and the resting metabolic rate is ~1/3 of that, 57 kcal/hour.
A17: kr | C17: Calories needed from food for that activity: 186 - 57 = 129 kcal/hr.
A18: kr | C18: In typical US diet, GHG emissions are 1.9g CO2-eq per kcal of food energy.
A19: kr | C19: So that = | D19: =1.9*129 -> 245.1 | E19: grams CO2/hour or | G19: =D19/3 -> 81.7 | H19: grams CO2/mile.
A20: kr
A21: kr | C21: For bicycling 12 - 13.9 mph (say 13), using a male age 11, 100 lb, 5 ft tall, the work metabolic rate is 452 kcal/hr and the resting metabolic rate is ~1/8 of that, 57 kcal/hour.
A22: kr | C22: Calories needed from food for that activity: 452 - 57 = 395 kcal/hr.
A23: kr | C23: In typical US diet, GHG emissions are 1.9g CO2-eq per kcal of food energy.
A24: kr | C24: So that = | D24: =1.9*395 -> 750.5 | E24: grams CO2/hour or | G24: =D24/13 -> 57.73076923 | H24: grams CO2/mile.
A25: kr
A26: kr | B26: GHG from Increased Respiration
A27: kr | C27: Respiratory emissions at rest: 15 breaths / minute, 4% CO2 (was <1% when inhaled), volume = 0.5 liters / normal breath
A28: kr | C28: At rest, producing | E28: =15*0.5*0.04 -> 0.3 | F28: liters per minute of pure CO2. That's | J28: =E28/24.5 -> 0.01224489796 | K28: moles and at 44g per mole that’s | N28: =J28*44 -> 0.5387755102 | O28: grams / minute at rest
A29: kr | C29: Walking at METS=3.3, or delta-METS = 2.3, | G29: =2.3*N28 -> 1.239183673 | H29: grams / minute or | J29: =G29*(60/3) -> 24.78367347 | K29: grams CO2 / mile, over and above emissions at rest.
A30: kr | C30: Bicycling at MET = 8, or delta-MET = 7, | G30: =7*N28 -> 3.771428571 | H30: grams / minute or | J30: =G30*(60/13) -> 17.40659341 | K30: grams CO2 / mile, over and above emissions at rest.
A31: kr
A32: kr
A33: kr | C33: Incremental GHG emissions, pounds CO2/mile
A34: kr | D34: delta-MET | E34: GHGfood | F34: GHGresp | G34: GHGtotal
A35: kr | C35: Resting | D35: 0 | E35: 0 | F35: 0 | G35: 0
A36: kr | C36: Walking | D36: 2.3 | E36: =G19/454.5 -> 0.1797579758 | F36: =J29/454.5 -> 0.05452953459 | G36: =E36+F36 -> 0.2342875104
A37: kr | C37: Bicycling | D37: 7 | E37: =G24/454.5 -> 0.1270203943 | F37: =J30/454.5 -> 0.03829833533 | G37: =E37+F37 -> 0.1653187297
B40: To Do as of 12 Mar 2013
B41: done | C41: on graphs, put units at top
B42: done | C42: put before & after bars side by side for each student
C43: provide a method to clear the whole sheet easily
B44: done | C44: set up a "kill switch" for outliers
B45: done | C45: Versions: | D45: Grade 5 class
D46: HS class
D47: HS 500
D48: Advanced
D49: Advanced 500
B50: done | C50: Debug statistics comparison
B51: done | C51: Debug graphs so they have same scale
B52: done | C52: Pie charts comparing miles by mode
B53: not poss. | C53: Show emissions / mile in side-by-side bar format
B54: ??? | C54: pre-calc comparison: side by side, and same page as data by trips &/or miles
C55: Show differences in calories consumed?

Sheet DataByMiles
B1: Before Changing Transportation | Q1: After Changing Transportation
E3: Distance / Week | T3: Distance / Week
B4: Name: | E4: Walk | F4: Bike/ Scooter | G4: School Bus | H4: Public Bus | I4: BART | J4: Car | K4: Car MPG (22) | L4: Car Passen-gers (1) | M4: Fuel GHG/wk | N4: Effort GHG/wk | Q4: Your Name: | T4: Walk | U4: Bike/ Scooter | V4: School Bus | W4: Public Bus | X4: BART | Y4: Car | Z4: Car MPG (22) | AA4: Car Passen-gers (1) | AB4: Fuel GHG/wk | AC4: Effort GHG/wk | AE4: Out-lier?
C5: Junior | E5: 0 | F5: 0 | G5: 0 | H5: 0 | I5: 0 | J5: 40 | K5: 0 | L5: 6 | M5: =PRE_Calculations!AF7 -> 5.937121212 | N5: =PRE_Calculations!AG7 -> 0 | R5: =C5 -> Junior | T5: 0 | U5: 0 | V5: 0 | W5: 0 | X5: 0 | Y5: 40 | Z5: 0 | AA5: 6 | AB5: =POST_Calculations!AF7 -> 5.937121212 | AC5: =POST_Calculations!AG7 -> 0 | AE5: no | AT5: no | AU5: 1 | AX5: Walk | AY5: =PRE_Calculations!C507 -> 113 | AZ5: =POST_Calculations!C507 -> 122.3
C6: jessica | E6: 0 | F6: 0 | G6: 0 | H6: 0 | I6: 0 | J6: 20 | K6: 0 | L6: 2.5 | M6: =PRE_Calculations!AF8 -> 7.124545455 | N6: =PRE_Calculations!AG8 -> 0 | R6: =C6 -> jessica | T6: 1 | U6: 0 | V6: 0 | W6: 0 | X6: 0 | Y6: 7 | Z6: 0 | AA6: 3 | AB6: =POST_Calculations!AF8 -> 2.077992424 | AC6: =POST_Calculations!AG8 -> 0.2343 | AE6: no | AT6: yes | AU6: 0 | AX6: Bike/Scooter | AY6: =PRE_Calculations!H507 -> 0 | AZ6: =POST_Calculations!H507 -> 29
C7: Veda | E7: 0 | F7: 0 | G7: 0 | H7: 0 | I7: 0 | J7: 10 | K7: 0 | L7: 2 | M7: =PRE_Calculations!AF9 -> 4.452840909 | N7: =PRE_Calculations!AG9 -> 0 | R7: Veda | T7: 12 | U7: 0 | V7: 0 | W7: 0 | X7: 0 | Y7: 4 | Z7: 0 | AA7: 4 | AB7: =POST_Calculations!AF9 -> 0.8905681818 | AC7: =POST_Calculations!AG9 -> 2.8116 | AE7: no | AX7: School Bus | AY7: =PRE_Calculations!M507 -> 0 | AZ7: =POST_Calculations!M507 -> 0
C8: Tiffany | E8: 0 | F8: 0 | G8: 0 | H8: 0 | I8: 0 | J8: 20 | K8: 0 | L8: 3 | M8: =PRE_Calculations!AF10 -> 5.937121212 | N8: =PRE_Calculations!AG10 -> 0 | R8: Tiffany | T8: 2 | U8: 0 | V8: 0 | W8: 0 | X8: 0 | Y8: 16 | Z8: 0 | AA8: 3 | AB8: =POST_Calculations!AF10 -> 4.74969697 | AC8: =POST_Calculations!AG10 -> 0.4686 | AE8: no | AX8: Public Bus | AY8: =PRE_Calculations!Q507 -> 0 | AZ8: =POST_Calculations!Q507 -> 0
C9: Athena | E9: 0 | F9: 0 | G9: 0 | H9: 0 | I9: 0 | J9: 10 | K9: 0 | L9: 2 | M9: =PRE_Calculations!AF11 -> 4.452840909 | N9: =PRE_Calculations!AG11 -> 0 | R9: Athena | T9: 1 | U9: 0 | V9: 0 | W9: 0 | X9: 0 | Y9: 9 | Z9: 0 | AA9: 3 | AB9: =POST_Calculations!AF11 -> 2.671704545 | AC9: =POST_Calculations!AG11 -> 0.2343 | AE9: no | AX9: BART | AY9: =PRE_Calculations!U507 -> 0 | AZ9: =POST_Calculations!U507 -> 0
C10: Denise | E10: 0 | F10: 0 | G10: 0 | H10: 0 | I10: 0 | J10: 10 | K10: 0 | L10: 2 | M10: =PRE_Calculations!AF12 -> 4.452840909 | N10: =PRE_Calculations!AG12 -> 0 | R10: Denise | T10: 0 | U10: 0 | V10: 0 | W10: 0 | X10: 0 | Y10: 15 | Z10: 0 | AA10: 3 | AB10: =POST_Calculations!AF12 -> 4.452840909 | AC10: =POST_Calculations!AG12 -> 0 | AE10: no | AX10: Car | AY10: =PRE_Calculations!Y507 -> 419 | AZ10: =POST_Calculations!Y507 -> 573.2
C11: Maha | E11: 0 | F11: 0 | G11: 0 | H11: 0 | I11: 0 | J11: 10 | K11: 0 | L11: 3 | M11: =PRE_Calculations!AF13 -> 2.968560606 | N11: =PRE_Calculations!AG13 -> 0 | R11: Maha | T11: 0 | U11: 0 | V11: 0 | W11: 0 | X11: 0 | Y11: 10 | Z11: 0 | AA11: 7 | AB11: =POST_Calculations!AF13 -> 1.27224026 | AC11: =POST_Calculations!AG13 -> 0 | AE11: no
C12: Allyn | E12: 0 | F12: 0 | G12: 0 | H12: 0 | I12: 0 | J12: 10 | K12: 0 | L12: 3 | M12: =PRE_Calculations!AF14 -> 2.968560606 | N12: =PRE_Calculations!AG14 -> 0 | R12: Allyn | T12: 5 | U12: 0 | V12: 0 | W12: 0 | X12: 0 | Y12: 5 | Z12: 0 | AA12: 3 | AB12: =POST_Calculations!AF14 -> 1.484280303 | AC12: =POST_Calculations!AG14 -> 1.1715 | AE12: no
C13: Elaha | E13: 0 | F13: 0 | G13: 0 | H13: 0 | I13: 0 | J13: 20 | K13: 0 | L13: 3 | M13: =PRE_Calculations!AF15 -> 5.937121212 | N13: =PRE_Calculations!AG15 -> 0 | R13: Elaha | T13: 0 | U13: 0 | V13: 0 | W13: 0 | X13: 0 | Y13: 57 | Z13: 0 | AA13: 3 | AB13: =POST_Calculations!AF15 -> 16.92079545 | AC13: =POST_Calculations!AG15 -> 0 | AE13: no
C14: Sharon | E14: 0 | F14: 0 | G14: 0 | H14: 0 | I14: 0 | J14: 20 | K14: 0 | L14: 3 | M14: =PRE_Calculations!AF16 -> 5.937121212 | N14: =PRE_Calculations!AG16 -> 0 | R14: Sharon | T14: 0 | U14: 0 | V14: 0 | W14: 0 | X14: 0 | Y14: 9 | Z14: 0 | AA14: 1.6 | AB14: =POST_Calculations!AF16 -> 5.009446023 | AC14: =POST_Calculations!AG16 -> 0 | AE14: no
C15: Bryce | E15: 2 | F15: 0 | G15: 0 | H15: 0 | I15: 0 | J15: 8 | K15: 0 | L15: 3.3 | M15: =PRE_Calculations!AF17 -> 2.158953168 | N15: =PRE_Calculations!AG17 -> 0.4686 | R15: Bryce | T15: 4 | U15: 1 | V15: 0 | W15: 0 | X15: 0 | Y15: 5 | Z15: 0 | AA15: 2 | AB15: =POST_Calculations!AF17 -> 2.226420455 | AC15: =POST_Calculations!AG17 -> 1.1025 | AE15: no
C16: Marlene | E16: 0 | F16: 0 | G16: 0 | H16: 0 | I16: 0 | J16: 20 | K16: 0 | L16: 3 | M16: =PRE_Calculations!AF18 -> 5.937121212 | N16: =PRE_Calculations!AG18 -> 0 | R16: Marlene | T16: 0 | U16: 0 | V16: 0 | W16: 0 | X16: 0 | Y16: 14 | Z16: 0 | AA16: 6 | AB16: =POST_Calculations!AF18 -> 2.077992424 | AC16: =POST_Calculations!AG18 -> 0 | AE16: no
C17: Christyn | E17: 0 | F17: 0 | G17: 0 | H17: 0 | I17: 0 | J17: 30 | K17: 0 | L17: 2 | M17: =PRE_Calculations!AF19 -> 13.35852273 | N17: =PRE_Calculations!AG19 -> 0 | R17: Christyn | T17: 0 | U17: 0 | V17: 0 | W17: 0 | X17: 0 | Y17: 150 | Z17: 0 | AA17: 5 | AB17: =POST_Calculations!AF19 -> 26.71704545 | AC17: =POST_Calculations!AG19 -> 0 | AE17: no
C18: emmy | E18: 0 | F18: 0 | G18: 0 | H18: 0 | I18: 0 | J18: 2 | K18: 0 | L18: 2 | M18: =PRE_Calculations!AF20 -> 0.8905681818 | N18: =PRE_Calculations!AG20 -> 0 | R18: emmy | T18: 2 | U18: 0 | V18: 0 | W18: 0 | X18: 0 | Y18: 16 | Z18: 0 | AA18: 2.25 | AB18: =POST_Calculations!AF20 -> 6.332929293 | AC18: =POST_Calculations!AG20 -> 0.4686 | AE18: no
C19: Abby | E19: 0 | F19: 0 | G19: 0 | H19: 0 | I19: 0 | J19: 10 | K19: 0 | L19: 3 | M19: =PRE_Calculations!AF21 -> 2.968560606 | N19: =PRE_Calculations!AG21 -> 0 | R19: Abby | T19: 2 | U19: 0 | V19: 0 | W19: 0 | X19: 0 | Y19: 10 | Z19: 0 | AA19: 3 | AB19: =POST_Calculations!AF21 -> 2.968560606 | AC19: =POST_Calculations!AG21 -> 0.4686 | AE19: no
C20: Dinika | E20: 0 | F20: 0 | G20: 0 | H20: 0 | I20: 0 | J20: 4 | K20: 0 | L20: 2 | M20: =PRE_Calculations!AF22 -> 1.781136364 | N20: =PRE_Calculations!AG22 -> 0 | R20: Dinika | T20: 0 | U20: 0 | V20: 0 | W20: 0 | X20: 0 | Y20: 14 | Z20: 0 | AA20: 6 | AB20: =POST_Calculations!AF22 -> 2.077992424 | AC20: =POST_Calculations!AG22 -> 0 | AE20: no
C21: Ashley | E21: 0 | F21: 0 | G21: 0 | H21: 0 | I21: 0 | J21: 4 | K21: 0 | L21: 4 | M21: =PRE_Calculations!AF23 -> 0.8905681818 | N21: =PRE_Calculations!AG23 -> 0 | R21: Ashley | T21: 0 | U21: 0 | V21: 0 | W21: 0 | X21: 0 | Y21: 20 | Z21: 0 | AA21: 4 | AB21: =POST_Calculations!AF23 -> 4.452840909 | AC21: =POST_Calculations!AG23 -> 0 | AE21: no
C22: Adelene | E22: 0 | F22: 0 | G22: 0 | H22: 0 | I22: 0 | J22: 20 | K22: 0 | L22: 3 | M22: =PRE_Calculations!AF24 -> 5.937121212 | N22: =PRE_Calculations!AG24 -> 0 | R22: Adelene | T22: 0 | U22: 0 | V22: 0 | W22: 0 | X22: 0 | Y22: 23.2 | Z22: 0 | AA22: 5.5 | AB22: =POST_Calculations!AF24 -> 3.756578512 | AC22: =POST_Calculations!AG24 -> 0 | AE22: no
C23: Rialyn | E23: 7.5 | F23: 0 | G23: 0 | H23: 0 | I23: 0 | J23: 45 | K23: 0 | L23: 4 | M23: =PRE_Calculations!AF25 -> 10.01889205 | N23: =PRE_Calculations!AG25 -> 1.75725 | R23: Rialyn | T23: 9.5 | U23: 0 | V23: 0 | W23: 0 | X23: 0 | Y23: 0 | Z23: 0 | AA23: 0 | AB23: =POST_Calculations!AF25 -> 0 | AC23: =POST_Calculations!AG25 -> 2.22585 | AE23: no
C24: Michael | E24: 10 | F24: 0 | G24: 0 | H24: 0 | I24: 0 | J24: 15 | K24: 0 | L24: 2 | M24: =PRE_Calculations!AF26 -> 6.679261364 | N24: =PRE_Calculations!AG26 -> 2.343 | R24: Michael | T24: 10 | U24: 0 | V24: 0 | W24: 0 | X24: 0 | Y24: 15 | Z24: 0 | AA24: 2 | AB24: =POST_Calculations!AF26 -> 6.679261364 | AC24: =POST_Calculations!AG26 -> 2.343 | AE24: no
C25: Kevin | E25: 0 | F25: 0 | G25: 0 | H25: 0 | I25: 0 | J25: 20 | K25: 0 | L25: 2 | M25: =PRE_Calculations!AF27 -> 8.905681818 | N25: =PRE_Calculations!AG27 -> 0 | R25: Kevin | T25: 0 | U25: 0 | V25: 0 | W25: 0 | X25: 0 | Y25: 15 | Z25: 0 | AA25: 4 | AB25: =POST_Calculations!AF27 -> 3.339630682 | AC25: =POST_Calculations!AG27 -> 0 | AE25: no
C26: Khang | E26: 10 | F26: 0 | G26: 0 | H26: 0 | I26: 0 | J26: 10 | K26: 0 | L26: 3 | M26: =PRE_Calculations!AF28 -> 2.968560606 | N26: =PRE_Calculations!AG28 -> 2.343 | R26: Khang | T26: 0 | U26: 20 | V26: 0 | W26: 0 | X26: 0 | Y26: 0 | Z26: 0 | AA26: 0 | AB26: =POST_Calculations!AF28 -> 0 | AC26: =POST_Calculations!AG28 -> 3.306 | AE26: no
C27: Riley | E27: 5 | F27: 0 | G27: 0 | H27: 0 | I27: 0 | J27: 5 | K27: 0 | L27: 3 | M27: =PRE_Calculations!AF29 -> 1.484280303 | N27: =PRE_Calculations!AG29 -> 1.1715 | R27: Riley | T27: 5 | U27: 0 | V27: 0 | W27: 0 | X27: 0 | Y27: 5 | Z27: 0 | AA27: 4 | AB27: =POST_Calculations!AF29 -> 1.113210227 | AC27: =POST_Calculations!AG29 -> 1.1715 | AE27: no
C28: Justin | E28: 10 | F28: 0 | G28: 0 | H28: 0 | I28: 0 | J28: 0 | K28: 0 | L28: 0 | M28: =PRE_Calculations!AF30 -> 0 | N28: =PRE_Calculations!AG30 -> 2.343 | R28: Justin | T28: 2 | U28: 8 | V28: 0 | W28: 0 | X28: 0 | Y28: 0 | Z28: 0 | AA28: 0 | AB28: =POST_Calculations!AF30 -> 0 | AC28: =POST_Calculations!AG30 -> 1.791 | AE28: no
C29: Shawn | E29: 10 | F29: 0 | G29: 0 | H29: 0 | I29: 0 | J29: 0 | K29: 0 | L29: 0 | M29: =PRE_Calculations!AF31 -> 0 | N29: =PRE_Calculations!AG31 -> 2.343 | R29: Shawn | T29: 10 | U29: 0 | V29: 0 | W29: 0 | X29: 0 | Y29: 0 | Z29: 0 | AA29: 0 | AB29: =POST_Calculations!AF31 -> 0 | AC29: =POST_Calculations!AG31 -> 2.343 | AE29: no
C30: Angelique | E30: 3.5 | F30: 0 | G30: 0 | H30: 0 | I30: 0 | J30: 0 | K30: 0 | L30: 0 | M30: =PRE_Calculations!AF32 -> 0 | N30: =PRE_Calculations!AG32 -> 0.82005 | R30: Angelique | T30: 2.8 | U30: 0 | V30: 0 | W30: 0 | X30: 0 | Y30: 0 | Z30: 0 | AA30: 0 | AB30: =POST_Calculations!AF32 -> 0 | AC30: =POST_Calculations!AG32 -> 0.65604 | AE30: no
C31: Reema | E31: 2 | F31: 0 | G31: 0 | H31: 0 | I31: 0 | J31: 0 | K31: 0 | L31: 0 | M31: =PRE_Calculations!AF33 -> 0 | N31: =PRE_Calculations!AG33 -> 0.4686 | R31: Reema | T31: 10 | U31: 0 | V31: 0 | W31: 0 | X31: 0 | Y31: 0 | Z31: 0 | AA31: 0 | AB31: =POST_Calculations!AF33 -> 0 | AC31: =POST_Calculations!AG33 -> 2.343 | AE31: no
C32: Alexis | E32: 4 | F32: 0 | G32: 0 | H32: 0 | I32: 0 | J32: 2 | K32: 0 | L32: 3 | M32: =PRE_Calculations!AF34 -> 0.5937121212 | N32: =PRE_Calculations!AG34 -> 0.9372 | R32: Alexis | T32: 3 | U32: 0 | V32: 0 | W32: 0 | X32: 0 | Y32: 14 | Z32: 0 | AA32: 3 | AB32: =POST_Calculations!AF34 -> 4.155984848 | AC32: =POST_Calculations!AG34 -> 0.7029 | AE32: no
C33: Gursewak | E33: 10 | F33: 0 | G33: 0 | H33: 0 | I33: 0 | J33: 0 | K33: 0 | L33: 0 | M33: =PRE_Calculations!AF35 -> 0 | N33: =PRE_Calculations!AG35 -> 2.343 | R33: Gursewak | T33: 4 | U33: 0 | V33: 0 | W33: 0 | X33: 0 | Y33: 0 | Z33: 0 | AA33: 0 | AB33: =POST_Calculations!AF35 -> 0 | AC33: =POST_Calculations!AG35 -> 0.9372 | AE33: no
C34: Zach | E34: 5 | F34: 0 | G34: 0 | H34: 0 | I34: 0 | J34: 0 | K34: 0 | L34: 0 | M34: =PRE_Calculations!AF36 -> 0 | N34: =PRE_Calculations!AG36 -> 1.1715 | R34: Zach | T34: 0 | U34: 0 | V34: 0 | W34: 0 | X34: 0 | Y34: 40 | Z34: 0 | AA34: 2 | AB34: =POST_Calculations!AF36 -> 17.81136364 | AC34: =POST_Calculations!AG36 -> 0 | AE34: no
C35: Dakota | E35: 4 | F35: 0 | G35: 0 | H35: 0 | I35: 0 | J35: 54 | K35: 0 | L35: 2 | M35: =PRE_Calculations!AF37 -> 24.04534091 | N35: =PRE_Calculations!AG37 -> 0.9372 | R35: Dakota | T35: 7 | U35: 0 | V35: 0 | W35: 0 | X35: 0 | Y35: 60 | Z35: 0 | AA35: 2 | AB35: =POST_Calculations!AF37 -> 26.71704545 | AC35: =POST_Calculations!AG37 -> 1.6401 | AE35: no
C36: Fernando | E36: 10 | F36: 0 | G36: 0 | H36: 0 | I36: 0 | J36: 0 | K36: 0 | L36: 0 | M36: =PRE_Calculations!AF38 -> 0 | N36: =PRE_Calculations!AG38 -> 2.343 | R36: Fernando | T36: 10 | U36: 0 | V36: 0 | W36: 0 | X36: 0 | Y36: 0 | Z36: 0 | AA36: 0 | AB36: =POST_Calculations!AF38 -> 0 | AC36: =POST_Calculations!AG38 -> 2.343 | AE36: no
C37: Matt | E37: 20 | F37: 0 | G37: 0 | H37: 0 | I37: 0 | J37: 0 | K37: 0 | L37: 0 | M37: =PRE_Calculations!AF39 -> 0 | N37: =PRE_Calculations!AG39 -> 4.686 | R37: Matt | T37: 20 | U37: 0 | V37: 0 | W37: 0 | X37: 0 | Y37: 0 | Z37: 0 | AA37: 0 | AB37: =POST_Calculations!AF39 -> 0 | AC37: =POST_Calculations!AG39 -> 4.686 | AE37: no
C38: ----34 | E38: 0 | F38: 0 | G38: 0 | H38: 0 | I38: 0 | J38: 0 | K38: 0 | L38: 0 | M38: =PRE_Calculations!AF40 -> 0 | N38: =PRE_Calculations!AG40 -> 0 | R38: ----34 | T38: 0 | U38: 0 | V38: 0 | W38: 0 | X38: 0 | Y38: 0 | Z38: 0 | AA38: 0 | AB38: =POST_Calculations!AF40 -> 0 | AC38: =POST_Calculations!AG40 -> 0 | AE38: no
C39: ----35 | E39: 0 | F39: 0 | G39: 0 | H39: 0 | I39: 0 | J39: 0 | K39: 0 | L39: 0 | M39: =PRE_Calculations!AF41 -> 0 | N39: =PRE_Calculations!AG41 -> 0 | R39: ----35 | T39: 0 | U39: 0 | V39: 0 | W39: 0 | X39: 0 | Y39: 0 | Z39: 0 | AA39: 0 | AB39: =POST_Calculations!AF41 -> 0 | AC39: =POST_Calculations!AG41 -> 0 | AE39: no
C40: ----36 | E40: 0 | F40: 0 | G40: 0 | H40: 0 | I40: 0 | J40: 0 | K40: 0 | L40: 0 | M40: =PRE_Calculations!AF42 -> 0 | N40: =PRE_Calculations!AG42 -> 0 | R40: ----36 | T40: 0 | U40: 0 | V40: 0 | W40: 0 | X40: 0 | Y40: 0 | Z40: 0 | AA40: 0 | AB40: =POST_Calculations!AF42 -> 0 | AC40: =POST_Calculations!AG42 -> 0 | AE40: no
C41: ----37 | E41: 0 | F41: 0 | G41: 0 | H41: 0 | I41: 0 | J41: 0 | K41: 0 | L41: 0 | M41: =PRE_Calculations!AF43 -> 0 | N41: =PRE_Calculations!AG43 -> 0 | R41: ----37 | T41: 0 | U41: 0 | V41: 0 | W41: 0 | X41: 0 | Y41: 0 | Z41: 0 | AA41: 0 | AB41: =POST_Calculations!AF43 -> 0 | AC41: =POST_Calculations!AG43 -> 0 | AE41: no
C42: ----38 | E42: 0 | F42: 0 | G42: 0 | H42: 0 | I42: 0 | J42: 0 | K42: 0 | L42: 0 | M42: =PRE_Calculations!AF44 -> 0 | N42: =PRE_Calculations!AG44 -> 0 | R42: ----38 | T42: 0 | U42: 0 | V42: 0 | W42: 0 | X42: 0 | Y42: 0 | Z42: 0 | AA42: 0 | AB42: =POST_Calculations!AF44 -> 0 | AC42: =POST_Calculations!AG44 -> 0 | AE42: no
C43: ----39 | E43: 0 | F43: 0 | G43: 0 | H43: 0 | I43: 0 | J43: 0 | K43: 0 | L43: 0 | M43: =PRE_Calculations!AF45 -> 0 | N43: =PRE_Calculations!AG45 -> 0 | R43: ----39 | T43: 0 | U43: 0 | V43: 0 | W43: 0 | X43: 0 | Y43: 0 | Z43: 0 | AA43: 0 | AB43: =POST_Calculations!AF45 -> 0 | AC43: =POST_Calculations!AG45 -> 0 | AE43: no
C44: ----40 | E44: 0 | F44: 0 | G44: 0 | H44: 0 | I44: 0 | J44: 0 | K44: 0 | L44: 0 | M44: =PRE_Calculations!AF46 -> 0 | N44: =PRE_Calculations!AG46 -> 0 | R44: ----40 | T44: 0 | U44: 0 | V44: 0 | W44: 0 | X44: 0 | Y44: 0 | Z44: 0 | AA44: 0 | AB44: =POST_Calculations!AF46 -> 0 | AC44: =POST_Calculations!AG46 -> 0 | AE44: no
C45: ----41 | E45: 0 | F45: 0 | G45: 0 | H45: 0 | I45: 0 | J45: 0 | K45: 0 | L45: 0 | M45: =PRE_Calculations!AF47 -> 0 | N45: =PRE_Calculations!AG47 -> 0 | R45: ----41 | T45: 0 | U45: 0 | V45: 0 | W45: 0 | X45: 0 | Y45: 0 | Z45: 0 | AA45: 0 | AB45: =POST_Calculations!AF47 -> 0 | AC45: =POST_Calculations!AG47 -> 0 | AE45: no
C46: ----42 | E46: 0 | F46: 0 | G46: 0 | H46: 0 | I46: 0 | J46: 0 | K46: 0 | L46: 0 | M46: =PRE_Calculations!AF48 -> 0 | N46: =PRE_Calculations!AG48 -> 0 | R46: ----42 | T46: 0 | U46: 0 | V46: 0 | W46: 0 | X46: 0 | Y46: 0 | Z46: 0 | AA46: 0 | AB46: =POST_Calculations!AF48 -> 0 | AC46: =POST_Calculations!AG48 -> 0 | AE46: no
C47: ----43 | E47: 0 | F47: 0 | G47: 0 | H47: 0 | I47: 0 | J47: 0 | K47: 0 | L47: 0 | M47: =PRE_Calculations!AF49 -> 0 | N47: =PRE_Calculations!AG49 -> 0 | R47: ----43 | T47: 0 | U47: 0 | V47: 0 | W47: 0 | X47: 0 | Y47: 0 | Z47: 0 | AA47: 0 | AB47: =POST_Calculations!AF49 -> 0 | AC47: =POST_Calculations!AG49 -> 0 | AE47: no
C48: ----44 | E48: 0 | F48: 0 | G48: 0 | H48: 0 | I48: 0 | J48: 0 | K48: 0 | L48: 0 | M48: =PRE_Calculations!AF50 -> 0 | N48: =PRE_Calculations!AG50 -> 0 | R48: ----44 | T48: 0 | U48: 0 | V48: 0 | W48: 0 | X48: 0 | Y48: 0 | Z48: 0 | AA48: 0 | AB48: =POST_Calculations!AF50 -> 0 | AC48: =POST_Calculations!AG50 -> 0 | AE48: no
C49: ----45 | E49: 0 | F49: 0 | G49: 0 | H49: 0 | I49: 0 | J49: 0 | K49: 0 | L49: 0 | M49: =PRE_Calculations!AF51 -> 0 | N49: =PRE_Calculations!AG51 -> 0 | R49: ----45 | T49: 0 | U49: 0 | V49: 0 | W49: 0 | X49: 0 | Y49: 0 | Z49: 0 | AA49: 0 | AB49: =POST_Calculations!AF51 -> 0 | AC49: =POST_Calculations!AG51 -> 0 | AE49: no
C50: ----46 | E50: 0 | F50: 0 | G50: 0 | H50: 0 | I50: 0 | J50: 0 | K50: 0 | L50: 0 | M50: =PRE_Calculations!AF52 -> 0 | N50: =PRE_Calculations!AG52 -> 0 | R50: ----46 | T50: 0 | U50: 0 | V50: 0 | W50: 0 | X50: 0 | Y50: 0 | Z50: 0 | AA50: 0 | AB50: =POST_Calculations!AF52 -> 0 | AC50: =POST_Calculations!AG52 -> 0 | AE50: no
C51: ----47 | E51: 0 | F51: 0 | G51: 0 | H51: 0 | I51: 0 | J51: 0 | K51: 0 | L51: 0 | M51: =PRE_Calculations!AF53 -> 0 | N51: =PRE_Calculations!AG53 -> 0 | R51: ----47 | T51: 0 | U51: 0 | V51: 0 | W51: 0 | X51: 0 | Y51: 0 | Z51: 0 | AA51: 0 | AB51: =POST_Calculations!AF53 -> 0 | AC51: =POST_Calculations!AG53 -> 0 | AE51: no
C52: ----48 | E52: 0 | F52: 0 | G52: 0 | H52: 0 | I52: 0 | J52: 0 | K52: 0 | L52: 0 | M52: =PRE_Calculations!AF54 -> 0 | N52: =PRE_Calculations!AG54 -> 0 | R52: ----48 | T52: 0 | U52: 0 | V52: 0 | W52: 0 | X52: 0 | Y52: 0 | Z52: 0 | AA52: 0 | AB52: =POST_Calculations!AF54 -> 0 | AC52: =POST_Calculations!AG54 -> 0 | AE52: no
C53: ----49 | E53: 0 | F53: 0 | G53: 0 | H53: 0 | I53: 0 | J53: 0 | K53: 0 | L53: 0 | M53: =PRE_Calculations!AF55 -> 0 | N53: =PRE_Calculations!AG55 -> 0 | R53: ----49 | T53: 0 | U53: 0 | V53: 0 | W53: 0 | X53: 0 | Y53: 0 | Z53: 0 | AA53: 0 | AB53: =POST_Calculations!AF55 -> 0 | AC53: =POST_Calculations!AG55 -> 0 | AE53: no
C54: ----50 | E54: 0 | F54: 0 | G54: 0 | H54: 0 | I54: 0 | J54: 0 | K54: 0 | L54: 0 | M54: =PRE_Calculations!AF56 -> 0 | N54: =PRE_Calculations!AG56 -> 0 | R54: ----50 | T54: 0 | U54: 0 | V54: 0 | W54: 0 | X54: 0 | Y54: 0 | Z54: 0 | AA54: 0 | AB54: =POST_Calculations!AF56 -> 0 | AC54: =POST_Calculations!AG56 -> 0 | AE54: no
C55: ----51 | E55: 0 | F55: 0 | G55: 0 | H55: 0 | I55: 0 | J55: 0 | K55: 0 | L55: 0 | M55: =PRE_Calculations!AF57 -> 0 | N55: =PRE_Calculations!AG57 -> 0 | R55: ----51 | T55: 0 | U55: 0 | V55: 0 | W55: 0 | X55: 0 | Y55: 0 | Z55: 0 | AA55: 0 | AB55: =POST_Calculations!AF57 -> 0 | AC55: =POST_Calculations!AG57 -> 0 | AE55: no
C56: ----52 | E56: 0 | F56: 0 | G56: 0 | H56: 0 | I56: 0 | J56: 0 | K56: 0 | L56: 0 | M56: =PRE_Calculations!AF58 -> 0 | N56: =PRE_Calculations!AG58 -> 0 | R56: ----52 | T56: 0 | U56: 0 | V56: 0 | W56: 0 | X56: 0 | Y56: 0 | Z56: 0 | AA56: 0 | AB56: =POST_Calculations!AF58 -> 0 | AC56: =POST_Calculations!AG58 -> 0 | AE56: no
C57: ----53 | E57: 0 | F57: 0 | G57: 0 | H57: 0 | I57: 0 | J57: 0 | K57: 0 | L57: 0 | M57: =PRE_Calculations!AF59 -> 0 | N57: =PRE_Calculations!AG59 -> 0 | R57: ----53 | T57: 0 | U57: 0 | V57: 0 | W57: 0 | X57: 0 | Y57: 0 | Z57: 0 | AA57: 0 | AB57: =POST_Calculations!AF59 -> 0 | AC57: =POST_Calculations!AG59 -> 0 | AE57: no
C58: ----54 | E58: 0 | F58: 0 | G58: 0 | H58: 0 | I58: 0 | J58: 0 | K58: 0 | L58: 0 | M58: =PRE_Calculations!AF60 -> 0 | N58: =PRE_Calculations!AG60 -> 0 | R58: ----54 | T58: 0 | U58: 0 | V58: 0 | W58: 0 | X58: 0 | Y58: 0 | Z58: 0 | AA58: 0 | AB58: =POST_Calculations!AF60 -> 0 | AC58: =POST_Calculations!AG60 -> 0 | AE58: no
C59: ----55 | E59: 0 | F59: 0 | G59: 0 | H59: 0 | I59: 0 | J59: 0 | K59: 0 | L59: 0 | M59: =PRE_Calculations!AF61 -> 0 | N59: =PRE_Calculations!AG61 -> 0 | R59: ----55 | T59: 0 | U59: 0 | V59: 0 | W59: 0 | X59: 0 | Y59: 0 | Z59: 0 | AA59: 0 | AB59: =POST_Calculations!AF61 -> 0 | AC59: =POST_Calculations!AG61 -> 0 | AE59: no
C60: ----56 | E60: 0 | F60: 0 | G60: 0 | H60: 0 | I60: 0 | J60: 0 | K60: 0 | L60: 0 | M60: =PRE_Calculations!AF62 -> 0 | N60: =PRE_Calculations!AG62 -> 0 | R60: ----56 | T60: 0 | U60: 0 | V60: 0 | W60: 0 | X60: 0 | Y60: 0 | Z60: 0 | AA60: 0 | AB60: =POST_Calculations!AF62 -> 0 | AC60: =POST_Calculations!AG62 -> 0 | AE60: no
C61: ----57 | E61: 0 | F61: 0 | G61: 0 | H61: 0 | I61: 0 | J61: 0 | K61: 0 | L61: 0 | M61: =PRE_Calculations!AF63 -> 0 | N61: =PRE_Calculations!AG63 -> 0 | R61: ----57 | T61: 0 | U61: 0 | V61: 0 | W61: 0 | X61: 0 | Y61: 0 | Z61: 0 | AA61: 0 | AB61: =POST_Calculations!AF63 -> 0 | AC61: =POST_Calculations!AG63 -> 0 | AE61: no
C62: ----58 | E62: 0 | F62: 0 | G62: 0 | H62: 0 | I62: 0 | J62: 0 | K62: 0 | L62: 0 | M62: =PRE_Calculations!AF64 -> 0 | N62: =PRE_Calculations!AG64 -> 0 | R62: ----58 | T62: 0 | U62: 0 | V62: 0 | W62: 0 | X62: 0 | Y62: 0 | Z62: 0 | AA62: 0 | AB62: =POST_Calculations!AF64 -> 0 | AC62: =POST_Calculations!AG64 -> 0 | AE62: no
C63: ----59 | E63: 0 | F63: 0 | G63: 0 | H63: 0 | I63: 0 | J63: 0 | K63: 0 | L63: 0 | M63: =PRE_Calculations!AF65 -> 0 | N63: =PRE_Calculations!AG65 -> 0 | R63: ----59 | T63: 0 | U63: 0 | V63: 0 | W63: 0 | X63: 0 | Y63: 0 | Z63: 0 | AA63: 0 | AB63: =POST_Calculations!AF65 -> 0 | AC63: =POST_Calculations!AG65 -> 0 | AE63: no
C64: ----60 | E64: 0 | F64: 0 | G64: 0 | H64: 0 | I64: 0 | J64: 0 | K64: 0 | L64: 0 | M64: =PRE_Calculations!AF66 -> 0 | N64: =PRE_Calculations!AG66 -> 0 | R64: ----60 | T64: 0 | U64: 0 | V64: 0 | W64: 0 | X64: 0 | Y64: 0 | Z64: 0 | AA64: 0 | AB64: =POST_Calculations!AF66 -> 0 | AC64: =POST_Calculations!AG66 -> 0 | AE64: no
C65: ----61 | E65: 0 | F65: 0 | G65: 0 | H65: 0 | I65: 0 | J65: 0 | K65: 0 | L65: 0 | M65: =PRE_Calculations!AF67 -> 0 | N65: =PRE_Calculations!AG67 -> 0 | R65: ----61 | T65: 0 | U65: 0 | V65: 0 | W65: 0 | X65: 0 | Y65: 0 | Z65: 0 | AA65: 0 | AB65: =POST_Calculations!AF67 -> 0 | AC65: =POST_Calculations!AG67 -> 0 | AE65: no
C66: ----62 | E66: 0 | F66: 0 | G66: 0 | H66: 0 | I66: 0 | J66: 0 | K66: 0 | L66: 0 | M66: =PRE_Calculations!AF68 -> 0 | N66: =PRE_Calculations!AG68 -> 0 | R66: ----62 | T66: 0 | U66: 0 | V66: 0 | W66: 0 | X66: 0 | Y66: 0 | Z66: 0 | AA66: 0 | AB66: =POST_Calculations!AF68 -> 0 | AC66: =POST_Calculations!AG68 -> 0 | AE66: no
C67: ----63 | E67: 0 | F67: 0 | G67: 0 | H67: 0 | I67: 0 | J67: 0 | K67: 0 | L67: 0 | M67: =PRE_Calculations!AF69 -> 0 | N67: =PRE_Calculations!AG69 -> 0 | R67: ----63 | T67: 0 | U67: 0 | V67: 0 | W67: 0 | X67: 0 | Y67: 0 | Z67: 0 | AA67: 0 | AB67: =POST_Calculations!AF69 -> 0 | AC67: =POST_Calculations!AG69 -> 0 | AE67: no
C68: ----64 | E68: 0 | F68: 0 | G68: 0 | H68: 0 | I68: 0 | J68: 0 | K68: 0 | L68: 0 | M68: =PRE_Calculations!AF70 -> 0 | N68: =PRE_Calculations!AG70 -> 0 | R68: ----64 | T68: 0 | U68: 0 | V68: 0 | W68: 0 | X68: 0 | Y68: 0 | Z68: 0 | AA68: 0 | AB68: =POST_Calculations!AF70 -> 0 | AC68: =POST_Calculations!AG70 -> 0 | AE68: no
C69: ----65 | E69: 0 | F69: 0 | G69: 0 | H69: 0 | I69: 0 | J69: 0 | K69: 0 | L69: 0 | M69: =PRE_Calculations!AF71 -> 0 | N69: =PRE_Calculations!AG71 -> 0 | R69: ----65 | T69: 0 | U69: 0 | V69: 0 | W69: 0 | X69: 0 | Y69: 0 | Z69: 0 | AA69: 0 | AB69: =POST_Calculations!AF71 -> 0 | AC69: =POST_Calculations!AG71 -> 0 | AE69: no
C70: ----66 | E70: 0 | F70: 0 | G70: 0 | H70: 0 | I70: 0 | J70: 0 | K70: 0 | L70: 0 | M70: =PRE_Calculations!AF72 -> 0 | N70: =PRE_Calculations!AG72 -> 0 | R70: ----66 | T70: 0 | U70: 0 | V70: 0 | W70: 0 | X70: 0 | Y70: 0 | Z70: 0 | AA70: 0 | AB70: =POST_Calculations!AF72 -> 0 | AC70: =POST_Calculations!AG72 -> 0 | AE70: no
C71: ----67 | E71: 0 | F71: 0 | G71: 0 | H71: 0 | I71: 0 | J71: 0 | K71: 0 | L71: 0 | M71: =PRE_Calculations!AF73 -> 0 | N71: =PRE_Calculations!AG73 -> 0 | R71: ----67 | T71: 0 | U71: 0 | V71: 0 | W71: 0 | X71: 0 | Y71: 0 | Z71: 0 | AA71: 0 | AB71: =POST_Calculations!AF73 -> 0 | AC71: =POST_Calculations!AG73 -> 0 | AE71: no
C72: ----68 | E72: 0 | F72: 0 | G72: 0 | H72: 0 | I72: 0 | J72: 0 | K72: 0 | L72: 0 | M72: =PRE_Calculations!AF74 -> 0 | N72: =PRE_Calculations!AG74 -> 0 | R72: ----68 | T72: 0 | U72: 0 | V72: 0 | W72: 0 | X72: 0 | Y72: 0 | Z72: 0 | AA72: 0 | AB72: =POST_Calculations!AF74 -> 0 | AC72: =POST_Calculations!AG74 -> 0 | AE72: no
C73: ----69 | E73: 0 | F73: 0 | G73: 0 | H73: 0 | I73: 0 | J73: 0 | K73: 0 | L73: 0 | M73: =PRE_Calculations!AF75 -> 0 | N73: =PRE_Calculations!AG75 -> 0 | R73: ----69 | T73: 0 | U73: 0 | V73: 0 | W73: 0 | X73: 0 | Y73: 0 | Z73: 0 | AA73: 0 | AB73: =POST_Calculations!AF75 -> 0 | AC73: =POST_Calculations!AG75 -> 0 | AE73: no
C74: ----70 | E74: 0 | F74: 0 | G74: 0 | H74: 0 | I74: 0 | J74: 0 | K74: 0 | L74: 0 | M74: =PRE_Calculations!AF76 -> 0 | N74: =PRE_Calculations!AG76 -> 0 | R74: ----70 | T74: 0 | U74: 0 | V74: 0 | W74: 0 | X74: 0 | Y74: 0 | Z74: 0 | AA74: 0 | AB74: =POST_Calculations!AF76 -> 0 | AC74: =POST_Calculations!AG76 -> 0 | AE74: no
C75: ----71 | E75: 0 | F75: 0 | G75: 0 | H75: 0 | I75: 0 | J75: 0 | K75: 0 | L75: 0 | M75: =PRE_Calculations!AF77 -> 0 | N75: =PRE_Calculations!AG77 -> 0 | R75: ----71 | T75: 0 | U75: 0 | V75: 0 | W75: 0 | X75: 0 | Y75: 0 | Z75: 0 | AA75: 0 | AB75: =POST_Calculations!AF77 -> 0 | AC75: =POST_Calculations!AG77 -> 0 | AE75: no
C76: ----72 | E76: 0 | F76: 0 | G76: 0 | H76: 0 | I76: 0 | J76: 0 | K76: 0 | L76: 0 | M76: =PRE_Calculations!AF78 -> 0 | N76: =PRE_Calculations!AG78 -> 0 | R76: ----72 | T76: 0 | U76: 0 | V76: 0 | W76: 0 | X76: 0 | Y76: 0 | Z76: 0 | AA76: 0 | AB76: =POST_Calculations!AF78 -> 0 | AC76: =POST_Calculations!AG78 -> 0 | AE76: no
C77: ----73 | E77: 0 | F77: 0 | G77: 0 | H77: 0 | I77: 0 | J77: 0 | K77: 0 | L77: 0 | M77: =PRE_Calculations!AF79 -> 0 | N77: =PRE_Calculations!AG79 -> 0 | R77: ----73 | T77: 0 | U77: 0 | V77: 0 | W77: 0 | X77: 0 | Y77: 0 | Z77: 0 | AA77: 0 | AB77: =POST_Calculations!AF79 -> 0 | AC77: =POST_Calculations!AG79 -> 0 | AE77: no
C78: ----74 | E78: 0 | F78: 0 | G78: 0 | H78: 0 | I78: 0 | J78: 0 | K78: 0 | L78: 0 | M78: =PRE_Calculations!AF80 -> 0 | N78: =PRE_Calculations!AG80 -> 0 | R78: ----74 | T78: 0 | U78: 0 | V78: 0 | W78: 0 | X78: 0 | Y78: 0 | Z78: 0 | AA78: 0 | AB78: =POST_Calculations!AF80 -> 0 | AC78: =POST_Calculations!AG80 -> 0 | AE78: no
C79: ----75 | E79: 0 | F79: 0 | G79: 0 | H79: 0 | I79: 0 | J79: 0 | K79: 0 | L79: 0 | M79: =PRE_Calculations!AF81 -> 0 | N79: =PRE_Calculations!AG81 -> 0 | R79: ----75 | T79: 0 | U79: 0 | V79: 0 | W79: 0 | X79: 0 | Y79: 0 | Z79: 0 | AA79: 0 | AB79: =POST_Calculations!AF81 -> 0 | AC79: =POST_Calculations!AG81 -> 0 | AE79: no
C80: ----76 | E80: 0 | F80: 0 | G80: 0 | H80: 0 | I80: 0 | J80: 0 | K80: 0 | L80: 0 | M80: =PRE_Calculations!AF82 -> 0 | N80: =PRE_Calculations!AG82 -> 0 | R80: ----76 | T80: 0 | U80: 0 | V80: 0 | W80: 0 | X80: 0 | Y80: 0 | Z80: 0 | AA80: 0 | AB80: =POST_Calculations!AF82 -> 0 | AC80: =POST_Calculations!AG82 -> 0 | AE80: no
C81: ----77 | E81: 0 | F81: 0 | G81: 0 | H81: 0 | I81: 0 | J81: 0 | K81: 0 | L81: 0 | M81: =PRE_Calculations!AF83 -> 0 | N81: =PRE_Calculations!AG83 -> 0 | R81: ----77 | T81: 0 | U81: 0 | V81: 0 | W81: 0 | X81: 0 | Y81: 0 | Z81: 0 | AA81: 0 | AB81: =POST_Calculations!AF83 -> 0 | AC81: =POST_Calculations!AG83 -> 0 | AE81: no
C82: ----78 | E82: 0 | F82: 0 | G82: 0 | H82: 0 | I82: 0 | J82: 0 | K82: 0 | L82: 0 | M82: =PRE_Calculations!AF84 -> 0 | N82: =PRE_Calculations!AG84 -> 0 | R82: ----78 | T82: 0 | U82: 0 | V82: 0 | W82: 0 | X82: 0 | Y82: 0 | Z82: 0 | AA82: 0 | AB82: =POST_Calculations!AF84 -> 0 | AC82: =POST_Calculations!AG84 -> 0 | AE82: no
C83: ----79 | E83: 0 | F83: 0 | G83: 0 | H83: 0 | I83: 0 | J83: 0 | K83: 0 | L83: 0 | M83: =PRE_Calculations!AF85 -> 0 | N83: =PRE_Calculations!AG85 -> 0 | R83: ----79 | T83: 0 | U83: 0 | V83: 0 | W83: 0 | X83: 0 | Y83: 0 | Z83: 0 | AA83: 0 | AB83: =POST_Calculations!AF85 -> 0 | AC83: =POST_Calculations!AG85 -> 0 | AE83: no
C84: ----80 | E84: 0 | F84: 0 | G84: 0 | H84: 0 | I84: 0 | J84: 0 | K84: 0 | L84: 0 | M84: =PRE_Calculations!AF86 -> 0 | N84: =PRE_Calculations!AG86 -> 0 | R84: ----80 | T84: 0 | U84: 0 | V84: 0 | W84: 0 | X84: 0 | Y84: 0 | Z84: 0 | AA84: 0 | AB84: =POST_Calculations!AF86 -> 0 | AC84: =POST_Calculations!AG86 -> 0 | AE84: no
C85: ----81 | E85: 0 | F85: 0 | G85: 0 | H85: 0 | I85: 0 | J85: 0 | K85: 0 | L85: 0 | M85: =PRE_Calculations!AF87 -> 0 | N85: =PRE_Calculations!AG87 -> 0 | R85: ----81 | T85: 0 | U85: 0 | V85: 0 | W85: 0 | X85: 0 | Y85: 0 | Z85: 0 | AA85: 0 | AB85: =POST_Calculations!AF87 -> 0 | AC85: =POST_Calculations!AG87 -> 0 | AE85: no
C86: ----82 | E86: 0 | F86: 0 | G86: 0 | H86: 0 | I86: 0 | J86: 0 | K86: 0 | L86: 0 | M86: =PRE_Calculations!AF88 -> 0 | N86: =PRE_Calculations!AG88 -> 0 | R86: ----82 | T86: 0 | U86: 0 | V86: 0 | W86: 0 | X86: 0 | Y86: 0 | Z86: 0 | AA86: 0 | AB86: =POST_Calculations!AF88 -> 0 | AC86: =POST_Calculations!AG88 -> 0 | AE86: no
C87: ----83 | E87: 0 | F87: 0 | G87: 0 | H87: 0 | I87: 0 | J87: 0 | K87: 0 | L87: 0 | M87: =PRE_Calculations!AF89 -> 0 | N87: =PRE_Calculations!AG89 -> 0 | R87: ----83 | T87: 0 | U87: 0 | V87: 0 | W87: 0 | X87: 0 | Y87: 0 | Z87: 0 | AA87: 0 | AB87: =POST_Calculations!AF89 -> 0 | AC87: =POST_Calculations!AG89 -> 0 | AE87: no
C88: ----84 | E88: 0 | F88: 0 | G88: 0 | H88: 0 | I88: 0 | J88: 0 | K88: 0 | L88: 0 | M88: =PRE_Calculations!AF90 -> 0 | N88: =PRE_Calculations!AG90 -> 0 | R88: ----84 | T88: 0 | U88: 0 | V88: 0 | W88: 0 | X88: 0 | Y88: 0 | Z88: 0 | AA88: 0 | AB88: =POST_Calculations!AF90 -> 0 | AC88: =POST_Calculations!AG90 -> 0 | AE88: no
C89: ----85 | E89: 0 | F89: 0 | G89: 0 | H89: 0 | I89: 0 | J89: 0 | K89: 0 | L89: 0 | M89: =PRE_Calculations!AF91 -> 0 | N89: =PRE_Calculations!AG91 -> 0 | R89: ----85 | T89: 0 | U89: 0 | V89: 0 | W89: 0 | X89: 0 | Y89: 0 | Z89: 0 | AA89: 0 | AB89: =POST_Calculations!AF91 -> 0 | AC89: =POST_Calculations!AG91 -> 0 | AE89: no
C90: ----86 | E90: 0 | F90: 0 | G90: 0 | H90: 0 | I90: 0 | J90: 0 | K90: 0 | L90: 0 | M90: =PRE_Calculations!AF92 -> 0 | N90: =PRE_Calculations!AG92 -> 0 | R90: ----86 | T90: 0 | U90: 0 | V90: 0 | W90: 0 | X90: 0 | Y90: 0 | Z90: 0 | AA90: 0 | AB90: =POST_Calculations!AF92 -> 0 | AC90: =POST_Calculations!AG92 -> 0 | AE90: no
C91: ----87 | E91: 0 | F91: 0 | G91: 0 | H91: 0 | I91: 0 | J91: 0 | K91: 0 | L91: 0 | M91: =PRE_Calculations!AF93 -> 0 | N91: =PRE_Calculations!AG93 -> 0 | R91: ----87 | T91: 0 | U91: 0 | V91: 0 | W91: 0 | X91: 0 | Y91: 0 | Z91: 0 | AA91: 0 | AB91: =POST_Calculations!AF93 -> 0 | AC91: =POST_Calculations!AG93 -> 0 | AE91: no
C92: ----88 | E92: 0 | F92: 0 | G92: 0 | H92: 0 | I92: 0 | J92: 0 | K92: 0 | L92: 0 | M92: =PRE_Calculations!AF94 -> 0 | N92: =PRE_Calculations!AG94 -> 0 | R92: ----88 | T92: 0 | U92: 0 | V92: 0 | W92: 0 | X92: 0 | Y92: 0 | Z92: 0 | AA92: 0 | AB92: =POST_Calculations!AF94 -> 0 | AC92: =POST_Calculations!AG94 -> 0 | AE92: no
C93: ----89 | E93: 0 | F93: 0 | G93: 0 | H93: 0 | I93: 0 | J93: 0 | K93: 0 | L93: 0 | M93: =PRE_Calculations!AF95 -> 0 | N93: =PRE_Calculations!AG95 -> 0 | R93: ----89 | T93: 0 | U93: 0 | V93: 0 | W93: 0 | X93: 0 | Y93: 0 | Z93: 0 | AA93: 0 | AB93: =POST_Calculations!AF95 -> 0 | AC93: =POST_Calculations!AG95 -> 0 | AE93: no
C94: ----90 | E94: 0 | F94: 0 | G94: 0 | H94: 0 | I94: 0 | J94: 0 | K94: 0 | L94: 0 | M94: =PRE_Calculations!AF96 -> 0 | N94: =PRE_Calculations!AG96 -> 0 | R94: ----90 | T94: 0 | U94: 0 | V94: 0 | W94: 0 | X94: 0 | Y94: 0 | Z94: 0 | AA94: 0 | AB94: =POST_Calculations!AF96 -> 0 | AC94: =POST_Calculations!AG96 -> 0 | AE94: no
C95: ----91 | E95: 0 | F95: 0 | G95: 0 | H95: 0 | I95: 0 | J95: 0 | K95: 0 | L95: 0 | M95: =PRE_Calculations!AF97 -> 0 | N95: =PRE_Calculations!AG97 -> 0 | R95: ----91 | T95: 0 | U95: 0 | V95: 0 | W95: 0 | X95: 0 | Y95: 0 | Z95: 0 | AA95: 0 | AB95: =POST_Calculations!AF97 -> 0 | AC95: =POST_Calculations!AG97 -> 0 | AE95: no
C96: ----92 | E96: 0 | F96: 0 | G96: 0 | H96: 0 | I96: 0 | J96: 0 | K96: 0 | L96: 0 | M96: =PRE_Calculations!AF98 -> 0 | N96: =PRE_Calculations!AG98 -> 0 | R96: ----92 | T96: 0 | U96: 0 | V96: 0 | W96: 0 | X96: 0 | Y96: 0 | Z96: 0 | AA96: 0 | AB96: =POST_Calculations!AF98 -> 0 | AC96: =POST_Calculations!AG98 -> 0 | AE96: no
C97: ----93 | E97: 0 | F97: 0 | G97: 0 | H97: 0 | I97: 0 | J97: 0 | K97: 0 | L97: 0 | M97: =PRE_Calculations!AF99 -> 0 | N97: =PRE_Calculations!AG99 -> 0 | R97: ----93 | T97: 0 | U97: 0 | V97: 0 | W97: 0 | X97: 0 | Y97: 0 | Z97: 0 | AA97: 0 | AB97: =POST_Calculations!AF99 -> 0 | AC97: =POST_Calculations!AG99 -> 0 | AE97: no
C98: ----94 | E98: 0 | F98: 0 | G98: 0 | H98: 0 | I98: 0 | J98: 0 | K98: 0 | L98: 0 | M98: =PRE_Calculations!AF100 -> 0 | N98: =PRE_Calculations!AG100 -> 0 | R98: ----94 | T98: 0 | U98: 0 | V98: 0 | W98: 0 | X98: 0 | Y98: 0 | Z98: 0 | AA98: 0 | AB98: =POST_Calculations!AF100 -> 0 | AC98: =POST_Calculations!AG100 -> 0 | AE98: no
C99: ----95 | E99: 0 | F99: 0 | G99: 0 | H99: 0 | I99: 0 | J99: 0 | K99: 0 | L99: 0 | M99: =PRE_Calculations!AF101 -> 0 | N99: =PRE_Calculations!AG101 -> 0 | R99: ----95 | T99: 0 | U99: 0 | V99: 0 | W99: 0 | X99: 0 | Y99: 0 | Z99: 0 | AA99: 0 | AB99: =POST_Calculations!AF101 -> 0 | AC99: =POST_Calculations!AG101 -> 0 | AE99: no
C100: ----96 | E100: 0 | F100: 0 | G100: 0 | H100: 0 | I100: 0 | J100: 0 | K100: 0 | L100: 0 | M100: =PRE_Calculations!AF102 -> 0 | N100: =PRE_Calculations!AG102 -> 0 | R100: ----96 | T100: 0 | U100: 0 | V100: 0 | W100: 0 | X100: 0 | Y100: 0 | Z100: 0 | AA100: 0 | AB100: =POST_Calculations!AF102 -> 0 | AC100: =POST_Calculations!AG102 -> 0 | AE100: no
C101: ----97 | E101: 0 | F101: 0 | G101: 0 | H101: 0 | I101: 0 | J101: 0 | K101: 0 | L101: 0 | M101: =PRE_Calculations!AF103 -> 0 | N101: =PRE_Calculations!AG103 -> 0 | R101: ----97 | T101: 0 | U101: 0 | V101: 0 | W101: 0 | X101: 0 | Y101: 0 | Z101: 0 | AA101: 0 | AB101: =POST_Calculations!AF103 -> 0 | AC101: =POST_Calculations!AG103 -> 0 | AE101: no
C102: ----98 | E102: 0 | F102: 0 | G102: 0 | H102: 0 | I102: 0 | J102: 0 | K102: 0 | L102: 0 | M102: =PRE_Calculations!AF104 -> 0 | N102: =PRE_Calculations!AG104 -> 0 | R102: ----98 | T102: 0 | U102: 0 | V102: 0 | W102: 0 | X102: 0 | Y102: 0 | Z102: 0 | AA102: 0 | AB102: =POST_Calculations!AF104 -> 0 | AC102: =POST_Calculations!AG104 -> 0 | AE102: no
C103: ----99 | E103: 0 | F103: 0 | G103: 0 | H103: 0 | I103: 0 | J103: 0 | K103: 0 | L103: 0 | M103: =PRE_Calculations!AF105 -> 0 | N103: =PRE_Calculations!AG105 -> 0 | R103: ----99 | T103: 0 | U103: 0 | V103: 0 | W103: 0 | X103: 0 | Y103: 0 | Z103: 0 | AA103: 0 | AB103: =POST_Calculations!AF105 -> 0 | AC103: =POST_Calculations!AG105 -> 0 | AE103: no
C104: ----100 | E104: 0 | F104: 0 | G104: 0 | H104: 0 | I104: 0 | J104: 0 | K104: 0 | L104: 0 | M104: =PRE_Calculations!AF106 -> 0 | N104: =PRE_Calculations!AG106 -> 0 | R104: ----100 | T104: 0 | U104: 0 | V104: 0 | W104: 0 | X104: 0 | Y104: 0 | Z104: 0 | AA104: 0 | AB104: =POST_Calculations!AF106 -> 0 | AC104: =POST_Calculations!AG106 -> 0 | AE104: no
C105: ----101 | E105: 0 | F105: 0 | G105: 0 | H105: 0 | I105: 0 | J105: 0 | K105: 0 | L105: 0 | M105: =PRE_Calculations!AF107 -> 0 | N105: =PRE_Calculations!AG107 -> 0 | R105: ----101 | T105: 0 | U105: 0 | V105: 0 | W105: 0 | X105: 0 | Y105: 0 | Z105: 0 | AA105: 0 | AB105: =POST_Calculations!AF107 -> 0 | AC105: =POST_Calculations!AG107 -> 0 | AE105: no
C106: ----102 | E106: 0 | F106: 0 | G106: 0 | H106: 0 | I106: 0 | J106: 0 | K106: 0 | L106: 0 | M106: =PRE_Calculations!AF108 -> 0 | N106: =PRE_Calculations!AG108 -> 0 | R106: ----102 | T106: 0 | U106: 0 | V106: 0 | W106: 0 | X106: 0 | Y106: 0 | Z106: 0 | AA106: 0 | AB106: =POST_Calculations!AF108 -> 0 | AC106: =POST_Calculations!AG108 -> 0 | AE106: no
C107: ----103 | E107: 0 | F107: 0 | G107: 0 | H107: 0 | I107: 0 | J107: 0 | K107: 0 | L107: 0 | M107: =PRE_Calculations!AF109 -> 0 | N107: =PRE_Calculations!AG109 -> 0 | R107: ----103 | T107: 0 | U107: 0 | V107: 0 | W107: 0 | X107: 0 | Y107: 0 | Z107: 0 | AA107: 0 | AB107: =POST_Calculations!AF109 -> 0 | AC107: =POST_Calculations!AG109 -> 0 | AE107: no
C108: ----104 | E108: 0 | F108: 0 | G108: 0 | H108: 0 | I108: 0 | J108: 0 | K108: 0 | L108: 0 | M108: =PRE_Calculations!AF110 -> 0 | N108: =PRE_Calculations!AG110 -> 0 | R108: ----104 | T108: 0 | U108: 0 | V108: 0 | W108: 0 | X108: 0 | Y108: 0 | Z108: 0 | AA108: 0 | AB108: =POST_Calculations!AF110 -> 0 | AC108: =POST_Calculations!AG110 -> 0 | AE108: no
C109: ----105 | E109: 0 | F109: 0 | G109: 0 | H109: 0 | I109: 0 | J109: 0 | K109: 0 | L109: 0 | M109: =PRE_Calculations!AF111 -> 0 | N109: =PRE_Calculations!AG111 -> 0 | R109: ----105 | T109: 0 | U109: 0 | V109: 0 | W109: 0 | X109: 0 | Y109: 0 | Z109: 0 | AA109: 0 | AB109: =POST_Calculations!AF111 -> 0 | AC109: =POST_Calculations!AG111 -> 0 | AE109: no
C110: ----106 | E110: 0 | F110: 0 | G110: 0 | H110: 0 | I110: 0 | J110: 0 | K110: 0 | L110: 0 | M110: =PRE_Calculations!AF112 -> 0 | N110: =PRE_Calculations!AG112 -> 0 | R110: ----106 | T110: 0 | U110: 0 | V110: 0 | W110: 0 | X110: 0 | Y110: 0 | Z110: 0 | AA110: 0 | AB110: =POST_Calculations!AF112 -> 0 | AC110: =POST_Calculations!AG112 -> 0 | AE110: no
C111: ----107 | E111: 0 | F111: 0 | G111: 0 | H111: 0 | I111: 0 | J111: 0 | K111: 0 | L111: 0 | M111: =PRE_Calculations!AF113 -> 0 | N111: =PRE_Calculations!AG113 -> 0 | R111: ----107 | T111: 0 | U111: 0 | V111: 0 | W111: 0 | X111: 0 | Y111: 0 | Z111: 0 | AA111: 0 | AB111: =POST_Calculations!AF113 -> 0 | AC111: =POST_Calculations!AG113 -> 0 | AE111: no
C112: ----108 | E112: 0 | F112: 0 | G112: 0 | H112: 0 | I112: 0 | J112: 0 | K112: 0 | L112: 0 | M112: =PRE_Calculations!AF114 -> 0 | N112: =PRE_Calculations!AG114 -> 0 | R112: ----108 | T112: 0 | U112: 0 | V112: 0 | W112: 0 | X112: 0 | Y112: 0 | Z112: 0 | AA112: 0 | AB112: =POST_Calculations!AF114 -> 0 | AC112: =POST_Calculations!AG114 -> 0 | AE112: no
C113: ----109 | E113: 0 | F113: 0 | G113: 0 | H113: 0 | I113: 0 | J113: 0 | K113: 0 | L113: 0 | M113: =PRE_Calculations!AF115 -> 0 | N113: =PRE_Calculations!AG115 -> 0 | R113: ----109 | T113: 0 | U113: 0 | V113: 0 | W113: 0 | X113: 0 | Y113: 0 | Z113: 0 | AA113: 0 | AB113: =POST_Calculations!AF115 -> 0 | AC113: =POST_Calculations!AG115 -> 0 | AE113: no
C114: ----110 | E114: 0 | F114: 0 | G114: 0 | H114: 0 | I114: 0 | J114: 0 | K114: 0 | L114: 0 | M114: =PRE_Calculations!AF116 -> 0 | N114: =PRE_Calculations!AG116 -> 0 | R114: ----110 | T114: 0 | U114: 0 | V114: 0 | W114: 0 | X114: 0 | Y114: 0 | Z114: 0 | AA114: 0 | AB114: =POST_Calculations!AF116 -> 0 | AC114: =POST_Calculations!AG116 -> 0 | AE114: no
C115: ----111 | E115: 0 | F115: 0 | G115: 0 | H115: 0 | I115: 0 | J115: 0 | K115: 0 | L115: 0 | M115: =PRE_Calculations!AF117 -> 0 | N115: =PRE_Calculations!AG117 -> 0 | R115: ----111 | T115: 0 | U115: 0 | V115: 0 | W115: 0 | X115: 0 | Y115: 0 | Z115: 0 | AA115: 0 | AB115: =POST_Calculations!AF117 -> 0 | AC115: =POST_Calculations!AG117 -> 0 | AE115: no
C116: ----112 | E116: 0 | F116: 0 | G116: 0 | H116: 0 | I116: 0 | J116: 0 | K116: 0 | L116: 0 | M116: =PRE_Calculations!AF118 -> 0 | N116: =PRE_Calculations!AG118 -> 0 | R116: ----112 | T116: 0 | U116: 0 | V116: 0 | W116: 0 | X116: 0 | Y116: 0 | Z116: 0 | AA116: 0 | AB116: =POST_Calculations!AF118 -> 0 | AC116: =POST_Calculations!AG118 -> 0 | AE116: no
C117: ----113 | E117: 0 | F117: 0 | G117: 0 | H117: 0 | I117: 0 | J117: 0 | K117: 0 | L117: 0 | M117: =PRE_Calculations!AF119 -> 0 | N117: =PRE_Calculations!AG119 -> 0 | R117: ----113 | T117: 0 | U117: 0 | V117: 0 | W117: 0 | X117: 0 | Y117: 0 | Z117: 0 | AA117: 0 | AB117: =POST_Calculations!AF119 -> 0 | AC117: =POST_Calculations!AG119 -> 0 | AE117: no
C118: ----114 | E118: 0 | F118: 0 | G118: 0 | H118: 0 | I118: 0 | J118: 0 | K118: 0 | L118: 0 | M118: =PRE_Calculations!AF120 -> 0 | N118: =PRE_Calculations!AG120 -> 0 | R118: ----114 | T118: 0 | U118: 0 | V118: 0 | W118: 0 | X118: 0 | Y118: 0 | Z118: 0 | AA118: 0 | AB118: =POST_Calculations!AF120 -> 0 | AC118: =POST_Calculations!AG120 -> 0 | AE118: no
C119: ----115 | E119: 0 | F119: 0 | G119: 0 | H119: 0 | I119: 0 | J119: 0 | K119: 0 | L119: 0 | M119: =PRE_Calculations!AF121 -> 0 | N119: =PRE_Calculations!AG121 -> 0 | R119: ----115 | T119: 0 | U119: 0 | V119: 0 | W119: 0 | X119: 0 | Y119: 0 | Z119: 0 | AA119: 0 | AB119: =POST_Calculations!AF121 -> 0 | AC119: =POST_Calculations!AG121 -> 0 | AE119: no
C120: ----116 | E120: 0 | F120: 0 | G120: 0 | H120: 0 | I120: 0 | J120: 0 | K120: 0 | L120: 0 | M120: =PRE_Calculations!AF122 -> 0 | N120: =PRE_Calculations!AG122 -> 0 | R120: ----116 | T120: 0 | U120: 0 | V120: 0 | W120: 0 | X120: 0 | Y120: 0 | Z120: 0 | AA120: 0 | AB120: =POST_Calculations!AF122 -> 0 | AC120: =POST_Calculations!AG122 -> 0 | AE120: no
C121: ----117 | E121: 0 | F121: 0 | G121: 0 | H121: 0 | I121: 0 | J121: 0 | K121: 0 | L121: 0 | M121: =PRE_Calculations!AF123 -> 0 | N121: =PRE_Calculations!AG123 -> 0 | R121: ----117 | T121: 0 | U121: 0 | V121: 0 | W121: 0 | X121: 0 | Y121: 0 | Z121: 0 | AA121: 0 | AB121: =POST_Calculations!AF123 -> 0 | AC121: =POST_Calculations!AG123 -> 0 | AE121: no
C122: ----118 | E122: 0 | F122: 0 | G122: 0 | H122: 0 | I122: 0 | J122: 0 | K122: 0 | L122: 0 | M122: =PRE_Calculations!AF124 -> 0 | N122: =PRE_Calculations!AG124 -> 0 | R122: ----118 | T122: 0 | U122: 0 | V122: 0 | W122: 0 | X122: 0 | Y122: 0 | Z122: 0 | AA122: 0 | AB122: =POST_Calculations!AF124 -> 0 | AC122: =POST_Calculations!AG124 -> 0 | AE122: no
C123: ----119 | E123: 0 | F123: 0 | G123: 0 | H123: 0 | I123: 0 | J123: 0 | K123: 0 | L123: 0 | M123: =PRE_Calculations!AF125 -> 0 | N123: =PRE_Calculations!AG125 -> 0 | R123: ----119 | T123: 0 | U123: 0 | V123: 0 | W123: 0 | X123: 0 | Y123: 0 | Z123: 0 | AA123: 0 | AB123: =POST_Calculations!AF125 -> 0 | AC123: =POST_Calculations!AG125 -> 0 | AE123: no
C124: ----120 | E124: 0 | F124: 0 | G124: 0 | H124: 0 | I124: 0 | J124: 0 | K124: 0 | L124: 0 | M124: =PRE_Calculations!AF126 -> 0 | N124: =PRE_Calculations!AG126 -> 0 | R124: ----120 | T124: 0 | U124: 0 | V124: 0 | W124: 0 | X124: 0 | Y124: 0 | Z124: 0 | AA124: 0 | AB124: =POST_Calculations!AF126 -> 0 | AC124: =POST_Calculations!AG126 -> 0 | AE124: no
C125: ----121 | E125: 0 | F125: 0 | G125: 0 | H125: 0 | I125: 0 | J125: 0 | K125: 0 | L125: 0 | M125: =PRE_Calculations!AF127 -> 0 | N125: =PRE_Calculations!AG127 -> 0 | R125: ----121 | T125: 0 | U125: 0 | V125: 0 | W125: 0 | X125: 0 | Y125: 0 | Z125: 0 | AA125: 0 | AB125: =POST_Calculations!AF127 -> 0 | AC125: =POST_Calculations!AG127 -> 0 | AE125: no
C126: ----122 | E126: 0 | F126: 0 | G126: 0 | H126: 0 | I126: 0 | J126: 0 | K126: 0 | L126: 0 | M126: =PRE_Calculations!AF128 -> 0 | N126: =PRE_Calculations!AG128 -> 0 | R126: ----122 | T126: 0 | U126: 0 | V126: 0 | W126: 0 | X126: 0 | Y126: 0 | Z126: 0 | AA126: 0 | AB126: =POST_Calculations!AF128 -> 0 | AC126: =POST_Calculations!AG128 -> 0 | AE126: no
C127: ----123 | E127: 0 | F127: 0 | G127: 0 | H127: 0 | I127: 0 | J127: 0 | K127: 0 | L127: 0 | M127: =PRE_Calculations!AF129 -> 0 | N127: =PRE_Calculations!AG129 -> 0 | R127: ----123 | T127: 0 | U127: 0 | V127: 0 | W127: 0 | X127: 0 | Y127: 0 | Z127: 0 | AA127: 0 | AB127: =POST_Calculations!AF129 -> 0 | AC127: =POST_Calculations!AG129 -> 0 | AE127: no
C128: ----124 | E128: 0 | F128: 0 | G128: 0 | H128: 0 | I128: 0 | J128: 0 | K128: 0 | L128: 0 | M128: =PRE_Calculations!AF130 -> 0 | N128: =PRE_Calculations!AG130 -> 0 | R128: ----124 | T128: 0 | U128: 0 | V128: 0 | W128: 0 | X128: 0 | Y128: 0 | Z128: 0 | AA128: 0 | AB128: =POST_Calculations!AF130 -> 0 | AC128: =POST_Calculations!AG130 -> 0 | AE128: no
C129: ----125 | E129: 0 | F129: 0 | G129: 0 | H129: 0 | I129: 0 | J129: 0 | K129: 0 | L129: 0 | M129: =PRE_Calculations!AF131 -> 0 | N129: =PRE_Calculations!AG131 -> 0 | R129: ----125 | T129: 0 | U129: 0 | V129: 0 | W129: 0 | X129: 0 | Y129: 0 | Z129: 0 | AA129: 0 | AB129: =POST_Calculations!AF131 -> 0 | AC129: =POST_Calculations!AG131 -> 0 | AE129: no
C130: ----126 | E130: 0 | F130: 0 | G130: 0 | H130: 0 | I130: 0 | J130: 0 | K130: 0 | L130: 0 | M130: =PRE_Calculations!AF132 -> 0 | N130: =PRE_Calculations!AG132 -> 0 | R130: ----126 | T130: 0 | U130: 0 | V130: 0 | W130: 0 | X130: 0 | Y130: 0 | Z130: 0 | AA130: 0 | AB130: =POST_Calculations!AF132 -> 0 | AC130: =POST_Calculations!AG132 -> 0 | AE130: no
C131: ----127 | E131: 0 | F131: 0 | G131: 0 | H131: 0 | I131: 0 | J131: 0 | K131: 0 | L131: 0 | M131: =PRE_Calculations!AF133 -> 0 | N131: =PRE_Calculations!AG133 -> 0 | R131: ----127 | T131: 0 | U131: 0 | V131: 0 | W131: 0 | X131: 0 | Y131: 0 | Z131: 0 | AA131: 0 | AB131: =POST_Calculations!AF133 -> 0 | AC131: =POST_Calculations!AG133 -> 0 | AE131: no
C132: ----128 | E132: 0 | F132: 0 | G132: 0 | H132: 0 | I132: 0 | J132: 0 | K132: 0 | L132: 0 | M132: =PRE_Calculations!AF134 -> 0 | N132: =PRE_Calculations!AG134 -> 0 | R132: ----128 | T132: 0 | U132: 0 | V132: 0 | W132: 0 | X132: 0 | Y132: 0 | Z132: 0 | AA132: 0 | AB132: =POST_Calculations!AF134 -> 0 | AC132: =POST_Calculations!AG134 -> 0 | AE132: no
C133: ----129 | E133: 0 | F133: 0 | G133: 0 | H133: 0 | I133: 0 | J133: 0 | K133: 0 | L133: 0 | M133: =PRE_Calculations!AF135 -> 0 | N133: =PRE_Calculations!AG135 -> 0 | R133: ----129 | T133: 0 | U133: 0 | V133: 0 | W133: 0 | X133: 0 | Y133: 0 | Z133: 0 | AA133: 0 | AB133: =POST_Calculations!AF135 -> 0 | AC133: =POST_Calculations!AG135 -> 0 | AE133: no
C134: ----130 | E134: 0 | F134: 0 | G134: 0 | H134: 0 | I134: 0 | J134: 0 | K134: 0 | L134: 0 | M134: =PRE_Calculations!AF136 -> 0 | N134: =PRE_Calculations!AG136 -> 0 | R134: ----130 | T134: 0 | U134: 0 | V134: 0 | W134: 0 | X134: 0 | Y134: 0 | Z134: 0 | AA134: 0 | AB134: =POST_Calculations!AF136 -> 0 | AC134: =POST_Calculations!AG136 -> 0 | AE134: no
C135: ----131 | E135: 0 | F135: 0 | G135: 0 | H135: 0 | I135: 0 | J135: 0 | K135: 0 | L135: 0 | M135: =PRE_Calculations!AF137 -> 0 | N135: =PRE_Calculations!AG137 -> 0 | R135: ----131 | T135: 0 | U135: 0 | V135: 0 | W135: 0 | X135: 0 | Y135: 0 | Z135: 0 | AA135: 0 | AB135: =POST_Calculations!AF137 -> 0 | AC135: =POST_Calculations!AG137 -> 0 | AE135: no
C136: ----132 | E136: 0 | F136: 0 | G136: 0 | H136: 0 | I136: 0 | J136: 0 | K136: 0 | L136: 0 | M136: =PRE_Calculations!AF138 -> 0 | N136: =PRE_Calculations!AG138 -> 0 | R136: ----132 | T136: 0 | U136: 0 | V136: 0 | W136: 0 | X136: 0 | Y136: 0 | Z136: 0 | AA136: 0 | AB136: =POST_Calculations!AF138 -> 0 | AC136: =POST_Calculations!AG138 -> 0 | AE136: no
C137: ----133 | E137: 0 | F137: 0 | G137: 0 | H137: 0 | I137: 0 | J137: 0 | K137: 0 | L137: 0 | M137: =PRE_Calculations!AF139 -> 0 | N137: =PRE_Calculations!AG139 -> 0 | R137: ----133 | T137: 0 | U137: 0 | V137: 0 | W137: 0 | X137: 0 | Y137: 0 | Z137: 0 | AA137: 0 | AB137: =POST_Calculations!AF139 -> 0 | AC137: =POST_Calculations!AG139 -> 0 | AE137: no
C138: ----134 | E138: 0 | F138: 0 | G138: 0 | H138: 0 | I138: 0 | J138: 0 | K138: 0 | L138: 0 | M138: =PRE_Calculations!AF140 -> 0 | N138: =PRE_Calculations!AG140 -> 0 | R138: ----134 | T138: 0 | U138: 0 | V138: 0 | W138: 0 | X138: 0 | Y138: 0 | Z138: 0 | AA138: 0 | AB138: =POST_Calculations!AF140 -> 0 | AC138: =POST_Calculations!AG140 -> 0 | AE138: no
C139: ----135 | E139: 0 | F139: 0 | G139: 0 | H139: 0 | I139: 0 | J139: 0 | K139: 0 | L139: 0 | M139: =PRE_Calculations!AF141 -> 0 | N139: =PRE_Calculations!AG141 -> 0 | R139: ----135 | T139: 0 | U139: 0 | V139: 0 | W139: 0 | X139: 0 | Y139: 0 | Z139: 0 | AA139: 0 | AB139: =POST_Calculations!AF141 -> 0 | AC139: =POST_Calculations!AG141 -> 0 | AE139: no
C140: ----136 | E140: 0 | F140: 0 | G140: 0 | H140: 0 | I140: 0 | J140: 0 | K140: 0 | L140: 0 | M140: =PRE_Calculations!AF142 -> 0 | N140: =PRE_Calculations!AG142 -> 0 | R140: ----136 | T140: 0 | U140: 0 | V140: 0 | W140: 0 | X140: 0 | Y140: 0 | Z140: 0 | AA140: 0 | AB140: =POST_Calculations!AF142 -> 0 | AC140: =POST_Calculations!AG142 -> 0 | AE140: no
C141: ----137 | E141: 0 | F141: 0 | G141: 0 | H141: 0 | I141: 0 | J141: 0 | K141: 0 | L141: 0 | M141: =PRE_Calculations!AF143 -> 0 | N141: =PRE_Calculations!AG143 -> 0 | R141: ----137 | T141: 0 | U141: 0 | V141: 0 | W141: 0 | X141: 0 | Y141: 0 | Z141: 0 | AA141: 0 | AB141: =POST_Calculations!AF143 -> 0 | AC141: =POST_Calculations!AG143 -> 0 | AE141: no
C142: ----138 | E142: 0 | F142: 0 | G142: 0 | H142: 0 | I142: 0 | J142: 0 | K142: 0 | L142: 0 | M142: =PRE_Calculations!AF144 -> 0 | N142: =PRE_Calculations!AG144 -> 0 | R142: ----138 | T142: 0 | U142: 0 | V142: 0 | W142: 0 | X142: 0 | Y142: 0 | Z142: 0 | AA142: 0 | AB142: =POST_Calculations!AF144 -> 0 | AC142: =POST_Calculations!AG144 -> 0 | AE142: no
C143: ----139 | E143: 0 | F143: 0 | G143: 0 | H143: 0 | I143: 0 | J143: 0 | K143: 0 | L143: 0 | M143: =PRE_Calculations!AF145 -> 0 | N143: =PRE_Calculations!AG145 -> 0 | R143: ----139 | T143: 0 | U143: 0 | V143: 0 | W143: 0 | X143: 0 | Y143: 0 | Z143: 0 | AA143: 0 | AB143: =POST_Calculations!AF145 -> 0 | AC143: =POST_Calculations!AG145 -> 0 | AE143: no
C144: ----140 | E144: 0 | F144: 0 | G144: 0 | H144: 0 | I144: 0 | J144: 0 | K144: 0 | L144: 0 | M144: =PRE_Calculations!AF146 -> 0 | N144: =PRE_Calculations!AG146 -> 0 | R144: ----140 | T144: 0 | U144: 0 | V144: 0 | W144: 0 | X144: 0 | Y144: 0 | Z144: 0 | AA144: 0 | AB144: =POST_Calculations!AF146 -> 0 | AC144: =POST_Calculations!AG146 -> 0 | AE144: no
C145: ----141 | E145: 0 | F145: 0 | G145: 0 | H145: 0 | I145: 0 | J145: 0 | K145: 0 | L145: 0 | M145: =PRE_Calculations!AF147 -> 0 | N145: =PRE_Calculations!AG147 -> 0 | R145: ----141 | T145: 0 | U145: 0 | V145: 0 | W145: 0 | X145: 0 | Y145: 0 | Z145: 0 | AA145: 0 | AB145: =POST_Calculations!AF147 -> 0 | AC145: =POST_Calculations!AG147 -> 0 | AE145: no
C146: ----142 | E146: 0 | F146: 0 | G146: 0 | H146: 0 | I146: 0 | J146: 0 | K146: 0 | L146: 0 | M146: =PRE_Calculations!AF148 -> 0 | N146: =PRE_Calculations!AG148 -> 0 | R146: ----142 | T146: 0 | U146: 0 | V146: 0 | W146: 0 | X146: 0 | Y146: 0 | Z146: 0 | AA146: 0 | AB146: =POST_Calculations!AF148 -> 0 | AC146: =POST_Calculations!AG148 -> 0 | AE146: no
C147: ----143 | E147: 0 | F147: 0 | G147: 0 | H147: 0 | I147: 0 | J147: 0 | K147: 0 | L147: 0 | M147: =PRE_Calculations!AF149 -> 0 | N147: =PRE_Calculations!AG149 -> 0 | R147: ----143 | T147: 0 | U147: 0 | V147: 0 | W147: 0 | X147: 0 | Y147: 0 | Z147: 0 | AA147: 0 | AB147: =POST_Calculations!AF149 -> 0 | AC147: =POST_Calculations!AG149 -> 0 | AE147: no
C148: ----144 | E148: 0 | F148: 0 | G148: 0 | H148: 0 | I148: 0 | J148: 0 | K148: 0 | L148: 0 | M148: =PRE_Calculations!AF150 -> 0 | N148: =PRE_Calculations!AG150 -> 0 | R148: ----144 | T148: 0 | U148: 0 | V148: 0 | W148: 0 | X148: 0 | Y148: 0 | Z148: 0 | AA148: 0 | AB148: =POST_Calculations!AF150 -> 0 | AC148: =POST_Calculations!AG150 -> 0 | AE148: no
C149: ----145 | E149: 0 | F149: 0 | G149: 0 | H149: 0 | I149: 0 | J149: 0 | K149: 0 | L149: 0 | M149: =PRE_Calculations!AF151 -> 0 | N149: =PRE_Calculations!AG151 -> 0 | R149: ----145 | T149: 0 | U149: 0 | V149: 0 | W149: 0 | X149: 0 | Y149: 0 | Z149: 0 | AA149: 0 | AB149: =POST_Calculations!AF151 -> 0 | AC149: =POST_Calculations!AG151 -> 0 | AE149: no
C150: ----146 | E150: 0 | F150: 0 | G150: 0 | H150: 0 | I150: 0 | J150: 0 | K150: 0 | L150: 0 | M150: =PRE_Calculations!AF152 -> 0 | N150: =PRE_Calculations!AG152 -> 0 | R150: ----146 | T150: 0 | U150: 0 | V150: 0 | W150: 0 | X150: 0 | Y150: 0 | Z150: 0 | AA150: 0 | AB150: =POST_Calculations!AF152 -> 0 | AC150: =POST_Calculations!AG152 -> 0 | AE150: no
C151: ----147 | E151: 0 | F151: 0 | G151: 0 | H151: 0 | I151: 0 | J151: 0 | K151: 0 | L151: 0 | M151: =PRE_Calculations!AF153 -> 0 | N151: =PRE_Calculations!AG153 -> 0 | R151: ----147 | T151: 0 | U151: 0 | V151: 0 | W151: 0 | X151: 0 | Y151: 0 | Z151: 0 | AA151: 0 | AB151: =POST_Calculations!AF153 -> 0 | AC151: =POST_Calculations!AG153 -> 0 | AE151: no
C152: ----148 | E152: 0 | F152: 0 | G152: 0 | H152: 0 | I152: 0 | J152: 0 | K152: 0 | L152: 0 | M152: =PRE_Calculations!AF154 -> 0 | N152: =PRE_Calculations!AG154 -> 0 | R152: ----148 | T152: 0 | U152: 0 | V152: 0 | W152: 0 | X152: 0 | Y152: 0 | Z152: 0 | AA152: 0 | AB152: =POST_Calculations!AF154 -> 0 | AC152: =POST_Calculations!AG154 -> 0 | AE152: no
C153: ----149 | E153: 0 | F153: 0 | G153: 0 | H153: 0 | I153: 0 | J153: 0 | K153: 0 | L153: 0 | M153: =PRE_Calculations!AF155 -> 0 | N153: =PRE_Calculations!AG155 -> 0 | R153: ----149 | T153: 0 | U153: 0 | V153: 0 | W153: 0 | X153: 0 | Y153: 0 | Z153: 0 | AA153: 0 | AB153: =POST_Calculations!AF155 -> 0 | AC153: =POST_Calculations!AG155 -> 0 | AE153: no
C154: ----150 | E154: 0 | F154: 0 | G154: 0 | H154: 0 | I154: 0 | J154: 0 | K154: 0 | L154: 0 | M154: =PRE_Calculations!AF156 -> 0 | N154: =PRE_Calculations!AG156 -> 0 | R154: ----150 | T154: 0 | U154: 0 | V154: 0 | W154: 0 | X154: 0 | Y154: 0 | Z154: 0 | AA154: 0 | AB154: =POST_Calculations!AF156 -> 0 | AC154: =POST_Calculations!AG156 -> 0 | AE154: no
C155: ----151 | E155: 0 | F155: 0 | G155: 0 | H155: 0 | I155: 0 | J155: 0 | K155: 0 | L155: 0 | M155: =PRE_Calculations!AF157 -> 0 | N155: =PRE_Calculations!AG157 -> 0 | R155: ----151 | T155: 0 | U155: 0 | V155: 0 | W155: 0 | X155: 0 | Y155: 0 | Z155: 0 | AA155: 0 | AB155: =POST_Calculations!AF157 -> 0 | AC155: =POST_Calculations!AG157 -> 0 | AE155: no
C156: ----152 | E156: 0 | F156: 0 | G156: 0 | H156: 0 | I156: 0 | J156: 0 | K156: 0 | L156: 0 | M156: =PRE_Calculations!AF158 -> 0 | N156: =PRE_Calculations!AG158 -> 0 | R156: ----152 | T156: 0 | U156: 0 | V156: 0 | W156: 0 | X156: 0 | Y156: 0 | Z156: 0 | AA156: 0 | AB156: =POST_Calculations!AF158 -> 0 | AC156: =POST_Calculations!AG158 -> 0 | AE156: no
C157: ----153 | E157: 0 | F157: 0 | G157: 0 | H157: 0 | I157: 0 | J157: 0 | K157: 0 | L157: 0 | M157: =PRE_Calculations!AF159 -> 0 | N157: =PRE_Calculations!AG159 -> 0 | R157: ----153 | T157: 0 | U157: 0 | V157: 0 | W157: 0 | X157: 0 | Y157: 0 | Z157: 0 | AA157: 0 | AB157: =POST_Calculations!AF159 -> 0 | AC157: =POST_Calculations!AG159 -> 0 | AE157: no
C158: ----154 | E158: 0 | F158: 0 | G158: 0 | H158: 0 | I158: 0 | J158: 0 | K158: 0 | L158: 0 | M158: =PRE_Calculations!AF160 -> 0 | N158: =PRE_Calculations!AG160 -> 0 | R158: ----154 | T158: 0 | U158: 0 | V158: 0 | W158: 0 | X158: 0 | Y158: 0 | Z158: 0 | AA158: 0 | AB158: =POST_Calculations!AF160 -> 0 | AC158: =POST_Calculations!AG160 -> 0 | AE158: no
C159: ----155 | E159: 0 | F159: 0 | G159: 0 | H159: 0 | I159: 0 | J159: 0 | K159: 0 | L159: 0 | M159: =PRE_Calculations!AF161 -> 0 | N159: =PRE_Calculations!AG161 -> 0 | R159: ----155 | T159: 0 | U159: 0 | V159: 0 | W159: 0 | X159: 0 | Y159: 0 | Z159: 0 | AA159: 0 | AB159: =POST_Calculations!AF161 -> 0 | AC159: =POST_Calculations!AG161 -> 0 | AE159: no
C160: ----156 | E160: 0 | F160: 0 | G160: 0 | H160: 0 | I160: 0 | J160: 0 | K160: 0 | L160: 0 | M160: =PRE_Calculations!AF162 -> 0 | N160: =PRE_Calculations!AG162 -> 0 | R160: ----156 | T160: 0 | U160: 0 | V160: 0 | W160: 0 | X160: 0 | Y160: 0 | Z160: 0 | AA160: 0 | AB160: =POST_Calculations!AF162 -> 0 | AC160: =POST_Calculations!AG162 -> 0 | AE160: no
C161: ----157 | E161: 0 | F161: 0 | G161: 0 | H161: 0 | I161: 0 | J161: 0 | K161: 0 | L161: 0 | M161: =PRE_Calculations!AF163 -> 0 | N161: =PRE_Calculations!AG163 -> 0 | R161: ----157 | T161: 0 | U161: 0 | V161: 0 | W161: 0 | X161: 0 | Y161: 0 | Z161: 0 | AA161: 0 | AB161: =POST_Calculations!AF163 -> 0 | AC161: =POST_Calculations!AG163 -> 0 | AE161: no
C162: ----158 | E162: 0 | F162: 0 | G162: 0 | H162: 0 | I162: 0 | J162: 0 | K162: 0 | L162: 0 | M162: =PRE_Calculations!AF164 -> 0 | N162: =PRE_Calculations!AG164 -> 0 | R162: ----158 | T162: 0 | U162: 0 | V162: 0 | W162: 0 | X162: 0 | Y162: 0 | Z162: 0 | AA162: 0 | AB162: =POST_Calculations!AF164 -> 0 | AC162: =POST_Calculations!AG164 -> 0 | AE162: no
C163: ----159 | E163: 0 | F163: 0 | G163: 0 | H163: 0 | I163: 0 | J163: 0 | K163: 0 | L163: 0 | M163: =PRE_Calculations!AF165 -> 0 | N163: =PRE_Calculations!AG165 -> 0 | R163: ----159 | T163: 0 | U163: 0 | V163: 0 | W163: 0 | X163: 0 | Y163: 0 | Z163: 0 | AA163: 0 | AB163: =POST_Calculations!AF165 -> 0 | AC163: =POST_Calculations!AG165 -> 0 | AE163: no
C164: ----160 | E164: 0 | F164: 0 | G164: 0 | H164: 0 | I164: 0 | J164: 0 | K164: 0 | L164: 0 | M164: =PRE_Calculations!AF166 -> 0 | N164: =PRE_Calculations!AG166 -> 0 | R164: ----160 | T164: 0 | U164: 0 | V164: 0 | W164: 0 | X164: 0 | Y164: 0 | Z164: 0 | AA164: 0 | AB164: =POST_Calculations!AF166 -> 0 | AC164: =POST_Calculations!AG166 -> 0 | AE164: no
C165: ----161 | E165: 0 | F165: 0 | G165: 0 | H165: 0 | I165: 0 | J165: 0 | K165: 0 | L165: 0 | M165: =PRE_Calculations!AF167 -> 0 | N165: =PRE_Calculations!AG167 -> 0 | R165: ----161 | T165: 0 | U165: 0 | V165: 0 | W165: 0 | X165: 0 | Y165: 0 | Z165: 0 | AA165: 0 | AB165: =POST_Calculations!AF167 -> 0 | AC165: =POST_Calculations!AG167 -> 0 | AE165: no
C166: ----162 | E166: 0 | F166: 0 | G166: 0 | H166: 0 | I166: 0 | J166: 0 | K166: 0 | L166: 0 | M166: =PRE_Calculations!AF168 -> 0 | N166: =PRE_Calculations!AG168 -> 0 | R166: ----162 | T166: 0 | U166: 0 | V166: 0 | W166: 0 | X166: 0 | Y166: 0 | Z166: 0 | AA166: 0 | AB166: =POST_Calculations!AF168 -> 0 | AC166: =POST_Calculations!AG168 -> 0 | AE166: no
C167: ----163 | E167: 0 | F167: 0 | G167: 0 | H167: 0 | I167: 0 | J167: 0 | K167: 0 | L167: 0 | M167: =PRE_Calculations!AF169 -> 0 | N167: =PRE_Calculations!AG169 -> 0 | R167: ----163 | T167: 0 | U167: 0 | V167: 0 | W167: 0 | X167: 0 | Y167: 0 | Z167: 0 | AA167: 0 | AB167: =POST_Calculations!AF169 -> 0 | AC167: =POST_Calculations!AG169 -> 0 | AE167: no
C168: ----164 | E168: 0 | F168: 0 | G168: 0 | H168: 0 | I168: 0 | J168: 0 | K168: 0 | L168: 0 | M168: =PRE_Calculations!AF170 -> 0 | N168: =PRE_Calculations!AG170 -> 0 | R168: ----164 | T168: 0 | U168: 0 | V168: 0 | W168: 0 | X168: 0 | Y168: 0 | Z168: 0 | AA168: 0 | AB168: =POST_Calculations!AF170 -> 0 | AC168: =POST_Calculations!AG170 -> 0 | AE168: no
C169: ----165 | E169: 0 | F169: 0 | G169: 0 | H169: 0 | I169: 0 | J169: 0 | K169: 0 | L169: 0 | M169: =PRE_Calculations!AF171 -> 0 | N169: =PRE_Calculations!AG171 -> 0 | R169: ----165 | T169: 0 | U169: 0 | V169: 0 | W169: 0 | X169: 0 | Y169: 0 | Z169: 0 | AA169: 0 | AB169: =POST_Calculations!AF171 -> 0 | AC169: =POST_Calculations!AG171 -> 0 | AE169: no
C170: ----166 | E170: 0 | F170: 0 | G170: 0 | H170: 0 | I170: 0 | J170: 0 | K170: 0 | L170: 0 | M170: =PRE_Calculations!AF172 -> 0 | N170: =PRE_Calculations!AG172 -> 0 | R170: ----166 | T170: 0 | U170: 0 | V170: 0 | W170: 0 | X170: 0 | Y170: 0 | Z170: 0 | AA170: 0 | AB170: =POST_Calculations!AF172 -> 0 | AC170: =POST_Calculations!AG172 -> 0 | AE170: no
C171: ----167 | E171: 0 | F171: 0 | G171: 0 | H171: 0 | I171: 0 | J171: 0 | K171: 0 | L171: 0 | M171: =PRE_Calculations!AF173 -> 0 | N171: =PRE_Calculations!AG173 -> 0 | R171: ----167 | T171: 0 | U171: 0 | V171: 0 | W171: 0 | X171: 0 | Y171: 0 | Z171: 0 | AA171: 0 | AB171: =POST_Calculations!AF173 -> 0 | AC171: =POST_Calculations!AG173 -> 0 | AE171: no
C172: ----168 | E172: 0 | F172: 0 | G172: 0 | H172: 0 | I172: 0 | J172: 0 | K172: 0 | L172: 0 | M172: =PRE_Calculations!AF174 -> 0 | N172: =PRE_Calculations!AG174 -> 0 | R172: ----168 | T172: 0 | U172: 0 | V172: 0 | W172: 0 | X172: 0 | Y172: 0 | Z172: 0 | AA172: 0 | AB172: =POST_Calculations!AF174 -> 0 | AC172: =POST_Calculations!AG174 -> 0 | AE172: no
C173: ----169 | E173: 0 | F173: 0 | G173: 0 | H173: 0 | I173: 0 | J173: 0 | K173: 0 | L173: 0 | M173: =PRE_Calculations!AF175 -> 0 | N173: =PRE_Calculations!AG175 -> 0 | R173: ----169 | T173: 0 | U173: 0 | V173: 0 | W173: 0 | X173: 0 | Y173: 0 | Z173: 0 | AA173: 0 | AB173: =POST_Calculations!AF175 -> 0 | AC173: =POST_Calculations!AG175 -> 0 | AE173: no
C174: ----170 | E174: 0 | F174: 0 | G174: 0 | H174: 0 | I174: 0 | J174: 0 | K174: 0 | L174: 0 | M174: =PRE_Calculations!AF176 -> 0 | N174: =PRE_Calculations!AG176 -> 0 | R174: ----170 | T174: 0 | U174: 0 | V174: 0 | W174: 0 | X174: 0 | Y174: 0 | Z174: 0 | AA174: 0 | AB174: =POST_Calculations!AF176 -> 0 | AC174: =POST_Calculations!AG176 -> 0 | AE174: no
C175: ----171 | E175: 0 | F175: 0 | G175: 0 | H175: 0 | I175: 0 | J175: 0 | K175: 0 | L175: 0 | M175: =PRE_Calculations!AF177 -> 0 | N175: =PRE_Calculations!AG177 -> 0 | R175: ----171 | T175: 0 | U175: 0 | V175: 0 | W175: 0 | X175: 0 | Y175: 0 | Z175: 0 | AA175: 0 | AB175: =POST_Calculations!AF177 -> 0 | AC175: =POST_Calculations!AG177 -> 0 | AE175: no
C176: ----172 | E176: 0 | F176: 0 | G176: 0 | H176: 0 | I176: 0 | J176: 0 | K176: 0 | L176: 0 | M176: =PRE_Calculations!AF178 -> 0 | N176: =PRE_Calculations!AG178 -> 0 | R176: ----172 | T176: 0 | U176: 0 | V176: 0 | W176: 0 | X176: 0 | Y176: 0 | Z176: 0 | AA176: 0 | AB176: =POST_Calculations!AF178 -> 0 | AC176: =POST_Calculations!AG178 -> 0 | AE176: no
C177: ----173 | E177: 0 | F177: 0 | G177: 0 | H177: 0 | I177: 0 | J177: 0 | K177: 0 | L177: 0 | M177: =PRE_Calculations!AF179 -> 0 | N177: =PRE_Calculations!AG179 -> 0 | R177: ----173 | T177: 0 | U177: 0 | V177: 0 | W177: 0 | X177: 0 | Y177: 0 | Z177: 0 | AA177: 0 | AB177: =POST_Calculations!AF179 -> 0 | AC177: =POST_Calculations!AG179 -> 0 | AE177: no
C178: ----174 | E178: 0 | F178: 0 | G178: 0 | H178: 0 | I178: 0 | J178: 0 | K178: 0 | L178: 0 | M178: =PRE_Calculations!AF180 -> 0 | N178: =PRE_Calculations!AG180 -> 0 | R178: ----174 | T178: 0 | U178: 0 | V178: 0 | W178: 0 | X178: 0 | Y178: 0 | Z178: 0 | AA178: 0 | AB178: =POST_Calculations!AF180 -> 0 | AC178: =POST_Calculations!AG180 -> 0 | AE178: no
C179: ----175 | E179: 0 | F179: 0 | G179: 0 | H179: 0 | I179: 0 | J179: 0 | K179: 0 | L179: 0 | M179: =PRE_Calculations!AF181 -> 0 | N179: =PRE_Calculations!AG181 -> 0 | R179: ----175 | T179: 0 | U179: 0 | V179: 0 | W179: 0 | X179: 0 | Y179: 0 | Z179: 0 | AA179: 0 | AB179: =POST_Calculations!AF181 -> 0 | AC179: =POST_Calculations!AG181 -> 0 | AE179: no
C180: ----176 | E180: 0 | F180: 0 | G180: 0 | H180: 0 | I180: 0 | J180: 0 | K180: 0 | L180: 0 | M180: =PRE_Calculations!AF182 -> 0 | N180: =PRE_Calculations!AG182 -> 0 | R180: ----176 | T180: 0 | U180: 0 | V180: 0 | W180: 0 | X180: 0 | Y180: 0 | Z180: 0 | AA180: 0 | AB180: =POST_Calculations!AF182 -> 0 | AC180: =POST_Calculations!AG182 -> 0 | AE180: no
C181: ----177 | E181: 0 | F181: 0 | G181: 0 | H181: 0 | I181: 0 | J181: 0 | K181: 0 | L181: 0 | M181: =PRE_Calculations!AF183 -> 0 | N181: =PRE_Calculations!AG183 -> 0 | R181: ----177 | T181: 0 | U181: 0 | V181: 0 | W181: 0 | X181: 0 | Y181: 0 | Z181: 0 | AA181: 0 | AB181: =POST_Calculations!AF183 -> 0 | AC181: =POST_Calculations!AG183 -> 0 | AE181: no
C182: ----178 | E182: 0 | F182: 0 | G182: 0 | H182: 0 | I182: 0 | J182: 0 | K182: 0 | L182: 0 | M182: =PRE_Calculations!AF184 -> 0 | N182: =PRE_Calculations!AG184 -> 0 | R182: ----178 | T182: 0 | U182: 0 | V182: 0 | W182: 0 | X182: 0 | Y182: 0 | Z182: 0 | AA182: 0 | AB182: =POST_Calculations!AF184 -> 0 | AC182: =POST_Calculations!AG184 -> 0 | AE182: no
C183: ----179 | E183: 0 | F183: 0 | G183: 0 | H183: 0 | I183: 0 | J183: 0 | K183: 0 | L183: 0 | M183: =PRE_Calculations!AF185 -> 0 | N183: =PRE_Calculations!AG185 -> 0 | R183: ----179 | T183: 0 | U183: 0 | V183: 0 | W183: 0 | X183: 0 | Y183: 0 | Z183: 0 | AA183: 0 | AB183: =POST_Calculations!AF185 -> 0 | AC183: =POST_Calculations!AG185 -> 0 | AE183: no
C184: ----180 | E184: 0 | F184: 0 | G184: 0 | H184: 0 | I184: 0 | J184: 0 | K184: 0 | L184: 0 | M184: =PRE_Calculations!AF186 -> 0 | N184: =PRE_Calculations!AG186 -> 0 | R184: ----180 | T184: 0 | U184: 0 | V184: 0 | W184: 0 | X184: 0 | Y184: 0 | Z184: 0 | AA184: 0 | AB184: =POST_Calculations!AF186 -> 0 | AC184: =POST_Calculations!AG186 -> 0 | AE184: no
C185: ----181 | E185: 0 | F185: 0 | G185: 0 | H185: 0 | I185: 0 | J185: 0 | K185: 0 | L185: 0 | M185: =PRE_Calculations!AF187 -> 0 | N185: =PRE_Calculations!AG187 -> 0 | R185: ----181 | T185: 0 | U185: 0 | V185: 0 | W185: 0 | X185: 0 | Y185: 0 | Z185: 0 | AA185: 0 | AB185: =POST_Calculations!AF187 -> 0 | AC185: =POST_Calculations!AG187 -> 0 | AE185: no
C186: ----182 | E186: 0 | F186: 0 | G186: 0 | H186: 0 | I186: 0 | J186: 0 | K186: 0 | L186: 0 | M186: =PRE_Calculations!AF188 -> 0 | N186: =PRE_Calculations!AG188 -> 0 | R186: ----182 | T186: 0 | U186: 0 | V186: 0 | W186: 0 | X186: 0 | Y186: 0 | Z186: 0 | AA186: 0 | AB186: =POST_Calculations!AF188 -> 0 | AC186: =POST_Calculations!AG188 -> 0 | AE186: no
C187: ----183 | E187: 0 | F187: 0 | G187: 0 | H187: 0 | I187: 0 | J187: 0 | K187: 0 | L187: 0 | M187: =PRE_Calculations!AF189 -> 0 | N187: =PRE_Calculations!AG189 -> 0 | R187: ----183 | T187: 0 | U187: 0 | V187: 0 | W187: 0 | X187: 0 | Y187: 0 | Z187: 0 | AA187: 0 | AB187: =POST_Calculations!AF189 -> 0 | AC187: =POST_Calculations!AG189 -> 0 | AE187: no
C188: ----184 | E188: 0 | F188: 0 | G188: 0 | H188: 0 | I188: 0 | J188: 0 | K188: 0 | L188: 0 | M188: =PRE_Calculations!AF190 -> 0 | N188: =PRE_Calculations!AG190 -> 0 | R188: ----184 | T188: 0 | U188: 0 | V188: 0 | W188: 0 | X188: 0 | Y188: 0 | Z188: 0 | AA188: 0 | AB188: =POST_Calculations!AF190 -> 0 | AC188: =POST_Calculations!AG190 -> 0 | AE188: no
C189: ----185 | E189: 0 | F189: 0 | G189: 0 | H189: 0 | I189: 0 | J189: 0 | K189: 0 | L189: 0 | M189: =PRE_Calculations!AF191 -> 0 | N189: =PRE_Calculations!AG191 -> 0 | R189: ----185 | T189: 0 | U189: 0 | V189: 0 | W189: 0 | X189: 0 | Y189: 0 | Z189: 0 | AA189: 0 | AB189: =POST_Calculations!AF191 -> 0 | AC189: =POST_Calculations!AG191 -> 0 | AE189: no
C190: ----186 | E190: 0 | F190: 0 | G190: 0 | H190: 0 | I190: 0 | J190: 0 | K190: 0 | L190: 0 | M190: =PRE_Calculations!AF192 -> 0 | N190: =PRE_Calculations!AG192 -> 0 | R190: ----186 | T190: 0 | U190: 0 | V190: 0 | W190: 0 | X190: 0 | Y190: 0 | Z190: 0 | AA190: 0 | AB190: =POST_Calculations!AF192 -> 0 | AC190: =POST_Calculations!AG192 -> 0 | AE190: no
C191: ----187 | E191: 0 | F191: 0 | G191: 0 | H191: 0 | I191: 0 | J191: 0 | K191: 0 | L191: 0 | M191: =PRE_Calculations!AF193 -> 0 | N191: =PRE_Calculations!AG193 -> 0 | R191: ----187 | T191: 0 | U191: 0 | V191: 0 | W191: 0 | X191: 0 | Y191: 0 | Z191: 0 | AA191: 0 | AB191: =POST_Calculations!AF193 -> 0 | AC191: =POST_Calculations!AG193 -> 0 | AE191: no
C192: ----188 | E192: 0 | F192: 0 | G192: 0 | H192: 0 | I192: 0 | J192: 0 | K192: 0 | L192: 0 | M192: =PRE_Calculations!AF194 -> 0 | N192: =PRE_Calculations!AG194 -> 0 | R192: ----188 | T192: 0 | U192: 0 | V192: 0 | W192: 0 | X192: 0 | Y192: 0 | Z192: 0 | AA192: 0 | AB192: =POST_Calculations!AF194 -> 0 | AC192: =POST_Calculations!AG194 -> 0 | AE192: no
C193: ----189 | E193: 0 | F193: 0 | G193: 0 | H193: 0 | I193: 0 | J193: 0 | K193: 0 | L193: 0 | M193: =PRE_Calculations!AF195 -> 0 | N193: =PRE_Calculations!AG195 -> 0 | R193: ----189 | T193: 0 | U193: 0 | V193: 0 | W193: 0 | X193: 0 | Y193: 0 | Z193: 0 | AA193: 0 | AB193: =POST_Calculations!AF195 -> 0 | AC193: =POST_Calculations!AG195 -> 0 | AE193: no
C194: ----190 | E194: 0 | F194: 0 | G194: 0 | H194: 0 | I194: 0 | J194: 0 | K194: 0 | L194: 0 | M194: =PRE_Calculations!AF196 -> 0 | N194: =PRE_Calculations!AG196 -> 0 | R194: ----190 | T194: 0 | U194: 0 | V194: 0 | W194: 0 | X194: 0 | Y194: 0 | Z194: 0 | AA194: 0 | AB194: =POST_Calculations!AF196 -> 0 | AC194: =POST_Calculations!AG196 -> 0 | AE194: no
C195: ----191 | E195: 0 | F195: 0 | G195: 0 | H195: 0 | I195: 0 | J195: 0 | K195: 0 | L195: 0 | M195: =PRE_Calculations!AF197 -> 0 | N195: =PRE_Calculations!AG197 -> 0 | R195: ----191 | T195: 0 | U195: 0 | V195: 0 | W195: 0 | X195: 0 | Y195: 0 | Z195: 0 | AA195: 0 | AB195: =POST_Calculations!AF197 -> 0 | AC195: =POST_Calculations!AG197 -> 0 | AE195: no
C196: ----192 | E196: 0 | F196: 0 | G196: 0 | H196: 0 | I196: 0 | J196: 0 | K196: 0 | L196: 0 | M196: =PRE_Calculations!AF198 -> 0 | N196: =PRE_Calculations!AG198 -> 0 | R196: ----192 | T196: 0 | U196: 0 | V196: 0 | W196: 0 | X196: 0 | Y196: 0 | Z196: 0 | AA196: 0 | AB196: =POST_Calculations!AF198 -> 0 | AC196: =POST_Calculations!AG198 -> 0 | AE196: no
C197: ----193 | E197: 0 | F197: 0 | G197: 0 | H197: 0 | I197: 0 | J197: 0 | K197: 0 | L197: 0 | M197: =PRE_Calculations!AF199 -> 0 | N197: =PRE_Calculations!AG199 -> 0 | R197: ----193 | T197: 0 | U197: 0 | V197: 0 | W197: 0 | X197: 0 | Y197: 0 | Z197: 0 | AA197: 0 | AB197: =POST_Calculations!AF199 -> 0 | AC197: =POST_Calculations!AG199 -> 0 | AE197: no
C198: ----194 | E198: 0 | F198: 0 | G198: 0 | H198: 0 | I198: 0 | J198: 0 | K198: 0 | L198: 0 | M198: =PRE_Calculations!AF200 -> 0 | N198: =PRE_Calculations!AG200 -> 0 | R198: ----194 | T198: 0 | U198: 0 | V198: 0 | W198: 0 | X198: 0 | Y198: 0 | Z198: 0 | AA198: 0 | AB198: =POST_Calculations!AF200 -> 0 | AC198: =POST_Calculations!AG200 -> 0 | AE198: no
C199: ----195 | E199: 0 | F199: 0 | G199: 0 | H199: 0 | I199: 0 | J199: 0 | K199: 0 | L199: 0 | M199: =PRE_Calculations!AF201 -> 0 | N199: =PRE_Calculations!AG201 -> 0 | R199: ----195 | T199: 0 | U199: 0 | V199: 0 | W199: 0 | X199: 0 | Y199: 0 | Z199: 0 | AA199: 0 | AB199: =POST_Calculations!AF201 -> 0 | AC199: =POST_Calculations!AG201 -> 0 | AE199: no
C200: ----196 | E200: 0 | F200: 0 | G200: 0 | H200: 0 | I200: 0 | J200: 0 | K200: 0 | L200: 0 | M200: =PRE_Calculations!AF202 -> 0 | N200: =PRE_Calculations!AG202 -> 0 | R200: ----196 | T200: 0 | U200: 0 | V200: 0 | W200: 0 | X200: 0 | Y200: 0 | Z200: 0 | AA200: 0 | AB200: =POST_Calculations!AF202 -> 0 | AC200: =POST_Calculations!AG202 -> 0 | AE200: no
C201: ----197 | E201: 0 | F201: 0 | G201: 0 | H201: 0 | I201: 0 | J201: 0 | K201: 0 | L201: 0 | M201: =PRE_Calculations!AF203 -> 0 | N201: =PRE_Calculations!AG203 -> 0 | R201: ----197 | T201: 0 | U201: 0 | V201: 0 | W201: 0 | X201: 0 | Y201: 0 | Z201: 0 | AA201: 0 | AB201: =POST_Calculations!AF203 -> 0 | AC201: =POST_Calculations!AG203 -> 0 | AE201: no
... 303 more rows

Sheet PRE_Calculations (hidden)
AD1: 22 | AE1: mpg
B2: Default Factors: | F2: 0 | G2: 0.2343 | K2: 0 | L2: 0.1653 | P2: 0.225641026 | T2: 0.657865787 | X2: 0.13 | AD2: 19.5925 | AE2: lbco2e/gal
C4: Human-Powered | M4: Mass Transit | Y4: Private Vehicle
C5: Walking | H5: Bike/Scooter | M5: School Bus | Q5: Public Bus | U5: BART | Y5: Car | AE5: Total
B6: Student Name | C6: Distance | D6: Time | E6: Cost | F6: FuelGHG | G6: EffortGHG | H6: Distance | I6: Time | J6: Cost | K6: FuelGHG | L6: EffortGHG | M6: Distance | N6: Time | O6: Cost | P6: FuelGHG | Q6: Distance | R6: Time | S6: Cost | T6: FuelGHG | U6: Distance | V6: Time | W6: Cost | X6: FuelGHG | Y6: Distance | Z6: MPG | AA6: Riders | AB6: Time | AC6: Cost | AD6: FuelGHG | AE6: Distance | AF6: FuelGHG | AG6: EffortGHG | AH6: AllGHG | AI6: GHG/mi
B7: =DataByMiles!C5 -> Junior | C7: =DataByMiles!E5*VLOOKUP(DataByMiles!AE5,DataByMiles!$AT$5:$AU$6,2,FALSE) -> 0 | F7: =C7*$F$2 -> 0 | G7: =C7*$G$2*VLOOKUP(DataByMiles!AE5,DataByMiles!$AT$5:$AU$6,2,FALSE) -> 0 | H7: =DataByMiles!F5*VLOOKUP(DataByMiles!AE5,DataByMiles!$AT$5:$AU$6,2,FALSE) -> 0 | K7: =H7*$K$2 -> 0 | L7: =H7*$L$2*VLOOKUP(DataByMiles!AE5,DataByMiles!$AT$5:$AU$6,2,FALSE) -> 0 | M7: =DataByMiles!G5*VLOOKUP(DataByMiles!AE5,DataByMiles!$AT$5:$AU$6,2,FALSE) -> 0 | P7: =M7*$P$2*VLOOKUP(DataByMiles!AE5,DataByMiles!$AT$5:$AU$6,2,FALSE) -> 0 | Q7: =DataByMiles!H5*VLOOKUP(DataByMiles!AE5,DataByMiles!$AT$5:$AU$6,2,FALSE) -> 0 | T7: =Q7*$T$2*VLOOKUP(DataByMiles!AE5,DataByMiles!$AT$5:$AU$6,2,FALSE) -> 0 | U7: =DataByMiles!I5*VLOOKUP(DataByMiles!AE5,DataByMiles!$AT$5:$AU$6,2,FALSE) -> 0 | X7: =U7*$X$2*VLOOKUP(DataByMiles!AE5,DataByMiles!$AT$5:$AU$6,2,FALSE) -> 0 | Y7: =DataByMiles!J5*VLOOKUP(DataByMiles!AE5,DataByMiles!$AT$5:$AU$6,2,FALSE) -> 40 | Z7: =DataByMiles!K5 -> 0 | AA7: =DataByMiles!L5 -> 6 | AD7: =(Y7/IF(Z7=0,$AD$1,Z7)*$AD$2)/IF(AA7=0,1,AA7)*VLOOKUP(DataByMiles!AE5,DataByMiles!$AT$5:$AU$6,2,FALSE) -> 5.937121212 | AE7: =IF(C7+H7+M7+Q7+U7+Y7>0,C7+H7+M7+Q7+U7+Y7,"") -> 40 | AF7: =F7+K7+P7+T7+X7+AD7 -> 5.937121212 | AG7: =G7+L7 -> 0 | AH7: =(AF7+AG7)*VLOOKUP(DataByMiles!AE5,DataByMiles!$AT$5:$AU$6,2,FALSE) -> 5.937121212 | AI7: =IFERROR(AH7/AE7,0) -> 0.1484280303 | AK7: E
B8: =DataByMiles!C6 -> jessica | C8: =DataByMiles!E6*VLOOKUP(DataByMiles!AE6,DataByMiles!$AT$5:$AU$6,2,FALSE) -> 0 | F8: =C8*$F$2 -> 0 | G8: =C8*$G$2*VLOOKUP(DataByMiles!AE6,DataByMiles!$AT$5:$AU$6,2,FALSE) -> 0 | H8: =DataByMiles!F6*VLOOKUP(DataByMiles!AE6,DataByMiles!$AT$5:$AU$6,2,FALSE) -> 0 | K8: =H8*$K$2 -> 0 | L8: =H8*$L$2*VLOOKUP(DataByMiles!AE6,DataByMiles!$AT$5:$AU$6,2,FALSE) -> 0 | M8: =DataByMiles!G6*VLOOKUP(DataByMiles!AE6,DataByMiles!$AT$5:$AU$6,2,FALSE) -> 0 | P8: =M8*$P$2*VLOOKUP(DataByMiles!AE6,DataByMiles!$AT$5:$AU$6,2,FALSE) -> 0 | Q8: =DataByMiles!H6*VLOOKUP(DataByMiles!AE6,DataByMiles!$AT$5:$AU$6,2,FALSE) -> 0 | T8: =Q8*$T$2*VLOOKUP(DataByMiles!AE6,DataByMiles!$AT$5:$AU$6,2,FALSE) -> 0 | U8: =DataByMiles!I6*VLOOKUP(DataByMiles!AE6,DataByMiles!$AT$5:$AU$6,2,FALSE) -> 0 | X8: =U8*$X$2*VLOOKUP(DataByMiles!AE6,DataByMiles!$AT$5:$AU$6,2,FALSE) -> 0 | Y8: =DataByMiles!J6*VLOOKUP(DataByMiles!AE6,DataByMiles!$AT$5:$AU$6,2,FALSE) -> 20 | Z8: =DataByMiles!K6 -> 0 | AA8: =DataByMiles!L6 -> 2.5 | AD8: =(Y8/IF(Z8=0,$AD$1,Z8)*$AD$2)/IF(AA8=0,1,AA8)*VLOOKUP(DataByMiles!AE6,DataByMiles!$AT$5:$AU$6,2,FALSE) -> 7.124545455 | AE8: =IF(C8+H8+M8+Q8+U8+Y8>0,C8+H8+M8+Q8+U8+Y8,"") -> 20 | AF8: =F8+K8+P8+T8+X8+AD8 -> 7.124545455 | AG8: =G8+L8 -> 0 | AH8: =(AF8+AG8)*VLOOKUP(DataByMiles!AE6,DataByMiles!$AT$5:$AU$6,2,FALSE) -> 7.124545455 | AI8: =IFERROR(AH8/AE8,0) -> 0.3562272727 | AK8: F
B9: =DataByMiles!C7 -> Veda | C9: =DataByMiles!E7*VLOOKUP(DataByMiles!AE7,DataByMiles!$AT$5:$AU$6,2,FALSE) -> 0 | F9: 0 | G9: =C9*$G$2*VLOOKUP(DataByMiles!AE7,DataByMiles!$AT$5:$AU$6,2,FALSE) -> 0 | H9: =DataByMiles!F7*VLOOKUP(DataByMiles!AE7,DataByMiles!$AT$5:$AU$6,2,FALSE) -> 0 | K9: 0 | L9: =H9*$L$2*VLOOKUP(DataByMiles!AE7,DataByMiles!$AT$5:$AU$6,2,FALSE) -> 0 | M9: =DataByMiles!G7*VLOOKUP(DataByMiles!AE7,DataByMiles!$AT$5:$AU$6,2,FALSE) -> 0 | P9: =M9*$P$2*VLOOKUP(DataByMiles!AE7,DataByMiles!$AT$5:$AU$6,2,FALSE) -> 0 | Q9: =DataByMiles!H7*VLOOKUP(DataByMiles!AE7,DataByMiles!$AT$5:$AU$6,2,FALSE) -> 0 | T9: =Q9*$T$2*VLOOKUP(DataByMiles!AE7,DataByMiles!$AT$5:$AU$6,2,FALSE) -> 0 | U9: =DataByMiles!I7*VLOOKUP(DataByMiles!AE7,DataByMiles!$AT$5:$AU$6,2,FALSE) -> 0 | X9: =U9*$X$2*VLOOKUP(DataByMiles!AE7,DataByMiles!$AT$5:$AU$6,2,FALSE) -> 0 | Y9: =DataByMiles!J7*VLOOKUP(DataByMiles!AE7,DataByMiles!$AT$5:$AU$6,2,FALSE) -> 10 | Z9: =DataByMiles!K7 -> 0 | AA9: =DataByMiles!L7 -> 2 | AD9: =(Y9/IF(Z9=0,$AD$1,Z9)*$AD$2)/IF(AA9=0,1,AA9)*VLOOKUP(DataByMiles!AE7,DataByMiles!$AT$5:$AU$6,2,FALSE) -> 4.452840909 | AE9: 10 | AF9: 4.452840909 | AG9: 0 | AH9: =(AF9+AG9)*VLOOKUP(DataByMiles!AE7,DataByMiles!$AT$5:$AU$6,2,FALSE) -> 4.452840909 | AI9: 0.4452840909 | AK9: G
B10: =DataByMiles!C8 -> Tiffany | C10: =DataByMiles!E8*VLOOKUP(DataByMiles!AE8,DataByMiles!$AT$5:$AU$6,2,FALSE) -> 0 | F10: 0 | G10: =C10*$G$2*VLOOKUP(DataByMiles!AE8,DataByMiles!$AT$5:$AU$6,2,FALSE) -> 0 | H10: =DataByMiles!F8*VLOOKUP(DataByMiles!AE8,DataByMiles!$AT$5:$AU$6,2,FALSE) -> 0 | K10: 0 | L10: =H10*$L$2*VLOOKUP(DataByMiles!AE8,DataByMiles!$AT$5:$AU$6,2,FALSE) -> 0 | M10: =DataByMiles!G8*VLOOKUP(DataByMiles!AE8,DataByMiles!$AT$5:$AU$6,2,FALSE) -> 0 | P10: =M10*$P$2*VLOOKUP(DataByMiles!AE8,DataByMiles!$AT$5:$AU$6,2,FALSE) -> 0 | Q10: =DataByMiles!H8*VLOOKUP(DataByMiles!AE8,DataByMiles!$AT$5:$AU$6,2,FALSE) -> 0 | T10: =Q10*$T$2*VLOOKUP(DataByMiles!AE8,DataByMiles!$AT$5:$AU$6,2,FALSE) -> 0 | U10: =DataByMiles!I8*VLOOKUP(DataByMiles!AE8,DataByMiles!$AT$5:$AU$6,2,FALSE) -> 0 | X10: =U10*$X$2*VLOOKUP(DataByMiles!AE8,DataByMiles!$AT$5:$AU$6,2,FALSE) -> 0 | Y10: =DataByMiles!J8*VLOOKUP(DataByMiles!AE8,DataByMiles!$AT$5:$AU$6,2,FALSE) -> 20 | Z10: =DataByMiles!K8 -> 0 | AA10: =DataByMiles!L8 -> 3 | AD10: =(Y10/IF(Z10=0,$AD$1,Z10)*$AD$2)/IF(AA10=0,1,AA10)*VLOOKUP(DataByMiles!AE8,DataByMiles!$AT$5:$AU$6,2,FALSE) -> 5.937121212 | AE10: 20 | AF10: 5.937121212 | AG10: 0 | AH10: =(AF10+AG10)*VLOOKUP(DataByMiles!AE8,DataByMiles!$AT$5:$AU$6,2,FALSE) -> 5.937121212 | AI10: 0.2968560606 | AK10: H
B11: =DataByMiles!C9 -> Athena | C11: =DataByMiles!E9*VLOOKUP(DataByMiles!AE9,DataByMiles!$AT$5:$AU$6,2,FALSE) -> 0 | F11: 0 | G11: =C11*$G$2*VLOOKUP(DataByMiles!AE9,DataByMiles!$AT$5:$AU$6,2,FALSE) -> 0 | H11: =DataByMiles!F9*VLOOKUP(DataByMiles!AE9,DataByMiles!$AT$5:$AU$6,2,FALSE) -> 0 | K11: 0 | L11: =H11*$L$2*VLOOKUP(DataByMiles!AE9,DataByMiles!$AT$5:$AU$6,2,FALSE) -> 0 | M11: =DataByMiles!G9*VLOOKUP(DataByMiles!AE9,DataByMiles!$AT$5:$AU$6,2,FALSE) -> 0 | P11: =M11*$P$2*VLOOKUP(DataByMiles!AE9,DataByMiles!$AT$5:$AU$6,2,FALSE) -> 0 | Q11: =DataByMiles!H9*VLOOKUP(DataByMiles!AE9,DataByMiles!$AT$5:$AU$6,2,FALSE) -> 0 | T11: =Q11*$T$2*VLOOKUP(DataByMiles!AE9,DataByMiles!$AT$5:$AU$6,2,FALSE) -> 0 | U11: =DataByMiles!I9*VLOOKUP(DataByMiles!AE9,DataByMiles!$AT$5:$AU$6,2,FALSE) -> 0 | X11: =U11*$X$2*VLOOKUP(DataByMiles!AE9,DataByMiles!$AT$5:$AU$6,2,FALSE) -> 0 | Y11: =DataByMiles!J9*VLOOKUP(DataByMiles!AE9,DataByMiles!$AT$5:$AU$6,2,FALSE) -> 10 | Z11: =DataByMiles!K9 -> 0 | AA11: =DataByMiles!L9 -> 2 | AD11: =(Y11/IF(Z11=0,$AD$1,Z11)*$AD$2)/IF(AA11=0,1,AA11)*VLOOKUP(DataByMiles!AE9,DataByMiles!$AT$5:$AU$6,2,FALSE) -> 4.452840909 | AE11: 10 | AF11: 4.452840909 | AG11: 0 | AH11: =(AF11+AG11)*VLOOKUP(DataByMiles!AE9,DataByMiles!$AT$5:$AU$6,2,FALSE) -> 4.452840909 | AI11: 0.4452840909 | AK11: I
B12: =DataByMiles!C10 -> Denise | C12: =DataByMiles!E10*VLOOKUP(DataByMiles!AE10,DataByMiles!$AT$5:$AU$6,2,FALSE) -> 0 | F12: 0 | G12: =C12*$G$2*VLOOKUP(DataByMiles!AE10,DataByMiles!$AT$5:$AU$6,2,FALSE) -> 0 | H12: =DataByMiles!F10*VLOOKUP(DataByMiles!AE10,DataByMiles!$AT$5:$AU$6,2,FALSE) -> 0 | K12: 0 | L12: =H12*$L$2*VLOOKUP(DataByMiles!AE10,DataByMiles!$AT$5:$AU$6,2,FALSE) -> 0 | M12: =DataByMiles!G10*VLOOKUP(DataByMiles!AE10,DataByMiles!$AT$5:$AU$6,2,FALSE) -> 0 | P12: =M12*$P$2*VLOOKUP(DataByMiles!AE10,DataByMiles!$AT$5:$AU$6,2,FALSE) -> 0 | Q12: =DataByMiles!H10*VLOOKUP(DataByMiles!AE10,DataByMiles!$AT$5:$AU$6,2,FALSE) -> 0 | T12: =Q12*$T$2*VLOOKUP(DataByMiles!AE10,DataByMiles!$AT$5:$AU$6,2,FALSE) -> 0 | U12: =DataByMiles!I10*VLOOKUP(DataByMiles!AE10,DataByMiles!$AT$5:$AU$6,2,FALSE) -> 0 | X12: =U12*$X$2*VLOOKUP(DataByMiles!AE10,DataByMiles!$AT$5:$AU$6,2,FALSE) -> 0 | Y12: =DataByMiles!J10*VLOOKUP(DataByMiles!AE10,DataByMiles!$AT$5:$AU$6,2,FALSE) -> 10 | Z12: =DataByMiles!K10 -> 0 | AA12: =DataByMiles!L10 -> 2 | AD12: =(Y12/IF(Z12=0,$AD$1,Z12)*$AD$2)/IF(AA12=0,1,AA12)*VLOOKUP(DataByMiles!AE10,DataByMiles!$AT$5:$AU$6,2,FALSE) -> 4.452840909 | AE12: 10 | AF12: 4.452840909 | AG12: 0 | AH12: =(AF12+AG12)*VLOOKUP(DataByMiles!AE10,DataByMiles!$AT$5:$AU$6,2,FALSE) -> 4.452840909 | AI12: 0.4452840909 | AK12: J
B13: =DataByMiles!C11 -> Maha | C13: =DataByMiles!E11*VLOOKUP(DataByMiles!AE11,DataByMiles!$AT$5:$AU$6,2,FALSE) -> 0 | F13: 0 | G13: =C13*$G$2*VLOOKUP(DataByMiles!AE11,DataByMiles!$AT$5:$AU$6,2,FALSE) -> 0 | H13: =DataByMiles!F11*VLOOKUP(DataByMiles!AE11,DataByMiles!$AT$5:$AU$6,2,FALSE) -> 0 | K13: 0 | L13: =H13*$L$2*VLOOKUP(DataByMiles!AE11,DataByMiles!$AT$5:$AU$6,2,FALSE) -> 0 | M13: =DataByMiles!G11*VLOOKUP(DataByMiles!AE11,DataByMiles!$AT$5:$AU$6,2,FALSE) -> 0 | P13: =M13*$P$2*VLOOKUP(DataByMiles!AE11,DataByMiles!$AT$5:$AU$6,2,FALSE) -> 0 | Q13: =DataByMiles!H11*VLOOKUP(DataByMiles!AE11,DataByMiles!$AT$5:$AU$6,2,FALSE) -> 0 | T13: =Q13*$T$2*VLOOKUP(DataByMiles!AE11,DataByMiles!$AT$5:$AU$6,2,FALSE) -> 0 | U13: =DataByMiles!I11*VLOOKUP(DataByMiles!AE11,DataByMiles!$AT$5:$AU$6,2,FALSE) -> 0 | X13: =U13*$X$2*VLOOKUP(DataByMiles!AE11,DataByMiles!$AT$5:$AU$6,2,FALSE) -> 0 | Y13: =DataByMiles!J11*VLOOKUP(DataByMiles!AE11,DataByMiles!$AT$5:$AU$6,2,FALSE) -> 10 | Z13: =DataByMiles!K11 -> 0 | AA13: =DataByMiles!L11 -> 3 | AD13: =(Y13/IF(Z13=0,$AD$1,Z13)*$AD$2)/IF(AA13=0,1,AA13)*VLOOKUP(DataByMiles!AE11,DataByMiles!$AT$5:$AU$6,2,FALSE) -> 2.968560606 | AE13: 10 | AF13: 2.968560606 | AG13: 0 | AH13: =(AF13+AG13)*VLOOKUP(DataByMiles!AE11,DataByMiles!$AT$5:$AU$6,2,FALSE) -> 2.968560606 | AI13: 0.2968560606 | AK13: K
B14: =DataByMiles!C12 -> Allyn | C14: =DataByMiles!E12*VLOOKUP(DataByMiles!AE12,DataByMiles!$AT$5:$AU$6,2,FALSE) -> 0 | F14: 0 | G14: =C14*$G$2*VLOOKUP(DataByMiles!AE12,DataByMiles!$AT$5:$AU$6,2,FALSE) -> 0 | H14: =DataByMiles!F12*VLOOKUP(DataByMiles!AE12,DataByMiles!$AT$5:$AU$6,2,FALSE) -> 0 | K14: 0 | L14: =H14*$L$2*VLOOKUP(DataByMiles!AE12,DataByMiles!$AT$5:$AU$6,2,FALSE) -> 0 | M14: =DataByMiles!G12*VLOOKUP(DataByMiles!AE12,DataByMiles!$AT$5:$AU$6,2,FALSE) -> 0 | P14: =M14*$P$2*VLOOKUP(DataByMiles!AE12,DataByMiles!$AT$5:$AU$6,2,FALSE) -> 0 | Q14: =DataByMiles!H12*VLOOKUP(DataByMiles!AE12,DataByMiles!$AT$5:$AU$6,2,FALSE) -> 0 | T14: =Q14*$T$2*VLOOKUP(DataByMiles!AE12,DataByMiles!$AT$5:$AU$6,2,FALSE) -> 0 | U14: =DataByMiles!I12*VLOOKUP(DataByMiles!AE12,DataByMiles!$AT$5:$AU$6,2,FALSE) -> 0 | X14: =U14*$X$2*VLOOKUP(DataByMiles!AE12,DataByMiles!$AT$5:$AU$6,2,FALSE) -> 0 | Y14: =DataByMiles!J12*VLOOKUP(DataByMiles!AE12,DataByMiles!$AT$5:$AU$6,2,FALSE) -> 10 | Z14: =DataByMiles!K12 -> 0 | AA14: =DataByMiles!L12 -> 3 | AD14: =(Y14/IF(Z14=0,$AD$1,Z14)*$AD$2)/IF(AA14=0,1,AA14)*VLOOKUP(DataByMiles!AE12,DataByMiles!$AT$5:$AU$6,2,FALSE) -> 2.968560606 | AE14: 10 | AF14: 2.968560606 | AG14: 0 | AH14: =(AF14+AG14)*VLOOKUP(DataByMiles!AE12,DataByMiles!$AT$5:$AU$6,2,FALSE) -> 2.968560606 | AI14: 0.2968560606 | AK14: L
B15: =DataByMiles!C13 -> Elaha | C15: =DataByMiles!E13*VLOOKUP(DataByMiles!AE13,DataByMiles!$AT$5:$AU$6,2,FALSE) -> 0 | F15: 0 | G15: =C15*$G$2*VLOOKUP(DataByMiles!AE13,DataByMiles!$AT$5:$AU$6,2,FALSE) -> 0 | H15: =DataByMiles!F13*VLOOKUP(DataByMiles!AE13,DataByMiles!$AT$5:$AU$6,2,FALSE) -> 0 | K15: 0 | L15: =H15*$L$2*VLOOKUP(DataByMiles!AE13,DataByMiles!$AT$5:$AU$6,2,FALSE) -> 0 | M15: =DataByMiles!G13*VLOOKUP(DataByMiles!AE13,DataByMiles!$AT$5:$AU$6,2,FALSE) -> 0 | P15: =M15*$P$2*VLOOKUP(DataByMiles!AE13,DataByMiles!$AT$5:$AU$6,2,FALSE) -> 0 | Q15: =DataByMiles!H13*VLOOKUP(DataByMiles!AE13,DataByMiles!$AT$5:$AU$6,2,FALSE) -> 0 | T15: =Q15*$T$2*VLOOKUP(DataByMiles!AE13,DataByMiles!$AT$5:$AU$6,2,FALSE) -> 0 | U15: =DataByMiles!I13*VLOOKUP(DataByMiles!AE13,DataByMiles!$AT$5:$AU$6,2,FALSE) -> 0 | X15: =U15*$X$2*VLOOKUP(DataByMiles!AE13,DataByMiles!$AT$5:$AU$6,2,FALSE) -> 0 | Y15: =DataByMiles!J13*VLOOKUP(DataByMiles!AE13,DataByMiles!$AT$5:$AU$6,2,FALSE) -> 20 | Z15: =DataByMiles!K13 -> 0 | AA15: =DataByMiles!L13 -> 3 | AD15: =(Y15/IF(Z15=0,$AD$1,Z15)*$AD$2)/IF(AA15=0,1,AA15)*VLOOKUP(DataByMiles!AE13,DataByMiles!$AT$5:$AU$6,2,FALSE) -> 5.937121212 | AE15: 20 | AF15: 5.937121212 | AG15: 0 | AH15: =(AF15+AG15)*VLOOKUP(DataByMiles!AE13,DataByMiles!$AT$5:$AU$6,2,FALSE) -> 5.937121212 | AI15: 0.2968560606 | AK15: M
B16: =DataByMiles!C14 -> Sharon | C16: =DataByMiles!E14*VLOOKUP(DataByMiles!AE14,DataByMiles!$AT$5:$AU$6,2,FALSE) -> 0 | F16: 0 | G16: =C16*$G$2*VLOOKUP(DataByMiles!AE14,DataByMiles!$AT$5:$AU$6,2,FALSE) -> 0 | H16: =DataByMiles!F14*VLOOKUP(DataByMiles!AE14,DataByMiles!$AT$5:$AU$6,2,FALSE) -> 0 | K16: 0 | L16: =H16*$L$2*VLOOKUP(DataByMiles!AE14,DataByMiles!$AT$5:$AU$6,2,FALSE) -> 0 | M16: =DataByMiles!G14*VLOOKUP(DataByMiles!AE14,DataByMiles!$AT$5:$AU$6,2,FALSE) -> 0 | P16: =M16*$P$2*VLOOKUP(DataByMiles!AE14,DataByMiles!$AT$5:$AU$6,2,FALSE) -> 0 | Q16: =DataByMiles!H14*VLOOKUP(DataByMiles!AE14,DataByMiles!$AT$5:$AU$6,2,FALSE) -> 0 | T16: =Q16*$T$2*VLOOKUP(DataByMiles!AE14,DataByMiles!$AT$5:$AU$6,2,FALSE) -> 0 | U16: =DataByMiles!I14*VLOOKUP(DataByMiles!AE14,DataByMiles!$AT$5:$AU$6,2,FALSE) -> 0 | X16: =U16*$X$2*VLOOKUP(DataByMiles!AE14,DataByMiles!$AT$5:$AU$6,2,FALSE) -> 0 | Y16: =DataByMiles!J14*VLOOKUP(DataByMiles!AE14,DataByMiles!$AT$5:$AU$6,2,FALSE) -> 20 | Z16: =DataByMiles!K14 -> 0 | AA16: =DataByMiles!L14 -> 3 | AD16: =(Y16/IF(Z16=0,$AD$1,Z16)*$AD$2)/IF(AA16=0,1,AA16)*VLOOKUP(DataByMiles!AE14,DataByMiles!$AT$5:$AU$6,2,FALSE) -> 5.937121212 | AE16: 20 | AF16: 5.937121212 | AG16: 0 | AH16: =(AF16+AG16)*VLOOKUP(DataByMiles!AE14,DataByMiles!$AT$5:$AU$6,2,FALSE) -> 5.937121212 | AI16: 0.2968560606 | AK16: N
B17: =DataByMiles!C15 -> Bryce | C17: =DataByMiles!E15*VLOOKUP(DataByMiles!AE15,DataByMiles!$AT$5:$AU$6,2,FALSE) -> 2 | F17: 0 | G17: =C17*$G$2*VLOOKUP(DataByMiles!AE15,DataByMiles!$AT$5:$AU$6,2,FALSE) -> 0.4686 | H17: =DataByMiles!F15*VLOOKUP(DataByMiles!AE15,DataByMiles!$AT$5:$AU$6,2,FALSE) -> 0 | K17: 0 | L17: =H17*$L$2*VLOOKUP(DataByMiles!AE15,DataByMiles!$AT$5:$AU$6,2,FALSE) -> 0 | M17: =DataByMiles!G15*VLOOKUP(DataByMiles!AE15,DataByMiles!$AT$5:$AU$6,2,FALSE) -> 0 | P17: =M17*$P$2*VLOOKUP(DataByMiles!AE15,DataByMiles!$AT$5:$AU$6,2,FALSE) -> 0 | Q17: =DataByMiles!H15*VLOOKUP(DataByMiles!AE15,DataByMiles!$AT$5:$AU$6,2,FALSE) -> 0 | T17: =Q17*$T$2*VLOOKUP(DataByMiles!AE15,DataByMiles!$AT$5:$AU$6,2,FALSE) -> 0 | U17: =DataByMiles!I15*VLOOKUP(DataByMiles!AE15,DataByMiles!$AT$5:$AU$6,2,FALSE) -> 0 | X17: =U17*$X$2*VLOOKUP(DataByMiles!AE15,DataByMiles!$AT$5:$AU$6,2,FALSE) -> 0 | Y17: =DataByMiles!J15*VLOOKUP(DataByMiles!AE15,DataByMiles!$AT$5:$AU$6,2,FALSE) -> 8 | Z17: =DataByMiles!K15 -> 0 | AA17: =DataByMiles!L15 -> 3.3 | AD17: =(Y17/IF(Z17=0,$AD$1,Z17)*$AD$2)/IF(AA17=0,1,AA17)*VLOOKUP(DataByMiles!AE15,DataByMiles!$AT$5:$AU$6,2,FALSE) -> 2.158953168 | AE17: 10 | AF17: 2.158953168 | AG17: 0.4686 | AH17: =(AF17+AG17)*VLOOKUP(DataByMiles!AE15,DataByMiles!$AT$5:$AU$6,2,FALSE) -> 2.627553168 | AI17: 0.2627553168 | AK17: O
B18: =DataByMiles!C16 -> Marlene | C18: =DataByMiles!E16*VLOOKUP(DataByMiles!AE16,DataByMiles!$AT$5:$AU$6,2,FALSE) -> 0 | F18: 0 | G18: =C18*$G$2*VLOOKUP(DataByMiles!AE16,DataByMiles!$AT$5:$AU$6,2,FALSE) -> 0 | H18: =DataByMiles!F16*VLOOKUP(DataByMiles!AE16,DataByMiles!$AT$5:$AU$6,2,FALSE) -> 0 | K18: 0 | L18: =H18*$L$2*VLOOKUP(DataByMiles!AE16,DataByMiles!$AT$5:$AU$6,2,FALSE) -> 0 | M18: =DataByMiles!G16*VLOOKUP(DataByMiles!AE16,DataByMiles!$AT$5:$AU$6,2,FALSE) -> 0 | P18: =M18*$P$2*VLOOKUP(DataByMiles!AE16,DataByMiles!$AT$5:$AU$6,2,FALSE) -> 0 | Q18: =DataByMiles!H16*VLOOKUP(DataByMiles!AE16,DataByMiles!$AT$5:$AU$6,2,FALSE) -> 0 | T18: =Q18*$T$2*VLOOKUP(DataByMiles!AE16,DataByMiles!$AT$5:$AU$6,2,FALSE) -> 0 | U18: =DataByMiles!I16*VLOOKUP(DataByMiles!AE16,DataByMiles!$AT$5:$AU$6,2,FALSE) -> 0 | X18: =U18*$X$2*VLOOKUP(DataByMiles!AE16,DataByMiles!$AT$5:$AU$6,2,FALSE) -> 0 | Y18: =DataByMiles!J16*VLOOKUP(DataByMiles!AE16,DataByMiles!$AT$5:$AU$6,2,FALSE) -> 20 | Z18: =DataByMiles!K16 -> 0 | AA18: =DataByMiles!L16 -> 3 | AD18: =(Y18/IF(Z18=0,$AD$1,Z18)*$AD$2)/IF(AA18=0,1,AA18)*VLOOKUP(DataByMiles!AE16,DataByMiles!$AT$5:$AU$6,2,FALSE) -> 5.937121212 | AE18: 20 | AF18: 5.937121212 | AG18: 0 | AH18: =(AF18+AG18)*VLOOKUP(DataByMiles!AE16,DataByMiles!$AT$5:$AU$6,2,FALSE) -> 5.937121212 | AI18: 0.2968560606 | AK18: P
B19: =DataByMiles!C17 -> Christyn | C19: =DataByMiles!E17*VLOOKUP(DataByMiles!AE17,DataByMiles!$AT$5:$AU$6,2,FALSE) -> 0 | F19: 0 | G19: =C19*$G$2*VLOOKUP(DataByMiles!AE17,DataByMiles!$AT$5:$AU$6,2,FALSE) -> 0 | H19: =DataByMiles!F17*VLOOKUP(DataByMiles!AE17,DataByMiles!$AT$5:$AU$6,2,FALSE) -> 0 | K19: 0 | L19: =H19*$L$2*VLOOKUP(DataByMiles!AE17,DataByMiles!$AT$5:$AU$6,2,FALSE) -> 0 | M19: =DataByMiles!G17*VLOOKUP(DataByMiles!AE17,DataByMiles!$AT$5:$AU$6,2,FALSE) -> 0 | P19: =M19*$P$2*VLOOKUP(DataByMiles!AE17,DataByMiles!$AT$5:$AU$6,2,FALSE) -> 0 | Q19: =DataByMiles!H17*VLOOKUP(DataByMiles!AE17,DataByMiles!$AT$5:$AU$6,2,FALSE) -> 0 | T19: =Q19*$T$2*VLOOKUP(DataByMiles!AE17,DataByMiles!$AT$5:$AU$6,2,FALSE) -> 0 | U19: =DataByMiles!I17*VLOOKUP(DataByMiles!AE17,DataByMiles!$AT$5:$AU$6,2,FALSE) -> 0 | X19: =U19*$X$2*VLOOKUP(DataByMiles!AE17,DataByMiles!$AT$5:$AU$6,2,FALSE) -> 0 | Y19: =DataByMiles!J17*VLOOKUP(DataByMiles!AE17,DataByMiles!$AT$5:$AU$6,2,FALSE) -> 30 | Z19: =DataByMiles!K17 -> 0 | AA19: =DataByMiles!L17 -> 2 | AD19: =(Y19/IF(Z19=0,$AD$1,Z19)*$AD$2)/IF(AA19=0,1,AA19)*VLOOKUP(DataByMiles!AE17,DataByMiles!$AT$5:$AU$6,2,FALSE) -> 13.35852273 | AE19: 30 | AF19: 13.35852273 | AG19: 0 | AH19: =(AF19+AG19)*VLOOKUP(DataByMiles!AE17,DataByMiles!$AT$5:$AU$6,2,FALSE) -> 13.35852273 | AI19: 0.4452840909 | AK19: Q
B20: =DataByMiles!C18 -> emmy | C20: =DataByMiles!E18*VLOOKUP(DataByMiles!AE18,DataByMiles!$AT$5:$AU$6,2,FALSE) -> 0 | F20: 0 | G20: =C20*$G$2*VLOOKUP(DataByMiles!AE18,DataByMiles!$AT$5:$AU$6,2,FALSE) -> 0 | H20: =DataByMiles!F18*VLOOKUP(DataByMiles!AE18,DataByMiles!$AT$5:$AU$6,2,FALSE) -> 0 | K20: 0 | L20: =H20*$L$2*VLOOKUP(DataByMiles!AE18,DataByMiles!$AT$5:$AU$6,2,FALSE) -> 0 | M20: =DataByMiles!G18*VLOOKUP(DataByMiles!AE18,DataByMiles!$AT$5:$AU$6,2,FALSE) -> 0 | P20: =M20*$P$2*VLOOKUP(DataByMiles!AE18,DataByMiles!$AT$5:$AU$6,2,FALSE) -> 0 | Q20: =DataByMiles!H18*VLOOKUP(DataByMiles!AE18,DataByMiles!$AT$5:$AU$6,2,FALSE) -> 0 | T20: =Q20*$T$2*VLOOKUP(DataByMiles!AE18,DataByMiles!$AT$5:$AU$6,2,FALSE) -> 0 | U20: =DataByMiles!I18*VLOOKUP(DataByMiles!AE18,DataByMiles!$AT$5:$AU$6,2,FALSE) -> 0 | X20: =U20*$X$2*VLOOKUP(DataByMiles!AE18,DataByMiles!$AT$5:$AU$6,2,FALSE) -> 0 | Y20: =DataByMiles!J18*VLOOKUP(DataByMiles!AE18,DataByMiles!$AT$5:$AU$6,2,FALSE) -> 2 | Z20: =DataByMiles!K18 -> 0 | AA20: =DataByMiles!L18 -> 2 | AD20: =(Y20/IF(Z20=0,$AD$1,Z20)*$AD$2)/IF(AA20=0,1,AA20)*VLOOKUP(DataByMiles!AE18,DataByMiles!$AT$5:$AU$6,2,FALSE) -> 0.8905681818 | AE20: 2 | AF20: 0.8905681818 | AG20: 0 | AH20: =(AF20+AG20)*VLOOKUP(DataByMiles!AE18,DataByMiles!$AT$5:$AU$6,2,FALSE) -> 0.8905681818 | AI20: 0.4452840909 | AK20: R
B21: =DataByMiles!C19 -> Abby | C21: =DataByMiles!E19*VLOOKUP(DataByMiles!AE19,DataByMiles!$AT$5:$AU$6,2,FALSE) -> 0 | F21: 0 | G21: =C21*$G$2*VLOOKUP(DataByMiles!AE19,DataByMiles!$AT$5:$AU$6,2,FALSE) -> 0 | H21: =DataByMiles!F19*VLOOKUP(DataByMiles!AE19,DataByMiles!$AT$5:$AU$6,2,FALSE) -> 0 | K21: 0 | L21: =H21*$L$2*VLOOKUP(DataByMiles!AE19,DataByMiles!$AT$5:$AU$6,2,FALSE) -> 0 | M21: =DataByMiles!G19*VLOOKUP(DataByMiles!AE19,DataByMiles!$AT$5:$AU$6,2,FALSE) -> 0 | P21: =M21*$P$2*VLOOKUP(DataByMiles!AE19,DataByMiles!$AT$5:$AU$6,2,FALSE) -> 0 | Q21: =DataByMiles!H19*VLOOKUP(DataByMiles!AE19,DataByMiles!$AT$5:$AU$6,2,FALSE) -> 0 | T21: =Q21*$T$2*VLOOKUP(DataByMiles!AE19,DataByMiles!$AT$5:$AU$6,2,FALSE) -> 0 | U21: =DataByMiles!I19*VLOOKUP(DataByMiles!AE19,DataByMiles!$AT$5:$AU$6,2,FALSE) -> 0 | X21: =U21*$X$2*VLOOKUP(DataByMiles!AE19,DataByMiles!$AT$5:$AU$6,2,FALSE) -> 0 | Y21: =DataByMiles!J19*VLOOKUP(DataByMiles!AE19,DataByMiles!$AT$5:$AU$6,2,FALSE) -> 10 | Z21: =DataByMiles!K19 -> 0 | AA21: =DataByMiles!L19 -> 3 | AD21: =(Y21/IF(Z21=0,$AD$1,Z21)*$AD$2)/IF(AA21=0,1,AA21)*VLOOKUP(DataByMiles!AE19,DataByMiles!$AT$5:$AU$6,2,FALSE) -> 2.968560606 | AE21: 10 | AF21: 2.968560606 | AG21: 0 | AH21: =(AF21+AG21)*VLOOKUP(DataByMiles!AE19,DataByMiles!$AT$5:$AU$6,2,FALSE) -> 2.968560606 | AI21: 0.2968560606 | AK21: S
B22: =DataByMiles!C20 -> Dinika | C22: =DataByMiles!E20*VLOOKUP(DataByMiles!AE20,DataByMiles!$AT$5:$AU$6,2,FALSE) -> 0 | F22: 0 | G22: =C22*$G$2*VLOOKUP(DataByMiles!AE20,DataByMiles!$AT$5:$AU$6,2,FALSE) -> 0 | H22: =DataByMiles!F20*VLOOKUP(DataByMiles!AE20,DataByMiles!$AT$5:$AU$6,2,FALSE) -> 0 | K22: 0 | L22: =H22*$L$2*VLOOKUP(DataByMiles!AE20,DataByMiles!$AT$5:$AU$6,2,FALSE) -> 0 | M22: =DataByMiles!G20*VLOOKUP(DataByMiles!AE20,DataByMiles!$AT$5:$AU$6,2,FALSE) -> 0 | P22: =M22*$P$2*VLOOKUP(DataByMiles!AE20,DataByMiles!$AT$5:$AU$6,2,FALSE) -> 0 | Q22: =DataByMiles!H20*VLOOKUP(DataByMiles!AE20,DataByMiles!$AT$5:$AU$6,2,FALSE) -> 0 | T22: =Q22*$T$2*VLOOKUP(DataByMiles!AE20,DataByMiles!$AT$5:$AU$6,2,FALSE) -> 0 | U22: =DataByMiles!I20*VLOOKUP(DataByMiles!AE20,DataByMiles!$AT$5:$AU$6,2,FALSE) -> 0 | X22: =U22*$X$2*VLOOKUP(DataByMiles!AE20,DataByMiles!$AT$5:$AU$6,2,FALSE) -> 0 | Y22: =DataByMiles!J20*VLOOKUP(DataByMiles!AE20,DataByMiles!$AT$5:$AU$6,2,FALSE) -> 4 | Z22: =DataByMiles!K20 -> 0 | AA22: =DataByMiles!L20 -> 2 | AD22: =(Y22/IF(Z22=0,$AD$1,Z22)*$AD$2)/IF(AA22=0,1,AA22)*VLOOKUP(DataByMiles!AE20,DataByMiles!$AT$5:$AU$6,2,FALSE) -> 1.781136364 | AE22: 4 | AF22: 1.781136364 | AG22: 0 | AH22: =(AF22+AG22)*VLOOKUP(DataByMiles!AE20,DataByMiles!$AT$5:$AU$6,2,FALSE) -> 1.781136364 | AI22: 0.4452840909 | AK22: T
B23: =DataByMiles!C21 -> Ashley | C23: =DataByMiles!E21*VLOOKUP(DataByMiles!AE21,DataByMiles!$AT$5:$AU$6,2,FALSE) -> 0 | F23: 0 | G23: =C23*$G$2*VLOOKUP(DataByMiles!AE21,DataByMiles!$AT$5:$AU$6,2,FALSE) -> 0 | H23: =DataByMiles!F21*VLOOKUP(DataByMiles!AE21,DataByMiles!$AT$5:$AU$6,2,FALSE) -> 0 | K23: 0 | L23: =H23*$L$2*VLOOKUP(DataByMiles!AE21,DataByMiles!$AT$5:$AU$6,2,FALSE) -> 0 | M23: =DataByMiles!G21*VLOOKUP(DataByMiles!AE21,DataByMiles!$AT$5:$AU$6,2,FALSE) -> 0 | P23: =M23*$P$2*VLOOKUP(DataByMiles!AE21,DataByMiles!$AT$5:$AU$6,2,FALSE) -> 0 | Q23: =DataByMiles!H21*VLOOKUP(DataByMiles!AE21,DataByMiles!$AT$5:$AU$6,2,FALSE) -> 0 | T23: =Q23*$T$2*VLOOKUP(DataByMiles!AE21,DataByMiles!$AT$5:$AU$6,2,FALSE) -> 0 | U23: =DataByMiles!I21*VLOOKUP(DataByMiles!AE21,DataByMiles!$AT$5:$AU$6,2,FALSE) -> 0 | X23: =U23*$X$2*VLOOKUP(DataByMiles!AE21,DataByMiles!$AT$5:$AU$6,2,FALSE) -> 0 | Y23: =DataByMiles!J21*VLOOKUP(DataByMiles!AE21,DataByMiles!$AT$5:$AU$6,2,FALSE) -> 4 | Z23: =DataByMiles!K21 -> 0 | AA23: =DataByMiles!L21 -> 4 | AD23: =(Y23/IF(Z23=0,$AD$1,Z23)*$AD$2)/IF(AA23=0,1,AA23)*VLOOKUP(DataByMiles!AE21,DataByMiles!$AT$5:$AU$6,2,FALSE) -> 0.8905681818 | AE23: 4 | AF23: 0.8905681818 | AG23: 0 | AH23: =(AF23+AG23)*VLOOKUP(DataByMiles!AE21,DataByMiles!$AT$5:$AU$6,2,FALSE) -> 0.8905681818 | AI23: 0.2226420455 | AK23: U
B24: =DataByMiles!C22 -> Adelene | C24: =DataByMiles!E22*VLOOKUP(DataByMiles!AE22,DataByMiles!$AT$5:$AU$6,2,FALSE) -> 0 | F24: 0 | G24: =C24*$G$2*VLOOKUP(DataByMiles!AE22,DataByMiles!$AT$5:$AU$6,2,FALSE) -> 0 | H24: =DataByMiles!F22*VLOOKUP(DataByMiles!AE22,DataByMiles!$AT$5:$AU$6,2,FALSE) -> 0 | K24: 0 | L24: =H24*$L$2*VLOOKUP(DataByMiles!AE22,DataByMiles!$AT$5:$AU$6,2,FALSE) -> 0 | M24: =DataByMiles!G22*VLOOKUP(DataByMiles!AE22,DataByMiles!$AT$5:$AU$6,2,FALSE) -> 0 | P24: =M24*$P$2*VLOOKUP(DataByMiles!AE22,DataByMiles!$AT$5:$AU$6,2,FALSE) -> 0 | Q24: =DataByMiles!H22*VLOOKUP(DataByMiles!AE22,DataByMiles!$AT$5:$AU$6,2,FALSE) -> 0 | T24: =Q24*$T$2*VLOOKUP(DataByMiles!AE22,DataByMiles!$AT$5:$AU$6,2,FALSE) -> 0 | U24: =DataByMiles!I22*VLOOKUP(DataByMiles!AE22,DataByMiles!$AT$5:$AU$6,2,FALSE) -> 0 | X24: =U24*$X$2*VLOOKUP(DataByMiles!AE22,DataByMiles!$AT$5:$AU$6,2,FALSE) -> 0 | Y24: =DataByMiles!J22*VLOOKUP(DataByMiles!AE22,DataByMiles!$AT$5:$AU$6,2,FALSE) -> 20 | Z24: =DataByMiles!K22 -> 0 | AA24: =DataByMiles!L22 -> 3 | AD24: =(Y24/IF(Z24=0,$AD$1,Z24)*$AD$2)/IF(AA24=0,1,AA24)*VLOOKUP(DataByMiles!AE22,DataByMiles!$AT$5:$AU$6,2,FALSE) -> 5.937121212 | AE24: 20 | AF24: 5.937121212 | AG24: 0 | AH24: =(AF24+AG24)*VLOOKUP(DataByMiles!AE22,DataByMiles!$AT$5:$AU$6,2,FALSE) -> 5.937121212 | AI24: 0.2968560606 | AK24: V
B25: =DataByMiles!C23 -> Rialyn | C25: =DataByMiles!E23*VLOOKUP(DataByMiles!AE23,DataByMiles!$AT$5:$AU$6,2,FALSE) -> 7.5 | F25: 0 | G25: =C25*$G$2*VLOOKUP(DataByMiles!AE23,DataByMiles!$AT$5:$AU$6,2,FALSE) -> 1.75725 | H25: =DataByMiles!F23*VLOOKUP(DataByMiles!AE23,DataByMiles!$AT$5:$AU$6,2,FALSE) -> 0 | K25: 0 | L25: =H25*$L$2*VLOOKUP(DataByMiles!AE23,DataByMiles!$AT$5:$AU$6,2,FALSE) -> 0 | M25: =DataByMiles!G23*VLOOKUP(DataByMiles!AE23,DataByMiles!$AT$5:$AU$6,2,FALSE) -> 0 | P25: =M25*$P$2*VLOOKUP(DataByMiles!AE23,DataByMiles!$AT$5:$AU$6,2,FALSE) -> 0 | Q25: =DataByMiles!H23*VLOOKUP(DataByMiles!AE23,DataByMiles!$AT$5:$AU$6,2,FALSE) -> 0 | T25: =Q25*$T$2*VLOOKUP(DataByMiles!AE23,DataByMiles!$AT$5:$AU$6,2,FALSE) -> 0 | U25: =DataByMiles!I23*VLOOKUP(DataByMiles!AE23,DataByMiles!$AT$5:$AU$6,2,FALSE) -> 0 | X25: =U25*$X$2*VLOOKUP(DataByMiles!AE23,DataByMiles!$AT$5:$AU$6,2,FALSE) -> 0 | Y25: =DataByMiles!J23*VLOOKUP(DataByMiles!AE23,DataByMiles!$AT$5:$AU$6,2,FALSE) -> 45 | Z25: =DataByMiles!K23 -> 0 | AA25: =DataByMiles!L23 -> 4 | AD25: =(Y25/IF(Z25=0,$AD$1,Z25)*$AD$2)/IF(AA25=0,1,AA25)*VLOOKUP(DataByMiles!AE23,DataByMiles!$AT$5:$AU$6,2,FALSE) -> 10.01889205 | AE25: 52.5 | AF25: 10.01889205 | AG25: 1.75725 | AH25: =(AF25+AG25)*VLOOKUP(DataByMiles!AE23,DataByMiles!$AT$5:$AU$6,2,FALSE) -> 11.77614205 | AI25: 0.2243074675 | AK25: W
B26: =DataByMiles!C24 -> Michael | C26: =DataByMiles!E24*VLOOKUP(DataByMiles!AE24,DataByMiles!$AT$5:$AU$6,2,FALSE) -> 10 | F26: 0 | G26: =C26*$G$2*VLOOKUP(DataByMiles!AE24,DataByMiles!$AT$5:$AU$6,2,FALSE) -> 2.343 | H26: =DataByMiles!F24*VLOOKUP(DataByMiles!AE24,DataByMiles!$AT$5:$AU$6,2,FALSE) -> 0 | K26: 0 | L26: =H26*$L$2*VLOOKUP(DataByMiles!AE24,DataByMiles!$AT$5:$AU$6,2,FALSE) -> 0 | M26: =DataByMiles!G24*VLOOKUP(DataByMiles!AE24,DataByMiles!$AT$5:$AU$6,2,FALSE) -> 0 | P26: =M26*$P$2*VLOOKUP(DataByMiles!AE24,DataByMiles!$AT$5:$AU$6,2,FALSE) -> 0 | Q26: =DataByMiles!H24*VLOOKUP(DataByMiles!AE24,DataByMiles!$AT$5:$AU$6,2,FALSE) -> 0 | T26: =Q26*$T$2*VLOOKUP(DataByMiles!AE24,DataByMiles!$AT$5:$AU$6,2,FALSE) -> 0 | U26: =DataByMiles!I24*VLOOKUP(DataByMiles!AE24,DataByMiles!$AT$5:$AU$6,2,FALSE) -> 0 | X26: =U26*$X$2*VLOOKUP(DataByMiles!AE24,DataByMiles!$AT$5:$AU$6,2,FALSE) -> 0 | Y26: =DataByMiles!J24*VLOOKUP(DataByMiles!AE24,DataByMiles!$AT$5:$AU$6,2,FALSE) -> 15 | Z26: =DataByMiles!K24 -> 0 | AA26: =DataByMiles!L24 -> 2 | AD26: =(Y26/IF(Z26=0,$AD$1,Z26)*$AD$2)/IF(AA26=0,1,AA26)*VLOOKUP(DataByMiles!AE24,DataByMiles!$AT$5:$AU$6,2,FALSE) -> 6.679261364 | AE26: 25 | AF26: 6.679261364 | AG26: 2.343 | AH26: =(AF26+AG26)*VLOOKUP(DataByMiles!AE24,DataByMiles!$AT$5:$AU$6,2,FALSE) -> 9.022261364 | AI26: 0.3608904545 | AK26: X
B27: =DataByMiles!C25 -> Kevin | C27: =DataByMiles!E25*VLOOKUP(DataByMiles!AE25,DataByMiles!$AT$5:$AU$6,2,FALSE) -> 0 | F27: 0 | G27: =C27*$G$2*VLOOKUP(DataByMiles!AE25,DataByMiles!$AT$5:$AU$6,2,FALSE) -> 0 | H27: =DataByMiles!F25*VLOOKUP(DataByMiles!AE25,DataByMiles!$AT$5:$AU$6,2,FALSE) -> 0 | K27: 0 | L27: =H27*$L$2*VLOOKUP(DataByMiles!AE25,DataByMiles!$AT$5:$AU$6,2,FALSE) -> 0 | M27: =DataByMiles!G25*VLOOKUP(DataByMiles!AE25,DataByMiles!$AT$5:$AU$6,2,FALSE) -> 0 | P27: =M27*$P$2*VLOOKUP(DataByMiles!AE25,DataByMiles!$AT$5:$AU$6,2,FALSE) -> 0 | Q27: =DataByMiles!H25*VLOOKUP(DataByMiles!AE25,DataByMiles!$AT$5:$AU$6,2,FALSE) -> 0 | T27: =Q27*$T$2*VLOOKUP(DataByMiles!AE25,DataByMiles!$AT$5:$AU$6,2,FALSE) -> 0 | U27: =DataByMiles!I25*VLOOKUP(DataByMiles!AE25,DataByMiles!$AT$5:$AU$6,2,FALSE) -> 0 | X27: =U27*$X$2*VLOOKUP(DataByMiles!AE25,DataByMiles!$AT$5:$AU$6,2,FALSE) -> 0 | Y27: =DataByMiles!J25*VLOOKUP(DataByMiles!AE25,DataByMiles!$AT$5:$AU$6,2,FALSE) -> 20 | Z27: =DataByMiles!K25 -> 0 | AA27: =DataByMiles!L25 -> 2 | AD27: =(Y27/IF(Z27=0,$AD$1,Z27)*$AD$2)/IF(AA27=0,1,AA27)*VLOOKUP(DataByMiles!AE25,DataByMiles!$AT$5:$AU$6,2,FALSE) -> 8.905681818 | AE27: 20 | AF27: 8.905681818 | AG27: 0 | AH27: =(AF27+AG27)*VLOOKUP(DataByMiles!AE25,DataByMiles!$AT$5:$AU$6,2,FALSE) -> 8.905681818 | AI27: 0.4452840909 | AK27: Y
B28: =DataByMiles!C26 -> Khang | C28: =DataByMiles!E26*VLOOKUP(DataByMiles!AE26,DataByMiles!$AT$5:$AU$6,2,FALSE) -> 10 | F28: 0 | G28: =C28*$G$2*VLOOKUP(DataByMiles!AE26,DataByMiles!$AT$5:$AU$6,2,FALSE) -> 2.343 | H28: =DataByMiles!F26*VLOOKUP(DataByMiles!AE26,DataByMiles!$AT$5:$AU$6,2,FALSE) -> 0 | K28: 0 | L28: =H28*$L$2*VLOOKUP(DataByMiles!AE26,DataByMiles!$AT$5:$AU$6,2,FALSE) -> 0 | M28: =DataByMiles!G26*VLOOKUP(DataByMiles!AE26,DataByMiles!$AT$5:$AU$6,2,FALSE) -> 0 | P28: =M28*$P$2*VLOOKUP(DataByMiles!AE26,DataByMiles!$AT$5:$AU$6,2,FALSE) -> 0 | Q28: =DataByMiles!H26*VLOOKUP(DataByMiles!AE26,DataByMiles!$AT$5:$AU$6,2,FALSE) -> 0 | T28: =Q28*$T$2*VLOOKUP(DataByMiles!AE26,DataByMiles!$AT$5:$AU$6,2,FALSE) -> 0 | U28: =DataByMiles!I26*VLOOKUP(DataByMiles!AE26,DataByMiles!$AT$5:$AU$6,2,FALSE) -> 0 | X28: =U28*$X$2*VLOOKUP(DataByMiles!AE26,DataByMiles!$AT$5:$AU$6,2,FALSE) -> 0 | Y28: =DataByMiles!J26*VLOOKUP(DataByMiles!AE26,DataByMiles!$AT$5:$AU$6,2,FALSE) -> 10 | Z28: =DataByMiles!K26 -> 0 | AA28: =DataByMiles!L26 -> 3 | AD28: =(Y28/IF(Z28=0,$AD$1,Z28)*$AD$2)/IF(AA28=0,1,AA28)*VLOOKUP(DataByMiles!AE26,DataByMiles!$AT$5:$AU$6,2,FALSE) -> 2.968560606 | AE28: 20 | AF28: 2.968560606 | AG28: 2.343 | AH28: =(AF28+AG28)*VLOOKUP(DataByMiles!AE26,DataByMiles!$AT$5:$AU$6,2,FALSE) -> 5.311560606 | AI28: 0.2655780303 | AK28: Z
B29: =DataByMiles!C27 -> Riley | C29: =DataByMiles!E27*VLOOKUP(DataByMiles!AE27,DataByMiles!$AT$5:$AU$6,2,FALSE) -> 5 | F29: 0 | G29: =C29*$G$2*VLOOKUP(DataByMiles!AE27,DataByMiles!$AT$5:$AU$6,2,FALSE) -> 1.1715 | H29: =DataByMiles!F27*VLOOKUP(DataByMiles!AE27,DataByMiles!$AT$5:$AU$6,2,FALSE) -> 0 | K29: 0 | L29: =H29*$L$2*VLOOKUP(DataByMiles!AE27,DataByMiles!$AT$5:$AU$6,2,FALSE) -> 0 | M29: =DataByMiles!G27*VLOOKUP(DataByMiles!AE27,DataByMiles!$AT$5:$AU$6,2,FALSE) -> 0 | P29: =M29*$P$2*VLOOKUP(DataByMiles!AE27,DataByMiles!$AT$5:$AU$6,2,FALSE) -> 0 | Q29: =DataByMiles!H27*VLOOKUP(DataByMiles!AE27,DataByMiles!$AT$5:$AU$6,2,FALSE) -> 0 | T29: =Q29*$T$2*VLOOKUP(DataByMiles!AE27,DataByMiles!$AT$5:$AU$6,2,FALSE) -> 0 | U29: =DataByMiles!I27*VLOOKUP(DataByMiles!AE27,DataByMiles!$AT$5:$AU$6,2,FALSE) -> 0 | X29: =U29*$X$2*VLOOKUP(DataByMiles!AE27,DataByMiles!$AT$5:$AU$6,2,FALSE) -> 0 | Y29: =DataByMiles!J27*VLOOKUP(DataByMiles!AE27,DataByMiles!$AT$5:$AU$6,2,FALSE) -> 5 | Z29: =DataByMiles!K27 -> 0 | AA29: =DataByMiles!L27 -> 3 | AD29: =(Y29/IF(Z29=0,$AD$1,Z29)*$AD$2)/IF(AA29=0,1,AA29)*VLOOKUP(DataByMiles!AE27,DataByMiles!$AT$5:$AU$6,2,FALSE) -> 1.484280303 | AE29: 10 | AF29: 1.484280303 | AG29: 1.1715 | AH29: =(AF29+AG29)*VLOOKUP(DataByMiles!AE27,DataByMiles!$AT$5:$AU$6,2,FALSE) -> 2.655780303 | AI29: 0.2655780303 | AK29: AA
B30: =DataByMiles!C28 -> Justin | C30: =DataByMiles!E28*VLOOKUP(DataByMiles!AE28,DataByMiles!$AT$5:$AU$6,2,FALSE) -> 10 | F30: 0 | G30: =C30*$G$2*VLOOKUP(DataByMiles!AE28,DataByMiles!$AT$5:$AU$6,2,FALSE) -> 2.343 | H30: =DataByMiles!F28*VLOOKUP(DataByMiles!AE28,DataByMiles!$AT$5:$AU$6,2,FALSE) -> 0 | K30: 0 | L30: =H30*$L$2*VLOOKUP(DataByMiles!AE28,DataByMiles!$AT$5:$AU$6,2,FALSE) -> 0 | M30: =DataByMiles!G28*VLOOKUP(DataByMiles!AE28,DataByMiles!$AT$5:$AU$6,2,FALSE) -> 0 | P30: =M30*$P$2*VLOOKUP(DataByMiles!AE28,DataByMiles!$AT$5:$AU$6,2,FALSE) -> 0 | Q30: =DataByMiles!H28*VLOOKUP(DataByMiles!AE28,DataByMiles!$AT$5:$AU$6,2,FALSE) -> 0 | T30: =Q30*$T$2*VLOOKUP(DataByMiles!AE28,DataByMiles!$AT$5:$AU$6,2,FALSE) -> 0 | U30: =DataByMiles!I28*VLOOKUP(DataByMiles!AE28,DataByMiles!$AT$5:$AU$6,2,FALSE) -> 0 | X30: =U30*$X$2*VLOOKUP(DataByMiles!AE28,DataByMiles!$AT$5:$AU$6,2,FALSE) -> 0 | Y30: =DataByMiles!J28*VLOOKUP(DataByMiles!AE28,DataByMiles!$AT$5:$AU$6,2,FALSE) -> 0 | Z30: =DataByMiles!K28 -> 0 | AA30: =DataByMiles!L28 -> 0 | AD30: =(Y30/IF(Z30=0,$AD$1,Z30)*$AD$2)/IF(AA30=0,1,AA30)*VLOOKUP(DataByMiles!AE28,DataByMiles!$AT$5:$AU$6,2,FALSE) -> 0 | AE30: 10 | AF30: 0 | AG30: 2.343 | AH30: =(AF30+AG30)*VLOOKUP(DataByMiles!AE28,DataByMiles!$AT$5:$AU$6,2,FALSE) -> 2.343 | AI30: 0.2343 | AK30: AB
B31: =DataByMiles!C29 -> Shawn | C31: =DataByMiles!E29*VLOOKUP(DataByMiles!AE29,DataByMiles!$AT$5:$AU$6,2,FALSE) -> 10 | F31: 0 | G31: =C31*$G$2*VLOOKUP(DataByMiles!AE29,DataByMiles!$AT$5:$AU$6,2,FALSE) -> 2.343 | H31: =DataByMiles!F29*VLOOKUP(DataByMiles!AE29,DataByMiles!$AT$5:$AU$6,2,FALSE) -> 0 | K31: 0 | L31: =H31*$L$2*VLOOKUP(DataByMiles!AE29,DataByMiles!$AT$5:$AU$6,2,FALSE) -> 0 | M31: =DataByMiles!G29*VLOOKUP(DataByMiles!AE29,DataByMiles!$AT$5:$AU$6,2,FALSE) -> 0 | P31: =M31*$P$2*VLOOKUP(DataByMiles!AE29,DataByMiles!$AT$5:$AU$6,2,FALSE) -> 0 | Q31: =DataByMiles!H29*VLOOKUP(DataByMiles!AE29,DataByMiles!$AT$5:$AU$6,2,FALSE) -> 0 | T31: =Q31*$T$2*VLOOKUP(DataByMiles!AE29,DataByMiles!$AT$5:$AU$6,2,FALSE) -> 0 | U31: =DataByMiles!I29*VLOOKUP(DataByMiles!AE29,DataByMiles!$AT$5:$AU$6,2,FALSE) -> 0 | X31: =U31*$X$2*VLOOKUP(DataByMiles!AE29,DataByMiles!$AT$5:$AU$6,2,FALSE) -> 0 | Y31: =DataByMiles!J29*VLOOKUP(DataByMiles!AE29,DataByMiles!$AT$5:$AU$6,2,FALSE) -> 0 | Z31: =DataByMiles!K29 -> 0 | AA31: =DataByMiles!L29 -> 0 | AD31: =(Y31/IF(Z31=0,$AD$1,Z31)*$AD$2)/IF(AA31=0,1,AA31)*VLOOKUP(DataByMiles!AE29,DataByMiles!$AT$5:$AU$6,2,FALSE) -> 0 | AE31: 10 | AF31: 0 | AG31: 2.343 | AH31: =(AF31+AG31)*VLOOKUP(DataByMiles!AE29,DataByMiles!$AT$5:$AU$6,2,FALSE) -> 2.343 | AI31: 0.2343 | AK31: AC
B32: =DataByMiles!C30 -> Angelique | C32: =DataByMiles!E30*VLOOKUP(DataByMiles!AE30,DataByMiles!$AT$5:$AU$6,2,FALSE) -> 3.5 | F32: 0 | G32: =C32*$G$2*VLOOKUP(DataByMiles!AE30,DataByMiles!$AT$5:$AU$6,2,FALSE) -> 0.82005 | H32: =DataByMiles!F30*VLOOKUP(DataByMiles!AE30,DataByMiles!$AT$5:$AU$6,2,FALSE) -> 0 | K32: 0 | L32: =H32*$L$2*VLOOKUP(DataByMiles!AE30,DataByMiles!$AT$5:$AU$6,2,FALSE) -> 0 | M32: =DataByMiles!G30*VLOOKUP(DataByMiles!AE30,DataByMiles!$AT$5:$AU$6,2,FALSE) -> 0 | P32: =M32*$P$2*VLOOKUP(DataByMiles!AE30,DataByMiles!$AT$5:$AU$6,2,FALSE) -> 0 | Q32: =DataByMiles!H30*VLOOKUP(DataByMiles!AE30,DataByMiles!$AT$5:$AU$6,2,FALSE) -> 0 | T32: =Q32*$T$2*VLOOKUP(DataByMiles!AE30,DataByMiles!$AT$5:$AU$6,2,FALSE) -> 0 | U32: =DataByMiles!I30*VLOOKUP(DataByMiles!AE30,DataByMiles!$AT$5:$AU$6,2,FALSE) -> 0 | X32: =U32*$X$2*VLOOKUP(DataByMiles!AE30,DataByMiles!$AT$5:$AU$6,2,FALSE) -> 0 | Y32: =DataByMiles!J30*VLOOKUP(DataByMiles!AE30,DataByMiles!$AT$5:$AU$6,2,FALSE) -> 0 | Z32: =DataByMiles!K30 -> 0 | AA32: =DataByMiles!L30 -> 0 | AD32: =(Y32/IF(Z32=0,$AD$1,Z32)*$AD$2)/IF(AA32=0,1,AA32)*VLOOKUP(DataByMiles!AE30,DataByMiles!$AT$5:$AU$6,2,FALSE) -> 0 | AE32: 3.5 | AF32: 0 | AG32: 0.82005 | AH32: =(AF32+AG32)*VLOOKUP(DataByMiles!AE30,DataByMiles!$AT$5:$AU$6,2,FALSE) -> 0.82005 | AI32: 0.2343 | AK32: AD
B33: =DataByMiles!C31 -> Reema | C33: =DataByMiles!E31*VLOOKUP(DataByMiles!AE31,DataByMiles!$AT$5:$AU$6,2,FALSE) -> 2 | F33: 0 | G33: =C33*$G$2*VLOOKUP(DataByMiles!AE31,DataByMiles!$AT$5:$AU$6,2,FALSE) -> 0.4686 | H33: =DataByMiles!F31*VLOOKUP(DataByMiles!AE31,DataByMiles!$AT$5:$AU$6,2,FALSE) -> 0 | K33: 0 | L33: =H33*$L$2*VLOOKUP(DataByMiles!AE31,DataByMiles!$AT$5:$AU$6,2,FALSE) -> 0 | M33: =DataByMiles!G31*VLOOKUP(DataByMiles!AE31,DataByMiles!$AT$5:$AU$6,2,FALSE) -> 0 | P33: =M33*$P$2*VLOOKUP(DataByMiles!AE31,DataByMiles!$AT$5:$AU$6,2,FALSE) -> 0 | Q33: =DataByMiles!H31*VLOOKUP(DataByMiles!AE31,DataByMiles!$AT$5:$AU$6,2,FALSE) -> 0 | T33: =Q33*$T$2*VLOOKUP(DataByMiles!AE31,DataByMiles!$AT$5:$AU$6,2,FALSE) -> 0 | U33: =DataByMiles!I31*VLOOKUP(DataByMiles!AE31,DataByMiles!$AT$5:$AU$6,2,FALSE) -> 0 | X33: =U33*$X$2*VLOOKUP(DataByMiles!AE31,DataByMiles!$AT$5:$AU$6,2,FALSE) -> 0 | Y33: =DataByMiles!J31*VLOOKUP(DataByMiles!AE31,DataByMiles!$AT$5:$AU$6,2,FALSE) -> 0 | Z33: =DataByMiles!K31 -> 0 | AA33: =DataByMiles!L31 -> 0 | AD33: =(Y33/IF(Z33=0,$AD$1,Z33)*$AD$2)/IF(AA33=0,1,AA33)*VLOOKUP(DataByMiles!AE31,DataByMiles!$AT$5:$AU$6,2,FALSE) -> 0 | AE33: 2 | AF33: 0 | AG33: 0.4686 | AH33: =(AF33+AG33)*VLOOKUP(DataByMiles!AE31,DataByMiles!$AT$5:$AU$6,2,FALSE) -> 0.4686 | AI33: 0.2343 | AK33: AE
B34: =DataByMiles!C32 -> Alexis | C34: =DataByMiles!E32*VLOOKUP(DataByMiles!AE32,DataByMiles!$AT$5:$AU$6,2,FALSE) -> 4 | F34: 0 | G34: =C34*$G$2*VLOOKUP(DataByMiles!AE32,DataByMiles!$AT$5:$AU$6,2,FALSE) -> 0.9372 | H34: =DataByMiles!F32*VLOOKUP(DataByMiles!AE32,DataByMiles!$AT$5:$AU$6,2,FALSE) -> 0 | K34: 0 | L34: =H34*$L$2*VLOOKUP(DataByMiles!AE32,DataByMiles!$AT$5:$AU$6,2,FALSE) -> 0 | M34: =DataByMiles!G32*VLOOKUP(DataByMiles!AE32,DataByMiles!$AT$5:$AU$6,2,FALSE) -> 0 | P34: =M34*$P$2*VLOOKUP(DataByMiles!AE32,DataByMiles!$AT$5:$AU$6,2,FALSE) -> 0 | Q34: =DataByMiles!H32*VLOOKUP(DataByMiles!AE32,DataByMiles!$AT$5:$AU$6,2,FALSE) -> 0 | T34: =Q34*$T$2*VLOOKUP(DataByMiles!AE32,DataByMiles!$AT$5:$AU$6,2,FALSE) -> 0 | U34: =DataByMiles!I32*VLOOKUP(DataByMiles!AE32,DataByMiles!$AT$5:$AU$6,2,FALSE) -> 0 | X34: =U34*$X$2*VLOOKUP(DataByMiles!AE32,DataByMiles!$AT$5:$AU$6,2,FALSE) -> 0 | Y34: =DataByMiles!J32*VLOOKUP(DataByMiles!AE32,DataByMiles!$AT$5:$AU$6,2,FALSE) -> 2 | Z34: =DataByMiles!K32 -> 0 | AA34: =DataByMiles!L32 -> 3 | AD34: =(Y34/IF(Z34=0,$AD$1,Z34)*$AD$2)/IF(AA34=0,1,AA34)*VLOOKUP(DataByMiles!AE32,DataByMiles!$AT$5:$AU$6,2,FALSE) -> 0.5937121212 | AE34: 6 | AF34: 0.5937121212 | AG34: 0.9372 | AH34: =(AF34+AG34)*VLOOKUP(DataByMiles!AE32,DataByMiles!$AT$5:$AU$6,2,FALSE) -> 1.530912121 | AI34: 0.2551520202 | AK34: AF
B35: =DataByMiles!C33 -> Gursewak | C35: =DataByMiles!E33*VLOOKUP(DataByMiles!AE33,DataByMiles!$AT$5:$AU$6,2,FALSE) -> 10 | F35: 0 | G35: =C35*$G$2*VLOOKUP(DataByMiles!AE33,DataByMiles!$AT$5:$AU$6,2,FALSE) -> 2.343 | H35: =DataByMiles!F33*VLOOKUP(DataByMiles!AE33,DataByMiles!$AT$5:$AU$6,2,FALSE) -> 0 | K35: 0 | L35: =H35*$L$2*VLOOKUP(DataByMiles!AE33,DataByMiles!$AT$5:$AU$6,2,FALSE) -> 0 | M35: =DataByMiles!G33*VLOOKUP(DataByMiles!AE33,DataByMiles!$AT$5:$AU$6,2,FALSE) -> 0 | P35: =M35*$P$2*VLOOKUP(DataByMiles!AE33,DataByMiles!$AT$5:$AU$6,2,FALSE) -> 0 | Q35: =DataByMiles!H33*VLOOKUP(DataByMiles!AE33,DataByMiles!$AT$5:$AU$6,2,FALSE) -> 0 | T35: =Q35*$T$2*VLOOKUP(DataByMiles!AE33,DataByMiles!$AT$5:$AU$6,2,FALSE) -> 0 | U35: =DataByMiles!I33*VLOOKUP(DataByMiles!AE33,DataByMiles!$AT$5:$AU$6,2,FALSE) -> 0 | X35: =U35*$X$2*VLOOKUP(DataByMiles!AE33,DataByMiles!$AT$5:$AU$6,2,FALSE) -> 0 | Y35: =DataByMiles!J33*VLOOKUP(DataByMiles!AE33,DataByMiles!$AT$5:$AU$6,2,FALSE) -> 0 | Z35: =DataByMiles!K33 -> 0 | AA35: =DataByMiles!L33 -> 0 | AD35: =(Y35/IF(Z35=0,$AD$1,Z35)*$AD$2)/IF(AA35=0,1,AA35)*VLOOKUP(DataByMiles!AE33,DataByMiles!$AT$5:$AU$6,2,FALSE) -> 0 | AE35: 10 | AF35: 0 | AG35: 2.343 | AH35: =(AF35+AG35)*VLOOKUP(DataByMiles!AE33,DataByMiles!$AT$5:$AU$6,2,FALSE) -> 2.343 | AI35: 0.2343 | AK35: AG
B36: =DataByMiles!C34 -> Zach | C36: =DataByMiles!E34*VLOOKUP(DataByMiles!AE34,DataByMiles!$AT$5:$AU$6,2,FALSE) -> 5 | F36: 0 | G36: =C36*$G$2*VLOOKUP(DataByMiles!AE34,DataByMiles!$AT$5:$AU$6,2,FALSE) -> 1.1715 | H36: =DataByMiles!F34*VLOOKUP(DataByMiles!AE34,DataByMiles!$AT$5:$AU$6,2,FALSE) -> 0 | K36: 0 | L36: =H36*$L$2*VLOOKUP(DataByMiles!AE34,DataByMiles!$AT$5:$AU$6,2,FALSE) -> 0 | M36: =DataByMiles!G34*VLOOKUP(DataByMiles!AE34,DataByMiles!$AT$5:$AU$6,2,FALSE) -> 0 | P36: =M36*$P$2*VLOOKUP(DataByMiles!AE34,DataByMiles!$AT$5:$AU$6,2,FALSE) -> 0 | Q36: =DataByMiles!H34*VLOOKUP(DataByMiles!AE34,DataByMiles!$AT$5:$AU$6,2,FALSE) -> 0 | T36: =Q36*$T$2*VLOOKUP(DataByMiles!AE34,DataByMiles!$AT$5:$AU$6,2,FALSE) -> 0 | U36: =DataByMiles!I34*VLOOKUP(DataByMiles!AE34,DataByMiles!$AT$5:$AU$6,2,FALSE) -> 0 | X36: =U36*$X$2*VLOOKUP(DataByMiles!AE34,DataByMiles!$AT$5:$AU$6,2,FALSE) -> 0 | Y36: =DataByMiles!J34*VLOOKUP(DataByMiles!AE34,DataByMiles!$AT$5:$AU$6,2,FALSE) -> 0 | Z36: =DataByMiles!K34 -> 0 | AA36: =DataByMiles!L34 -> 0 | AD36: =(Y36/IF(Z36=0,$AD$1,Z36)*$AD$2)/IF(AA36=0,1,AA36)*VLOOKUP(DataByMiles!AE34,DataByMiles!$AT$5:$AU$6,2,FALSE) -> 0 | AE36: 5 | AF36: 0 | AG36: 1.1715 | AH36: =(AF36+AG36)*VLOOKUP(DataByMiles!AE34,DataByMiles!$AT$5:$AU$6,2,FALSE) -> 1.1715 | AI36: 0.2343 | AK36: AH
B37: =DataByMiles!C35 -> Dakota | C37: =DataByMiles!E35*VLOOKUP(DataByMiles!AE35,DataByMiles!$AT$5:$AU$6,2,FALSE) -> 4 | F37: 0 | G37: =C37*$G$2*VLOOKUP(DataByMiles!AE35,DataByMiles!$AT$5:$AU$6,2,FALSE) -> 0.9372 | H37: =DataByMiles!F35*VLOOKUP(DataByMiles!AE35,DataByMiles!$AT$5:$AU$6,2,FALSE) -> 0 | K37: 0 | L37: =H37*$L$2*VLOOKUP(DataByMiles!AE35,DataByMiles!$AT$5:$AU$6,2,FALSE) -> 0 | M37: =DataByMiles!G35*VLOOKUP(DataByMiles!AE35,DataByMiles!$AT$5:$AU$6,2,FALSE) -> 0 | P37: =M37*$P$2*VLOOKUP(DataByMiles!AE35,DataByMiles!$AT$5:$AU$6,2,FALSE) -> 0 | Q37: =DataByMiles!H35*VLOOKUP(DataByMiles!AE35,DataByMiles!$AT$5:$AU$6,2,FALSE) -> 0 | T37: =Q37*$T$2*VLOOKUP(DataByMiles!AE35,DataByMiles!$AT$5:$AU$6,2,FALSE) -> 0 | U37: =DataByMiles!I35*VLOOKUP(DataByMiles!AE35,DataByMiles!$AT$5:$AU$6,2,FALSE) -> 0 | X37: =U37*$X$2*VLOOKUP(DataByMiles!AE35,DataByMiles!$AT$5:$AU$6,2,FALSE) -> 0 | Y37: =DataByMiles!J35*VLOOKUP(DataByMiles!AE35,DataByMiles!$AT$5:$AU$6,2,FALSE) -> 54 | Z37: =DataByMiles!K35 -> 0 | AA37: =DataByMiles!L35 -> 2 | AD37: =(Y37/IF(Z37=0,$AD$1,Z37)*$AD$2)/IF(AA37=0,1,AA37)*VLOOKUP(DataByMiles!AE35,DataByMiles!$AT$5:$AU$6,2,FALSE) -> 24.04534091 | AE37: 58 | AF37: 24.04534091 | AG37: 0.9372 | AH37: =(AF37+AG37)*VLOOKUP(DataByMiles!AE35,DataByMiles!$AT$5:$AU$6,2,FALSE) -> 24.98254091 | AI37: 0.4307334639 | AK37: AI
B38: =DataByMiles!C36 -> Fernando | C38: =DataByMiles!E36*VLOOKUP(DataByMiles!AE36,DataByMiles!$AT$5:$AU$6,2,FALSE) -> 10 | F38: 0 | G38: =C38*$G$2*VLOOKUP(DataByMiles!AE36,DataByMiles!$AT$5:$AU$6,2,FALSE) -> 2.343 | H38: =DataByMiles!F36*VLOOKUP(DataByMiles!AE36,DataByMiles!$AT$5:$AU$6,2,FALSE) -> 0 | K38: 0 | L38: =H38*$L$2*VLOOKUP(DataByMiles!AE36,DataByMiles!$AT$5:$AU$6,2,FALSE) -> 0 | M38: =DataByMiles!G36*VLOOKUP(DataByMiles!AE36,DataByMiles!$AT$5:$AU$6,2,FALSE) -> 0 | P38: =M38*$P$2*VLOOKUP(DataByMiles!AE36,DataByMiles!$AT$5:$AU$6,2,FALSE) -> 0 | Q38: =DataByMiles!H36*VLOOKUP(DataByMiles!AE36,DataByMiles!$AT$5:$AU$6,2,FALSE) -> 0 | T38: =Q38*$T$2*VLOOKUP(DataByMiles!AE36,DataByMiles!$AT$5:$AU$6,2,FALSE) -> 0 | U38: =DataByMiles!I36*VLOOKUP(DataByMiles!AE36,DataByMiles!$AT$5:$AU$6,2,FALSE) -> 0 | X38: =U38*$X$2*VLOOKUP(DataByMiles!AE36,DataByMiles!$AT$5:$AU$6,2,FALSE) -> 0 | Y38: =DataByMiles!J36*VLOOKUP(DataByMiles!AE36,DataByMiles!$AT$5:$AU$6,2,FALSE) -> 0 | Z38: =DataByMiles!K36 -> 0 | AA38: =DataByMiles!L36 -> 0 | AD38: =(Y38/IF(Z38=0,$AD$1,Z38)*$AD$2)/IF(AA38=0,1,AA38)*VLOOKUP(DataByMiles!AE36,DataByMiles!$AT$5:$AU$6,2,FALSE) -> 0 | AE38: 10 | AF38: 0 | AG38: 2.343 | AH38: =(AF38+AG38)*VLOOKUP(DataByMiles!AE36,DataByMiles!$AT$5:$AU$6,2,FALSE) -> 2.343 | AI38: 0.2343 | AK38: AJ
B39: =DataByMiles!C37 -> Matt | C39: =DataByMiles!E37*VLOOKUP(DataByMiles!AE37,DataByMiles!$AT$5:$AU$6,2,FALSE) -> 20 | F39: 0 | G39: =C39*$G$2*VLOOKUP(DataByMiles!AE37,DataByMiles!$AT$5:$AU$6,2,FALSE) -> 4.686 | H39: =DataByMiles!F37*VLOOKUP(DataByMiles!AE37,DataByMiles!$AT$5:$AU$6,2,FALSE) -> 0 | K39: 0 | L39: =H39*$L$2*VLOOKUP(DataByMiles!AE37,DataByMiles!$AT$5:$AU$6,2,FALSE) -> 0 | M39: =DataByMiles!G37*VLOOKUP(DataByMiles!AE37,DataByMiles!$AT$5:$AU$6,2,FALSE) -> 0 | P39: =M39*$P$2*VLOOKUP(DataByMiles!AE37,DataByMiles!$AT$5:$AU$6,2,FALSE) -> 0 | Q39: =DataByMiles!H37*VLOOKUP(DataByMiles!AE37,DataByMiles!$AT$5:$AU$6,2,FALSE) -> 0 | T39: =Q39*$T$2*VLOOKUP(DataByMiles!AE37,DataByMiles!$AT$5:$AU$6,2,FALSE) -> 0 | U39: =DataByMiles!I37*VLOOKUP(DataByMiles!AE37,DataByMiles!$AT$5:$AU$6,2,FALSE) -> 0 | X39: =U39*$X$2*VLOOKUP(DataByMiles!AE37,DataByMiles!$AT$5:$AU$6,2,FALSE) -> 0 | Y39: =DataByMiles!J37*VLOOKUP(DataByMiles!AE37,DataByMiles!$AT$5:$AU$6,2,FALSE) -> 0 | Z39: =DataByMiles!K37 -> 0 | AA39: =DataByMiles!L37 -> 0 | AD39: =(Y39/IF(Z39=0,$AD$1,Z39)*$AD$2)/IF(AA39=0,1,AA39)*VLOOKUP(DataByMiles!AE37,DataByMiles!$AT$5:$AU$6,2,FALSE) -> 0 | AE39: 20 | AF39: 0 | AG39: 4.686 | AH39: =(AF39+AG39)*VLOOKUP(DataByMiles!AE37,DataByMiles!$AT$5:$AU$6,2,FALSE) -> 4.686 | AI39: 0.2343 | AK39: AK
B40: =DataByMiles!C38 -> ----34 | C40: =DataByMiles!E38*VLOOKUP(DataByMiles!AE38,DataByMiles!$AT$5:$AU$6,2,FALSE) -> 0 | F40: 0 | G40: =C40*$G$2*VLOOKUP(DataByMiles!AE38,DataByMiles!$AT$5:$AU$6,2,FALSE) -> 0 | H40: =DataByMiles!F38*VLOOKUP(DataByMiles!AE38,DataByMiles!$AT$5:$AU$6,2,FALSE) -> 0 | K40: 0 | L40: =H40*$L$2*VLOOKUP(DataByMiles!AE38,DataByMiles!$AT$5:$AU$6,2,FALSE) -> 0 | M40: =DataByMiles!G38*VLOOKUP(DataByMiles!AE38,DataByMiles!$AT$5:$AU$6,2,FALSE) -> 0 | P40: =M40*$P$2*VLOOKUP(DataByMiles!AE38,DataByMiles!$AT$5:$AU$6,2,FALSE) -> 0 | Q40: =DataByMiles!H38*VLOOKUP(DataByMiles!AE38,DataByMiles!$AT$5:$AU$6,2,FALSE) -> 0 | T40: =Q40*$T$2*VLOOKUP(DataByMiles!AE38,DataByMiles!$AT$5:$AU$6,2,FALSE) -> 0 | U40: =DataByMiles!I38*VLOOKUP(DataByMiles!AE38,DataByMiles!$AT$5:$AU$6,2,FALSE) -> 0 | X40: =U40*$X$2*VLOOKUP(DataByMiles!AE38,DataByMiles!$AT$5:$AU$6,2,FALSE) -> 0 | Y40: =DataByMiles!J38*VLOOKUP(DataByMiles!AE38,DataByMiles!$AT$5:$AU$6,2,FALSE) -> 0 | Z40: =DataByMiles!K38 -> 0 | AA40: =DataByMiles!L38 -> 0 | AD40: =(Y40/IF(Z40=0,$AD$1,Z40)*$AD$2)/IF(AA40=0,1,AA40)*VLOOKUP(DataByMiles!AE38,DataByMiles!$AT$5:$AU$6,2,FALSE) -> 0 | AF40: 0 | AG40: 0 | AH40: =(AF40+AG40)*VLOOKUP(DataByMiles!AE38,DataByMiles!$AT$5:$AU$6,2,FALSE) -> 0 | AI40: 0 | AK40: AL
B41: =DataByMiles!C39 -> ----35 | C41: =DataByMiles!E39*VLOOKUP(DataByMiles!AE39,DataByMiles!$AT$5:$AU$6,2,FALSE) -> 0 | F41: 0 | G41: =C41*$G$2*VLOOKUP(DataByMiles!AE39,DataByMiles!$AT$5:$AU$6,2,FALSE) -> 0 | H41: =DataByMiles!F39*VLOOKUP(DataByMiles!AE39,DataByMiles!$AT$5:$AU$6,2,FALSE) -> 0 | K41: 0 | L41: =H41*$L$2*VLOOKUP(DataByMiles!AE39,DataByMiles!$AT$5:$AU$6,2,FALSE) -> 0 | M41: =DataByMiles!G39*VLOOKUP(DataByMiles!AE39,DataByMiles!$AT$5:$AU$6,2,FALSE) -> 0 | P41: =M41*$P$2*VLOOKUP(DataByMiles!AE39,DataByMiles!$AT$5:$AU$6,2,FALSE) -> 0 | Q41: =DataByMiles!H39*VLOOKUP(DataByMiles!AE39,DataByMiles!$AT$5:$AU$6,2,FALSE) -> 0 | T41: =Q41*$T$2*VLOOKUP(DataByMiles!AE39,DataByMiles!$AT$5:$AU$6,2,FALSE) -> 0 | U41: =DataByMiles!I39*VLOOKUP(DataByMiles!AE39,DataByMiles!$AT$5:$AU$6,2,FALSE) -> 0 | X41: =U41*$X$2*VLOOKUP(DataByMiles!AE39,DataByMiles!$AT$5:$AU$6,2,FALSE) -> 0 | Y41: =DataByMiles!J39*VLOOKUP(DataByMiles!AE39,DataByMiles!$AT$5:$AU$6,2,FALSE) -> 0 | Z41: =DataByMiles!K39 -> 0 | AA41: =DataByMiles!L39 -> 0 | AD41: =(Y41/IF(Z41=0,$AD$1,Z41)*$AD$2)/IF(AA41=0,1,AA41)*VLOOKUP(DataByMiles!AE39,DataByMiles!$AT$5:$AU$6,2,FALSE) -> 0 | AF41: 0 | AG41: 0 | AH41: =(AF41+AG41)*VLOOKUP(DataByMiles!AE39,DataByMiles!$AT$5:$AU$6,2,FALSE) -> 0 | AI41: 0 | AK41: AM
B42: =DataByMiles!C40 -> ----36 | C42: =DataByMiles!E40*VLOOKUP(DataByMiles!AE40,DataByMiles!$AT$5:$AU$6,2,FALSE) -> 0 | F42: 0 | G42: =C42*$G$2*VLOOKUP(DataByMiles!AE40,DataByMiles!$AT$5:$AU$6,2,FALSE) -> 0 | H42: =DataByMiles!F40*VLOOKUP(DataByMiles!AE40,DataByMiles!$AT$5:$AU$6,2,FALSE) -> 0 | K42: 0 | L42: =H42*$L$2*VLOOKUP(DataByMiles!AE40,DataByMiles!$AT$5:$AU$6,2,FALSE) -> 0 | M42: =DataByMiles!G40*VLOOKUP(DataByMiles!AE40,DataByMiles!$AT$5:$AU$6,2,FALSE) -> 0 | P42: =M42*$P$2*VLOOKUP(DataByMiles!AE40,DataByMiles!$AT$5:$AU$6,2,FALSE) -> 0 | Q42: =DataByMiles!H40*VLOOKUP(DataByMiles!AE40,DataByMiles!$AT$5:$AU$6,2,FALSE) -> 0 | T42: =Q42*$T$2*VLOOKUP(DataByMiles!AE40,DataByMiles!$AT$5:$AU$6,2,FALSE) -> 0 | U42: =DataByMiles!I40*VLOOKUP(DataByMiles!AE40,DataByMiles!$AT$5:$AU$6,2,FALSE) -> 0 | X42: =U42*$X$2*VLOOKUP(DataByMiles!AE40,DataByMiles!$AT$5:$AU$6,2,FALSE) -> 0 | Y42: =DataByMiles!J40*VLOOKUP(DataByMiles!AE40,DataByMiles!$AT$5:$AU$6,2,FALSE) -> 0 | Z42: =DataByMiles!K40 -> 0 | AA42: =DataByMiles!L40 -> 0 | AD42: =(Y42/IF(Z42=0,$AD$1,Z42)*$AD$2)/IF(AA42=0,1,AA42)*VLOOKUP(DataByMiles!AE40,DataByMiles!$AT$5:$AU$6,2,FALSE) -> 0 | AF42: 0 | AG42: 0 | AH42: =(AF42+AG42)*VLOOKUP(DataByMiles!AE40,DataByMiles!$AT$5:$AU$6,2,FALSE) -> 0 | AI42: 0 | AK42: AN
B43: =DataByMiles!C41 -> ----37 | C43: =DataByMiles!E41*VLOOKUP(DataByMiles!AE41,DataByMiles!$AT$5:$AU$6,2,FALSE) -> 0 | F43: 0 | G43: =C43*$G$2*VLOOKUP(DataByMiles!AE41,DataByMiles!$AT$5:$AU$6,2,FALSE) -> 0 | H43: =DataByMiles!F41*VLOOKUP(DataByMiles!AE41,DataByMiles!$AT$5:$AU$6,2,FALSE) -> 0 | K43: 0 | L43: =H43*$L$2*VLOOKUP(DataByMiles!AE41,DataByMiles!$AT$5:$AU$6,2,FALSE) -> 0 | M43: =DataByMiles!G41*VLOOKUP(DataByMiles!AE41,DataByMiles!$AT$5:$AU$6,2,FALSE) -> 0 | P43: =M43*$P$2*VLOOKUP(DataByMiles!AE41,DataByMiles!$AT$5:$AU$6,2,FALSE) -> 0 | Q43: =DataByMiles!H41*VLOOKUP(DataByMiles!AE41,DataByMiles!$AT$5:$AU$6,2,FALSE) -> 0 | T43: =Q43*$T$2*VLOOKUP(DataByMiles!AE41,DataByMiles!$AT$5:$AU$6,2,FALSE) -> 0 | U43: =DataByMiles!I41*VLOOKUP(DataByMiles!AE41,DataByMiles!$AT$5:$AU$6,2,FALSE) -> 0 | X43: =U43*$X$2*VLOOKUP(DataByMiles!AE41,DataByMiles!$AT$5:$AU$6,2,FALSE) -> 0 | Y43: =DataByMiles!J41*VLOOKUP(DataByMiles!AE41,DataByMiles!$AT$5:$AU$6,2,FALSE) -> 0 | Z43: =DataByMiles!K41 -> 0 | AA43: =DataByMiles!L41 -> 0 | AD43: =(Y43/IF(Z43=0,$AD$1,Z43)*$AD$2)/IF(AA43=0,1,AA43)*VLOOKUP(DataByMiles!AE41,DataByMiles!$AT$5:$AU$6,2,FALSE) -> 0 | AF43: 0 | AG43: 0 | AH43: =(AF43+AG43)*VLOOKUP(DataByMiles!AE41,DataByMiles!$AT$5:$AU$6,2,FALSE) -> 0 | AI43: 0 | AK43: AO
B44: =DataByMiles!C42 -> ----38 | C44: =DataByMiles!E42*VLOOKUP(DataByMiles!AE42,DataByMiles!$AT$5:$AU$6,2,FALSE) -> 0 | F44: 0 | G44: =C44*$G$2*VLOOKUP(DataByMiles!AE42,DataByMiles!$AT$5:$AU$6,2,FALSE) -> 0 | H44: =DataByMiles!F42*VLOOKUP(DataByMiles!AE42,DataByMiles!$AT$5:$AU$6,2,FALSE) -> 0 | K44: 0 | L44: =H44*$L$2*VLOOKUP(DataByMiles!AE42,DataByMiles!$AT$5:$AU$6,2,FALSE) -> 0 | M44: =DataByMiles!G42*VLOOKUP(DataByMiles!AE42,DataByMiles!$AT$5:$AU$6,2,FALSE) -> 0 | P44: =M44*$P$2*VLOOKUP(DataByMiles!AE42,DataByMiles!$AT$5:$AU$6,2,FALSE) -> 0 | Q44: =DataByMiles!H42*VLOOKUP(DataByMiles!AE42,DataByMiles!$AT$5:$AU$6,2,FALSE) -> 0 | T44: =Q44*$T$2*VLOOKUP(DataByMiles!AE42,DataByMiles!$AT$5:$AU$6,2,FALSE) -> 0 | U44: =DataByMiles!I42*VLOOKUP(DataByMiles!AE42,DataByMiles!$AT$5:$AU$6,2,FALSE) -> 0 | X44: =U44*$X$2*VLOOKUP(DataByMiles!AE42,DataByMiles!$AT$5:$AU$6,2,FALSE) -> 0 | Y44: =DataByMiles!J42*VLOOKUP(DataByMiles!AE42,DataByMiles!$AT$5:$AU$6,2,FALSE) -> 0 | Z44: =DataByMiles!K42 -> 0 | AA44: =DataByMiles!L42 -> 0 | AD44: =(Y44/IF(Z44=0,$AD$1,Z44)*$AD$2)/IF(AA44=0,1,AA44)*VLOOKUP(DataByMiles!AE42,DataByMiles!$AT$5:$AU$6,2,FALSE) -> 0 | AF44: 0 | AG44: 0 | AH44: =(AF44+AG44)*VLOOKUP(DataByMiles!AE42,DataByMiles!$AT$5:$AU$6,2,FALSE) -> 0 | AI44: 0 | AK44: AP
B45: =DataByMiles!C43 -> ----39 | C45: =DataByMiles!E43*VLOOKUP(DataByMiles!AE43,DataByMiles!$AT$5:$AU$6,2,FALSE) -> 0 | F45: 0 | G45: =C45*$G$2*VLOOKUP(DataByMiles!AE43,DataByMiles!$AT$5:$AU$6,2,FALSE) -> 0 | H45: =DataByMiles!F43*VLOOKUP(DataByMiles!AE43,DataByMiles!$AT$5:$AU$6,2,FALSE) -> 0 | K45: 0 | L45: =H45*$L$2*VLOOKUP(DataByMiles!AE43,DataByMiles!$AT$5:$AU$6,2,FALSE) -> 0 | M45: =DataByMiles!G43*VLOOKUP(DataByMiles!AE43,DataByMiles!$AT$5:$AU$6,2,FALSE) -> 0 | P45: =M45*$P$2*VLOOKUP(DataByMiles!AE43,DataByMiles!$AT$5:$AU$6,2,FALSE) -> 0 | Q45: =DataByMiles!H43*VLOOKUP(DataByMiles!AE43,DataByMiles!$AT$5:$AU$6,2,FALSE) -> 0 | T45: =Q45*$T$2*VLOOKUP(DataByMiles!AE43,DataByMiles!$AT$5:$AU$6,2,FALSE) -> 0 | U45: =DataByMiles!I43*VLOOKUP(DataByMiles!AE43,DataByMiles!$AT$5:$AU$6,2,FALSE) -> 0 | X45: =U45*$X$2*VLOOKUP(DataByMiles!AE43,DataByMiles!$AT$5:$AU$6,2,FALSE) -> 0 | Y45: =DataByMiles!J43*VLOOKUP(DataByMiles!AE43,DataByMiles!$AT$5:$AU$6,2,FALSE) -> 0 | Z45: =DataByMiles!K43 -> 0 | AA45: =DataByMiles!L43 -> 0 | AD45: =(Y45/IF(Z45=0,$AD$1,Z45)*$AD$2)/IF(AA45=0,1,AA45)*VLOOKUP(DataByMiles!AE43,DataByMiles!$AT$5:$AU$6,2,FALSE) -> 0 | AF45: 0 | AG45: 0 | AH45: =(AF45+AG45)*VLOOKUP(DataByMiles!AE43,DataByMiles!$AT$5:$AU$6,2,FALSE) -> 0 | AI45: 0 | AK45: AQ
B46: =DataByMiles!C44 -> ----40 | C46: =DataByMiles!E44*VLOOKUP(DataByMiles!AE44,DataByMiles!$AT$5:$AU$6,2,FALSE) -> 0 | F46: =C46*$F$2 -> 0 | G46: =C46*$G$2*VLOOKUP(DataByMiles!AE44,DataByMiles!$AT$5:$AU$6,2,FALSE) -> 0 | H46: =DataByMiles!F44*VLOOKUP(DataByMiles!AE44,DataByMiles!$AT$5:$AU$6,2,FALSE) -> 0 | K46: =H46*$K$2 -> 0 | L46: =H46*$L$2*VLOOKUP(DataByMiles!AE44,DataByMiles!$AT$5:$AU$6,2,FALSE) -> 0 | M46: =DataByMiles!G44*VLOOKUP(DataByMiles!AE44,DataByMiles!$AT$5:$AU$6,2,FALSE) -> 0 | P46: =M46*$P$2*VLOOKUP(DataByMiles!AE44,DataByMiles!$AT$5:$AU$6,2,FALSE) -> 0 | Q46: =DataByMiles!H44*VLOOKUP(DataByMiles!AE44,DataByMiles!$AT$5:$AU$6,2,FALSE) -> 0 | T46: =Q46*$T$2*VLOOKUP(DataByMiles!AE44,DataByMiles!$AT$5:$AU$6,2,FALSE) -> 0 | U46: =DataByMiles!I44*VLOOKUP(DataByMiles!AE44,DataByMiles!$AT$5:$AU$6,2,FALSE) -> 0 | X46: =U46*$X$2*VLOOKUP(DataByMiles!AE44,DataByMiles!$AT$5:$AU$6,2,FALSE) -> 0 | Y46: =DataByMiles!J44*VLOOKUP(DataByMiles!AE44,DataByMiles!$AT$5:$AU$6,2,FALSE) -> 0 | Z46: =DataByMiles!K44 -> 0 | AA46: =DataByMiles!L44 -> 0 | AD46: =(Y46/IF(Z46=0,$AD$1,Z46)*$AD$2)/IF(AA46=0,1,AA46)*VLOOKUP(DataByMiles!AE44,DataByMiles!$AT$5:$AU$6,2,FALSE) -> 0 | AE46: =IF(C46+H46+M46+Q46+U46+Y46>0,C46+H46+M46+Q46+U46+Y46,"") ->  | AF46: =F46+K46+P46+T46+X46+AD46 -> 0 | AG46: =G46+L46 -> 0 | AH46: =(AF46+AG46)*VLOOKUP(DataByMiles!AE44,DataByMiles!$AT$5:$AU$6,2,FALSE) -> 0 | AI46: =IFERROR(AH46/AE46,0) -> 0
B47: =DataByMiles!C45 -> ----41 | C47: =DataByMiles!E45*VLOOKUP(DataByMiles!AE45,DataByMiles!$AT$5:$AU$6,2,FALSE) -> 0 | F47: 0 | G47: =C47*$G$2*VLOOKUP(DataByMiles!AE45,DataByMiles!$AT$5:$AU$6,2,FALSE) -> 0 | H47: =DataByMiles!F45*VLOOKUP(DataByMiles!AE45,DataByMiles!$AT$5:$AU$6,2,FALSE) -> 0 | K47: 0 | L47: =H47*$L$2*VLOOKUP(DataByMiles!AE45,DataByMiles!$AT$5:$AU$6,2,FALSE) -> 0 | M47: =DataByMiles!G45*VLOOKUP(DataByMiles!AE45,DataByMiles!$AT$5:$AU$6,2,FALSE) -> 0 | P47: =M47*$P$2*VLOOKUP(DataByMiles!AE45,DataByMiles!$AT$5:$AU$6,2,FALSE) -> 0 | Q47: =DataByMiles!H45*VLOOKUP(DataByMiles!AE45,DataByMiles!$AT$5:$AU$6,2,FALSE) -> 0 | T47: =Q47*$T$2*VLOOKUP(DataByMiles!AE45,DataByMiles!$AT$5:$AU$6,2,FALSE) -> 0 | U47: =DataByMiles!I45*VLOOKUP(DataByMiles!AE45,DataByMiles!$AT$5:$AU$6,2,FALSE) -> 0 | X47: =U47*$X$2*VLOOKUP(DataByMiles!AE45,DataByMiles!$AT$5:$AU$6,2,FALSE) -> 0 | Y47: =DataByMiles!J45*VLOOKUP(DataByMiles!AE45,DataByMiles!$AT$5:$AU$6,2,FALSE) -> 0 | Z47: =DataByMiles!K45 -> 0 | AA47: =DataByMiles!L45 -> 0 | AD47: =(Y47/IF(Z47=0,$AD$1,Z47)*$AD$2)/IF(AA47=0,1,AA47)*VLOOKUP(DataByMiles!AE45,DataByMiles!$AT$5:$AU$6,2,FALSE) -> 0 | AF47: 0 | AG47: 0 | AH47: =(AF47+AG47)*VLOOKUP(DataByMiles!AE45,DataByMiles!$AT$5:$AU$6,2,FALSE) -> 0 | AI47: 0
B48: =DataByMiles!C46 -> ----42 | C48: =DataByMiles!E46*VLOOKUP(DataByMiles!AE46,DataByMiles!$AT$5:$AU$6,2,FALSE) -> 0 | F48: 0 | G48: =C48*$G$2*VLOOKUP(DataByMiles!AE46,DataByMiles!$AT$5:$AU$6,2,FALSE) -> 0 | H48: =DataByMiles!F46*VLOOKUP(DataByMiles!AE46,DataByMiles!$AT$5:$AU$6,2,FALSE) -> 0 | K48: 0 | L48: =H48*$L$2*VLOOKUP(DataByMiles!AE46,DataByMiles!$AT$5:$AU$6,2,FALSE) -> 0 | M48: =DataByMiles!G46*VLOOKUP(DataByMiles!AE46,DataByMiles!$AT$5:$AU$6,2,FALSE) -> 0 | P48: =M48*$P$2*VLOOKUP(DataByMiles!AE46,DataByMiles!$AT$5:$AU$6,2,FALSE) -> 0 | Q48: =DataByMiles!H46*VLOOKUP(DataByMiles!AE46,DataByMiles!$AT$5:$AU$6,2,FALSE) -> 0 | T48: =Q48*$T$2*VLOOKUP(DataByMiles!AE46,DataByMiles!$AT$5:$AU$6,2,FALSE) -> 0 | U48: =DataByMiles!I46*VLOOKUP(DataByMiles!AE46,DataByMiles!$AT$5:$AU$6,2,FALSE) -> 0 | X48: =U48*$X$2*VLOOKUP(DataByMiles!AE46,DataByMiles!$AT$5:$AU$6,2,FALSE) -> 0 | Y48: =DataByMiles!J46*VLOOKUP(DataByMiles!AE46,DataByMiles!$AT$5:$AU$6,2,FALSE) -> 0 | Z48: =DataByMiles!K46 -> 0 | AA48: =DataByMiles!L46 -> 0 | AD48: =(Y48/IF(Z48=0,$AD$1,Z48)*$AD$2)/IF(AA48=0,1,AA48)*VLOOKUP(DataByMiles!AE46,DataByMiles!$AT$5:$AU$6,2,FALSE) -> 0 | AF48: 0 | AG48: 0 | AH48: =(AF48+AG48)*VLOOKUP(DataByMiles!AE46,DataByMiles!$AT$5:$AU$6,2,FALSE) -> 0 | AI48: 0
B49: =DataByMiles!C47 -> ----43 | C49: =DataByMiles!E47*VLOOKUP(DataByMiles!AE47,DataByMiles!$AT$5:$AU$6,2,FALSE) -> 0 | F49: 0 | G49: =C49*$G$2*VLOOKUP(DataByMiles!AE47,DataByMiles!$AT$5:$AU$6,2,FALSE) -> 0 | H49: =DataByMiles!F47*VLOOKUP(DataByMiles!AE47,DataByMiles!$AT$5:$AU$6,2,FALSE) -> 0 | K49: 0 | L49: =H49*$L$2*VLOOKUP(DataByMiles!AE47,DataByMiles!$AT$5:$AU$6,2,FALSE) -> 0 | M49: =DataByMiles!G47*VLOOKUP(DataByMiles!AE47,DataByMiles!$AT$5:$AU$6,2,FALSE) -> 0 | P49: =M49*$P$2*VLOOKUP(DataByMiles!AE47,DataByMiles!$AT$5:$AU$6,2,FALSE) -> 0 | Q49: =DataByMiles!H47*VLOOKUP(DataByMiles!AE47,DataByMiles!$AT$5:$AU$6,2,FALSE) -> 0 | T49: =Q49*$T$2*VLOOKUP(DataByMiles!AE47,DataByMiles!$AT$5:$AU$6,2,FALSE) -> 0 | U49: =DataByMiles!I47*VLOOKUP(DataByMiles!AE47,DataByMiles!$AT$5:$AU$6,2,FALSE) -> 0 | X49: =U49*$X$2*VLOOKUP(DataByMiles!AE47,DataByMiles!$AT$5:$AU$6,2,FALSE) -> 0 | Y49: =DataByMiles!J47*VLOOKUP(DataByMiles!AE47,DataByMiles!$AT$5:$AU$6,2,FALSE) -> 0 | Z49: =DataByMiles!K47 -> 0 | AA49: =DataByMiles!L47 -> 0 | AD49: =(Y49/IF(Z49=0,$AD$1,Z49)*$AD$2)/IF(AA49=0,1,AA49)*VLOOKUP(DataByMiles!AE47,DataByMiles!$AT$5:$AU$6,2,FALSE) -> 0 | AF49: 0 | AG49: 0 | AH49: =(AF49+AG49)*VLOOKUP(DataByMiles!AE47,DataByMiles!$AT$5:$AU$6,2,FALSE) -> 0 | AI49: 0
B50: =DataByMiles!C48 -> ----44 | C50: =DataByMiles!E48*VLOOKUP(DataByMiles!AE48,DataByMiles!$AT$5:$AU$6,2,FALSE) -> 0 | F50: 0 | G50: =C50*$G$2*VLOOKUP(DataByMiles!AE48,DataByMiles!$AT$5:$AU$6,2,FALSE) -> 0 | H50: =DataByMiles!F48*VLOOKUP(DataByMiles!AE48,DataByMiles!$AT$5:$AU$6,2,FALSE) -> 0 | K50: 0 | L50: =H50*$L$2*VLOOKUP(DataByMiles!AE48,DataByMiles!$AT$5:$AU$6,2,FALSE) -> 0 | M50: =DataByMiles!G48*VLOOKUP(DataByMiles!AE48,DataByMiles!$AT$5:$AU$6,2,FALSE) -> 0 | P50: =M50*$P$2*VLOOKUP(DataByMiles!AE48,DataByMiles!$AT$5:$AU$6,2,FALSE) -> 0 | Q50: =DataByMiles!H48*VLOOKUP(DataByMiles!AE48,DataByMiles!$AT$5:$AU$6,2,FALSE) -> 0 | T50: =Q50*$T$2*VLOOKUP(DataByMiles!AE48,DataByMiles!$AT$5:$AU$6,2,FALSE) -> 0 | U50: =DataByMiles!I48*VLOOKUP(DataByMiles!AE48,DataByMiles!$AT$5:$AU$6,2,FALSE) -> 0 | X50: =U50*$X$2*VLOOKUP(DataByMiles!AE48,DataByMiles!$AT$5:$AU$6,2,FALSE) -> 0 | Y50: =DataByMiles!J48*VLOOKUP(DataByMiles!AE48,DataByMiles!$AT$5:$AU$6,2,FALSE) -> 0 | Z50: =DataByMiles!K48 -> 0 | AA50: =DataByMiles!L48 -> 0 | AD50: =(Y50/IF(Z50=0,$AD$1,Z50)*$AD$2)/IF(AA50=0,1,AA50)*VLOOKUP(DataByMiles!AE48,DataByMiles!$AT$5:$AU$6,2,FALSE) -> 0 | AF50: 0 | AG50: 0 | AH50: =(AF50+AG50)*VLOOKUP(DataByMiles!AE48,DataByMiles!$AT$5:$AU$6,2,FALSE) -> 0 | AI50: 0
B51: =DataByMiles!C49 -> ----45 | C51: =DataByMiles!E49*VLOOKUP(DataByMiles!AE49,DataByMiles!$AT$5:$AU$6,2,FALSE) -> 0 | F51: 0 | G51: =C51*$G$2*VLOOKUP(DataByMiles!AE49,DataByMiles!$AT$5:$AU$6,2,FALSE) -> 0 | H51: =DataByMiles!F49*VLOOKUP(DataByMiles!AE49,DataByMiles!$AT$5:$AU$6,2,FALSE) -> 0 | K51: 0 | L51: =H51*$L$2*VLOOKUP(DataByMiles!AE49,DataByMiles!$AT$5:$AU$6,2,FALSE) -> 0 | M51: =DataByMiles!G49*VLOOKUP(DataByMiles!AE49,DataByMiles!$AT$5:$AU$6,2,FALSE) -> 0 | P51: =M51*$P$2*VLOOKUP(DataByMiles!AE49,DataByMiles!$AT$5:$AU$6,2,FALSE) -> 0 | Q51: =DataByMiles!H49*VLOOKUP(DataByMiles!AE49,DataByMiles!$AT$5:$AU$6,2,FALSE) -> 0 | T51: =Q51*$T$2*VLOOKUP(DataByMiles!AE49,DataByMiles!$AT$5:$AU$6,2,FALSE) -> 0 | U51: =DataByMiles!I49*VLOOKUP(DataByMiles!AE49,DataByMiles!$AT$5:$AU$6,2,FALSE) -> 0 | X51: =U51*$X$2*VLOOKUP(DataByMiles!AE49,DataByMiles!$AT$5:$AU$6,2,FALSE) -> 0 | Y51: =DataByMiles!J49*VLOOKUP(DataByMiles!AE49,DataByMiles!$AT$5:$AU$6,2,FALSE) -> 0 | Z51: =DataByMiles!K49 -> 0 | AA51: =DataByMiles!L49 -> 0 | AD51: =(Y51/IF(Z51=0,$AD$1,Z51)*$AD$2)/IF(AA51=0,1,AA51)*VLOOKUP(DataByMiles!AE49,DataByMiles!$AT$5:$AU$6,2,FALSE) -> 0 | AF51: 0 | AG51: 0 | AH51: =(AF51+AG51)*VLOOKUP(DataByMiles!AE49,DataByMiles!$AT$5:$AU$6,2,FALSE) -> 0 | AI51: 0
B52: =DataByMiles!C50 -> ----46 | C52: =DataByMiles!E50*VLOOKUP(DataByMiles!AE50,DataByMiles!$AT$5:$AU$6,2,FALSE) -> 0 | F52: 0 | G52: =C52*$G$2*VLOOKUP(DataByMiles!AE50,DataByMiles!$AT$5:$AU$6,2,FALSE) -> 0 | H52: =DataByMiles!F50*VLOOKUP(DataByMiles!AE50,DataByMiles!$AT$5:$AU$6,2,FALSE) -> 0 | K52: 0 | L52: =H52*$L$2*VLOOKUP(DataByMiles!AE50,DataByMiles!$AT$5:$AU$6,2,FALSE) -> 0 | M52: =DataByMiles!G50*VLOOKUP(DataByMiles!AE50,DataByMiles!$AT$5:$AU$6,2,FALSE) -> 0 | P52: =M52*$P$2*VLOOKUP(DataByMiles!AE50,DataByMiles!$AT$5:$AU$6,2,FALSE) -> 0 | Q52: =DataByMiles!H50*VLOOKUP(DataByMiles!AE50,DataByMiles!$AT$5:$AU$6,2,FALSE) -> 0 | T52: =Q52*$T$2*VLOOKUP(DataByMiles!AE50,DataByMiles!$AT$5:$AU$6,2,FALSE) -> 0 | U52: =DataByMiles!I50*VLOOKUP(DataByMiles!AE50,DataByMiles!$AT$5:$AU$6,2,FALSE) -> 0 | X52: =U52*$X$2*VLOOKUP(DataByMiles!AE50,DataByMiles!$AT$5:$AU$6,2,FALSE) -> 0 | Y52: =DataByMiles!J50*VLOOKUP(DataByMiles!AE50,DataByMiles!$AT$5:$AU$6,2,FALSE) -> 0 | Z52: =DataByMiles!K50 -> 0 | AA52: =DataByMiles!L50 -> 0 | AD52: =(Y52/IF(Z52=0,$AD$1,Z52)*$AD$2)/IF(AA52=0,1,AA52)*VLOOKUP(DataByMiles!AE50,DataByMiles!$AT$5:$AU$6,2,FALSE) -> 0 | AF52: 0 | AG52: 0 | AH52: =(AF52+AG52)*VLOOKUP(DataByMiles!AE50,DataByMiles!$AT$5:$AU$6,2,FALSE) -> 0 | AI52: 0
B53: =DataByMiles!C51 -> ----47 | C53: =DataByMiles!E51*VLOOKUP(DataByMiles!AE51,DataByMiles!$AT$5:$AU$6,2,FALSE) -> 0 | F53: 0 | G53: =C53*$G$2*VLOOKUP(DataByMiles!AE51,DataByMiles!$AT$5:$AU$6,2,FALSE) -> 0 | H53: =DataByMiles!F51*VLOOKUP(DataByMiles!AE51,DataByMiles!$AT$5:$AU$6,2,FALSE) -> 0 | K53: 0 | L53: =H53*$L$2*VLOOKUP(DataByMiles!AE51,DataByMiles!$AT$5:$AU$6,2,FALSE) -> 0 | M53: =DataByMiles!G51*VLOOKUP(DataByMiles!AE51,DataByMiles!$AT$5:$AU$6,2,FALSE) -> 0 | P53: =M53*$P$2*VLOOKUP(DataByMiles!AE51,DataByMiles!$AT$5:$AU$6,2,FALSE) -> 0 | Q53: =DataByMiles!H51*VLOOKUP(DataByMiles!AE51,DataByMiles!$AT$5:$AU$6,2,FALSE) -> 0 | T53: =Q53*$T$2*VLOOKUP(DataByMiles!AE51,DataByMiles!$AT$5:$AU$6,2,FALSE) -> 0 | U53: =DataByMiles!I51*VLOOKUP(DataByMiles!AE51,DataByMiles!$AT$5:$AU$6,2,FALSE) -> 0 | X53: =U53*$X$2*VLOOKUP(DataByMiles!AE51,DataByMiles!$AT$5:$AU$6,2,FALSE) -> 0 | Y53: =DataByMiles!J51*VLOOKUP(DataByMiles!AE51,DataByMiles!$AT$5:$AU$6,2,FALSE) -> 0 | Z53: =DataByMiles!K51 -> 0 | AA53: =DataByMiles!L51 -> 0 | AD53: =(Y53/IF(Z53=0,$AD$1,Z53)*$AD$2)/IF(AA53=0,1,AA53)*VLOOKUP(DataByMiles!AE51,DataByMiles!$AT$5:$AU$6,2,FALSE) -> 0 | AF53: 0 | AG53: 0 | AH53: =(AF53+AG53)*VLOOKUP(DataByMiles!AE51,DataByMiles!$AT$5:$AU$6,2,FALSE) -> 0 | AI53: 0
B54: =DataByMiles!C52 -> ----48 | C54: =DataByMiles!E52*VLOOKUP(DataByMiles!AE52,DataByMiles!$AT$5:$AU$6,2,FALSE) -> 0 | F54: 0 | G54: =C54*$G$2*VLOOKUP(DataByMiles!AE52,DataByMiles!$AT$5:$AU$6,2,FALSE) -> 0 | H54: =DataByMiles!F52*VLOOKUP(DataByMiles!AE52,DataByMiles!$AT$5:$AU$6,2,FALSE) -> 0 | K54: 0 | L54: =H54*$L$2*VLOOKUP(DataByMiles!AE52,DataByMiles!$AT$5:$AU$6,2,FALSE) -> 0 | M54: =DataByMiles!G52*VLOOKUP(DataByMiles!AE52,DataByMiles!$AT$5:$AU$6,2,FALSE) -> 0 | P54: =M54*$P$2*VLOOKUP(DataByMiles!AE52,DataByMiles!$AT$5:$AU$6,2,FALSE) -> 0 | Q54: =DataByMiles!H52*VLOOKUP(DataByMiles!AE52,DataByMiles!$AT$5:$AU$6,2,FALSE) -> 0 | T54: =Q54*$T$2*VLOOKUP(DataByMiles!AE52,DataByMiles!$AT$5:$AU$6,2,FALSE) -> 0 | U54: =DataByMiles!I52*VLOOKUP(DataByMiles!AE52,DataByMiles!$AT$5:$AU$6,2,FALSE) -> 0 | X54: =U54*$X$2*VLOOKUP(DataByMiles!AE52,DataByMiles!$AT$5:$AU$6,2,FALSE) -> 0 | Y54: =DataByMiles!J52*VLOOKUP(DataByMiles!AE52,DataByMiles!$AT$5:$AU$6,2,FALSE) -> 0 | Z54: =DataByMiles!K52 -> 0 | AA54: =DataByMiles!L52 -> 0 | AD54: =(Y54/IF(Z54=0,$AD$1,Z54)*$AD$2)/IF(AA54=0,1,AA54)*VLOOKUP(DataByMiles!AE52,DataByMiles!$AT$5:$AU$6,2,FALSE) -> 0 | AF54: 0 | AG54: 0 | AH54: =(AF54+AG54)*VLOOKUP(DataByMiles!AE52,DataByMiles!$AT$5:$AU$6,2,FALSE) -> 0 | AI54: 0
B55: =DataByMiles!C53 -> ----49 | C55: =DataByMiles!E53*VLOOKUP(DataByMiles!AE53,DataByMiles!$AT$5:$AU$6,2,FALSE) -> 0 | F55: 0 | G55: =C55*$G$2*VLOOKUP(DataByMiles!AE53,DataByMiles!$AT$5:$AU$6,2,FALSE) -> 0 | H55: =DataByMiles!F53*VLOOKUP(DataByMiles!AE53,DataByMiles!$AT$5:$AU$6,2,FALSE) -> 0 | K55: 0 | L55: =H55*$L$2*VLOOKUP(DataByMiles!AE53,DataByMiles!$AT$5:$AU$6,2,FALSE) -> 0 | M55: =DataByMiles!G53*VLOOKUP(DataByMiles!AE53,DataByMiles!$AT$5:$AU$6,2,FALSE) -> 0 | P55: =M55*$P$2*VLOOKUP(DataByMiles!AE53,DataByMiles!$AT$5:$AU$6,2,FALSE) -> 0 | Q55: =DataByMiles!H53*VLOOKUP(DataByMiles!AE53,DataByMiles!$AT$5:$AU$6,2,FALSE) -> 0 | T55: =Q55*$T$2*VLOOKUP(DataByMiles!AE53,DataByMiles!$AT$5:$AU$6,2,FALSE) -> 0 | U55: =DataByMiles!I53*VLOOKUP(DataByMiles!AE53,DataByMiles!$AT$5:$AU$6,2,FALSE) -> 0 | X55: =U55*$X$2*VLOOKUP(DataByMiles!AE53,DataByMiles!$AT$5:$AU$6,2,FALSE) -> 0 | Y55: =DataByMiles!J53*VLOOKUP(DataByMiles!AE53,DataByMiles!$AT$5:$AU$6,2,FALSE) -> 0 | Z55: =DataByMiles!K53 -> 0 | AA55: =DataByMiles!L53 -> 0 | AD55: =(Y55/IF(Z55=0,$AD$1,Z55)*$AD$2)/IF(AA55=0,1,AA55)*VLOOKUP(DataByMiles!AE53,DataByMiles!$AT$5:$AU$6,2,FALSE) -> 0 | AF55: 0 | AG55: 0 | AH55: =(AF55+AG55)*VLOOKUP(DataByMiles!AE53,DataByMiles!$AT$5:$AU$6,2,FALSE) -> 0 | AI55: 0
B56: =DataByMiles!C54 -> ----50 | C56: =DataByMiles!E54*VLOOKUP(DataByMiles!AE54,DataByMiles!$AT$5:$AU$6,2,FALSE) -> 0 | F56: 0 | G56: =C56*$G$2*VLOOKUP(DataByMiles!AE54,DataByMiles!$AT$5:$AU$6,2,FALSE) -> 0 | H56: =DataByMiles!F54*VLOOKUP(DataByMiles!AE54,DataByMiles!$AT$5:$AU$6,2,FALSE) -> 0 | K56: 0 | L56: =H56*$L$2*VLOOKUP(DataByMiles!AE54,DataByMiles!$AT$5:$AU$6,2,FALSE) -> 0 | M56: =DataByMiles!G54*VLOOKUP(DataByMiles!AE54,DataByMiles!$AT$5:$AU$6,2,FALSE) -> 0 | P56: =M56*$P$2*VLOOKUP(DataByMiles!AE54,DataByMiles!$AT$5:$AU$6,2,FALSE) -> 0 | Q56: =DataByMiles!H54*VLOOKUP(DataByMiles!AE54,DataByMiles!$AT$5:$AU$6,2,FALSE) -> 0 | T56: =Q56*$T$2*VLOOKUP(DataByMiles!AE54,DataByMiles!$AT$5:$AU$6,2,FALSE) -> 0 | U56: =DataByMiles!I54*VLOOKUP(DataByMiles!AE54,DataByMiles!$AT$5:$AU$6,2,FALSE) -> 0 | X56: =U56*$X$2*VLOOKUP(DataByMiles!AE54,DataByMiles!$AT$5:$AU$6,2,FALSE) -> 0 | Y56: =DataByMiles!J54*VLOOKUP(DataByMiles!AE54,DataByMiles!$AT$5:$AU$6,2,FALSE) -> 0 | Z56: =DataByMiles!K54 -> 0 | AA56: =DataByMiles!L54 -> 0 | AD56: =(Y56/IF(Z56=0,$AD$1,Z56)*$AD$2)/IF(AA56=0,1,AA56)*VLOOKUP(DataByMiles!AE54,DataByMiles!$AT$5:$AU$6,2,FALSE) -> 0 | AF56: 0 | AG56: 0 | AH56: =(AF56+AG56)*VLOOKUP(DataByMiles!AE54,DataByMiles!$AT$5:$AU$6,2,FALSE) -> 0 | AI56: 0
B57: =DataByMiles!C55 -> ----51 | C57: =DataByMiles!E55*VLOOKUP(DataByMiles!AE55,DataByMiles!$AT$5:$AU$6,2,FALSE) -> 0 | F57: 0 | G57: =C57*$G$2*VLOOKUP(DataByMiles!AE55,DataByMiles!$AT$5:$AU$6,2,FALSE) -> 0 | H57: =DataByMiles!F55*VLOOKUP(DataByMiles!AE55,DataByMiles!$AT$5:$AU$6,2,FALSE) -> 0 | K57: 0 | L57: =H57*$L$2*VLOOKUP(DataByMiles!AE55,DataByMiles!$AT$5:$AU$6,2,FALSE) -> 0 | M57: =DataByMiles!G55*VLOOKUP(DataByMiles!AE55,DataByMiles!$AT$5:$AU$6,2,FALSE) -> 0 | P57: =M57*$P$2*VLOOKUP(DataByMiles!AE55,DataByMiles!$AT$5:$AU$6,2,FALSE) -> 0 | Q57: =DataByMiles!H55*VLOOKUP(DataByMiles!AE55,DataByMiles!$AT$5:$AU$6,2,FALSE) -> 0 | T57: =Q57*$T$2*VLOOKUP(DataByMiles!AE55,DataByMiles!$AT$5:$AU$6,2,FALSE) -> 0 | U57: =DataByMiles!I55*VLOOKUP(DataByMiles!AE55,DataByMiles!$AT$5:$AU$6,2,FALSE) -> 0 | X57: =U57*$X$2*VLOOKUP(DataByMiles!AE55,DataByMiles!$AT$5:$AU$6,2,FALSE) -> 0 | Y57: =DataByMiles!J55*VLOOKUP(DataByMiles!AE55,DataByMiles!$AT$5:$AU$6,2,FALSE) -> 0 | Z57: =DataByMiles!K55 -> 0 | AA57: =DataByMiles!L55 -> 0 | AD57: =(Y57/IF(Z57=0,$AD$1,Z57)*$AD$2)/IF(AA57=0,1,AA57)*VLOOKUP(DataByMiles!AE55,DataByMiles!$AT$5:$AU$6,2,FALSE) -> 0 | AF57: 0 | AG57: 0 | AH57: =(AF57+AG57)*VLOOKUP(DataByMiles!AE55,DataByMiles!$AT$5:$AU$6,2,FALSE) -> 0 | AI57: 0
B58: =DataByMiles!C56 -> ----52 | C58: =DataByMiles!E56*VLOOKUP(DataByMiles!AE56,DataByMiles!$AT$5:$AU$6,2,FALSE) -> 0 | F58: 0 | G58: =C58*$G$2*VLOOKUP(DataByMiles!AE56,DataByMiles!$AT$5:$AU$6,2,FALSE) -> 0 | H58: =DataByMiles!F56*VLOOKUP(DataByMiles!AE56,DataByMiles!$AT$5:$AU$6,2,FALSE) -> 0 | K58: 0 | L58: =H58*$L$2*VLOOKUP(DataByMiles!AE56,DataByMiles!$AT$5:$AU$6,2,FALSE) -> 0 | M58: =DataByMiles!G56*VLOOKUP(DataByMiles!AE56,DataByMiles!$AT$5:$AU$6,2,FALSE) -> 0 | P58: =M58*$P$2*VLOOKUP(DataByMiles!AE56,DataByMiles!$AT$5:$AU$6,2,FALSE) -> 0 | Q58: =DataByMiles!H56*VLOOKUP(DataByMiles!AE56,DataByMiles!$AT$5:$AU$6,2,FALSE) -> 0 | T58: =Q58*$T$2*VLOOKUP(DataByMiles!AE56,DataByMiles!$AT$5:$AU$6,2,FALSE) -> 0 | U58: =DataByMiles!I56*VLOOKUP(DataByMiles!AE56,DataByMiles!$AT$5:$AU$6,2,FALSE) -> 0 | X58: =U58*$X$2*VLOOKUP(DataByMiles!AE56,DataByMiles!$AT$5:$AU$6,2,FALSE) -> 0 | Y58: =DataByMiles!J56*VLOOKUP(DataByMiles!AE56,DataByMiles!$AT$5:$AU$6,2,FALSE) -> 0 | Z58: =DataByMiles!K56 -> 0 | AA58: =DataByMiles!L56 -> 0 | AD58: =(Y58/IF(Z58=0,$AD$1,Z58)*$AD$2)/IF(AA58=0,1,AA58)*VLOOKUP(DataByMiles!AE56,DataByMiles!$AT$5:$AU$6,2,FALSE) -> 0 | AF58: 0 | AG58: 0 | AH58: =(AF58+AG58)*VLOOKUP(DataByMiles!AE56,DataByMiles!$AT$5:$AU$6,2,FALSE) -> 0 | AI58: 0
B59: =DataByMiles!C57 -> ----53 | C59: =DataByMiles!E57*VLOOKUP(DataByMiles!AE57,DataByMiles!$AT$5:$AU$6,2,FALSE) -> 0 | F59: 0 | G59: =C59*$G$2*VLOOKUP(DataByMiles!AE57,DataByMiles!$AT$5:$AU$6,2,FALSE) -> 0 | H59: =DataByMiles!F57*VLOOKUP(DataByMiles!AE57,DataByMiles!$AT$5:$AU$6,2,FALSE) -> 0 | K59: 0 | L59: =H59*$L$2*VLOOKUP(DataByMiles!AE57,DataByMiles!$AT$5:$AU$6,2,FALSE) -> 0 | M59: =DataByMiles!G57*VLOOKUP(DataByMiles!AE57,DataByMiles!$AT$5:$AU$6,2,FALSE) -> 0 | P59: =M59*$P$2*VLOOKUP(DataByMiles!AE57,DataByMiles!$AT$5:$AU$6,2,FALSE) -> 0 | Q59: =DataByMiles!H57*VLOOKUP(DataByMiles!AE57,DataByMiles!$AT$5:$AU$6,2,FALSE) -> 0 | T59: =Q59*$T$2*VLOOKUP(DataByMiles!AE57,DataByMiles!$AT$5:$AU$6,2,FALSE) -> 0 | U59: =DataByMiles!I57*VLOOKUP(DataByMiles!AE57,DataByMiles!$AT$5:$AU$6,2,FALSE) -> 0 | X59: =U59*$X$2*VLOOKUP(DataByMiles!AE57,DataByMiles!$AT$5:$AU$6,2,FALSE) -> 0 | Y59: =DataByMiles!J57*VLOOKUP(DataByMiles!AE57,DataByMiles!$AT$5:$AU$6,2,FALSE) -> 0 | Z59: =DataByMiles!K57 -> 0 | AA59: =DataByMiles!L57 -> 0 | AD59: =(Y59/IF(Z59=0,$AD$1,Z59)*$AD$2)/IF(AA59=0,1,AA59)*VLOOKUP(DataByMiles!AE57,DataByMiles!$AT$5:$AU$6,2,FALSE) -> 0 | AF59: 0 | AG59: 0 | AH59: =(AF59+AG59)*VLOOKUP(DataByMiles!AE57,DataByMiles!$AT$5:$AU$6,2,FALSE) -> 0 | AI59: 0
B60: =DataByMiles!C58 -> ----54 | C60: =DataByMiles!E58*VLOOKUP(DataByMiles!AE58,DataByMiles!$AT$5:$AU$6,2,FALSE) -> 0 | F60: 0 | G60: =C60*$G$2*VLOOKUP(DataByMiles!AE58,DataByMiles!$AT$5:$AU$6,2,FALSE) -> 0 | H60: =DataByMiles!F58*VLOOKUP(DataByMiles!AE58,DataByMiles!$AT$5:$AU$6,2,FALSE) -> 0 | K60: 0 | L60: =H60*$L$2*VLOOKUP(DataByMiles!AE58,DataByMiles!$AT$5:$AU$6,2,FALSE) -> 0 | M60: =DataByMiles!G58*VLOOKUP(DataByMiles!AE58,DataByMiles!$AT$5:$AU$6,2,FALSE) -> 0 | P60: =M60*$P$2*VLOOKUP(DataByMiles!AE58,DataByMiles!$AT$5:$AU$6,2,FALSE) -> 0 | Q60: =DataByMiles!H58*VLOOKUP(DataByMiles!AE58,DataByMiles!$AT$5:$AU$6,2,FALSE) -> 0 | T60: =Q60*$T$2*VLOOKUP(DataByMiles!AE58,DataByMiles!$AT$5:$AU$6,2,FALSE) -> 0 | U60: =DataByMiles!I58*VLOOKUP(DataByMiles!AE58,DataByMiles!$AT$5:$AU$6,2,FALSE) -> 0 | X60: =U60*$X$2*VLOOKUP(DataByMiles!AE58,DataByMiles!$AT$5:$AU$6,2,FALSE) -> 0 | Y60: =DataByMiles!J58*VLOOKUP(DataByMiles!AE58,DataByMiles!$AT$5:$AU$6,2,FALSE) -> 0 | Z60: =DataByMiles!K58 -> 0 | AA60: =DataByMiles!L58 -> 0 | AD60: =(Y60/IF(Z60=0,$AD$1,Z60)*$AD$2)/IF(AA60=0,1,AA60)*VLOOKUP(DataByMiles!AE58,DataByMiles!$AT$5:$AU$6,2,FALSE) -> 0 | AF60: 0 | AG60: 0 | AH60: =(AF60+AG60)*VLOOKUP(DataByMiles!AE58,DataByMiles!$AT$5:$AU$6,2,FALSE) -> 0 | AI60: 0
B61: =DataByMiles!C59 -> ----55 | C61: =DataByMiles!E59*VLOOKUP(DataByMiles!AE59,DataByMiles!$AT$5:$AU$6,2,FALSE) -> 0 | F61: 0 | G61: =C61*$G$2*VLOOKUP(DataByMiles!AE59,DataByMiles!$AT$5:$AU$6,2,FALSE) -> 0 | H61: =DataByMiles!F59*VLOOKUP(DataByMiles!AE59,DataByMiles!$AT$5:$AU$6,2,FALSE) -> 0 | K61: 0 | L61: =H61*$L$2*VLOOKUP(DataByMiles!AE59,DataByMiles!$AT$5:$AU$6,2,FALSE) -> 0 | M61: =DataByMiles!G59*VLOOKUP(DataByMiles!AE59,DataByMiles!$AT$5:$AU$6,2,FALSE) -> 0 | P61: =M61*$P$2*VLOOKUP(DataByMiles!AE59,DataByMiles!$AT$5:$AU$6,2,FALSE) -> 0 | Q61: =DataByMiles!H59*VLOOKUP(DataByMiles!AE59,DataByMiles!$AT$5:$AU$6,2,FALSE) -> 0 | T61: =Q61*$T$2*VLOOKUP(DataByMiles!AE59,DataByMiles!$AT$5:$AU$6,2,FALSE) -> 0 | U61: =DataByMiles!I59*VLOOKUP(DataByMiles!AE59,DataByMiles!$AT$5:$AU$6,2,FALSE) -> 0 | X61: =U61*$X$2*VLOOKUP(DataByMiles!AE59,DataByMiles!$AT$5:$AU$6,2,FALSE) -> 0 | Y61: =DataByMiles!J59*VLOOKUP(DataByMiles!AE59,DataByMiles!$AT$5:$AU$6,2,FALSE) -> 0 | Z61: =DataByMiles!K59 -> 0 | AA61: =DataByMiles!L59 -> 0 | AD61: =(Y61/IF(Z61=0,$AD$1,Z61)*$AD$2)/IF(AA61=0,1,AA61)*VLOOKUP(DataByMiles!AE59,DataByMiles!$AT$5:$AU$6,2,FALSE) -> 0 | AF61: 0 | AG61: 0 | AH61: =(AF61+AG61)*VLOOKUP(DataByMiles!AE59,DataByMiles!$AT$5:$AU$6,2,FALSE) -> 0 | AI61: 0
B62: =DataByMiles!C60 -> ----56 | C62: =DataByMiles!E60*VLOOKUP(DataByMiles!AE60,DataByMiles!$AT$5:$AU$6,2,FALSE) -> 0 | F62: 0 | G62: =C62*$G$2*VLOOKUP(DataByMiles!AE60,DataByMiles!$AT$5:$AU$6,2,FALSE) -> 0 | H62: =DataByMiles!F60*VLOOKUP(DataByMiles!AE60,DataByMiles!$AT$5:$AU$6,2,FALSE) -> 0 | K62: 0 | L62: =H62*$L$2*VLOOKUP(DataByMiles!AE60,DataByMiles!$AT$5:$AU$6,2,FALSE) -> 0 | M62: =DataByMiles!G60*VLOOKUP(DataByMiles!AE60,DataByMiles!$AT$5:$AU$6,2,FALSE) -> 0 | P62: =M62*$P$2*VLOOKUP(DataByMiles!AE60,DataByMiles!$AT$5:$AU$6,2,FALSE) -> 0 | Q62: =DataByMiles!H60*VLOOKUP(DataByMiles!AE60,DataByMiles!$AT$5:$AU$6,2,FALSE) -> 0 | T62: =Q62*$T$2*VLOOKUP(DataByMiles!AE60,DataByMiles!$AT$5:$AU$6,2,FALSE) -> 0 | U62: =DataByMiles!I60*VLOOKUP(DataByMiles!AE60,DataByMiles!$AT$5:$AU$6,2,FALSE) -> 0 | X62: =U62*$X$2*VLOOKUP(DataByMiles!AE60,DataByMiles!$AT$5:$AU$6,2,FALSE) -> 0 | Y62: =DataByMiles!J60*VLOOKUP(DataByMiles!AE60,DataByMiles!$AT$5:$AU$6,2,FALSE) -> 0 | Z62: =DataByMiles!K60 -> 0 | AA62: =DataByMiles!L60 -> 0 | AD62: =(Y62/IF(Z62=0,$AD$1,Z62)*$AD$2)/IF(AA62=0,1,AA62)*VLOOKUP(DataByMiles!AE60,DataByMiles!$AT$5:$AU$6,2,FALSE) -> 0 | AF62: 0 | AG62: 0 | AH62: =(AF62+AG62)*VLOOKUP(DataByMiles!AE60,DataByMiles!$AT$5:$AU$6,2,FALSE) -> 0 | AI62: 0
B63: =DataByMiles!C61 -> ----57 | C63: =DataByMiles!E61*VLOOKUP(DataByMiles!AE61,DataByMiles!$AT$5:$AU$6,2,FALSE) -> 0 | F63: 0 | G63: =C63*$G$2*VLOOKUP(DataByMiles!AE61,DataByMiles!$AT$5:$AU$6,2,FALSE) -> 0 | H63: =DataByMiles!F61*VLOOKUP(DataByMiles!AE61,DataByMiles!$AT$5:$AU$6,2,FALSE) -> 0 | K63: 0 | L63: =H63*$L$2*VLOOKUP(DataByMiles!AE61,DataByMiles!$AT$5:$AU$6,2,FALSE) -> 0 | M63: =DataByMiles!G61*VLOOKUP(DataByMiles!AE61,DataByMiles!$AT$5:$AU$6,2,FALSE) -> 0 | P63: =M63*$P$2*VLOOKUP(DataByMiles!AE61,DataByMiles!$AT$5:$AU$6,2,FALSE) -> 0 | Q63: =DataByMiles!H61*VLOOKUP(DataByMiles!AE61,DataByMiles!$AT$5:$AU$6,2,FALSE) -> 0 | T63: =Q63*$T$2*VLOOKUP(DataByMiles!AE61,DataByMiles!$AT$5:$AU$6,2,FALSE) -> 0 | U63: =DataByMiles!I61*VLOOKUP(DataByMiles!AE61,DataByMiles!$AT$5:$AU$6,2,FALSE) -> 0 | X63: =U63*$X$2*VLOOKUP(DataByMiles!AE61,DataByMiles!$AT$5:$AU$6,2,FALSE) -> 0 | Y63: =DataByMiles!J61*VLOOKUP(DataByMiles!AE61,DataByMiles!$AT$5:$AU$6,2,FALSE) -> 0 | Z63: =DataByMiles!K61 -> 0 | AA63: =DataByMiles!L61 -> 0 | AD63: =(Y63/IF(Z63=0,$AD$1,Z63)*$AD$2)/IF(AA63=0,1,AA63)*VLOOKUP(DataByMiles!AE61,DataByMiles!$AT$5:$AU$6,2,FALSE) -> 0 | AF63: 0 | AG63: 0 | AH63: =(AF63+AG63)*VLOOKUP(DataByMiles!AE61,DataByMiles!$AT$5:$AU$6,2,FALSE) -> 0 | AI63: 0
B64: =DataByMiles!C62 -> ----58 | C64: =DataByMiles!E62*VLOOKUP(DataByMiles!AE62,DataByMiles!$AT$5:$AU$6,2,FALSE) -> 0 | F64: 0 | G64: =C64*$G$2*VLOOKUP(DataByMiles!AE62,DataByMiles!$AT$5:$AU$6,2,FALSE) -> 0 | H64: =DataByMiles!F62*VLOOKUP(DataByMiles!AE62,DataByMiles!$AT$5:$AU$6,2,FALSE) -> 0 | K64: 0 | L64: =H64*$L$2*VLOOKUP(DataByMiles!AE62,DataByMiles!$AT$5:$AU$6,2,FALSE) -> 0 | M64: =DataByMiles!G62*VLOOKUP(DataByMiles!AE62,DataByMiles!$AT$5:$AU$6,2,FALSE) -> 0 | P64: =M64*$P$2*VLOOKUP(DataByMiles!AE62,DataByMiles!$AT$5:$AU$6,2,FALSE) -> 0 | Q64: =DataByMiles!H62*VLOOKUP(DataByMiles!AE62,DataByMiles!$AT$5:$AU$6,2,FALSE) -> 0 | T64: =Q64*$T$2*VLOOKUP(DataByMiles!AE62,DataByMiles!$AT$5:$AU$6,2,FALSE) -> 0 | U64: =DataByMiles!I62*VLOOKUP(DataByMiles!AE62,DataByMiles!$AT$5:$AU$6,2,FALSE) -> 0 | X64: =U64*$X$2*VLOOKUP(DataByMiles!AE62,DataByMiles!$AT$5:$AU$6,2,FALSE) -> 0 | Y64: =DataByMiles!J62*VLOOKUP(DataByMiles!AE62,DataByMiles!$AT$5:$AU$6,2,FALSE) -> 0 | Z64: =DataByMiles!K62 -> 0 | AA64: =DataByMiles!L62 -> 0 | AD64: =(Y64/IF(Z64=0,$AD$1,Z64)*$AD$2)/IF(AA64=0,1,AA64)*VLOOKUP(DataByMiles!AE62,DataByMiles!$AT$5:$AU$6,2,FALSE) -> 0 | AF64: 0 | AG64: 0 | AH64: =(AF64+AG64)*VLOOKUP(DataByMiles!AE62,DataByMiles!$AT$5:$AU$6,2,FALSE) -> 0 | AI64: 0
B65: =DataByMiles!C63 -> ----59 | C65: =DataByMiles!E63*VLOOKUP(DataByMiles!AE63,DataByMiles!$AT$5:$AU$6,2,FALSE) -> 0 | F65: 0 | G65: =C65*$G$2*VLOOKUP(DataByMiles!AE63,DataByMiles!$AT$5:$AU$6,2,FALSE) -> 0 | H65: =DataByMiles!F63*VLOOKUP(DataByMiles!AE63,DataByMiles!$AT$5:$AU$6,2,FALSE) -> 0 | K65: 0 | L65: =H65*$L$2*VLOOKUP(DataByMiles!AE63,DataByMiles!$AT$5:$AU$6,2,FALSE) -> 0 | M65: =DataByMiles!G63*VLOOKUP(DataByMiles!AE63,DataByMiles!$AT$5:$AU$6,2,FALSE) -> 0 | P65: =M65*$P$2*VLOOKUP(DataByMiles!AE63,DataByMiles!$AT$5:$AU$6,2,FALSE) -> 0 | Q65: =DataByMiles!H63*VLOOKUP(DataByMiles!AE63,DataByMiles!$AT$5:$AU$6,2,FALSE) -> 0 | T65: =Q65*$T$2*VLOOKUP(DataByMiles!AE63,DataByMiles!$AT$5:$AU$6,2,FALSE) -> 0 | U65: =DataByMiles!I63*VLOOKUP(DataByMiles!AE63,DataByMiles!$AT$5:$AU$6,2,FALSE) -> 0 | X65: =U65*$X$2*VLOOKUP(DataByMiles!AE63,DataByMiles!$AT$5:$AU$6,2,FALSE) -> 0 | Y65: =DataByMiles!J63*VLOOKUP(DataByMiles!AE63,DataByMiles!$AT$5:$AU$6,2,FALSE) -> 0 | Z65: =DataByMiles!K63 -> 0 | AA65: =DataByMiles!L63 -> 0 | AD65: =(Y65/IF(Z65=0,$AD$1,Z65)*$AD$2)/IF(AA65=0,1,AA65)*VLOOKUP(DataByMiles!AE63,DataByMiles!$AT$5:$AU$6,2,FALSE) -> 0 | AF65: 0 | AG65: 0 | AH65: =(AF65+AG65)*VLOOKUP(DataByMiles!AE63,DataByMiles!$AT$5:$AU$6,2,FALSE) -> 0 | AI65: 0
B66: =DataByMiles!C64 -> ----60 | C66: =DataByMiles!E64*VLOOKUP(DataByMiles!AE64,DataByMiles!$AT$5:$AU$6,2,FALSE) -> 0 | F66: 0 | G66: =C66*$G$2*VLOOKUP(DataByMiles!AE64,DataByMiles!$AT$5:$AU$6,2,FALSE) -> 0 | H66: =DataByMiles!F64*VLOOKUP(DataByMiles!AE64,DataByMiles!$AT$5:$AU$6,2,FALSE) -> 0 | K66: 0 | L66: =H66*$L$2*VLOOKUP(DataByMiles!AE64,DataByMiles!$AT$5:$AU$6,2,FALSE) -> 0 | M66: =DataByMiles!G64*VLOOKUP(DataByMiles!AE64,DataByMiles!$AT$5:$AU$6,2,FALSE) -> 0 | P66: =M66*$P$2*VLOOKUP(DataByMiles!AE64,DataByMiles!$AT$5:$AU$6,2,FALSE) -> 0 | Q66: =DataByMiles!H64*VLOOKUP(DataByMiles!AE64,DataByMiles!$AT$5:$AU$6,2,FALSE) -> 0 | T66: =Q66*$T$2*VLOOKUP(DataByMiles!AE64,DataByMiles!$AT$5:$AU$6,2,FALSE) -> 0 | U66: =DataByMiles!I64*VLOOKUP(DataByMiles!AE64,DataByMiles!$AT$5:$AU$6,2,FALSE) -> 0 | X66: =U66*$X$2*VLOOKUP(DataByMiles!AE64,DataByMiles!$AT$5:$AU$6,2,FALSE) -> 0 | Y66: =DataByMiles!J64*VLOOKUP(DataByMiles!AE64,DataByMiles!$AT$5:$AU$6,2,FALSE) -> 0 | Z66: =DataByMiles!K64 -> 0 | AA66: =DataByMiles!L64 -> 0 | AD66: =(Y66/IF(Z66=0,$AD$1,Z66)*$AD$2)/IF(AA66=0,1,AA66)*VLOOKUP(DataByMiles!AE64,DataByMiles!$AT$5:$AU$6,2,FALSE) -> 0 | AF66: 0 | AG66: 0 | AH66: =(AF66+AG66)*VLOOKUP(DataByMiles!AE64,DataByMiles!$AT$5:$AU$6,2,FALSE) -> 0 | AI66: 0
B67: =DataByMiles!C65 -> ----61 | C67: =DataByMiles!E65*VLOOKUP(DataByMiles!AE65,DataByMiles!$AT$5:$AU$6,2,FALSE) -> 0 | F67: 0 | G67: =C67*$G$2*VLOOKUP(DataByMiles!AE65,DataByMiles!$AT$5:$AU$6,2,FALSE) -> 0 | H67: =DataByMiles!F65*VLOOKUP(DataByMiles!AE65,DataByMiles!$AT$5:$AU$6,2,FALSE) -> 0 | K67: 0 | L67: =H67*$L$2*VLOOKUP(DataByMiles!AE65,DataByMiles!$AT$5:$AU$6,2,FALSE) -> 0 | M67: =DataByMiles!G65*VLOOKUP(DataByMiles!AE65,DataByMiles!$AT$5:$AU$6,2,FALSE) -> 0 | P67: =M67*$P$2*VLOOKUP(DataByMiles!AE65,DataByMiles!$AT$5:$AU$6,2,FALSE) -> 0 | Q67: =DataByMiles!H65*VLOOKUP(DataByMiles!AE65,DataByMiles!$AT$5:$AU$6,2,FALSE) -> 0 | T67: =Q67*$T$2*VLOOKUP(DataByMiles!AE65,DataByMiles!$AT$5:$AU$6,2,FALSE) -> 0 | U67: =DataByMiles!I65*VLOOKUP(DataByMiles!AE65,DataByMiles!$AT$5:$AU$6,2,FALSE) -> 0 | X67: =U67*$X$2*VLOOKUP(DataByMiles!AE65,DataByMiles!$AT$5:$AU$6,2,FALSE) -> 0 | Y67: =DataByMiles!J65*VLOOKUP(DataByMiles!AE65,DataByMiles!$AT$5:$AU$6,2,FALSE) -> 0 | Z67: =DataByMiles!K65 -> 0 | AA67: =DataByMiles!L65 -> 0 | AD67: =(Y67/IF(Z67=0,$AD$1,Z67)*$AD$2)/IF(AA67=0,1,AA67)*VLOOKUP(DataByMiles!AE65,DataByMiles!$AT$5:$AU$6,2,FALSE) -> 0 | AF67: 0 | AG67: 0 | AH67: =(AF67+AG67)*VLOOKUP(DataByMiles!AE65,DataByMiles!$AT$5:$AU$6,2,FALSE) -> 0 | AI67: 0
B68: =DataByMiles!C66 -> ----62 | C68: =DataByMiles!E66*VLOOKUP(DataByMiles!AE66,DataByMiles!$AT$5:$AU$6,2,FALSE) -> 0 | F68: 0 | G68: =C68*$G$2*VLOOKUP(DataByMiles!AE66,DataByMiles!$AT$5:$AU$6,2,FALSE) -> 0 | H68: =DataByMiles!F66*VLOOKUP(DataByMiles!AE66,DataByMiles!$AT$5:$AU$6,2,FALSE) -> 0 | K68: 0 | L68: =H68*$L$2*VLOOKUP(DataByMiles!AE66,DataByMiles!$AT$5:$AU$6,2,FALSE) -> 0 | M68: =DataByMiles!G66*VLOOKUP(DataByMiles!AE66,DataByMiles!$AT$5:$AU$6,2,FALSE) -> 0 | P68: =M68*$P$2*VLOOKUP(DataByMiles!AE66,DataByMiles!$AT$5:$AU$6,2,FALSE) -> 0 | Q68: =DataByMiles!H66*VLOOKUP(DataByMiles!AE66,DataByMiles!$AT$5:$AU$6,2,FALSE) -> 0 | T68: =Q68*$T$2*VLOOKUP(DataByMiles!AE66,DataByMiles!$AT$5:$AU$6,2,FALSE) -> 0 | U68: =DataByMiles!I66*VLOOKUP(DataByMiles!AE66,DataByMiles!$AT$5:$AU$6,2,FALSE) -> 0 | X68: =U68*$X$2*VLOOKUP(DataByMiles!AE66,DataByMiles!$AT$5:$AU$6,2,FALSE) -> 0 | Y68: =DataByMiles!J66*VLOOKUP(DataByMiles!AE66,DataByMiles!$AT$5:$AU$6,2,FALSE) -> 0 | Z68: =DataByMiles!K66 -> 0 | AA68: =DataByMiles!L66 -> 0 | AD68: =(Y68/IF(Z68=0,$AD$1,Z68)*$AD$2)/IF(AA68=0,1,AA68)*VLOOKUP(DataByMiles!AE66,DataByMiles!$AT$5:$AU$6,2,FALSE) -> 0 | AF68: 0 | AG68: 0 | AH68: =(AF68+AG68)*VLOOKUP(DataByMiles!AE66,DataByMiles!$AT$5:$AU$6,2,FALSE) -> 0 | AI68: 0
B69: =DataByMiles!C67 -> ----63 | C69: =DataByMiles!E67*VLOOKUP(DataByMiles!AE67,DataByMiles!$AT$5:$AU$6,2,FALSE) -> 0 | F69: 0 | G69: =C69*$G$2*VLOOKUP(DataByMiles!AE67,DataByMiles!$AT$5:$AU$6,2,FALSE) -> 0 | H69: =DataByMiles!F67*VLOOKUP(DataByMiles!AE67,DataByMiles!$AT$5:$AU$6,2,FALSE) -> 0 | K69: 0 | L69: =H69*$L$2*VLOOKUP(DataByMiles!AE67,DataByMiles!$AT$5:$AU$6,2,FALSE) -> 0 | M69: =DataByMiles!G67*VLOOKUP(DataByMiles!AE67,DataByMiles!$AT$5:$AU$6,2,FALSE) -> 0 | P69: =M69*$P$2*VLOOKUP(DataByMiles!AE67,DataByMiles!$AT$5:$AU$6,2,FALSE) -> 0 | Q69: =DataByMiles!H67*VLOOKUP(DataByMiles!AE67,DataByMiles!$AT$5:$AU$6,2,FALSE) -> 0 | T69: =Q69*$T$2*VLOOKUP(DataByMiles!AE67,DataByMiles!$AT$5:$AU$6,2,FALSE) -> 0 | U69: =DataByMiles!I67*VLOOKUP(DataByMiles!AE67,DataByMiles!$AT$5:$AU$6,2,FALSE) -> 0 | X69: =U69*$X$2*VLOOKUP(DataByMiles!AE67,DataByMiles!$AT$5:$AU$6,2,FALSE) -> 0 | Y69: =DataByMiles!J67*VLOOKUP(DataByMiles!AE67,DataByMiles!$AT$5:$AU$6,2,FALSE) -> 0 | Z69: =DataByMiles!K67 -> 0 | AA69: =DataByMiles!L67 -> 0 | AD69: =(Y69/IF(Z69=0,$AD$1,Z69)*$AD$2)/IF(AA69=0,1,AA69)*VLOOKUP(DataByMiles!AE67,DataByMiles!$AT$5:$AU$6,2,FALSE) -> 0 | AF69: 0 | AG69: 0 | AH69: =(AF69+AG69)*VLOOKUP(DataByMiles!AE67,DataByMiles!$AT$5:$AU$6,2,FALSE) -> 0 | AI69: 0
B70: =DataByMiles!C68 -> ----64 | C70: =DataByMiles!E68*VLOOKUP(DataByMiles!AE68,DataByMiles!$AT$5:$AU$6,2,FALSE) -> 0 | F70: 0 | G70: =C70*$G$2*VLOOKUP(DataByMiles!AE68,DataByMiles!$AT$5:$AU$6,2,FALSE) -> 0 | H70: =DataByMiles!F68*VLOOKUP(DataByMiles!AE68,DataByMiles!$AT$5:$AU$6,2,FALSE) -> 0 | K70: 0 | L70: =H70*$L$2*VLOOKUP(DataByMiles!AE68,DataByMiles!$AT$5:$AU$6,2,FALSE) -> 0 | M70: =DataByMiles!G68*VLOOKUP(DataByMiles!AE68,DataByMiles!$AT$5:$AU$6,2,FALSE) -> 0 | P70: =M70*$P$2*VLOOKUP(DataByMiles!AE68,DataByMiles!$AT$5:$AU$6,2,FALSE) -> 0 | Q70: =DataByMiles!H68*VLOOKUP(DataByMiles!AE68,DataByMiles!$AT$5:$AU$6,2,FALSE) -> 0 | T70: =Q70*$T$2*VLOOKUP(DataByMiles!AE68,DataByMiles!$AT$5:$AU$6,2,FALSE) -> 0 | U70: =DataByMiles!I68*VLOOKUP(DataByMiles!AE68,DataByMiles!$AT$5:$AU$6,2,FALSE) -> 0 | X70: =U70*$X$2*VLOOKUP(DataByMiles!AE68,DataByMiles!$AT$5:$AU$6,2,FALSE) -> 0 | Y70: =DataByMiles!J68*VLOOKUP(DataByMiles!AE68,DataByMiles!$AT$5:$AU$6,2,FALSE) -> 0 | Z70: =DataByMiles!K68 -> 0 | AA70: =DataByMiles!L68 -> 0 | AD70: =(Y70/IF(Z70=0,$AD$1,Z70)*$AD$2)/IF(AA70=0,1,AA70)*VLOOKUP(DataByMiles!AE68,DataByMiles!$AT$5:$AU$6,2,FALSE) -> 0 | AF70: 0 | AG70: 0 | AH70: =(AF70+AG70)*VLOOKUP(DataByMiles!AE68,DataByMiles!$AT$5:$AU$6,2,FALSE) -> 0 | AI70: 0
B71: =DataByMiles!C69 -> ----65 | C71: =DataByMiles!E69*VLOOKUP(DataByMiles!AE69,DataByMiles!$AT$5:$AU$6,2,FALSE) -> 0 | F71: 0 | G71: =C71*$G$2*VLOOKUP(DataByMiles!AE69,DataByMiles!$AT$5:$AU$6,2,FALSE) -> 0 | H71: =DataByMiles!F69*VLOOKUP(DataByMiles!AE69,DataByMiles!$AT$5:$AU$6,2,FALSE) -> 0 | K71: 0 | L71: =H71*$L$2*VLOOKUP(DataByMiles!AE69,DataByMiles!$AT$5:$AU$6,2,FALSE) -> 0 | M71: =DataByMiles!G69*VLOOKUP(DataByMiles!AE69,DataByMiles!$AT$5:$AU$6,2,FALSE) -> 0 | P71: =M71*$P$2*VLOOKUP(DataByMiles!AE69,DataByMiles!$AT$5:$AU$6,2,FALSE) -> 0 | Q71: =DataByMiles!H69*VLOOKUP(DataByMiles!AE69,DataByMiles!$AT$5:$AU$6,2,FALSE) -> 0 | T71: =Q71*$T$2*VLOOKUP(DataByMiles!AE69,DataByMiles!$AT$5:$AU$6,2,FALSE) -> 0 | U71: =DataByMiles!I69*VLOOKUP(DataByMiles!AE69,DataByMiles!$AT$5:$AU$6,2,FALSE) -> 0 | X71: =U71*$X$2*VLOOKUP(DataByMiles!AE69,DataByMiles!$AT$5:$AU$6,2,FALSE) -> 0 | Y71: =DataByMiles!J69*VLOOKUP(DataByMiles!AE69,DataByMiles!$AT$5:$AU$6,2,FALSE) -> 0 | Z71: =DataByMiles!K69 -> 0 | AA71: =DataByMiles!L69 -> 0 | AD71: =(Y71/IF(Z71=0,$AD$1,Z71)*$AD$2)/IF(AA71=0,1,AA71)*VLOOKUP(DataByMiles!AE69,DataByMiles!$AT$5:$AU$6,2,FALSE) -> 0 | AF71: 0 | AG71: 0 | AH71: =(AF71+AG71)*VLOOKUP(DataByMiles!AE69,DataByMiles!$AT$5:$AU$6,2,FALSE) -> 0 | AI71: 0
B72: =DataByMiles!C70 -> ----66 | C72: =DataByMiles!E70*VLOOKUP(DataByMiles!AE70,DataByMiles!$AT$5:$AU$6,2,FALSE) -> 0 | F72: 0 | G72: =C72*$G$2*VLOOKUP(DataByMiles!AE70,DataByMiles!$AT$5:$AU$6,2,FALSE) -> 0 | H72: =DataByMiles!F70*VLOOKUP(DataByMiles!AE70,DataByMiles!$AT$5:$AU$6,2,FALSE) -> 0 | K72: 0 | L72: =H72*$L$2*VLOOKUP(DataByMiles!AE70,DataByMiles!$AT$5:$AU$6,2,FALSE) -> 0 | M72: =DataByMiles!G70*VLOOKUP(DataByMiles!AE70,DataByMiles!$AT$5:$AU$6,2,FALSE) -> 0 | P72: =M72*$P$2*VLOOKUP(DataByMiles!AE70,DataByMiles!$AT$5:$AU$6,2,FALSE) -> 0 | Q72: =DataByMiles!H70*VLOOKUP(DataByMiles!AE70,DataByMiles!$AT$5:$AU$6,2,FALSE) -> 0 | T72: =Q72*$T$2*VLOOKUP(DataByMiles!AE70,DataByMiles!$AT$5:$AU$6,2,FALSE) -> 0 | U72: =DataByMiles!I70*VLOOKUP(DataByMiles!AE70,DataByMiles!$AT$5:$AU$6,2,FALSE) -> 0 | X72: =U72*$X$2*VLOOKUP(DataByMiles!AE70,DataByMiles!$AT$5:$AU$6,2,FALSE) -> 0 | Y72: =DataByMiles!J70*VLOOKUP(DataByMiles!AE70,DataByMiles!$AT$5:$AU$6,2,FALSE) -> 0 | Z72: =DataByMiles!K70 -> 0 | AA72: =DataByMiles!L70 -> 0 | AD72: =(Y72/IF(Z72=0,$AD$1,Z72)*$AD$2)/IF(AA72=0,1,AA72)*VLOOKUP(DataByMiles!AE70,DataByMiles!$AT$5:$AU$6,2,FALSE) -> 0 | AF72: 0 | AG72: 0 | AH72: =(AF72+AG72)*VLOOKUP(DataByMiles!AE70,DataByMiles!$AT$5:$AU$6,2,FALSE) -> 0 | AI72: 0
B73: =DataByMiles!C71 -> ----67 | C73: =DataByMiles!E71*VLOOKUP(DataByMiles!AE71,DataByMiles!$AT$5:$AU$6,2,FALSE) -> 0 | F73: 0 | G73: =C73*$G$2*VLOOKUP(DataByMiles!AE71,DataByMiles!$AT$5:$AU$6,2,FALSE) -> 0 | H73: =DataByMiles!F71*VLOOKUP(DataByMiles!AE71,DataByMiles!$AT$5:$AU$6,2,FALSE) -> 0 | K73: 0 | L73: =H73*$L$2*VLOOKUP(DataByMiles!AE71,DataByMiles!$AT$5:$AU$6,2,FALSE) -> 0 | M73: =DataByMiles!G71*VLOOKUP(DataByMiles!AE71,DataByMiles!$AT$5:$AU$6,2,FALSE) -> 0 | P73: =M73*$P$2*VLOOKUP(DataByMiles!AE71,DataByMiles!$AT$5:$AU$6,2,FALSE) -> 0 | Q73: =DataByMiles!H71*VLOOKUP(DataByMiles!AE71,DataByMiles!$AT$5:$AU$6,2,FALSE) -> 0 | T73: =Q73*$T$2*VLOOKUP(DataByMiles!AE71,DataByMiles!$AT$5:$AU$6,2,FALSE) -> 0 | U73: =DataByMiles!I71*VLOOKUP(DataByMiles!AE71,DataByMiles!$AT$5:$AU$6,2,FALSE) -> 0 | X73: =U73*$X$2*VLOOKUP(DataByMiles!AE71,DataByMiles!$AT$5:$AU$6,2,FALSE) -> 0 | Y73: =DataByMiles!J71*VLOOKUP(DataByMiles!AE71,DataByMiles!$AT$5:$AU$6,2,FALSE) -> 0 | Z73: =DataByMiles!K71 -> 0 | AA73: =DataByMiles!L71 -> 0 | AD73: =(Y73/IF(Z73=0,$AD$1,Z73)*$AD$2)/IF(AA73=0,1,AA73)*VLOOKUP(DataByMiles!AE71,DataByMiles!$AT$5:$AU$6,2,FALSE) -> 0 | AF73: 0 | AG73: 0 | AH73: =(AF73+AG73)*VLOOKUP(DataByMiles!AE71,DataByMiles!$AT$5:$AU$6,2,FALSE) -> 0 | AI73: 0
B74: =DataByMiles!C72 -> ----68 | C74: =DataByMiles!E72*VLOOKUP(DataByMiles!AE72,DataByMiles!$AT$5:$AU$6,2,FALSE) -> 0 | F74: 0 | G74: =C74*$G$2*VLOOKUP(DataByMiles!AE72,DataByMiles!$AT$5:$AU$6,2,FALSE) -> 0 | H74: =DataByMiles!F72*VLOOKUP(DataByMiles!AE72,DataByMiles!$AT$5:$AU$6,2,FALSE) -> 0 | K74: 0 | L74: =H74*$L$2*VLOOKUP(DataByMiles!AE72,DataByMiles!$AT$5:$AU$6,2,FALSE) -> 0 | M74: =DataByMiles!G72*VLOOKUP(DataByMiles!AE72,DataByMiles!$AT$5:$AU$6,2,FALSE) -> 0 | P74: =M74*$P$2*VLOOKUP(DataByMiles!AE72,DataByMiles!$AT$5:$AU$6,2,FALSE) -> 0 | Q74: =DataByMiles!H72*VLOOKUP(DataByMiles!AE72,DataByMiles!$AT$5:$AU$6,2,FALSE) -> 0 | T74: =Q74*$T$2*VLOOKUP(DataByMiles!AE72,DataByMiles!$AT$5:$AU$6,2,FALSE) -> 0 | U74: =DataByMiles!I72*VLOOKUP(DataByMiles!AE72,DataByMiles!$AT$5:$AU$6,2,FALSE) -> 0 | X74: =U74*$X$2*VLOOKUP(DataByMiles!AE72,DataByMiles!$AT$5:$AU$6,2,FALSE) -> 0 | Y74: =DataByMiles!J72*VLOOKUP(DataByMiles!AE72,DataByMiles!$AT$5:$AU$6,2,FALSE) -> 0 | Z74: =DataByMiles!K72 -> 0 | AA74: =DataByMiles!L72 -> 0 | AD74: =(Y74/IF(Z74=0,$AD$1,Z74)*$AD$2)/IF(AA74=0,1,AA74)*VLOOKUP(DataByMiles!AE72,DataByMiles!$AT$5:$AU$6,2,FALSE) -> 0 | AF74: 0 | AG74: 0 | AH74: =(AF74+AG74)*VLOOKUP(DataByMiles!AE72,DataByMiles!$AT$5:$AU$6,2,FALSE) -> 0 | AI74: 0
B75: =DataByMiles!C73 -> ----69 | C75: =DataByMiles!E73*VLOOKUP(DataByMiles!AE73,DataByMiles!$AT$5:$AU$6,2,FALSE) -> 0 | F75: 0 | G75: =C75*$G$2*VLOOKUP(DataByMiles!AE73,DataByMiles!$AT$5:$AU$6,2,FALSE) -> 0 | H75: =DataByMiles!F73*VLOOKUP(DataByMiles!AE73,DataByMiles!$AT$5:$AU$6,2,FALSE) -> 0 | K75: 0 | L75: =H75*$L$2*VLOOKUP(DataByMiles!AE73,DataByMiles!$AT$5:$AU$6,2,FALSE) -> 0 | M75: =DataByMiles!G73*VLOOKUP(DataByMiles!AE73,DataByMiles!$AT$5:$AU$6,2,FALSE) -> 0 | P75: =M75*$P$2*VLOOKUP(DataByMiles!AE73,DataByMiles!$AT$5:$AU$6,2,FALSE) -> 0 | Q75: =DataByMiles!H73*VLOOKUP(DataByMiles!AE73,DataByMiles!$AT$5:$AU$6,2,FALSE) -> 0 | T75: =Q75*$T$2*VLOOKUP(DataByMiles!AE73,DataByMiles!$AT$5:$AU$6,2,FALSE) -> 0 | U75: =DataByMiles!I73*VLOOKUP(DataByMiles!AE73,DataByMiles!$AT$5:$AU$6,2,FALSE) -> 0 | X75: =U75*$X$2*VLOOKUP(DataByMiles!AE73,DataByMiles!$AT$5:$AU$6,2,FALSE) -> 0 | Y75: =DataByMiles!J73*VLOOKUP(DataByMiles!AE73,DataByMiles!$AT$5:$AU$6,2,FALSE) -> 0 | Z75: =DataByMiles!K73 -> 0 | AA75: =DataByMiles!L73 -> 0 | AD75: =(Y75/IF(Z75=0,$AD$1,Z75)*$AD$2)/IF(AA75=0,1,AA75)*VLOOKUP(DataByMiles!AE73,DataByMiles!$AT$5:$AU$6,2,FALSE) -> 0 | AF75: 0 | AG75: 0 | AH75: =(AF75+AG75)*VLOOKUP(DataByMiles!AE73,DataByMiles!$AT$5:$AU$6,2,FALSE) -> 0 | AI75: 0
B76: =DataByMiles!C74 -> ----70 | C76: =DataByMiles!E74*VLOOKUP(DataByMiles!AE74,DataByMiles!$AT$5:$AU$6,2,FALSE) -> 0 | F76: 0 | G76: =C76*$G$2*VLOOKUP(DataByMiles!AE74,DataByMiles!$AT$5:$AU$6,2,FALSE) -> 0 | H76: =DataByMiles!F74*VLOOKUP(DataByMiles!AE74,DataByMiles!$AT$5:$AU$6,2,FALSE) -> 0 | K76: 0 | L76: =H76*$L$2*VLOOKUP(DataByMiles!AE74,DataByMiles!$AT$5:$AU$6,2,FALSE) -> 0 | M76: =DataByMiles!G74*VLOOKUP(DataByMiles!AE74,DataByMiles!$AT$5:$AU$6,2,FALSE) -> 0 | P76: =M76*$P$2*VLOOKUP(DataByMiles!AE74,DataByMiles!$AT$5:$AU$6,2,FALSE) -> 0 | Q76: =DataByMiles!H74*VLOOKUP(DataByMiles!AE74,DataByMiles!$AT$5:$AU$6,2,FALSE) -> 0 | T76: =Q76*$T$2*VLOOKUP(DataByMiles!AE74,DataByMiles!$AT$5:$AU$6,2,FALSE) -> 0 | U76: =DataByMiles!I74*VLOOKUP(DataByMiles!AE74,DataByMiles!$AT$5:$AU$6,2,FALSE) -> 0 | X76: =U76*$X$2*VLOOKUP(DataByMiles!AE74,DataByMiles!$AT$5:$AU$6,2,FALSE) -> 0 | Y76: =DataByMiles!J74*VLOOKUP(DataByMiles!AE74,DataByMiles!$AT$5:$AU$6,2,FALSE) -> 0 | Z76: =DataByMiles!K74 -> 0 | AA76: =DataByMiles!L74 -> 0 | AD76: =(Y76/IF(Z76=0,$AD$1,Z76)*$AD$2)/IF(AA76=0,1,AA76)*VLOOKUP(DataByMiles!AE74,DataByMiles!$AT$5:$AU$6,2,FALSE) -> 0 | AF76: 0 | AG76: 0 | AH76: =(AF76+AG76)*VLOOKUP(DataByMiles!AE74,DataByMiles!$AT$5:$AU$6,2,FALSE) -> 0 | AI76: 0
B77: =DataByMiles!C75 -> ----71 | C77: =DataByMiles!E75*VLOOKUP(DataByMiles!AE75,DataByMiles!$AT$5:$AU$6,2,FALSE) -> 0 | F77: 0 | G77: =C77*$G$2*VLOOKUP(DataByMiles!AE75,DataByMiles!$AT$5:$AU$6,2,FALSE) -> 0 | H77: =DataByMiles!F75*VLOOKUP(DataByMiles!AE75,DataByMiles!$AT$5:$AU$6,2,FALSE) -> 0 | K77: 0 | L77: =H77*$L$2*VLOOKUP(DataByMiles!AE75,DataByMiles!$AT$5:$AU$6,2,FALSE) -> 0 | M77: =DataByMiles!G75*VLOOKUP(DataByMiles!AE75,DataByMiles!$AT$5:$AU$6,2,FALSE) -> 0 | P77: =M77*$P$2*VLOOKUP(DataByMiles!AE75,DataByMiles!$AT$5:$AU$6,2,FALSE) -> 0 | Q77: =DataByMiles!H75*VLOOKUP(DataByMiles!AE75,DataByMiles!$AT$5:$AU$6,2,FALSE) -> 0 | T77: =Q77*$T$2*VLOOKUP(DataByMiles!AE75,DataByMiles!$AT$5:$AU$6,2,FALSE) -> 0 | U77: =DataByMiles!I75*VLOOKUP(DataByMiles!AE75,DataByMiles!$AT$5:$AU$6,2,FALSE) -> 0 | X77: =U77*$X$2*VLOOKUP(DataByMiles!AE75,DataByMiles!$AT$5:$AU$6,2,FALSE) -> 0 | Y77: =DataByMiles!J75*VLOOKUP(DataByMiles!AE75,DataByMiles!$AT$5:$AU$6,2,FALSE) -> 0 | Z77: =DataByMiles!K75 -> 0 | AA77: =DataByMiles!L75 -> 0 | AD77: =(Y77/IF(Z77=0,$AD$1,Z77)*$AD$2)/IF(AA77=0,1,AA77)*VLOOKUP(DataByMiles!AE75,DataByMiles!$AT$5:$AU$6,2,FALSE) -> 0 | AF77: 0 | AG77: 0 | AH77: =(AF77+AG77)*VLOOKUP(DataByMiles!AE75,DataByMiles!$AT$5:$AU$6,2,FALSE) -> 0 | AI77: 0
B78: =DataByMiles!C76 -> ----72 | C78: =DataByMiles!E76*VLOOKUP(DataByMiles!AE76,DataByMiles!$AT$5:$AU$6,2,FALSE) -> 0 | F78: 0 | G78: =C78*$G$2*VLOOKUP(DataByMiles!AE76,DataByMiles!$AT$5:$AU$6,2,FALSE) -> 0 | H78: =DataByMiles!F76*VLOOKUP(DataByMiles!AE76,DataByMiles!$AT$5:$AU$6,2,FALSE) -> 0 | K78: 0 | L78: =H78*$L$2*VLOOKUP(DataByMiles!AE76,DataByMiles!$AT$5:$AU$6,2,FALSE) -> 0 | M78: =DataByMiles!G76*VLOOKUP(DataByMiles!AE76,DataByMiles!$AT$5:$AU$6,2,FALSE) -> 0 | P78: =M78*$P$2*VLOOKUP(DataByMiles!AE76,DataByMiles!$AT$5:$AU$6,2,FALSE) -> 0 | Q78: =DataByMiles!H76*VLOOKUP(DataByMiles!AE76,DataByMiles!$AT$5:$AU$6,2,FALSE) -> 0 | T78: =Q78*$T$2*VLOOKUP(DataByMiles!AE76,DataByMiles!$AT$5:$AU$6,2,FALSE) -> 0 | U78: =DataByMiles!I76*VLOOKUP(DataByMiles!AE76,DataByMiles!$AT$5:$AU$6,2,FALSE) -> 0 | X78: =U78*$X$2*VLOOKUP(DataByMiles!AE76,DataByMiles!$AT$5:$AU$6,2,FALSE) -> 0 | Y78: =DataByMiles!J76*VLOOKUP(DataByMiles!AE76,DataByMiles!$AT$5:$AU$6,2,FALSE) -> 0 | Z78: =DataByMiles!K76 -> 0 | AA78: =DataByMiles!L76 -> 0 | AD78: =(Y78/IF(Z78=0,$AD$1,Z78)*$AD$2)/IF(AA78=0,1,AA78)*VLOOKUP(DataByMiles!AE76,DataByMiles!$AT$5:$AU$6,2,FALSE) -> 0 | AF78: 0 | AG78: 0 | AH78: =(AF78+AG78)*VLOOKUP(DataByMiles!AE76,DataByMiles!$AT$5:$AU$6,2,FALSE) -> 0 | AI78: 0
B79: =DataByMiles!C77 -> ----73 | C79: =DataByMiles!E77*VLOOKUP(DataByMiles!AE77,DataByMiles!$AT$5:$AU$6,2,FALSE) -> 0 | F79: 0 | G79: =C79*$G$2*VLOOKUP(DataByMiles!AE77,DataByMiles!$AT$5:$AU$6,2,FALSE) -> 0 | H79: =DataByMiles!F77*VLOOKUP(DataByMiles!AE77,DataByMiles!$AT$5:$AU$6,2,FALSE) -> 0 | K79: 0 | L79: =H79*$L$2*VLOOKUP(DataByMiles!AE77,DataByMiles!$AT$5:$AU$6,2,FALSE) -> 0 | M79: =DataByMiles!G77*VLOOKUP(DataByMiles!AE77,DataByMiles!$AT$5:$AU$6,2,FALSE) -> 0 | P79: =M79*$P$2*VLOOKUP(DataByMiles!AE77,DataByMiles!$AT$5:$AU$6,2,FALSE) -> 0 | Q79: =DataByMiles!H77*VLOOKUP(DataByMiles!AE77,DataByMiles!$AT$5:$AU$6,2,FALSE) -> 0 | T79: =Q79*$T$2*VLOOKUP(DataByMiles!AE77,DataByMiles!$AT$5:$AU$6,2,FALSE) -> 0 | U79: =DataByMiles!I77*VLOOKUP(DataByMiles!AE77,DataByMiles!$AT$5:$AU$6,2,FALSE) -> 0 | X79: =U79*$X$2*VLOOKUP(DataByMiles!AE77,DataByMiles!$AT$5:$AU$6,2,FALSE) -> 0 | Y79: =DataByMiles!J77*VLOOKUP(DataByMiles!AE77,DataByMiles!$AT$5:$AU$6,2,FALSE) -> 0 | Z79: =DataByMiles!K77 -> 0 | AA79: =DataByMiles!L77 -> 0 | AD79: =(Y79/IF(Z79=0,$AD$1,Z79)*$AD$2)/IF(AA79=0,1,AA79)*VLOOKUP(DataByMiles!AE77,DataByMiles!$AT$5:$AU$6,2,FALSE) -> 0 | AF79: 0 | AG79: 0 | AH79: =(AF79+AG79)*VLOOKUP(DataByMiles!AE77,DataByMiles!$AT$5:$AU$6,2,FALSE) -> 0 | AI79: 0
B80: =DataByMiles!C78 -> ----74 | C80: =DataByMiles!E78*VLOOKUP(DataByMiles!AE78,DataByMiles!$AT$5:$AU$6,2,FALSE) -> 0 | F80: 0 | G80: =C80*$G$2*VLOOKUP(DataByMiles!AE78,DataByMiles!$AT$5:$AU$6,2,FALSE) -> 0 | H80: =DataByMiles!F78*VLOOKUP(DataByMiles!AE78,DataByMiles!$AT$5:$AU$6,2,FALSE) -> 0 | K80: 0 | L80: =H80*$L$2*VLOOKUP(DataByMiles!AE78,DataByMiles!$AT$5:$AU$6,2,FALSE) -> 0 | M80: =DataByMiles!G78*VLOOKUP(DataByMiles!AE78,DataByMiles!$AT$5:$AU$6,2,FALSE) -> 0 | P80: =M80*$P$2*VLOOKUP(DataByMiles!AE78,DataByMiles!$AT$5:$AU$6,2,FALSE) -> 0 | Q80: =DataByMiles!H78*VLOOKUP(DataByMiles!AE78,DataByMiles!$AT$5:$AU$6,2,FALSE) -> 0 | T80: =Q80*$T$2*VLOOKUP(DataByMiles!AE78,DataByMiles!$AT$5:$AU$6,2,FALSE) -> 0 | U80: =DataByMiles!I78*VLOOKUP(DataByMiles!AE78,DataByMiles!$AT$5:$AU$6,2,FALSE) -> 0 | X80: =U80*$X$2*VLOOKUP(DataByMiles!AE78,DataByMiles!$AT$5:$AU$6,2,FALSE) -> 0 | Y80: =DataByMiles!J78*VLOOKUP(DataByMiles!AE78,DataByMiles!$AT$5:$AU$6,2,FALSE) -> 0 | Z80: =DataByMiles!K78 -> 0 | AA80: =DataByMiles!L78 -> 0 | AD80: =(Y80/IF(Z80=0,$AD$1,Z80)*$AD$2)/IF(AA80=0,1,AA80)*VLOOKUP(DataByMiles!AE78,DataByMiles!$AT$5:$AU$6,2,FALSE) -> 0 | AF80: 0 | AG80: 0 | AH80: =(AF80+AG80)*VLOOKUP(DataByMiles!AE78,DataByMiles!$AT$5:$AU$6,2,FALSE) -> 0 | AI80: 0
B81: =DataByMiles!C79 -> ----75 | C81: =DataByMiles!E79*VLOOKUP(DataByMiles!AE79,DataByMiles!$AT$5:$AU$6,2,FALSE) -> 0 | F81: 0 | G81: =C81*$G$2*VLOOKUP(DataByMiles!AE79,DataByMiles!$AT$5:$AU$6,2,FALSE) -> 0 | H81: =DataByMiles!F79*VLOOKUP(DataByMiles!AE79,DataByMiles!$AT$5:$AU$6,2,FALSE) -> 0 | K81: 0 | L81: =H81*$L$2*VLOOKUP(DataByMiles!AE79,DataByMiles!$AT$5:$AU$6,2,FALSE) -> 0 | M81: =DataByMiles!G79*VLOOKUP(DataByMiles!AE79,DataByMiles!$AT$5:$AU$6,2,FALSE) -> 0 | P81: =M81*$P$2*VLOOKUP(DataByMiles!AE79,DataByMiles!$AT$5:$AU$6,2,FALSE) -> 0 | Q81: =DataByMiles!H79*VLOOKUP(DataByMiles!AE79,DataByMiles!$AT$5:$AU$6,2,FALSE) -> 0 | T81: =Q81*$T$2*VLOOKUP(DataByMiles!AE79,DataByMiles!$AT$5:$AU$6,2,FALSE) -> 0 | U81: =DataByMiles!I79*VLOOKUP(DataByMiles!AE79,DataByMiles!$AT$5:$AU$6,2,FALSE) -> 0 | X81: =U81*$X$2*VLOOKUP(DataByMiles!AE79,DataByMiles!$AT$5:$AU$6,2,FALSE) -> 0 | Y81: =DataByMiles!J79*VLOOKUP(DataByMiles!AE79,DataByMiles!$AT$5:$AU$6,2,FALSE) -> 0 | Z81: =DataByMiles!K79 -> 0 | AA81: =DataByMiles!L79 -> 0 | AD81: =(Y81/IF(Z81=0,$AD$1,Z81)*$AD$2)/IF(AA81=0,1,AA81)*VLOOKUP(DataByMiles!AE79,DataByMiles!$AT$5:$AU$6,2,FALSE) -> 0 | AF81: 0 | AG81: 0 | AH81: =(AF81+AG81)*VLOOKUP(DataByMiles!AE79,DataByMiles!$AT$5:$AU$6,2,FALSE) -> 0 | AI81: 0
B82: =DataByMiles!C80 -> ----76 | C82: =DataByMiles!E80*VLOOKUP(DataByMiles!AE80,DataByMiles!$AT$5:$AU$6,2,FALSE) -> 0 | F82: 0 | G82: =C82*$G$2*VLOOKUP(DataByMiles!AE80,DataByMiles!$AT$5:$AU$6,2,FALSE) -> 0 | H82: =DataByMiles!F80*VLOOKUP(DataByMiles!AE80,DataByMiles!$AT$5:$AU$6,2,FALSE) -> 0 | K82: 0 | L82: =H82*$L$2*VLOOKUP(DataByMiles!AE80,DataByMiles!$AT$5:$AU$6,2,FALSE) -> 0 | M82: =DataByMiles!G80*VLOOKUP(DataByMiles!AE80,DataByMiles!$AT$5:$AU$6,2,FALSE) -> 0 | P82: =M82*$P$2*VLOOKUP(DataByMiles!AE80,DataByMiles!$AT$5:$AU$6,2,FALSE) -> 0 | Q82: =DataByMiles!H80*VLOOKUP(DataByMiles!AE80,DataByMiles!$AT$5:$AU$6,2,FALSE) -> 0 | T82: =Q82*$T$2*VLOOKUP(DataByMiles!AE80,DataByMiles!$AT$5:$AU$6,2,FALSE) -> 0 | U82: =DataByMiles!I80*VLOOKUP(DataByMiles!AE80,DataByMiles!$AT$5:$AU$6,2,FALSE) -> 0 | X82: =U82*$X$2*VLOOKUP(DataByMiles!AE80,DataByMiles!$AT$5:$AU$6,2,FALSE) -> 0 | Y82: =DataByMiles!J80*VLOOKUP(DataByMiles!AE80,DataByMiles!$AT$5:$AU$6,2,FALSE) -> 0 | Z82: =DataByMiles!K80 -> 0 | AA82: =DataByMiles!L80 -> 0 | AD82: =(Y82/IF(Z82=0,$AD$1,Z82)*$AD$2)/IF(AA82=0,1,AA82)*VLOOKUP(DataByMiles!AE80,DataByMiles!$AT$5:$AU$6,2,FALSE) -> 0 | AF82: 0 | AG82: 0 | AH82: =(AF82+AG82)*VLOOKUP(DataByMiles!AE80,DataByMiles!$AT$5:$AU$6,2,FALSE) -> 0 | AI82: 0
B83: =DataByMiles!C81 -> ----77 | C83: =DataByMiles!E81*VLOOKUP(DataByMiles!AE81,DataByMiles!$AT$5:$AU$6,2,FALSE) -> 0 | F83: 0 | G83: =C83*$G$2*VLOOKUP(DataByMiles!AE81,DataByMiles!$AT$5:$AU$6,2,FALSE) -> 0 | H83: =DataByMiles!F81*VLOOKUP(DataByMiles!AE81,DataByMiles!$AT$5:$AU$6,2,FALSE) -> 0 | K83: 0 | L83: =H83*$L$2*VLOOKUP(DataByMiles!AE81,DataByMiles!$AT$5:$AU$6,2,FALSE) -> 0 | M83: =DataByMiles!G81*VLOOKUP(DataByMiles!AE81,DataByMiles!$AT$5:$AU$6,2,FALSE) -> 0 | P83: =M83*$P$2*VLOOKUP(DataByMiles!AE81,DataByMiles!$AT$5:$AU$6,2,FALSE) -> 0 | Q83: =DataByMiles!H81*VLOOKUP(DataByMiles!AE81,DataByMiles!$AT$5:$AU$6,2,FALSE) -> 0 | T83: =Q83*$T$2*VLOOKUP(DataByMiles!AE81,DataByMiles!$AT$5:$AU$6,2,FALSE) -> 0 | U83: =DataByMiles!I81*VLOOKUP(DataByMiles!AE81,DataByMiles!$AT$5:$AU$6,2,FALSE) -> 0 | X83: =U83*$X$2*VLOOKUP(DataByMiles!AE81,DataByMiles!$AT$5:$AU$6,2,FALSE) -> 0 | Y83: =DataByMiles!J81*VLOOKUP(DataByMiles!AE81,DataByMiles!$AT$5:$AU$6,2,FALSE) -> 0 | Z83: =DataByMiles!K81 -> 0 | AA83: =DataByMiles!L81 -> 0 | AD83: =(Y83/IF(Z83=0,$AD$1,Z83)*$AD$2)/IF(AA83=0,1,AA83)*VLOOKUP(DataByMiles!AE81,DataByMiles!$AT$5:$AU$6,2,FALSE) -> 0 | AF83: 0 | AG83: 0 | AH83: =(AF83+AG83)*VLOOKUP(DataByMiles!AE81,DataByMiles!$AT$5:$AU$6,2,FALSE) -> 0 | AI83: 0
B84: =DataByMiles!C82 -> ----78 | C84: =DataByMiles!E82*VLOOKUP(DataByMiles!AE82,DataByMiles!$AT$5:$AU$6,2,FALSE) -> 0 | F84: 0 | G84: =C84*$G$2*VLOOKUP(DataByMiles!AE82,DataByMiles!$AT$5:$AU$6,2,FALSE) -> 0 | H84: =DataByMiles!F82*VLOOKUP(DataByMiles!AE82,DataByMiles!$AT$5:$AU$6,2,FALSE) -> 0 | K84: 0 | L84: =H84*$L$2*VLOOKUP(DataByMiles!AE82,DataByMiles!$AT$5:$AU$6,2,FALSE) -> 0 | M84: =DataByMiles!G82*VLOOKUP(DataByMiles!AE82,DataByMiles!$AT$5:$AU$6,2,FALSE) -> 0 | P84: =M84*$P$2*VLOOKUP(DataByMiles!AE82,DataByMiles!$AT$5:$AU$6,2,FALSE) -> 0 | Q84: =DataByMiles!H82*VLOOKUP(DataByMiles!AE82,DataByMiles!$AT$5:$AU$6,2,FALSE) -> 0 | T84: =Q84*$T$2*VLOOKUP(DataByMiles!AE82,DataByMiles!$AT$5:$AU$6,2,FALSE) -> 0 | U84: =DataByMiles!I82*VLOOKUP(DataByMiles!AE82,DataByMiles!$AT$5:$AU$6,2,FALSE) -> 0 | X84: =U84*$X$2*VLOOKUP(DataByMiles!AE82,DataByMiles!$AT$5:$AU$6,2,FALSE) -> 0 | Y84: =DataByMiles!J82*VLOOKUP(DataByMiles!AE82,DataByMiles!$AT$5:$AU$6,2,FALSE) -> 0 | Z84: =DataByMiles!K82 -> 0 | AA84: =DataByMiles!L82 -> 0 | AD84: =(Y84/IF(Z84=0,$AD$1,Z84)*$AD$2)/IF(AA84=0,1,AA84)*VLOOKUP(DataByMiles!AE82,DataByMiles!$AT$5:$AU$6,2,FALSE) -> 0 | AF84: 0 | AG84: 0 | AH84: =(AF84+AG84)*VLOOKUP(DataByMiles!AE82,DataByMiles!$AT$5:$AU$6,2,FALSE) -> 0 | AI84: 0
B85: =DataByMiles!C83 -> ----79 | C85: =DataByMiles!E83*VLOOKUP(DataByMiles!AE83,DataByMiles!$AT$5:$AU$6,2,FALSE) -> 0 | F85: 0 | G85: =C85*$G$2*VLOOKUP(DataByMiles!AE83,DataByMiles!$AT$5:$AU$6,2,FALSE) -> 0 | H85: =DataByMiles!F83*VLOOKUP(DataByMiles!AE83,DataByMiles!$AT$5:$AU$6,2,FALSE) -> 0 | K85: 0 | L85: =H85*$L$2*VLOOKUP(DataByMiles!AE83,DataByMiles!$AT$5:$AU$6,2,FALSE) -> 0 | M85: =DataByMiles!G83*VLOOKUP(DataByMiles!AE83,DataByMiles!$AT$5:$AU$6,2,FALSE) -> 0 | P85: =M85*$P$2*VLOOKUP(DataByMiles!AE83,DataByMiles!$AT$5:$AU$6,2,FALSE) -> 0 | Q85: =DataByMiles!H83*VLOOKUP(DataByMiles!AE83,DataByMiles!$AT$5:$AU$6,2,FALSE) -> 0 | T85: =Q85*$T$2*VLOOKUP(DataByMiles!AE83,DataByMiles!$AT$5:$AU$6,2,FALSE) -> 0 | U85: =DataByMiles!I83*VLOOKUP(DataByMiles!AE83,DataByMiles!$AT$5:$AU$6,2,FALSE) -> 0 | X85: =U85*$X$2*VLOOKUP(DataByMiles!AE83,DataByMiles!$AT$5:$AU$6,2,FALSE) -> 0 | Y85: =DataByMiles!J83*VLOOKUP(DataByMiles!AE83,DataByMiles!$AT$5:$AU$6,2,FALSE) -> 0 | Z85: =DataByMiles!K83 -> 0 | AA85: =DataByMiles!L83 -> 0 | AD85: =(Y85/IF(Z85=0,$AD$1,Z85)*$AD$2)/IF(AA85=0,1,AA85)*VLOOKUP(DataByMiles!AE83,DataByMiles!$AT$5:$AU$6,2,FALSE) -> 0 | AF85: 0 | AG85: 0 | AH85: =(AF85+AG85)*VLOOKUP(DataByMiles!AE83,DataByMiles!$AT$5:$AU$6,2,FALSE) -> 0 | AI85: 0
B86: =DataByMiles!C84 -> ----80 | C86: =DataByMiles!E84*VLOOKUP(DataByMiles!AE84,DataByMiles!$AT$5:$AU$6,2,FALSE) -> 0 | F86: 0 | G86: =C86*$G$2*VLOOKUP(DataByMiles!AE84,DataByMiles!$AT$5:$AU$6,2,FALSE) -> 0 | H86: =DataByMiles!F84*VLOOKUP(DataByMiles!AE84,DataByMiles!$AT$5:$AU$6,2,FALSE) -> 0 | K86: 0 | L86: =H86*$L$2*VLOOKUP(DataByMiles!AE84,DataByMiles!$AT$5:$AU$6,2,FALSE) -> 0 | M86: =DataByMiles!G84*VLOOKUP(DataByMiles!AE84,DataByMiles!$AT$5:$AU$6,2,FALSE) -> 0 | P86: =M86*$P$2*VLOOKUP(DataByMiles!AE84,DataByMiles!$AT$5:$AU$6,2,FALSE) -> 0 | Q86: =DataByMiles!H84*VLOOKUP(DataByMiles!AE84,DataByMiles!$AT$5:$AU$6,2,FALSE) -> 0 | T86: =Q86*$T$2*VLOOKUP(DataByMiles!AE84,DataByMiles!$AT$5:$AU$6,2,FALSE) -> 0 | U86: =DataByMiles!I84*VLOOKUP(DataByMiles!AE84,DataByMiles!$AT$5:$AU$6,2,FALSE) -> 0 | X86: =U86*$X$2*VLOOKUP(DataByMiles!AE84,DataByMiles!$AT$5:$AU$6,2,FALSE) -> 0 | Y86: =DataByMiles!J84*VLOOKUP(DataByMiles!AE84,DataByMiles!$AT$5:$AU$6,2,FALSE) -> 0 | Z86: =DataByMiles!K84 -> 0 | AA86: =DataByMiles!L84 -> 0 | AD86: =(Y86/IF(Z86=0,$AD$1,Z86)*$AD$2)/IF(AA86=0,1,AA86)*VLOOKUP(DataByMiles!AE84,DataByMiles!$AT$5:$AU$6,2,FALSE) -> 0 | AF86: 0 | AG86: 0 | AH86: =(AF86+AG86)*VLOOKUP(DataByMiles!AE84,DataByMiles!$AT$5:$AU$6,2,FALSE) -> 0 | AI86: 0
B87: =DataByMiles!C85 -> ----81 | C87: =DataByMiles!E85*VLOOKUP(DataByMiles!AE85,DataByMiles!$AT$5:$AU$6,2,FALSE) -> 0 | F87: 0 | G87: =C87*$G$2*VLOOKUP(DataByMiles!AE85,DataByMiles!$AT$5:$AU$6,2,FALSE) -> 0 | H87: =DataByMiles!F85*VLOOKUP(DataByMiles!AE85,DataByMiles!$AT$5:$AU$6,2,FALSE) -> 0 | K87: 0 | L87: =H87*$L$2*VLOOKUP(DataByMiles!AE85,DataByMiles!$AT$5:$AU$6,2,FALSE) -> 0 | M87: =DataByMiles!G85*VLOOKUP(DataByMiles!AE85,DataByMiles!$AT$5:$AU$6,2,FALSE) -> 0 | P87: =M87*$P$2*VLOOKUP(DataByMiles!AE85,DataByMiles!$AT$5:$AU$6,2,FALSE) -> 0 | Q87: =DataByMiles!H85*VLOOKUP(DataByMiles!AE85,DataByMiles!$AT$5:$AU$6,2,FALSE) -> 0 | T87: =Q87*$T$2*VLOOKUP(DataByMiles!AE85,DataByMiles!$AT$5:$AU$6,2,FALSE) -> 0 | U87: =DataByMiles!I85*VLOOKUP(DataByMiles!AE85,DataByMiles!$AT$5:$AU$6,2,FALSE) -> 0 | X87: =U87*$X$2*VLOOKUP(DataByMiles!AE85,DataByMiles!$AT$5:$AU$6,2,FALSE) -> 0 | Y87: =DataByMiles!J85*VLOOKUP(DataByMiles!AE85,DataByMiles!$AT$5:$AU$6,2,FALSE) -> 0 | Z87: =DataByMiles!K85 -> 0 | AA87: =DataByMiles!L85 -> 0 | AD87: =(Y87/IF(Z87=0,$AD$1,Z87)*$AD$2)/IF(AA87=0,1,AA87)*VLOOKUP(DataByMiles!AE85,DataByMiles!$AT$5:$AU$6,2,FALSE) -> 0 | AF87: 0 | AG87: 0 | AH87: =(AF87+AG87)*VLOOKUP(DataByMiles!AE85,DataByMiles!$AT$5:$AU$6,2,FALSE) -> 0 | AI87: 0
B88: =DataByMiles!C86 -> ----82 | C88: =DataByMiles!E86*VLOOKUP(DataByMiles!AE86,DataByMiles!$AT$5:$AU$6,2,FALSE) -> 0 | F88: 0 | G88: =C88*$G$2*VLOOKUP(DataByMiles!AE86,DataByMiles!$AT$5:$AU$6,2,FALSE) -> 0 | H88: =DataByMiles!F86*VLOOKUP(DataByMiles!AE86,DataByMiles!$AT$5:$AU$6,2,FALSE) -> 0 | K88: 0 | L88: =H88*$L$2*VLOOKUP(DataByMiles!AE86,DataByMiles!$AT$5:$AU$6,2,FALSE) -> 0 | M88: =DataByMiles!G86*VLOOKUP(DataByMiles!AE86,DataByMiles!$AT$5:$AU$6,2,FALSE) -> 0 | P88: =M88*$P$2*VLOOKUP(DataByMiles!AE86,DataByMiles!$AT$5:$AU$6,2,FALSE) -> 0 | Q88: =DataByMiles!H86*VLOOKUP(DataByMiles!AE86,DataByMiles!$AT$5:$AU$6,2,FALSE) -> 0 | T88: =Q88*$T$2*VLOOKUP(DataByMiles!AE86,DataByMiles!$AT$5:$AU$6,2,FALSE) -> 0 | U88: =DataByMiles!I86*VLOOKUP(DataByMiles!AE86,DataByMiles!$AT$5:$AU$6,2,FALSE) -> 0 | X88: =U88*$X$2*VLOOKUP(DataByMiles!AE86,DataByMiles!$AT$5:$AU$6,2,FALSE) -> 0 | Y88: =DataByMiles!J86*VLOOKUP(DataByMiles!AE86,DataByMiles!$AT$5:$AU$6,2,FALSE) -> 0 | Z88: =DataByMiles!K86 -> 0 | AA88: =DataByMiles!L86 -> 0 | AD88: =(Y88/IF(Z88=0,$AD$1,Z88)*$AD$2)/IF(AA88=0,1,AA88)*VLOOKUP(DataByMiles!AE86,DataByMiles!$AT$5:$AU$6,2,FALSE) -> 0 | AF88: 0 | AG88: 0 | AH88: =(AF88+AG88)*VLOOKUP(DataByMiles!AE86,DataByMiles!$AT$5:$AU$6,2,FALSE) -> 0 | AI88: 0
B89: =DataByMiles!C87 -> ----83 | C89: =DataByMiles!E87*VLOOKUP(DataByMiles!AE87,DataByMiles!$AT$5:$AU$6,2,FALSE) -> 0 | F89: 0 | G89: =C89*$G$2*VLOOKUP(DataByMiles!AE87,DataByMiles!$AT$5:$AU$6,2,FALSE) -> 0 | H89: =DataByMiles!F87*VLOOKUP(DataByMiles!AE87,DataByMiles!$AT$5:$AU$6,2,FALSE) -> 0 | K89: 0 | L89: =H89*$L$2*VLOOKUP(DataByMiles!AE87,DataByMiles!$AT$5:$AU$6,2,FALSE) -> 0 | M89: =DataByMiles!G87*VLOOKUP(DataByMiles!AE87,DataByMiles!$AT$5:$AU$6,2,FALSE) -> 0 | P89: =M89*$P$2*VLOOKUP(DataByMiles!AE87,DataByMiles!$AT$5:$AU$6,2,FALSE) -> 0 | Q89: =DataByMiles!H87*VLOOKUP(DataByMiles!AE87,DataByMiles!$AT$5:$AU$6,2,FALSE) -> 0 | T89: =Q89*$T$2*VLOOKUP(DataByMiles!AE87,DataByMiles!$AT$5:$AU$6,2,FALSE) -> 0 | U89: =DataByMiles!I87*VLOOKUP(DataByMiles!AE87,DataByMiles!$AT$5:$AU$6,2,FALSE) -> 0 | X89: =U89*$X$2*VLOOKUP(DataByMiles!AE87,DataByMiles!$AT$5:$AU$6,2,FALSE) -> 0 | Y89: =DataByMiles!J87*VLOOKUP(DataByMiles!AE87,DataByMiles!$AT$5:$AU$6,2,FALSE) -> 0 | Z89: =DataByMiles!K87 -> 0 | AA89: =DataByMiles!L87 -> 0 | AD89: =(Y89/IF(Z89=0,$AD$1,Z89)*$AD$2)/IF(AA89=0,1,AA89)*VLOOKUP(DataByMiles!AE87,DataByMiles!$AT$5:$AU$6,2,FALSE) -> 0 | AF89: 0 | AG89: 0 | AH89: =(AF89+AG89)*VLOOKUP(DataByMiles!AE87,DataByMiles!$AT$5:$AU$6,2,FALSE) -> 0 | AI89: 0
B90: =DataByMiles!C88 -> ----84 | C90: =DataByMiles!E88*VLOOKUP(DataByMiles!AE88,DataByMiles!$AT$5:$AU$6,2,FALSE) -> 0 | F90: 0 | G90: =C90*$G$2*VLOOKUP(DataByMiles!AE88,DataByMiles!$AT$5:$AU$6,2,FALSE) -> 0 | H90: =DataByMiles!F88*VLOOKUP(DataByMiles!AE88,DataByMiles!$AT$5:$AU$6,2,FALSE) -> 0 | K90: 0 | L90: =H90*$L$2*VLOOKUP(DataByMiles!AE88,DataByMiles!$AT$5:$AU$6,2,FALSE) -> 0 | M90: =DataByMiles!G88*VLOOKUP(DataByMiles!AE88,DataByMiles!$AT$5:$AU$6,2,FALSE) -> 0 | P90: =M90*$P$2*VLOOKUP(DataByMiles!AE88,DataByMiles!$AT$5:$AU$6,2,FALSE) -> 0 | Q90: =DataByMiles!H88*VLOOKUP(DataByMiles!AE88,DataByMiles!$AT$5:$AU$6,2,FALSE) -> 0 | T90: =Q90*$T$2*VLOOKUP(DataByMiles!AE88,DataByMiles!$AT$5:$AU$6,2,FALSE) -> 0 | U90: =DataByMiles!I88*VLOOKUP(DataByMiles!AE88,DataByMiles!$AT$5:$AU$6,2,FALSE) -> 0 | X90: =U90*$X$2*VLOOKUP(DataByMiles!AE88,DataByMiles!$AT$5:$AU$6,2,FALSE) -> 0 | Y90: =DataByMiles!J88*VLOOKUP(DataByMiles!AE88,DataByMiles!$AT$5:$AU$6,2,FALSE) -> 0 | Z90: =DataByMiles!K88 -> 0 | AA90: =DataByMiles!L88 -> 0 | AD90: =(Y90/IF(Z90=0,$AD$1,Z90)*$AD$2)/IF(AA90=0,1,AA90)*VLOOKUP(DataByMiles!AE88,DataByMiles!$AT$5:$AU$6,2,FALSE) -> 0 | AF90: 0 | AG90: 0 | AH90: =(AF90+AG90)*VLOOKUP(DataByMiles!AE88,DataByMiles!$AT$5:$AU$6,2,FALSE) -> 0 | AI90: 0
B91: =DataByMiles!C89 -> ----85 | C91: =DataByMiles!E89*VLOOKUP(DataByMiles!AE89,DataByMiles!$AT$5:$AU$6,2,FALSE) -> 0 | F91: 0 | G91: =C91*$G$2*VLOOKUP(DataByMiles!AE89,DataByMiles!$AT$5:$AU$6,2,FALSE) -> 0 | H91: =DataByMiles!F89*VLOOKUP(DataByMiles!AE89,DataByMiles!$AT$5:$AU$6,2,FALSE) -> 0 | K91: 0 | L91: =H91*$L$2*VLOOKUP(DataByMiles!AE89,DataByMiles!$AT$5:$AU$6,2,FALSE) -> 0 | M91: =DataByMiles!G89*VLOOKUP(DataByMiles!AE89,DataByMiles!$AT$5:$AU$6,2,FALSE) -> 0 | P91: =M91*$P$2*VLOOKUP(DataByMiles!AE89,DataByMiles!$AT$5:$AU$6,2,FALSE) -> 0 | Q91: =DataByMiles!H89*VLOOKUP(DataByMiles!AE89,DataByMiles!$AT$5:$AU$6,2,FALSE) -> 0 | T91: =Q91*$T$2*VLOOKUP(DataByMiles!AE89,DataByMiles!$AT$5:$AU$6,2,FALSE) -> 0 | U91: =DataByMiles!I89*VLOOKUP(DataByMiles!AE89,DataByMiles!$AT$5:$AU$6,2,FALSE) -> 0 | X91: =U91*$X$2*VLOOKUP(DataByMiles!AE89,DataByMiles!$AT$5:$AU$6,2,FALSE) -> 0 | Y91: =DataByMiles!J89*VLOOKUP(DataByMiles!AE89,DataByMiles!$AT$5:$AU$6,2,FALSE) -> 0 | Z91: =DataByMiles!K89 -> 0 | AA91: =DataByMiles!L89 -> 0 | AD91: =(Y91/IF(Z91=0,$AD$1,Z91)*$AD$2)/IF(AA91=0,1,AA91)*VLOOKUP(DataByMiles!AE89,DataByMiles!$AT$5:$AU$6,2,FALSE) -> 0 | AF91: 0 | AG91: 0 | AH91: =(AF91+AG91)*VLOOKUP(DataByMiles!AE89,DataByMiles!$AT$5:$AU$6,2,FALSE) -> 0 | AI91: 0
B92: =DataByMiles!C90 -> ----86 | C92: =DataByMiles!E90*VLOOKUP(DataByMiles!AE90,DataByMiles!$AT$5:$AU$6,2,FALSE) -> 0 | F92: 0 | G92: =C92*$G$2*VLOOKUP(DataByMiles!AE90,DataByMiles!$AT$5:$AU$6,2,FALSE) -> 0 | H92: =DataByMiles!F90*VLOOKUP(DataByMiles!AE90,DataByMiles!$AT$5:$AU$6,2,FALSE) -> 0 | K92: 0 | L92: =H92*$L$2*VLOOKUP(DataByMiles!AE90,DataByMiles!$AT$5:$AU$6,2,FALSE) -> 0 | M92: =DataByMiles!G90*VLOOKUP(DataByMiles!AE90,DataByMiles!$AT$5:$AU$6,2,FALSE) -> 0 | P92: =M92*$P$2*VLOOKUP(DataByMiles!AE90,DataByMiles!$AT$5:$AU$6,2,FALSE) -> 0 | Q92: =DataByMiles!H90*VLOOKUP(DataByMiles!AE90,DataByMiles!$AT$5:$AU$6,2,FALSE) -> 0 | T92: =Q92*$T$2*VLOOKUP(DataByMiles!AE90,DataByMiles!$AT$5:$AU$6,2,FALSE) -> 0 | U92: =DataByMiles!I90*VLOOKUP(DataByMiles!AE90,DataByMiles!$AT$5:$AU$6,2,FALSE) -> 0 | X92: =U92*$X$2*VLOOKUP(DataByMiles!AE90,DataByMiles!$AT$5:$AU$6,2,FALSE) -> 0 | Y92: =DataByMiles!J90*VLOOKUP(DataByMiles!AE90,DataByMiles!$AT$5:$AU$6,2,FALSE) -> 0 | Z92: =DataByMiles!K90 -> 0 | AA92: =DataByMiles!L90 -> 0 | AD92: =(Y92/IF(Z92=0,$AD$1,Z92)*$AD$2)/IF(AA92=0,1,AA92)*VLOOKUP(DataByMiles!AE90,DataByMiles!$AT$5:$AU$6,2,FALSE) -> 0 | AF92: 0 | AG92: 0 | AH92: =(AF92+AG92)*VLOOKUP(DataByMiles!AE90,DataByMiles!$AT$5:$AU$6,2,FALSE) -> 0 | AI92: 0
B93: =DataByMiles!C91 -> ----87 | C93: =DataByMiles!E91*VLOOKUP(DataByMiles!AE91,DataByMiles!$AT$5:$AU$6,2,FALSE) -> 0 | F93: 0 | G93: =C93*$G$2*VLOOKUP(DataByMiles!AE91,DataByMiles!$AT$5:$AU$6,2,FALSE) -> 0 | H93: =DataByMiles!F91*VLOOKUP(DataByMiles!AE91,DataByMiles!$AT$5:$AU$6,2,FALSE) -> 0 | K93: 0 | L93: =H93*$L$2*VLOOKUP(DataByMiles!AE91,DataByMiles!$AT$5:$AU$6,2,FALSE) -> 0 | M93: =DataByMiles!G91*VLOOKUP(DataByMiles!AE91,DataByMiles!$AT$5:$AU$6,2,FALSE) -> 0 | P93: =M93*$P$2*VLOOKUP(DataByMiles!AE91,DataByMiles!$AT$5:$AU$6,2,FALSE) -> 0 | Q93: =DataByMiles!H91*VLOOKUP(DataByMiles!AE91,DataByMiles!$AT$5:$AU$6,2,FALSE) -> 0 | T93: =Q93*$T$2*VLOOKUP(DataByMiles!AE91,DataByMiles!$AT$5:$AU$6,2,FALSE) -> 0 | U93: =DataByMiles!I91*VLOOKUP(DataByMiles!AE91,DataByMiles!$AT$5:$AU$6,2,FALSE) -> 0 | X93: =U93*$X$2*VLOOKUP(DataByMiles!AE91,DataByMiles!$AT$5:$AU$6,2,FALSE) -> 0 | Y93: =DataByMiles!J91*VLOOKUP(DataByMiles!AE91,DataByMiles!$AT$5:$AU$6,2,FALSE) -> 0 | Z93: =DataByMiles!K91 -> 0 | AA93: =DataByMiles!L91 -> 0 | AD93: =(Y93/IF(Z93=0,$AD$1,Z93)*$AD$2)/IF(AA93=0,1,AA93)*VLOOKUP(DataByMiles!AE91,DataByMiles!$AT$5:$AU$6,2,FALSE) -> 0 | AF93: 0 | AG93: 0 | AH93: =(AF93+AG93)*VLOOKUP(DataByMiles!AE91,DataByMiles!$AT$5:$AU$6,2,FALSE) -> 0 | AI93: 0
B94: =DataByMiles!C92 -> ----88 | C94: =DataByMiles!E92*VLOOKUP(DataByMiles!AE92,DataByMiles!$AT$5:$AU$6,2,FALSE) -> 0 | F94: 0 | G94: =C94*$G$2*VLOOKUP(DataByMiles!AE92,DataByMiles!$AT$5:$AU$6,2,FALSE) -> 0 | H94: =DataByMiles!F92*VLOOKUP(DataByMiles!AE92,DataByMiles!$AT$5:$AU$6,2,FALSE) -> 0 | K94: 0 | L94: =H94*$L$2*VLOOKUP(DataByMiles!AE92,DataByMiles!$AT$5:$AU$6,2,FALSE) -> 0 | M94: =DataByMiles!G92*VLOOKUP(DataByMiles!AE92,DataByMiles!$AT$5:$AU$6,2,FALSE) -> 0 | P94: =M94*$P$2*VLOOKUP(DataByMiles!AE92,DataByMiles!$AT$5:$AU$6,2,FALSE) -> 0 | Q94: =DataByMiles!H92*VLOOKUP(DataByMiles!AE92,DataByMiles!$AT$5:$AU$6,2,FALSE) -> 0 | T94: =Q94*$T$2*VLOOKUP(DataByMiles!AE92,DataByMiles!$AT$5:$AU$6,2,FALSE) -> 0 | U94: =DataByMiles!I92*VLOOKUP(DataByMiles!AE92,DataByMiles!$AT$5:$AU$6,2,FALSE) -> 0 | X94: =U94*$X$2*VLOOKUP(DataByMiles!AE92,DataByMiles!$AT$5:$AU$6,2,FALSE) -> 0 | Y94: =DataByMiles!J92*VLOOKUP(DataByMiles!AE92,DataByMiles!$AT$5:$AU$6,2,FALSE) -> 0 | Z94: =DataByMiles!K92 -> 0 | AA94: =DataByMiles!L92 -> 0 | AD94: =(Y94/IF(Z94=0,$AD$1,Z94)*$AD$2)/IF(AA94=0,1,AA94)*VLOOKUP(DataByMiles!AE92,DataByMiles!$AT$5:$AU$6,2,FALSE) -> 0 | AF94: 0 | AG94: 0 | AH94: =(AF94+AG94)*VLOOKUP(DataByMiles!AE92,DataByMiles!$AT$5:$AU$6,2,FALSE) -> 0 | AI94: 0
B95: =DataByMiles!C93 -> ----89 | C95: =DataByMiles!E93*VLOOKUP(DataByMiles!AE93,DataByMiles!$AT$5:$AU$6,2,FALSE) -> 0 | F95: 0 | G95: =C95*$G$2*VLOOKUP(DataByMiles!AE93,DataByMiles!$AT$5:$AU$6,2,FALSE) -> 0 | H95: =DataByMiles!F93*VLOOKUP(DataByMiles!AE93,DataByMiles!$AT$5:$AU$6,2,FALSE) -> 0 | K95: 0 | L95: =H95*$L$2*VLOOKUP(DataByMiles!AE93,DataByMiles!$AT$5:$AU$6,2,FALSE) -> 0 | M95: =DataByMiles!G93*VLOOKUP(DataByMiles!AE93,DataByMiles!$AT$5:$AU$6,2,FALSE) -> 0 | P95: =M95*$P$2*VLOOKUP(DataByMiles!AE93,DataByMiles!$AT$5:$AU$6,2,FALSE) -> 0 | Q95: =DataByMiles!H93*VLOOKUP(DataByMiles!AE93,DataByMiles!$AT$5:$AU$6,2,FALSE) -> 0 | T95: =Q95*$T$2*VLOOKUP(DataByMiles!AE93,DataByMiles!$AT$5:$AU$6,2,FALSE) -> 0 | U95: =DataByMiles!I93*VLOOKUP(DataByMiles!AE93,DataByMiles!$AT$5:$AU$6,2,FALSE) -> 0 | X95: =U95*$X$2*VLOOKUP(DataByMiles!AE93,DataByMiles!$AT$5:$AU$6,2,FALSE) -> 0 | Y95: =DataByMiles!J93*VLOOKUP(DataByMiles!AE93,DataByMiles!$AT$5:$AU$6,2,FALSE) -> 0 | Z95: =DataByMiles!K93 -> 0 | AA95: =DataByMiles!L93 -> 0 | AD95: =(Y95/IF(Z95=0,$AD$1,Z95)*$AD$2)/IF(AA95=0,1,AA95)*VLOOKUP(DataByMiles!AE93,DataByMiles!$AT$5:$AU$6,2,FALSE) -> 0 | AF95: 0 | AG95: 0 | AH95: =(AF95+AG95)*VLOOKUP(DataByMiles!AE93,DataByMiles!$AT$5:$AU$6,2,FALSE) -> 0 | AI95: 0
B96: =DataByMiles!C94 -> ----90 | C96: =DataByMiles!E94*VLOOKUP(DataByMiles!AE94,DataByMiles!$AT$5:$AU$6,2,FALSE) -> 0 | F96: 0 | G96: =C96*$G$2*VLOOKUP(DataByMiles!AE94,DataByMiles!$AT$5:$AU$6,2,FALSE) -> 0 | H96: =DataByMiles!F94*VLOOKUP(DataByMiles!AE94,DataByMiles!$AT$5:$AU$6,2,FALSE) -> 0 | K96: 0 | L96: =H96*$L$2*VLOOKUP(DataByMiles!AE94,DataByMiles!$AT$5:$AU$6,2,FALSE) -> 0 | M96: =DataByMiles!G94*VLOOKUP(DataByMiles!AE94,DataByMiles!$AT$5:$AU$6,2,FALSE) -> 0 | P96: =M96*$P$2*VLOOKUP(DataByMiles!AE94,DataByMiles!$AT$5:$AU$6,2,FALSE) -> 0 | Q96: =DataByMiles!H94*VLOOKUP(DataByMiles!AE94,DataByMiles!$AT$5:$AU$6,2,FALSE) -> 0 | T96: =Q96*$T$2*VLOOKUP(DataByMiles!AE94,DataByMiles!$AT$5:$AU$6,2,FALSE) -> 0 | U96: =DataByMiles!I94*VLOOKUP(DataByMiles!AE94,DataByMiles!$AT$5:$AU$6,2,FALSE) -> 0 | X96: =U96*$X$2*VLOOKUP(DataByMiles!AE94,DataByMiles!$AT$5:$AU$6,2,FALSE) -> 0 | Y96: =DataByMiles!J94*VLOOKUP(DataByMiles!AE94,DataByMiles!$AT$5:$AU$6,2,FALSE) -> 0 | Z96: =DataByMiles!K94 -> 0 | AA96: =DataByMiles!L94 -> 0 | AD96: =(Y96/IF(Z96=0,$AD$1,Z96)*$AD$2)/IF(AA96=0,1,AA96)*VLOOKUP(DataByMiles!AE94,DataByMiles!$AT$5:$AU$6,2,FALSE) -> 0 | AF96: 0 | AG96: 0 | AH96: =(AF96+AG96)*VLOOKUP(DataByMiles!AE94,DataByMiles!$AT$5:$AU$6,2,FALSE) -> 0 | AI96: 0
B97: =DataByMiles!C95 -> ----91 | C97: =DataByMiles!E95*VLOOKUP(DataByMiles!AE95,DataByMiles!$AT$5:$AU$6,2,FALSE) -> 0 | F97: 0 | G97: =C97*$G$2*VLOOKUP(DataByMiles!AE95,DataByMiles!$AT$5:$AU$6,2,FALSE) -> 0 | H97: =DataByMiles!F95*VLOOKUP(DataByMiles!AE95,DataByMiles!$AT$5:$AU$6,2,FALSE) -> 0 | K97: 0 | L97: =H97*$L$2*VLOOKUP(DataByMiles!AE95,DataByMiles!$AT$5:$AU$6,2,FALSE) -> 0 | M97: =DataByMiles!G95*VLOOKUP(DataByMiles!AE95,DataByMiles!$AT$5:$AU$6,2,FALSE) -> 0 | P97: =M97*$P$2*VLOOKUP(DataByMiles!AE95,DataByMiles!$AT$5:$AU$6,2,FALSE) -> 0 | Q97: =DataByMiles!H95*VLOOKUP(DataByMiles!AE95,DataByMiles!$AT$5:$AU$6,2,FALSE) -> 0 | T97: =Q97*$T$2*VLOOKUP(DataByMiles!AE95,DataByMiles!$AT$5:$AU$6,2,FALSE) -> 0 | U97: =DataByMiles!I95*VLOOKUP(DataByMiles!AE95,DataByMiles!$AT$5:$AU$6,2,FALSE) -> 0 | X97: =U97*$X$2*VLOOKUP(DataByMiles!AE95,DataByMiles!$AT$5:$AU$6,2,FALSE) -> 0 | Y97: =DataByMiles!J95*VLOOKUP(DataByMiles!AE95,DataByMiles!$AT$5:$AU$6,2,FALSE) -> 0 | Z97: =DataByMiles!K95 -> 0 | AA97: =DataByMiles!L95 -> 0 | AD97: =(Y97/IF(Z97=0,$AD$1,Z97)*$AD$2)/IF(AA97=0,1,AA97)*VLOOKUP(DataByMiles!AE95,DataByMiles!$AT$5:$AU$6,2,FALSE) -> 0 | AF97: 0 | AG97: 0 | AH97: =(AF97+AG97)*VLOOKUP(DataByMiles!AE95,DataByMiles!$AT$5:$AU$6,2,FALSE) -> 0 | AI97: 0
B98: =DataByMiles!C96 -> ----92 | C98: =DataByMiles!E96*VLOOKUP(DataByMiles!AE96,DataByMiles!$AT$5:$AU$6,2,FALSE) -> 0 | F98: 0 | G98: =C98*$G$2*VLOOKUP(DataByMiles!AE96,DataByMiles!$AT$5:$AU$6,2,FALSE) -> 0 | H98: =DataByMiles!F96*VLOOKUP(DataByMiles!AE96,DataByMiles!$AT$5:$AU$6,2,FALSE) -> 0 | K98: 0 | L98: =H98*$L$2*VLOOKUP(DataByMiles!AE96,DataByMiles!$AT$5:$AU$6,2,FALSE) -> 0 | M98: =DataByMiles!G96*VLOOKUP(DataByMiles!AE96,DataByMiles!$AT$5:$AU$6,2,FALSE) -> 0 | P98: =M98*$P$2*VLOOKUP(DataByMiles!AE96,DataByMiles!$AT$5:$AU$6,2,FALSE) -> 0 | Q98: =DataByMiles!H96*VLOOKUP(DataByMiles!AE96,DataByMiles!$AT$5:$AU$6,2,FALSE) -> 0 | T98: =Q98*$T$2*VLOOKUP(DataByMiles!AE96,DataByMiles!$AT$5:$AU$6,2,FALSE) -> 0 | U98: =DataByMiles!I96*VLOOKUP(DataByMiles!AE96,DataByMiles!$AT$5:$AU$6,2,FALSE) -> 0 | X98: =U98*$X$2*VLOOKUP(DataByMiles!AE96,DataByMiles!$AT$5:$AU$6,2,FALSE) -> 0 | Y98: =DataByMiles!J96*VLOOKUP(DataByMiles!AE96,DataByMiles!$AT$5:$AU$6,2,FALSE) -> 0 | Z98: =DataByMiles!K96 -> 0 | AA98: =DataByMiles!L96 -> 0 | AD98: =(Y98/IF(Z98=0,$AD$1,Z98)*$AD$2)/IF(AA98=0,1,AA98)*VLOOKUP(DataByMiles!AE96,DataByMiles!$AT$5:$AU$6,2,FALSE) -> 0 | AF98: 0 | AG98: 0 | AH98: =(AF98+AG98)*VLOOKUP(DataByMiles!AE96,DataByMiles!$AT$5:$AU$6,2,FALSE) -> 0 | AI98: 0
B99: =DataByMiles!C97 -> ----93 | C99: =DataByMiles!E97*VLOOKUP(DataByMiles!AE97,DataByMiles!$AT$5:$AU$6,2,FALSE) -> 0 | F99: 0 | G99: =C99*$G$2*VLOOKUP(DataByMiles!AE97,DataByMiles!$AT$5:$AU$6,2,FALSE) -> 0 | H99: =DataByMiles!F97*VLOOKUP(DataByMiles!AE97,DataByMiles!$AT$5:$AU$6,2,FALSE) -> 0 | K99: 0 | L99: =H99*$L$2*VLOOKUP(DataByMiles!AE97,DataByMiles!$AT$5:$AU$6,2,FALSE) -> 0 | M99: =DataByMiles!G97*VLOOKUP(DataByMiles!AE97,DataByMiles!$AT$5:$AU$6,2,FALSE) -> 0 | P99: =M99*$P$2*VLOOKUP(DataByMiles!AE97,DataByMiles!$AT$5:$AU$6,2,FALSE) -> 0 | Q99: =DataByMiles!H97*VLOOKUP(DataByMiles!AE97,DataByMiles!$AT$5:$AU$6,2,FALSE) -> 0 | T99: =Q99*$T$2*VLOOKUP(DataByMiles!AE97,DataByMiles!$AT$5:$AU$6,2,FALSE) -> 0 | U99: =DataByMiles!I97*VLOOKUP(DataByMiles!AE97,DataByMiles!$AT$5:$AU$6,2,FALSE) -> 0 | X99: =U99*$X$2*VLOOKUP(DataByMiles!AE97,DataByMiles!$AT$5:$AU$6,2,FALSE) -> 0 | Y99: =DataByMiles!J97*VLOOKUP(DataByMiles!AE97,DataByMiles!$AT$5:$AU$6,2,FALSE) -> 0 | Z99: =DataByMiles!K97 -> 0 | AA99: =DataByMiles!L97 -> 0 | AD99: =(Y99/IF(Z99=0,$AD$1,Z99)*$AD$2)/IF(AA99=0,1,AA99)*VLOOKUP(DataByMiles!AE97,DataByMiles!$AT$5:$AU$6,2,FALSE) -> 0 | AF99: 0 | AG99: 0 | AH99: =(AF99+AG99)*VLOOKUP(DataByMiles!AE97,DataByMiles!$AT$5:$AU$6,2,FALSE) -> 0 | AI99: 0
B100: =DataByMiles!C98 -> ----94 | C100: =DataByMiles!E98*VLOOKUP(DataByMiles!AE98,DataByMiles!$AT$5:$AU$6,2,FALSE) -> 0 | F100: 0 | G100: =C100*$G$2*VLOOKUP(DataByMiles!AE98,DataByMiles!$AT$5:$AU$6,2,FALSE) -> 0 | H100: =DataByMiles!F98*VLOOKUP(DataByMiles!AE98,DataByMiles!$AT$5:$AU$6,2,FALSE) -> 0 | K100: 0 | L100: =H100*$L$2*VLOOKUP(DataByMiles!AE98,DataByMiles!$AT$5:$AU$6,2,FALSE) -> 0 | M100: =DataByMiles!G98*VLOOKUP(DataByMiles!AE98,DataByMiles!$AT$5:$AU$6,2,FALSE) -> 0 | P100: =M100*$P$2*VLOOKUP(DataByMiles!AE98,DataByMiles!$AT$5:$AU$6,2,FALSE) -> 0 | Q100: =DataByMiles!H98*VLOOKUP(DataByMiles!AE98,DataByMiles!$AT$5:$AU$6,2,FALSE) -> 0 | T100: =Q100*$T$2*VLOOKUP(DataByMiles!AE98,DataByMiles!$AT$5:$AU$6,2,FALSE) -> 0 | U100: =DataByMiles!I98*VLOOKUP(DataByMiles!AE98,DataByMiles!$AT$5:$AU$6,2,FALSE) -> 0 | X100: =U100*$X$2*VLOOKUP(DataByMiles!AE98,DataByMiles!$AT$5:$AU$6,2,FALSE) -> 0 | Y100: =DataByMiles!J98*VLOOKUP(DataByMiles!AE98,DataByMiles!$AT$5:$AU$6,2,FALSE) -> 0 | Z100: =DataByMiles!K98 -> 0 | AA100: =DataByMiles!L98 -> 0 | AD100: =(Y100/IF(Z100=0,$AD$1,Z100)*$AD$2)/IF(AA100=0,1,AA100)*VLOOKUP(DataByMiles!AE98,DataByMiles!$AT$5:$AU$6,2,FALSE) -> 0 | AF100: 0 | AG100: 0 | AH100: =(AF100+AG100)*VLOOKUP(DataByMiles!AE98,DataByMiles!$AT$5:$AU$6,2,FALSE) -> 0 | AI100: 0
B101: =DataByMiles!C99 -> ----95 | C101: =DataByMiles!E99*VLOOKUP(DataByMiles!AE99,DataByMiles!$AT$5:$AU$6,2,FALSE) -> 0 | F101: 0 | G101: =C101*$G$2*VLOOKUP(DataByMiles!AE99,DataByMiles!$AT$5:$AU$6,2,FALSE) -> 0 | H101: =DataByMiles!F99*VLOOKUP(DataByMiles!AE99,DataByMiles!$AT$5:$AU$6,2,FALSE) -> 0 | K101: 0 | L101: =H101*$L$2*VLOOKUP(DataByMiles!AE99,DataByMiles!$AT$5:$AU$6,2,FALSE) -> 0 | M101: =DataByMiles!G99*VLOOKUP(DataByMiles!AE99,DataByMiles!$AT$5:$AU$6,2,FALSE) -> 0 | P101: =M101*$P$2*VLOOKUP(DataByMiles!AE99,DataByMiles!$AT$5:$AU$6,2,FALSE) -> 0 | Q101: =DataByMiles!H99*VLOOKUP(DataByMiles!AE99,DataByMiles!$AT$5:$AU$6,2,FALSE) -> 0 | T101: =Q101*$T$2*VLOOKUP(DataByMiles!AE99,DataByMiles!$AT$5:$AU$6,2,FALSE) -> 0 | U101: =DataByMiles!I99*VLOOKUP(DataByMiles!AE99,DataByMiles!$AT$5:$AU$6,2,FALSE) -> 0 | X101: =U101*$X$2*VLOOKUP(DataByMiles!AE99,DataByMiles!$AT$5:$AU$6,2,FALSE) -> 0 | Y101: =DataByMiles!J99*VLOOKUP(DataByMiles!AE99,DataByMiles!$AT$5:$AU$6,2,FALSE) -> 0 | Z101: =DataByMiles!K99 -> 0 | AA101: =DataByMiles!L99 -> 0 | AD101: =(Y101/IF(Z101=0,$AD$1,Z101)*$AD$2)/IF(AA101=0,1,AA101)*VLOOKUP(DataByMiles!AE99,DataByMiles!$AT$5:$AU$6,2,FALSE) -> 0 | AF101: 0 | AG101: 0 | AH101: =(AF101+AG101)*VLOOKUP(DataByMiles!AE99,DataByMiles!$AT$5:$AU$6,2,FALSE) -> 0 | AI101: 0
B102: =DataByMiles!C100 -> ----96 | C102: =DataByMiles!E100*VLOOKUP(DataByMiles!AE100,DataByMiles!$AT$5:$AU$6,2,FALSE) -> 0 | F102: 0 | G102: =C102*$G$2*VLOOKUP(DataByMiles!AE100,DataByMiles!$AT$5:$AU$6,2,FALSE) -> 0 | H102: =DataByMiles!F100*VLOOKUP(DataByMiles!AE100,DataByMiles!$AT$5:$AU$6,2,FALSE) -> 0 | K102: 0 | L102: =H102*$L$2*VLOOKUP(DataByMiles!AE100,DataByMiles!$AT$5:$AU$6,2,FALSE) -> 0 | M102: =DataByMiles!G100*VLOOKUP(DataByMiles!AE100,DataByMiles!$AT$5:$AU$6,2,FALSE) -> 0 | P102: =M102*$P$2*VLOOKUP(DataByMiles!AE100,DataByMiles!$AT$5:$AU$6,2,FALSE) -> 0 | Q102: =DataByMiles!H100*VLOOKUP(DataByMiles!AE100,DataByMiles!$AT$5:$AU$6,2,FALSE) -> 0 | T102: =Q102*$T$2*VLOOKUP(DataByMiles!AE100,DataByMiles!$AT$5:$AU$6,2,FALSE) -> 0 | U102: =DataByMiles!I100*VLOOKUP(DataByMiles!AE100,DataByMiles!$AT$5:$AU$6,2,FALSE) -> 0 | X102: =U102*$X$2*VLOOKUP(DataByMiles!AE100,DataByMiles!$AT$5:$AU$6,2,FALSE) -> 0 | Y102: =DataByMiles!J100*VLOOKUP(DataByMiles!AE100,DataByMiles!$AT$5:$AU$6,2,FALSE) -> 0 | Z102: =DataByMiles!K100 -> 0 | AA102: =DataByMiles!L100 -> 0 | AD102: =(Y102/IF(Z102=0,$AD$1,Z102)*$AD$2)/IF(AA102=0,1,AA102)*VLOOKUP(DataByMiles!AE100,DataByMiles!$AT$5:$AU$6,2,FALSE) -> 0 | AF102: 0 | AG102: 0 | AH102: =(AF102+AG102)*VLOOKUP(DataByMiles!AE100,DataByMiles!$AT$5:$AU$6,2,FALSE) -> 0 | AI102: 0
B103: =DataByMiles!C101 -> ----97 | C103: =DataByMiles!E101*VLOOKUP(DataByMiles!AE101,DataByMiles!$AT$5:$AU$6,2,FALSE) -> 0 | F103: 0 | G103: =C103*$G$2*VLOOKUP(DataByMiles!AE101,DataByMiles!$AT$5:$AU$6,2,FALSE) -> 0 | H103: =DataByMiles!F101*VLOOKUP(DataByMiles!AE101,DataByMiles!$AT$5:$AU$6,2,FALSE) -> 0 | K103: 0 | L103: =H103*$L$2*VLOOKUP(DataByMiles!AE101,DataByMiles!$AT$5:$AU$6,2,FALSE) -> 0 | M103: =DataByMiles!G101*VLOOKUP(DataByMiles!AE101,DataByMiles!$AT$5:$AU$6,2,FALSE) -> 0 | P103: =M103*$P$2*VLOOKUP(DataByMiles!AE101,DataByMiles!$AT$5:$AU$6,2,FALSE) -> 0 | Q103: =DataByMiles!H101*VLOOKUP(DataByMiles!AE101,DataByMiles!$AT$5:$AU$6,2,FALSE) -> 0 | T103: =Q103*$T$2*VLOOKUP(DataByMiles!AE101,DataByMiles!$AT$5:$AU$6,2,FALSE) -> 0 | U103: =DataByMiles!I101*VLOOKUP(DataByMiles!AE101,DataByMiles!$AT$5:$AU$6,2,FALSE) -> 0 | X103: =U103*$X$2*VLOOKUP(DataByMiles!AE101,DataByMiles!$AT$5:$AU$6,2,FALSE) -> 0 | Y103: =DataByMiles!J101*VLOOKUP(DataByMiles!AE101,DataByMiles!$AT$5:$AU$6,2,FALSE) -> 0 | Z103: =DataByMiles!K101 -> 0 | AA103: =DataByMiles!L101 -> 0 | AD103: =(Y103/IF(Z103=0,$AD$1,Z103)*$AD$2)/IF(AA103=0,1,AA103)*VLOOKUP(DataByMiles!AE101,DataByMiles!$AT$5:$AU$6,2,FALSE) -> 0 | AF103: 0 | AG103: 0 | AH103: =(AF103+AG103)*VLOOKUP(DataByMiles!AE101,DataByMiles!$AT$5:$AU$6,2,FALSE) -> 0 | AI103: 0
B104: =DataByMiles!C102 -> ----98 | C104: =DataByMiles!E102*VLOOKUP(DataByMiles!AE102,DataByMiles!$AT$5:$AU$6,2,FALSE) -> 0 | F104: 0 | G104: =C104*$G$2*VLOOKUP(DataByMiles!AE102,DataByMiles!$AT$5:$AU$6,2,FALSE) -> 0 | H104: =DataByMiles!F102*VLOOKUP(DataByMiles!AE102,DataByMiles!$AT$5:$AU$6,2,FALSE) -> 0 | K104: 0 | L104: =H104*$L$2*VLOOKUP(DataByMiles!AE102,DataByMiles!$AT$5:$AU$6,2,FALSE) -> 0 | M104: =DataByMiles!G102*VLOOKUP(DataByMiles!AE102,DataByMiles!$AT$5:$AU$6,2,FALSE) -> 0 | P104: =M104*$P$2*VLOOKUP(DataByMiles!AE102,DataByMiles!$AT$5:$AU$6,2,FALSE) -> 0 | Q104: =DataByMiles!H102*VLOOKUP(DataByMiles!AE102,DataByMiles!$AT$5:$AU$6,2,FALSE) -> 0 | T104: =Q104*$T$2*VLOOKUP(DataByMiles!AE102,DataByMiles!$AT$5:$AU$6,2,FALSE) -> 0 | U104: =DataByMiles!I102*VLOOKUP(DataByMiles!AE102,DataByMiles!$AT$5:$AU$6,2,FALSE) -> 0 | X104: =U104*$X$2*VLOOKUP(DataByMiles!AE102,DataByMiles!$AT$5:$AU$6,2,FALSE) -> 0 | Y104: =DataByMiles!J102*VLOOKUP(DataByMiles!AE102,DataByMiles!$AT$5:$AU$6,2,FALSE) -> 0 | Z104: =DataByMiles!K102 -> 0 | AA104: =DataByMiles!L102 -> 0 | AD104: =(Y104/IF(Z104=0,$AD$1,Z104)*$AD$2)/IF(AA104=0,1,AA104)*VLOOKUP(DataByMiles!AE102,DataByMiles!$AT$5:$AU$6,2,FALSE) -> 0 | AF104: 0 | AG104: 0 | AH104: =(AF104+AG104)*VLOOKUP(DataByMiles!AE102,DataByMiles!$AT$5:$AU$6,2,FALSE) -> 0 | AI104: 0
B105: =DataByMiles!C103 -> ----99 | C105: =DataByMiles!E103*VLOOKUP(DataByMiles!AE103,DataByMiles!$AT$5:$AU$6,2,FALSE) -> 0 | F105: 0 | G105: =C105*$G$2*VLOOKUP(DataByMiles!AE103,DataByMiles!$AT$5:$AU$6,2,FALSE) -> 0 | H105: =DataByMiles!F103*VLOOKUP(DataByMiles!AE103,DataByMiles!$AT$5:$AU$6,2,FALSE) -> 0 | K105: 0 | L105: =H105*$L$2*VLOOKUP(DataByMiles!AE103,DataByMiles!$AT$5:$AU$6,2,FALSE) -> 0 | M105: =DataByMiles!G103*VLOOKUP(DataByMiles!AE103,DataByMiles!$AT$5:$AU$6,2,FALSE) -> 0 | P105: =M105*$P$2*VLOOKUP(DataByMiles!AE103,DataByMiles!$AT$5:$AU$6,2,FALSE) -> 0 | Q105: =DataByMiles!H103*VLOOKUP(DataByMiles!AE103,DataByMiles!$AT$5:$AU$6,2,FALSE) -> 0 | T105: =Q105*$T$2*VLOOKUP(DataByMiles!AE103,DataByMiles!$AT$5:$AU$6,2,FALSE) -> 0 | U105: =DataByMiles!I103*VLOOKUP(DataByMiles!AE103,DataByMiles!$AT$5:$AU$6,2,FALSE) -> 0 | X105: =U105*$X$2*VLOOKUP(DataByMiles!AE103,DataByMiles!$AT$5:$AU$6,2,FALSE) -> 0 | Y105: =DataByMiles!J103*VLOOKUP(DataByMiles!AE103,DataByMiles!$AT$5:$AU$6,2,FALSE) -> 0 | Z105: =DataByMiles!K103 -> 0 | AA105: =DataByMiles!L103 -> 0 | AD105: =(Y105/IF(Z105=0,$AD$1,Z105)*$AD$2)/IF(AA105=0,1,AA105)*VLOOKUP(DataByMiles!AE103,DataByMiles!$AT$5:$AU$6,2,FALSE) -> 0 | AF105: 0 | AG105: 0 | AH105: =(AF105+AG105)*VLOOKUP(DataByMiles!AE103,DataByMiles!$AT$5:$AU$6,2,FALSE) -> 0 | AI105: 0
B106: =DataByMiles!C104 -> ----100 | C106: =DataByMiles!E104*VLOOKUP(DataByMiles!AE104,DataByMiles!$AT$5:$AU$6,2,FALSE) -> 0 | F106: 0 | G106: =C106*$G$2*VLOOKUP(DataByMiles!AE104,DataByMiles!$AT$5:$AU$6,2,FALSE) -> 0 | H106: =DataByMiles!F104*VLOOKUP(DataByMiles!AE104,DataByMiles!$AT$5:$AU$6,2,FALSE) -> 0 | K106: 0 | L106: =H106*$L$2*VLOOKUP(DataByMiles!AE104,DataByMiles!$AT$5:$AU$6,2,FALSE) -> 0 | M106: =DataByMiles!G104*VLOOKUP(DataByMiles!AE104,DataByMiles!$AT$5:$AU$6,2,FALSE) -> 0 | P106: =M106*$P$2*VLOOKUP(DataByMiles!AE104,DataByMiles!$AT$5:$AU$6,2,FALSE) -> 0 | Q106: =DataByMiles!H104*VLOOKUP(DataByMiles!AE104,DataByMiles!$AT$5:$AU$6,2,FALSE) -> 0 | T106: =Q106*$T$2*VLOOKUP(DataByMiles!AE104,DataByMiles!$AT$5:$AU$6,2,FALSE) -> 0 | U106: =DataByMiles!I104*VLOOKUP(DataByMiles!AE104,DataByMiles!$AT$5:$AU$6,2,FALSE) -> 0 | X106: =U106*$X$2*VLOOKUP(DataByMiles!AE104,DataByMiles!$AT$5:$AU$6,2,FALSE) -> 0 | Y106: =DataByMiles!J104*VLOOKUP(DataByMiles!AE104,DataByMiles!$AT$5:$AU$6,2,FALSE) -> 0 | Z106: =DataByMiles!K104 -> 0 | AA106: =DataByMiles!L104 -> 0 | AD106: =(Y106/IF(Z106=0,$AD$1,Z106)*$AD$2)/IF(AA106=0,1,AA106)*VLOOKUP(DataByMiles!AE104,DataByMiles!$AT$5:$AU$6,2,FALSE) -> 0 | AF106: 0 | AG106: 0 | AH106: =(AF106+AG106)*VLOOKUP(DataByMiles!AE104,DataByMiles!$AT$5:$AU$6,2,FALSE) -> 0 | AI106: 0
B107: =DataByMiles!C105 -> ----101 | C107: =DataByMiles!E105*VLOOKUP(DataByMiles!AE105,DataByMiles!$AT$5:$AU$6,2,FALSE) -> 0 | F107: 0 | G107: =C107*$G$2*VLOOKUP(DataByMiles!AE105,DataByMiles!$AT$5:$AU$6,2,FALSE) -> 0 | H107: =DataByMiles!F105*VLOOKUP(DataByMiles!AE105,DataByMiles!$AT$5:$AU$6,2,FALSE) -> 0 | K107: 0 | L107: =H107*$L$2*VLOOKUP(DataByMiles!AE105,DataByMiles!$AT$5:$AU$6,2,FALSE) -> 0 | M107: =DataByMiles!G105*VLOOKUP(DataByMiles!AE105,DataByMiles!$AT$5:$AU$6,2,FALSE) -> 0 | P107: =M107*$P$2*VLOOKUP(DataByMiles!AE105,DataByMiles!$AT$5:$AU$6,2,FALSE) -> 0 | Q107: =DataByMiles!H105*VLOOKUP(DataByMiles!AE105,DataByMiles!$AT$5:$AU$6,2,FALSE) -> 0 | T107: =Q107*$T$2*VLOOKUP(DataByMiles!AE105,DataByMiles!$AT$5:$AU$6,2,FALSE) -> 0 | U107: =DataByMiles!I105*VLOOKUP(DataByMiles!AE105,DataByMiles!$AT$5:$AU$6,2,FALSE) -> 0 | X107: =U107*$X$2*VLOOKUP(DataByMiles!AE105,DataByMiles!$AT$5:$AU$6,2,FALSE) -> 0 | Y107: =DataByMiles!J105*VLOOKUP(DataByMiles!AE105,DataByMiles!$AT$5:$AU$6,2,FALSE) -> 0 | Z107: =DataByMiles!K105 -> 0 | AA107: =DataByMiles!L105 -> 0 | AD107: =(Y107/IF(Z107=0,$AD$1,Z107)*$AD$2)/IF(AA107=0,1,AA107)*VLOOKUP(DataByMiles!AE105,DataByMiles!$AT$5:$AU$6,2,FALSE) -> 0 | AF107: 0 | AG107: 0 | AH107: =(AF107+AG107)*VLOOKUP(DataByMiles!AE105,DataByMiles!$AT$5:$AU$6,2,FALSE) -> 0 | AI107: 0
B108: =DataByMiles!C106 -> ----102 | C108: =DataByMiles!E106*VLOOKUP(DataByMiles!AE106,DataByMiles!$AT$5:$AU$6,2,FALSE) -> 0 | F108: 0 | G108: =C108*$G$2*VLOOKUP(DataByMiles!AE106,DataByMiles!$AT$5:$AU$6,2,FALSE) -> 0 | H108: =DataByMiles!F106*VLOOKUP(DataByMiles!AE106,DataByMiles!$AT$5:$AU$6,2,FALSE) -> 0 | K108: 0 | L108: =H108*$L$2*VLOOKUP(DataByMiles!AE106,DataByMiles!$AT$5:$AU$6,2,FALSE) -> 0 | M108: =DataByMiles!G106*VLOOKUP(DataByMiles!AE106,DataByMiles!$AT$5:$AU$6,2,FALSE) -> 0 | P108: =M108*$P$2*VLOOKUP(DataByMiles!AE106,DataByMiles!$AT$5:$AU$6,2,FALSE) -> 0 | Q108: =DataByMiles!H106*VLOOKUP(DataByMiles!AE106,DataByMiles!$AT$5:$AU$6,2,FALSE) -> 0 | T108: =Q108*$T$2*VLOOKUP(DataByMiles!AE106,DataByMiles!$AT$5:$AU$6,2,FALSE) -> 0 | U108: =DataByMiles!I106*VLOOKUP(DataByMiles!AE106,DataByMiles!$AT$5:$AU$6,2,FALSE) -> 0 | X108: =U108*$X$2*VLOOKUP(DataByMiles!AE106,DataByMiles!$AT$5:$AU$6,2,FALSE) -> 0 | Y108: =DataByMiles!J106*VLOOKUP(DataByMiles!AE106,DataByMiles!$AT$5:$AU$6,2,FALSE) -> 0 | Z108: =DataByMiles!K106 -> 0 | AA108: =DataByMiles!L106 -> 0 | AD108: =(Y108/IF(Z108=0,$AD$1,Z108)*$AD$2)/IF(AA108=0,1,AA108)*VLOOKUP(DataByMiles!AE106,DataByMiles!$AT$5:$AU$6,2,FALSE) -> 0 | AF108: 0 | AG108: 0 | AH108: =(AF108+AG108)*VLOOKUP(DataByMiles!AE106,DataByMiles!$AT$5:$AU$6,2,FALSE) -> 0 | AI108: 0
B109: =DataByMiles!C107 -> ----103 | C109: =DataByMiles!E107*VLOOKUP(DataByMiles!AE107,DataByMiles!$AT$5:$AU$6,2,FALSE) -> 0 | F109: 0 | G109: =C109*$G$2*VLOOKUP(DataByMiles!AE107,DataByMiles!$AT$5:$AU$6,2,FALSE) -> 0 | H109: =DataByMiles!F107*VLOOKUP(DataByMiles!AE107,DataByMiles!$AT$5:$AU$6,2,FALSE) -> 0 | K109: 0 | L109: =H109*$L$2*VLOOKUP(DataByMiles!AE107,DataByMiles!$AT$5:$AU$6,2,FALSE) -> 0 | M109: =DataByMiles!G107*VLOOKUP(DataByMiles!AE107,DataByMiles!$AT$5:$AU$6,2,FALSE) -> 0 | P109: =M109*$P$2*VLOOKUP(DataByMiles!AE107,DataByMiles!$AT$5:$AU$6,2,FALSE) -> 0 | Q109: =DataByMiles!H107*VLOOKUP(DataByMiles!AE107,DataByMiles!$AT$5:$AU$6,2,FALSE) -> 0 | T109: =Q109*$T$2*VLOOKUP(DataByMiles!AE107,DataByMiles!$AT$5:$AU$6,2,FALSE) -> 0 | U109: =DataByMiles!I107*VLOOKUP(DataByMiles!AE107,DataByMiles!$AT$5:$AU$6,2,FALSE) -> 0 | X109: =U109*$X$2*VLOOKUP(DataByMiles!AE107,DataByMiles!$AT$5:$AU$6,2,FALSE) -> 0 | Y109: =DataByMiles!J107*VLOOKUP(DataByMiles!AE107,DataByMiles!$AT$5:$AU$6,2,FALSE) -> 0 | Z109: =DataByMiles!K107 -> 0 | AA109: =DataByMiles!L107 -> 0 | AD109: =(Y109/IF(Z109=0,$AD$1,Z109)*$AD$2)/IF(AA109=0,1,AA109)*VLOOKUP(DataByMiles!AE107,DataByMiles!$AT$5:$AU$6,2,FALSE) -> 0 | AF109: 0 | AG109: 0 | AH109: =(AF109+AG109)*VLOOKUP(DataByMiles!AE107,DataByMiles!$AT$5:$AU$6,2,FALSE) -> 0 | AI109: 0
B110: =DataByMiles!C108 -> ----104 | C110: =DataByMiles!E108*VLOOKUP(DataByMiles!AE108,DataByMiles!$AT$5:$AU$6,2,FALSE) -> 0 | F110: =C110*$F$2 -> 0 | G110: =C110*$G$2*VLOOKUP(DataByMiles!AE108,DataByMiles!$AT$5:$AU$6,2,FALSE) -> 0 | H110: =DataByMiles!F108*VLOOKUP(DataByMiles!AE108,DataByMiles!$AT$5:$AU$6,2,FALSE) -> 0 | K110: =H110*$K$2 -> 0 | L110: =H110*$L$2*VLOOKUP(DataByMiles!AE108,DataByMiles!$AT$5:$AU$6,2,FALSE) -> 0 | M110: =DataByMiles!G108*VLOOKUP(DataByMiles!AE108,DataByMiles!$AT$5:$AU$6,2,FALSE) -> 0 | P110: =M110*$P$2*VLOOKUP(DataByMiles!AE108,DataByMiles!$AT$5:$AU$6,2,FALSE) -> 0 | Q110: =DataByMiles!H108*VLOOKUP(DataByMiles!AE108,DataByMiles!$AT$5:$AU$6,2,FALSE) -> 0 | T110: =Q110*$T$2*VLOOKUP(DataByMiles!AE108,DataByMiles!$AT$5:$AU$6,2,FALSE) -> 0 | U110: =DataByMiles!I108*VLOOKUP(DataByMiles!AE108,DataByMiles!$AT$5:$AU$6,2,FALSE) -> 0 | X110: =U110*$X$2*VLOOKUP(DataByMiles!AE108,DataByMiles!$AT$5:$AU$6,2,FALSE) -> 0 | Y110: =DataByMiles!J108*VLOOKUP(DataByMiles!AE108,DataByMiles!$AT$5:$AU$6,2,FALSE) -> 0 | Z110: =DataByMiles!K108 -> 0 | AA110: =DataByMiles!L108 -> 0 | AD110: =(Y110/IF(Z110=0,$AD$1,Z110)*$AD$2)/IF(AA110=0,1,AA110)*VLOOKUP(DataByMiles!AE108,DataByMiles!$AT$5:$AU$6,2,FALSE) -> 0 | AE110: =IF(C110+H110+M110+Q110+U110+Y110>0,C110+H110+M110+Q110+U110+Y110,"") ->  | AF110: =F110+K110+P110+T110+X110+AD110 -> 0 | AG110: =G110+L110 -> 0 | AH110: =(AF110+AG110)*VLOOKUP(DataByMiles!AE108,DataByMiles!$AT$5:$AU$6,2,FALSE) -> 0 | AI110: =IFERROR(AH110/AE110,0) -> 0
B111: =DataByMiles!C109 -> ----105 | C111: =DataByMiles!E109*VLOOKUP(DataByMiles!AE109,DataByMiles!$AT$5:$AU$6,2,FALSE) -> 0 | F111: 0 | G111: =C111*$G$2*VLOOKUP(DataByMiles!AE109,DataByMiles!$AT$5:$AU$6,2,FALSE) -> 0 | H111: =DataByMiles!F109*VLOOKUP(DataByMiles!AE109,DataByMiles!$AT$5:$AU$6,2,FALSE) -> 0 | K111: 0 | L111: =H111*$L$2*VLOOKUP(DataByMiles!AE109,DataByMiles!$AT$5:$AU$6,2,FALSE) -> 0 | M111: =DataByMiles!G109*VLOOKUP(DataByMiles!AE109,DataByMiles!$AT$5:$AU$6,2,FALSE) -> 0 | P111: =M111*$P$2*VLOOKUP(DataByMiles!AE109,DataByMiles!$AT$5:$AU$6,2,FALSE) -> 0 | Q111: =DataByMiles!H109*VLOOKUP(DataByMiles!AE109,DataByMiles!$AT$5:$AU$6,2,FALSE) -> 0 | T111: =Q111*$T$2*VLOOKUP(DataByMiles!AE109,DataByMiles!$AT$5:$AU$6,2,FALSE) -> 0 | U111: =DataByMiles!I109*VLOOKUP(DataByMiles!AE109,DataByMiles!$AT$5:$AU$6,2,FALSE) -> 0 | X111: =U111*$X$2*VLOOKUP(DataByMiles!AE109,DataByMiles!$AT$5:$AU$6,2,FALSE) -> 0 | Y111: =DataByMiles!J109*VLOOKUP(DataByMiles!AE109,DataByMiles!$AT$5:$AU$6,2,FALSE) -> 0 | Z111: =DataByMiles!K109 -> 0 | AA111: =DataByMiles!L109 -> 0 | AD111: =(Y111/IF(Z111=0,$AD$1,Z111)*$AD$2)/IF(AA111=0,1,AA111)*VLOOKUP(DataByMiles!AE109,DataByMiles!$AT$5:$AU$6,2,FALSE) -> 0 | AF111: 0 | AG111: 0 | AH111: =(AF111+AG111)*VLOOKUP(DataByMiles!AE109,DataByMiles!$AT$5:$AU$6,2,FALSE) -> 0 | AI111: 0
B112: =DataByMiles!C110 -> ----106 | C112: =DataByMiles!E110*VLOOKUP(DataByMiles!AE110,DataByMiles!$AT$5:$AU$6,2,FALSE) -> 0 | F112: 0 | G112: =C112*$G$2*VLOOKUP(DataByMiles!AE110,DataByMiles!$AT$5:$AU$6,2,FALSE) -> 0 | H112: =DataByMiles!F110*VLOOKUP(DataByMiles!AE110,DataByMiles!$AT$5:$AU$6,2,FALSE) -> 0 | K112: 0 | L112: =H112*$L$2*VLOOKUP(DataByMiles!AE110,DataByMiles!$AT$5:$AU$6,2,FALSE) -> 0 | M112: =DataByMiles!G110*VLOOKUP(DataByMiles!AE110,DataByMiles!$AT$5:$AU$6,2,FALSE) -> 0 | P112: =M112*$P$2*VLOOKUP(DataByMiles!AE110,DataByMiles!$AT$5:$AU$6,2,FALSE) -> 0 | Q112: =DataByMiles!H110*VLOOKUP(DataByMiles!AE110,DataByMiles!$AT$5:$AU$6,2,FALSE) -> 0 | T112: =Q112*$T$2*VLOOKUP(DataByMiles!AE110,DataByMiles!$AT$5:$AU$6,2,FALSE) -> 0 | U112: =DataByMiles!I110*VLOOKUP(DataByMiles!AE110,DataByMiles!$AT$5:$AU$6,2,FALSE) -> 0 | X112: =U112*$X$2*VLOOKUP(DataByMiles!AE110,DataByMiles!$AT$5:$AU$6,2,FALSE) -> 0 | Y112: =DataByMiles!J110*VLOOKUP(DataByMiles!AE110,DataByMiles!$AT$5:$AU$6,2,FALSE) -> 0 | Z112: =DataByMiles!K110 -> 0 | AA112: =DataByMiles!L110 -> 0 | AD112: =(Y112/IF(Z112=0,$AD$1,Z112)*$AD$2)/IF(AA112=0,1,AA112)*VLOOKUP(DataByMiles!AE110,DataByMiles!$AT$5:$AU$6,2,FALSE) -> 0 | AF112: 0 | AG112: 0 | AH112: =(AF112+AG112)*VLOOKUP(DataByMiles!AE110,DataByMiles!$AT$5:$AU$6,2,FALSE) -> 0 | AI112: 0
B113: =DataByMiles!C111 -> ----107 | C113: =DataByMiles!E111*VLOOKUP(DataByMiles!AE111,DataByMiles!$AT$5:$AU$6,2,FALSE) -> 0 | F113: 0 | G113: =C113*$G$2*VLOOKUP(DataByMiles!AE111,DataByMiles!$AT$5:$AU$6,2,FALSE) -> 0 | H113: =DataByMiles!F111*VLOOKUP(DataByMiles!AE111,DataByMiles!$AT$5:$AU$6,2,FALSE) -> 0 | K113: 0 | L113: =H113*$L$2*VLOOKUP(DataByMiles!AE111,DataByMiles!$AT$5:$AU$6,2,FALSE) -> 0 | M113: =DataByMiles!G111*VLOOKUP(DataByMiles!AE111,DataByMiles!$AT$5:$AU$6,2,FALSE) -> 0 | P113: =M113*$P$2*VLOOKUP(DataByMiles!AE111,DataByMiles!$AT$5:$AU$6,2,FALSE) -> 0 | Q113: =DataByMiles!H111*VLOOKUP(DataByMiles!AE111,DataByMiles!$AT$5:$AU$6,2,FALSE) -> 0 | T113: =Q113*$T$2*VLOOKUP(DataByMiles!AE111,DataByMiles!$AT$5:$AU$6,2,FALSE) -> 0 | U113: =DataByMiles!I111*VLOOKUP(DataByMiles!AE111,DataByMiles!$AT$5:$AU$6,2,FALSE) -> 0 | X113: =U113*$X$2*VLOOKUP(DataByMiles!AE111,DataByMiles!$AT$5:$AU$6,2,FALSE) -> 0 | Y113: =DataByMiles!J111*VLOOKUP(DataByMiles!AE111,DataByMiles!$AT$5:$AU$6,2,FALSE) -> 0 | Z113: =DataByMiles!K111 -> 0 | AA113: =DataByMiles!L111 -> 0 | AD113: =(Y113/IF(Z113=0,$AD$1,Z113)*$AD$2)/IF(AA113=0,1,AA113)*VLOOKUP(DataByMiles!AE111,DataByMiles!$AT$5:$AU$6,2,FALSE) -> 0 | AF113: 0 | AG113: 0 | AH113: =(AF113+AG113)*VLOOKUP(DataByMiles!AE111,DataByMiles!$AT$5:$AU$6,2,FALSE) -> 0 | AI113: 0
B114: =DataByMiles!C112 -> ----108 | C114: =DataByMiles!E112*VLOOKUP(DataByMiles!AE112,DataByMiles!$AT$5:$AU$6,2,FALSE) -> 0 | F114: 0 | G114: =C114*$G$2*VLOOKUP(DataByMiles!AE112,DataByMiles!$AT$5:$AU$6,2,FALSE) -> 0 | H114: =DataByMiles!F112*VLOOKUP(DataByMiles!AE112,DataByMiles!$AT$5:$AU$6,2,FALSE) -> 0 | K114: 0 | L114: =H114*$L$2*VLOOKUP(DataByMiles!AE112,DataByMiles!$AT$5:$AU$6,2,FALSE) -> 0 | M114: =DataByMiles!G112*VLOOKUP(DataByMiles!AE112,DataByMiles!$AT$5:$AU$6,2,FALSE) -> 0 | P114: =M114*$P$2*VLOOKUP(DataByMiles!AE112,DataByMiles!$AT$5:$AU$6,2,FALSE) -> 0 | Q114: =DataByMiles!H112*VLOOKUP(DataByMiles!AE112,DataByMiles!$AT$5:$AU$6,2,FALSE) -> 0 | T114: =Q114*$T$2*VLOOKUP(DataByMiles!AE112,DataByMiles!$AT$5:$AU$6,2,FALSE) -> 0 | U114: =DataByMiles!I112*VLOOKUP(DataByMiles!AE112,DataByMiles!$AT$5:$AU$6,2,FALSE) -> 0 | X114: =U114*$X$2*VLOOKUP(DataByMiles!AE112,DataByMiles!$AT$5:$AU$6,2,FALSE) -> 0 | Y114: =DataByMiles!J112*VLOOKUP(DataByMiles!AE112,DataByMiles!$AT$5:$AU$6,2,FALSE) -> 0 | Z114: =DataByMiles!K112 -> 0 | AA114: =DataByMiles!L112 -> 0 | AD114: =(Y114/IF(Z114=0,$AD$1,Z114)*$AD$2)/IF(AA114=0,1,AA114)*VLOOKUP(DataByMiles!AE112,DataByMiles!$AT$5:$AU$6,2,FALSE) -> 0 | AF114: 0 | AG114: 0 | AH114: =(AF114+AG114)*VLOOKUP(DataByMiles!AE112,DataByMiles!$AT$5:$AU$6,2,FALSE) -> 0 | AI114: 0
B115: =DataByMiles!C113 -> ----109 | C115: =DataByMiles!E113*VLOOKUP(DataByMiles!AE113,DataByMiles!$AT$5:$AU$6,2,FALSE) -> 0 | F115: 0 | G115: =C115*$G$2*VLOOKUP(DataByMiles!AE113,DataByMiles!$AT$5:$AU$6,2,FALSE) -> 0 | H115: =DataByMiles!F113*VLOOKUP(DataByMiles!AE113,DataByMiles!$AT$5:$AU$6,2,FALSE) -> 0 | K115: 0 | L115: =H115*$L$2*VLOOKUP(DataByMiles!AE113,DataByMiles!$AT$5:$AU$6,2,FALSE) -> 0 | M115: =DataByMiles!G113*VLOOKUP(DataByMiles!AE113,DataByMiles!$AT$5:$AU$6,2,FALSE) -> 0 | P115: =M115*$P$2*VLOOKUP(DataByMiles!AE113,DataByMiles!$AT$5:$AU$6,2,FALSE) -> 0 | Q115: =DataByMiles!H113*VLOOKUP(DataByMiles!AE113,DataByMiles!$AT$5:$AU$6,2,FALSE) -> 0 | T115: =Q115*$T$2*VLOOKUP(DataByMiles!AE113,DataByMiles!$AT$5:$AU$6,2,FALSE) -> 0 | U115: =DataByMiles!I113*VLOOKUP(DataByMiles!AE113,DataByMiles!$AT$5:$AU$6,2,FALSE) -> 0 | X115: =U115*$X$2*VLOOKUP(DataByMiles!AE113,DataByMiles!$AT$5:$AU$6,2,FALSE) -> 0 | Y115: =DataByMiles!J113*VLOOKUP(DataByMiles!AE113,DataByMiles!$AT$5:$AU$6,2,FALSE) -> 0 | Z115: =DataByMiles!K113 -> 0 | AA115: =DataByMiles!L113 -> 0 | AD115: =(Y115/IF(Z115=0,$AD$1,Z115)*$AD$2)/IF(AA115=0,1,AA115)*VLOOKUP(DataByMiles!AE113,DataByMiles!$AT$5:$AU$6,2,FALSE) -> 0 | AF115: 0 | AG115: 0 | AH115: =(AF115+AG115)*VLOOKUP(DataByMiles!AE113,DataByMiles!$AT$5:$AU$6,2,FALSE) -> 0 | AI115: 0
B116: =DataByMiles!C114 -> ----110 | C116: =DataByMiles!E114*VLOOKUP(DataByMiles!AE114,DataByMiles!$AT$5:$AU$6,2,FALSE) -> 0 | F116: 0 | G116: =C116*$G$2*VLOOKUP(DataByMiles!AE114,DataByMiles!$AT$5:$AU$6,2,FALSE) -> 0 | H116: =DataByMiles!F114*VLOOKUP(DataByMiles!AE114,DataByMiles!$AT$5:$AU$6,2,FALSE) -> 0 | K116: 0 | L116: =H116*$L$2*VLOOKUP(DataByMiles!AE114,DataByMiles!$AT$5:$AU$6,2,FALSE) -> 0 | M116: =DataByMiles!G114*VLOOKUP(DataByMiles!AE114,DataByMiles!$AT$5:$AU$6,2,FALSE) -> 0 | P116: =M116*$P$2*VLOOKUP(DataByMiles!AE114,DataByMiles!$AT$5:$AU$6,2,FALSE) -> 0 | Q116: =DataByMiles!H114*VLOOKUP(DataByMiles!AE114,DataByMiles!$AT$5:$AU$6,2,FALSE) -> 0 | T116: =Q116*$T$2*VLOOKUP(DataByMiles!AE114,DataByMiles!$AT$5:$AU$6,2,FALSE) -> 0 | U116: =DataByMiles!I114*VLOOKUP(DataByMiles!AE114,DataByMiles!$AT$5:$AU$6,2,FALSE) -> 0 | X116: =U116*$X$2*VLOOKUP(DataByMiles!AE114,DataByMiles!$AT$5:$AU$6,2,FALSE) -> 0 | Y116: =DataByMiles!J114*VLOOKUP(DataByMiles!AE114,DataByMiles!$AT$5:$AU$6,2,FALSE) -> 0 | Z116: =DataByMiles!K114 -> 0 | AA116: =DataByMiles!L114 -> 0 | AD116: =(Y116/IF(Z116=0,$AD$1,Z116)*$AD$2)/IF(AA116=0,1,AA116)*VLOOKUP(DataByMiles!AE114,DataByMiles!$AT$5:$AU$6,2,FALSE) -> 0 | AF116: 0 | AG116: 0 | AH116: =(AF116+AG116)*VLOOKUP(DataByMiles!AE114,DataByMiles!$AT$5:$AU$6,2,FALSE) -> 0 | AI116: 0
B117: =DataByMiles!C115 -> ----111 | C117: =DataByMiles!E115*VLOOKUP(DataByMiles!AE115,DataByMiles!$AT$5:$AU$6,2,FALSE) -> 0 | F117: 0 | G117: =C117*$G$2*VLOOKUP(DataByMiles!AE115,DataByMiles!$AT$5:$AU$6,2,FALSE) -> 0 | H117: =DataByMiles!F115*VLOOKUP(DataByMiles!AE115,DataByMiles!$AT$5:$AU$6,2,FALSE) -> 0 | K117: 0 | L117: =H117*$L$2*VLOOKUP(DataByMiles!AE115,DataByMiles!$AT$5:$AU$6,2,FALSE) -> 0 | M117: =DataByMiles!G115*VLOOKUP(DataByMiles!AE115,DataByMiles!$AT$5:$AU$6,2,FALSE) -> 0 | P117: =M117*$P$2*VLOOKUP(DataByMiles!AE115,DataByMiles!$AT$5:$AU$6,2,FALSE) -> 0 | Q117: =DataByMiles!H115*VLOOKUP(DataByMiles!AE115,DataByMiles!$AT$5:$AU$6,2,FALSE) -> 0 | T117: =Q117*$T$2*VLOOKUP(DataByMiles!AE115,DataByMiles!$AT$5:$AU$6,2,FALSE) -> 0 | U117: =DataByMiles!I115*VLOOKUP(DataByMiles!AE115,DataByMiles!$AT$5:$AU$6,2,FALSE) -> 0 | X117: =U117*$X$2*VLOOKUP(DataByMiles!AE115,DataByMiles!$AT$5:$AU$6,2,FALSE) -> 0 | Y117: =DataByMiles!J115*VLOOKUP(DataByMiles!AE115,DataByMiles!$AT$5:$AU$6,2,FALSE) -> 0 | Z117: =DataByMiles!K115 -> 0 | AA117: =DataByMiles!L115 -> 0 | AD117: =(Y117/IF(Z117=0,$AD$1,Z117)*$AD$2)/IF(AA117=0,1,AA117)*VLOOKUP(DataByMiles!AE115,DataByMiles!$AT$5:$AU$6,2,FALSE) -> 0 | AF117: 0 | AG117: 0 | AH117: =(AF117+AG117)*VLOOKUP(DataByMiles!AE115,DataByMiles!$AT$5:$AU$6,2,FALSE) -> 0 | AI117: 0
B118: =DataByMiles!C116 -> ----112 | C118: =DataByMiles!E116*VLOOKUP(DataByMiles!AE116,DataByMiles!$AT$5:$AU$6,2,FALSE) -> 0 | F118: 0 | G118: =C118*$G$2*VLOOKUP(DataByMiles!AE116,DataByMiles!$AT$5:$AU$6,2,FALSE) -> 0 | H118: =DataByMiles!F116*VLOOKUP(DataByMiles!AE116,DataByMiles!$AT$5:$AU$6,2,FALSE) -> 0 | K118: 0 | L118: =H118*$L$2*VLOOKUP(DataByMiles!AE116,DataByMiles!$AT$5:$AU$6,2,FALSE) -> 0 | M118: =DataByMiles!G116*VLOOKUP(DataByMiles!AE116,DataByMiles!$AT$5:$AU$6,2,FALSE) -> 0 | P118: =M118*$P$2*VLOOKUP(DataByMiles!AE116,DataByMiles!$AT$5:$AU$6,2,FALSE) -> 0 | Q118: =DataByMiles!H116*VLOOKUP(DataByMiles!AE116,DataByMiles!$AT$5:$AU$6,2,FALSE) -> 0 | T118: =Q118*$T$2*VLOOKUP(DataByMiles!AE116,DataByMiles!$AT$5:$AU$6,2,FALSE) -> 0 | U118: =DataByMiles!I116*VLOOKUP(DataByMiles!AE116,DataByMiles!$AT$5:$AU$6,2,FALSE) -> 0 | X118: =U118*$X$2*VLOOKUP(DataByMiles!AE116,DataByMiles!$AT$5:$AU$6,2,FALSE) -> 0 | Y118: =DataByMiles!J116*VLOOKUP(DataByMiles!AE116,DataByMiles!$AT$5:$AU$6,2,FALSE) -> 0 | Z118: =DataByMiles!K116 -> 0 | AA118: =DataByMiles!L116 -> 0 | AD118: =(Y118/IF(Z118=0,$AD$1,Z118)*$AD$2)/IF(AA118=0,1,AA118)*VLOOKUP(DataByMiles!AE116,DataByMiles!$AT$5:$AU$6,2,FALSE) -> 0 | AF118: 0 | AG118: 0 | AH118: =(AF118+AG118)*VLOOKUP(DataByMiles!AE116,DataByMiles!$AT$5:$AU$6,2,FALSE) -> 0 | AI118: 0
B119: =DataByMiles!C117 -> ----113 | C119: =DataByMiles!E117*VLOOKUP(DataByMiles!AE117,DataByMiles!$AT$5:$AU$6,2,FALSE) -> 0 | F119: 0 | G119: =C119*$G$2*VLOOKUP(DataByMiles!AE117,DataByMiles!$AT$5:$AU$6,2,FALSE) -> 0 | H119: =DataByMiles!F117*VLOOKUP(DataByMiles!AE117,DataByMiles!$AT$5:$AU$6,2,FALSE) -> 0 | K119: 0 | L119: =H119*$L$2*VLOOKUP(DataByMiles!AE117,DataByMiles!$AT$5:$AU$6,2,FALSE) -> 0 | M119: =DataByMiles!G117*VLOOKUP(DataByMiles!AE117,DataByMiles!$AT$5:$AU$6,2,FALSE) -> 0 | P119: =M119*$P$2*VLOOKUP(DataByMiles!AE117,DataByMiles!$AT$5:$AU$6,2,FALSE) -> 0 | Q119: =DataByMiles!H117*VLOOKUP(DataByMiles!AE117,DataByMiles!$AT$5:$AU$6,2,FALSE) -> 0 | T119: =Q119*$T$2*VLOOKUP(DataByMiles!AE117,DataByMiles!$AT$5:$AU$6,2,FALSE) -> 0 | U119: =DataByMiles!I117*VLOOKUP(DataByMiles!AE117,DataByMiles!$AT$5:$AU$6,2,FALSE) -> 0 | X119: =U119*$X$2*VLOOKUP(DataByMiles!AE117,DataByMiles!$AT$5:$AU$6,2,FALSE) -> 0 | Y119: =DataByMiles!J117*VLOOKUP(DataByMiles!AE117,DataByMiles!$AT$5:$AU$6,2,FALSE) -> 0 | Z119: =DataByMiles!K117 -> 0 | AA119: =DataByMiles!L117 -> 0 | AD119: =(Y119/IF(Z119=0,$AD$1,Z119)*$AD$2)/IF(AA119=0,1,AA119)*VLOOKUP(DataByMiles!AE117,DataByMiles!$AT$5:$AU$6,2,FALSE) -> 0 | AF119: 0 | AG119: 0 | AH119: =(AF119+AG119)*VLOOKUP(DataByMiles!AE117,DataByMiles!$AT$5:$AU$6,2,FALSE) -> 0 | AI119: 0
B120: =DataByMiles!C118 -> ----114 | C120: =DataByMiles!E118*VLOOKUP(DataByMiles!AE118,DataByMiles!$AT$5:$AU$6,2,FALSE) -> 0 | F120: 0 | G120: =C120*$G$2*VLOOKUP(DataByMiles!AE118,DataByMiles!$AT$5:$AU$6,2,FALSE) -> 0 | H120: =DataByMiles!F118*VLOOKUP(DataByMiles!AE118,DataByMiles!$AT$5:$AU$6,2,FALSE) -> 0 | K120: 0 | L120: =H120*$L$2*VLOOKUP(DataByMiles!AE118,DataByMiles!$AT$5:$AU$6,2,FALSE) -> 0 | M120: =DataByMiles!G118*VLOOKUP(DataByMiles!AE118,DataByMiles!$AT$5:$AU$6,2,FALSE) -> 0 | P120: =M120*$P$2*VLOOKUP(DataByMiles!AE118,DataByMiles!$AT$5:$AU$6,2,FALSE) -> 0 | Q120: =DataByMiles!H118*VLOOKUP(DataByMiles!AE118,DataByMiles!$AT$5:$AU$6,2,FALSE) -> 0 | T120: =Q120*$T$2*VLOOKUP(DataByMiles!AE118,DataByMiles!$AT$5:$AU$6,2,FALSE) -> 0 | U120: =DataByMiles!I118*VLOOKUP(DataByMiles!AE118,DataByMiles!$AT$5:$AU$6,2,FALSE) -> 0 | X120: =U120*$X$2*VLOOKUP(DataByMiles!AE118,DataByMiles!$AT$5:$AU$6,2,FALSE) -> 0 | Y120: =DataByMiles!J118*VLOOKUP(DataByMiles!AE118,DataByMiles!$AT$5:$AU$6,2,FALSE) -> 0 | Z120: =DataByMiles!K118 -> 0 | AA120: =DataByMiles!L118 -> 0 | AD120: =(Y120/IF(Z120=0,$AD$1,Z120)*$AD$2)/IF(AA120=0,1,AA120)*VLOOKUP(DataByMiles!AE118,DataByMiles!$AT$5:$AU$6,2,FALSE) -> 0 | AF120: 0 | AG120: 0 | AH120: =(AF120+AG120)*VLOOKUP(DataByMiles!AE118,DataByMiles!$AT$5:$AU$6,2,FALSE) -> 0 | AI120: 0
B121: =DataByMiles!C119 -> ----115 | C121: =DataByMiles!E119*VLOOKUP(DataByMiles!AE119,DataByMiles!$AT$5:$AU$6,2,FALSE) -> 0 | F121: 0 | G121: =C121*$G$2*VLOOKUP(DataByMiles!AE119,DataByMiles!$AT$5:$AU$6,2,FALSE) -> 0 | H121: =DataByMiles!F119*VLOOKUP(DataByMiles!AE119,DataByMiles!$AT$5:$AU$6,2,FALSE) -> 0 | K121: 0 | L121: =H121*$L$2*VLOOKUP(DataByMiles!AE119,DataByMiles!$AT$5:$AU$6,2,FALSE) -> 0 | M121: =DataByMiles!G119*VLOOKUP(DataByMiles!AE119,DataByMiles!$AT$5:$AU$6,2,FALSE) -> 0 | P121: =M121*$P$2*VLOOKUP(DataByMiles!AE119,DataByMiles!$AT$5:$AU$6,2,FALSE) -> 0 | Q121: =DataByMiles!H119*VLOOKUP(DataByMiles!AE119,DataByMiles!$AT$5:$AU$6,2,FALSE) -> 0 | T121: =Q121*$T$2*VLOOKUP(DataByMiles!AE119,DataByMiles!$AT$5:$AU$6,2,FALSE) -> 0 | U121: =DataByMiles!I119*VLOOKUP(DataByMiles!AE119,DataByMiles!$AT$5:$AU$6,2,FALSE) -> 0 | X121: =U121*$X$2*VLOOKUP(DataByMiles!AE119,DataByMiles!$AT$5:$AU$6,2,FALSE) -> 0 | Y121: =DataByMiles!J119*VLOOKUP(DataByMiles!AE119,DataByMiles!$AT$5:$AU$6,2,FALSE) -> 0 | Z121: =DataByMiles!K119 -> 0 | AA121: =DataByMiles!L119 -> 0 | AD121: =(Y121/IF(Z121=0,$AD$1,Z121)*$AD$2)/IF(AA121=0,1,AA121)*VLOOKUP(DataByMiles!AE119,DataByMiles!$AT$5:$AU$6,2,FALSE) -> 0 | AF121: 0 | AG121: 0 | AH121: =(AF121+AG121)*VLOOKUP(DataByMiles!AE119,DataByMiles!$AT$5:$AU$6,2,FALSE) -> 0 | AI121: 0
B122: =DataByMiles!C120 -> ----116 | C122: =DataByMiles!E120*VLOOKUP(DataByMiles!AE120,DataByMiles!$AT$5:$AU$6,2,FALSE) -> 0 | F122: 0 | G122: =C122*$G$2*VLOOKUP(DataByMiles!AE120,DataByMiles!$AT$5:$AU$6,2,FALSE) -> 0 | H122: =DataByMiles!F120*VLOOKUP(DataByMiles!AE120,DataByMiles!$AT$5:$AU$6,2,FALSE) -> 0 | K122: 0 | L122: =H122*$L$2*VLOOKUP(DataByMiles!AE120,DataByMiles!$AT$5:$AU$6,2,FALSE) -> 0 | M122: =DataByMiles!G120*VLOOKUP(DataByMiles!AE120,DataByMiles!$AT$5:$AU$6,2,FALSE) -> 0 | P122: =M122*$P$2*VLOOKUP(DataByMiles!AE120,DataByMiles!$AT$5:$AU$6,2,FALSE) -> 0 | Q122: =DataByMiles!H120*VLOOKUP(DataByMiles!AE120,DataByMiles!$AT$5:$AU$6,2,FALSE) -> 0 | T122: =Q122*$T$2*VLOOKUP(DataByMiles!AE120,DataByMiles!$AT$5:$AU$6,2,FALSE) -> 0 | U122: =DataByMiles!I120*VLOOKUP(DataByMiles!AE120,DataByMiles!$AT$5:$AU$6,2,FALSE) -> 0 | X122: =U122*$X$2*VLOOKUP(DataByMiles!AE120,DataByMiles!$AT$5:$AU$6,2,FALSE) -> 0 | Y122: =DataByMiles!J120*VLOOKUP(DataByMiles!AE120,DataByMiles!$AT$5:$AU$6,2,FALSE) -> 0 | Z122: =DataByMiles!K120 -> 0 | AA122: =DataByMiles!L120 -> 0 | AD122: =(Y122/IF(Z122=0,$AD$1,Z122)*$AD$2)/IF(AA122=0,1,AA122)*VLOOKUP(DataByMiles!AE120,DataByMiles!$AT$5:$AU$6,2,FALSE) -> 0 | AF122: 0 | AG122: 0 | AH122: =(AF122+AG122)*VLOOKUP(DataByMiles!AE120,DataByMiles!$AT$5:$AU$6,2,FALSE) -> 0 | AI122: 0
B123: =DataByMiles!C121 -> ----117 | C123: =DataByMiles!E121*VLOOKUP(DataByMiles!AE121,DataByMiles!$AT$5:$AU$6,2,FALSE) -> 0 | F123: 0 | G123: =C123*$G$2*VLOOKUP(DataByMiles!AE121,DataByMiles!$AT$5:$AU$6,2,FALSE) -> 0 | H123: =DataByMiles!F121*VLOOKUP(DataByMiles!AE121,DataByMiles!$AT$5:$AU$6,2,FALSE) -> 0 | K123: 0 | L123: =H123*$L$2*VLOOKUP(DataByMiles!AE121,DataByMiles!$AT$5:$AU$6,2,FALSE) -> 0 | M123: =DataByMiles!G121*VLOOKUP(DataByMiles!AE121,DataByMiles!$AT$5:$AU$6,2,FALSE) -> 0 | P123: =M123*$P$2*VLOOKUP(DataByMiles!AE121,DataByMiles!$AT$5:$AU$6,2,FALSE) -> 0 | Q123: =DataByMiles!H121*VLOOKUP(DataByMiles!AE121,DataByMiles!$AT$5:$AU$6,2,FALSE) -> 0 | T123: =Q123*$T$2*VLOOKUP(DataByMiles!AE121,DataByMiles!$AT$5:$AU$6,2,FALSE) -> 0 | U123: =DataByMiles!I121*VLOOKUP(DataByMiles!AE121,DataByMiles!$AT$5:$AU$6,2,FALSE) -> 0 | X123: =U123*$X$2*VLOOKUP(DataByMiles!AE121,DataByMiles!$AT$5:$AU$6,2,FALSE) -> 0 | Y123: =DataByMiles!J121*VLOOKUP(DataByMiles!AE121,DataByMiles!$AT$5:$AU$6,2,FALSE) -> 0 | Z123: =DataByMiles!K121 -> 0 | AA123: =DataByMiles!L121 -> 0 | AD123: =(Y123/IF(Z123=0,$AD$1,Z123)*$AD$2)/IF(AA123=0,1,AA123)*VLOOKUP(DataByMiles!AE121,DataByMiles!$AT$5:$AU$6,2,FALSE) -> 0 | AF123: 0 | AG123: 0 | AH123: =(AF123+AG123)*VLOOKUP(DataByMiles!AE121,DataByMiles!$AT$5:$AU$6,2,FALSE) -> 0 | AI123: 0
B124: =DataByMiles!C122 -> ----118 | C124: =DataByMiles!E122*VLOOKUP(DataByMiles!AE122,DataByMiles!$AT$5:$AU$6,2,FALSE) -> 0 | F124: 0 | G124: =C124*$G$2*VLOOKUP(DataByMiles!AE122,DataByMiles!$AT$5:$AU$6,2,FALSE) -> 0 | H124: =DataByMiles!F122*VLOOKUP(DataByMiles!AE122,DataByMiles!$AT$5:$AU$6,2,FALSE) -> 0 | K124: 0 | L124: =H124*$L$2*VLOOKUP(DataByMiles!AE122,DataByMiles!$AT$5:$AU$6,2,FALSE) -> 0 | M124: =DataByMiles!G122*VLOOKUP(DataByMiles!AE122,DataByMiles!$AT$5:$AU$6,2,FALSE) -> 0 | P124: =M124*$P$2*VLOOKUP(DataByMiles!AE122,DataByMiles!$AT$5:$AU$6,2,FALSE) -> 0 | Q124: =DataByMiles!H122*VLOOKUP(DataByMiles!AE122,DataByMiles!$AT$5:$AU$6,2,FALSE) -> 0 | T124: =Q124*$T$2*VLOOKUP(DataByMiles!AE122,DataByMiles!$AT$5:$AU$6,2,FALSE) -> 0 | U124: =DataByMiles!I122*VLOOKUP(DataByMiles!AE122,DataByMiles!$AT$5:$AU$6,2,FALSE) -> 0 | X124: =U124*$X$2*VLOOKUP(DataByMiles!AE122,DataByMiles!$AT$5:$AU$6,2,FALSE) -> 0 | Y124: =DataByMiles!J122*VLOOKUP(DataByMiles!AE122,DataByMiles!$AT$5:$AU$6,2,FALSE) -> 0 | Z124: =DataByMiles!K122 -> 0 | AA124: =DataByMiles!L122 -> 0 | AD124: =(Y124/IF(Z124=0,$AD$1,Z124)*$AD$2)/IF(AA124=0,1,AA124)*VLOOKUP(DataByMiles!AE122,DataByMiles!$AT$5:$AU$6,2,FALSE) -> 0 | AF124: 0 | AG124: 0 | AH124: =(AF124+AG124)*VLOOKUP(DataByMiles!AE122,DataByMiles!$AT$5:$AU$6,2,FALSE) -> 0 | AI124: 0
B125: =DataByMiles!C123 -> ----119 | C125: =DataByMiles!E123*VLOOKUP(DataByMiles!AE123,DataByMiles!$AT$5:$AU$6,2,FALSE) -> 0 | F125: 0 | G125: =C125*$G$2*VLOOKUP(DataByMiles!AE123,DataByMiles!$AT$5:$AU$6,2,FALSE) -> 0 | H125: =DataByMiles!F123*VLOOKUP(DataByMiles!AE123,DataByMiles!$AT$5:$AU$6,2,FALSE) -> 0 | K125: 0 | L125: =H125*$L$2*VLOOKUP(DataByMiles!AE123,DataByMiles!$AT$5:$AU$6,2,FALSE) -> 0 | M125: =DataByMiles!G123*VLOOKUP(DataByMiles!AE123,DataByMiles!$AT$5:$AU$6,2,FALSE) -> 0 | P125: =M125*$P$2*VLOOKUP(DataByMiles!AE123,DataByMiles!$AT$5:$AU$6,2,FALSE) -> 0 | Q125: =DataByMiles!H123*VLOOKUP(DataByMiles!AE123,DataByMiles!$AT$5:$AU$6,2,FALSE) -> 0 | T125: =Q125*$T$2*VLOOKUP(DataByMiles!AE123,DataByMiles!$AT$5:$AU$6,2,FALSE) -> 0 | U125: =DataByMiles!I123*VLOOKUP(DataByMiles!AE123,DataByMiles!$AT$5:$AU$6,2,FALSE) -> 0 | X125: =U125*$X$2*VLOOKUP(DataByMiles!AE123,DataByMiles!$AT$5:$AU$6,2,FALSE) -> 0 | Y125: =DataByMiles!J123*VLOOKUP(DataByMiles!AE123,DataByMiles!$AT$5:$AU$6,2,FALSE) -> 0 | Z125: =DataByMiles!K123 -> 0 | AA125: =DataByMiles!L123 -> 0 | AD125: =(Y125/IF(Z125=0,$AD$1,Z125)*$AD$2)/IF(AA125=0,1,AA125)*VLOOKUP(DataByMiles!AE123,DataByMiles!$AT$5:$AU$6,2,FALSE) -> 0 | AF125: 0 | AG125: 0 | AH125: =(AF125+AG125)*VLOOKUP(DataByMiles!AE123,DataByMiles!$AT$5:$AU$6,2,FALSE) -> 0 | AI125: 0
B126: =DataByMiles!C124 -> ----120 | C126: =DataByMiles!E124*VLOOKUP(DataByMiles!AE124,DataByMiles!$AT$5:$AU$6,2,FALSE) -> 0 | F126: 0 | G126: =C126*$G$2*VLOOKUP(DataByMiles!AE124,DataByMiles!$AT$5:$AU$6,2,FALSE) -> 0 | H126: =DataByMiles!F124*VLOOKUP(DataByMiles!AE124,DataByMiles!$AT$5:$AU$6,2,FALSE) -> 0 | K126: 0 | L126: =H126*$L$2*VLOOKUP(DataByMiles!AE124,DataByMiles!$AT$5:$AU$6,2,FALSE) -> 0 | M126: =DataByMiles!G124*VLOOKUP(DataByMiles!AE124,DataByMiles!$AT$5:$AU$6,2,FALSE) -> 0 | P126: =M126*$P$2*VLOOKUP(DataByMiles!AE124,DataByMiles!$AT$5:$AU$6,2,FALSE) -> 0 | Q126: =DataByMiles!H124*VLOOKUP(DataByMiles!AE124,DataByMiles!$AT$5:$AU$6,2,FALSE) -> 0 | T126: =Q126*$T$2*VLOOKUP(DataByMiles!AE124,DataByMiles!$AT$5:$AU$6,2,FALSE) -> 0 | U126: =DataByMiles!I124*VLOOKUP(DataByMiles!AE124,DataByMiles!$AT$5:$AU$6,2,FALSE) -> 0 | X126: =U126*$X$2*VLOOKUP(DataByMiles!AE124,DataByMiles!$AT$5:$AU$6,2,FALSE) -> 0 | Y126: =DataByMiles!J124*VLOOKUP(DataByMiles!AE124,DataByMiles!$AT$5:$AU$6,2,FALSE) -> 0 | Z126: =DataByMiles!K124 -> 0 | AA126: =DataByMiles!L124 -> 0 | AD126: =(Y126/IF(Z126=0,$AD$1,Z126)*$AD$2)/IF(AA126=0,1,AA126)*VLOOKUP(DataByMiles!AE124,DataByMiles!$AT$5:$AU$6,2,FALSE) -> 0 | AF126: 0 | AG126: 0 | AH126: =(AF126+AG126)*VLOOKUP(DataByMiles!AE124,DataByMiles!$AT$5:$AU$6,2,FALSE) -> 0 | AI126: 0
B127: =DataByMiles!C125 -> ----121 | C127: =DataByMiles!E125*VLOOKUP(DataByMiles!AE125,DataByMiles!$AT$5:$AU$6,2,FALSE) -> 0 | F127: 0 | G127: =C127*$G$2*VLOOKUP(DataByMiles!AE125,DataByMiles!$AT$5:$AU$6,2,FALSE) -> 0 | H127: =DataByMiles!F125*VLOOKUP(DataByMiles!AE125,DataByMiles!$AT$5:$AU$6,2,FALSE) -> 0 | K127: 0 | L127: =H127*$L$2*VLOOKUP(DataByMiles!AE125,DataByMiles!$AT$5:$AU$6,2,FALSE) -> 0 | M127: =DataByMiles!G125*VLOOKUP(DataByMiles!AE125,DataByMiles!$AT$5:$AU$6,2,FALSE) -> 0 | P127: =M127*$P$2*VLOOKUP(DataByMiles!AE125,DataByMiles!$AT$5:$AU$6,2,FALSE) -> 0 | Q127: =DataByMiles!H125*VLOOKUP(DataByMiles!AE125,DataByMiles!$AT$5:$AU$6,2,FALSE) -> 0 | T127: =Q127*$T$2*VLOOKUP(DataByMiles!AE125,DataByMiles!$AT$5:$AU$6,2,FALSE) -> 0 | U127: =DataByMiles!I125*VLOOKUP(DataByMiles!AE125,DataByMiles!$AT$5:$AU$6,2,FALSE) -> 0 | X127: =U127*$X$2*VLOOKUP(DataByMiles!AE125,DataByMiles!$AT$5:$AU$6,2,FALSE) -> 0 | Y127: =DataByMiles!J125*VLOOKUP(DataByMiles!AE125,DataByMiles!$AT$5:$AU$6,2,FALSE) -> 0 | Z127: =DataByMiles!K125 -> 0 | AA127: =DataByMiles!L125 -> 0 | AD127: =(Y127/IF(Z127=0,$AD$1,Z127)*$AD$2)/IF(AA127=0,1,AA127)*VLOOKUP(DataByMiles!AE125,DataByMiles!$AT$5:$AU$6,2,FALSE) -> 0 | AF127: 0 | AG127: 0 | AH127: =(AF127+AG127)*VLOOKUP(DataByMiles!AE125,DataByMiles!$AT$5:$AU$6,2,FALSE) -> 0 | AI127: 0
B128: =DataByMiles!C126 -> ----122 | C128: =DataByMiles!E126*VLOOKUP(DataByMiles!AE126,DataByMiles!$AT$5:$AU$6,2,FALSE) -> 0 | F128: 0 | G128: =C128*$G$2*VLOOKUP(DataByMiles!AE126,DataByMiles!$AT$5:$AU$6,2,FALSE) -> 0 | H128: =DataByMiles!F126*VLOOKUP(DataByMiles!AE126,DataByMiles!$AT$5:$AU$6,2,FALSE) -> 0 | K128: 0 | L128: =H128*$L$2*VLOOKUP(DataByMiles!AE126,DataByMiles!$AT$5:$AU$6,2,FALSE) -> 0 | M128: =DataByMiles!G126*VLOOKUP(DataByMiles!AE126,DataByMiles!$AT$5:$AU$6,2,FALSE) -> 0 | P128: =M128*$P$2*VLOOKUP(DataByMiles!AE126,DataByMiles!$AT$5:$AU$6,2,FALSE) -> 0 | Q128: =DataByMiles!H126*VLOOKUP(DataByMiles!AE126,DataByMiles!$AT$5:$AU$6,2,FALSE) -> 0 | T128: =Q128*$T$2*VLOOKUP(DataByMiles!AE126,DataByMiles!$AT$5:$AU$6,2,FALSE) -> 0 | U128: =DataByMiles!I126*VLOOKUP(DataByMiles!AE126,DataByMiles!$AT$5:$AU$6,2,FALSE) -> 0 | X128: =U128*$X$2*VLOOKUP(DataByMiles!AE126,DataByMiles!$AT$5:$AU$6,2,FALSE) -> 0 | Y128: =DataByMiles!J126*VLOOKUP(DataByMiles!AE126,DataByMiles!$AT$5:$AU$6,2,FALSE) -> 0 | Z128: =DataByMiles!K126 -> 0 | AA128: =DataByMiles!L126 -> 0 | AD128: =(Y128/IF(Z128=0,$AD$1,Z128)*$AD$2)/IF(AA128=0,1,AA128)*VLOOKUP(DataByMiles!AE126,DataByMiles!$AT$5:$AU$6,2,FALSE) -> 0 | AF128: 0 | AG128: 0 | AH128: =(AF128+AG128)*VLOOKUP(DataByMiles!AE126,DataByMiles!$AT$5:$AU$6,2,FALSE) -> 0 | AI128: 0
B129: =DataByMiles!C127 -> ----123 | C129: =DataByMiles!E127*VLOOKUP(DataByMiles!AE127,DataByMiles!$AT$5:$AU$6,2,FALSE) -> 0 | F129: 0 | G129: =C129*$G$2*VLOOKUP(DataByMiles!AE127,DataByMiles!$AT$5:$AU$6,2,FALSE) -> 0 | H129: =DataByMiles!F127*VLOOKUP(DataByMiles!AE127,DataByMiles!$AT$5:$AU$6,2,FALSE) -> 0 | K129: 0 | L129: =H129*$L$2*VLOOKUP(DataByMiles!AE127,DataByMiles!$AT$5:$AU$6,2,FALSE) -> 0 | M129: =DataByMiles!G127*VLOOKUP(DataByMiles!AE127,DataByMiles!$AT$5:$AU$6,2,FALSE) -> 0 | P129: =M129*$P$2*VLOOKUP(DataByMiles!AE127,DataByMiles!$AT$5:$AU$6,2,FALSE) -> 0 | Q129: =DataByMiles!H127*VLOOKUP(DataByMiles!AE127,DataByMiles!$AT$5:$AU$6,2,FALSE) -> 0 | T129: =Q129*$T$2*VLOOKUP(DataByMiles!AE127,DataByMiles!$AT$5:$AU$6,2,FALSE) -> 0 | U129: =DataByMiles!I127*VLOOKUP(DataByMiles!AE127,DataByMiles!$AT$5:$AU$6,2,FALSE) -> 0 | X129: =U129*$X$2*VLOOKUP(DataByMiles!AE127,DataByMiles!$AT$5:$AU$6,2,FALSE) -> 0 | Y129: =DataByMiles!J127*VLOOKUP(DataByMiles!AE127,DataByMiles!$AT$5:$AU$6,2,FALSE) -> 0 | Z129: =DataByMiles!K127 -> 0 | AA129: =DataByMiles!L127 -> 0 | AD129: =(Y129/IF(Z129=0,$AD$1,Z129)*$AD$2)/IF(AA129=0,1,AA129)*VLOOKUP(DataByMiles!AE127,DataByMiles!$AT$5:$AU$6,2,FALSE) -> 0 | AF129: 0 | AG129: 0 | AH129: =(AF129+AG129)*VLOOKUP(DataByMiles!AE127,DataByMiles!$AT$5:$AU$6,2,FALSE) -> 0 | AI129: 0
B130: =DataByMiles!C128 -> ----124 | C130: =DataByMiles!E128*VLOOKUP(DataByMiles!AE128,DataByMiles!$AT$5:$AU$6,2,FALSE) -> 0 | F130: 0 | G130: =C130*$G$2*VLOOKUP(DataByMiles!AE128,DataByMiles!$AT$5:$AU$6,2,FALSE) -> 0 | H130: =DataByMiles!F128*VLOOKUP(DataByMiles!AE128,DataByMiles!$AT$5:$AU$6,2,FALSE) -> 0 | K130: 0 | L130: =H130*$L$2*VLOOKUP(DataByMiles!AE128,DataByMiles!$AT$5:$AU$6,2,FALSE) -> 0 | M130: =DataByMiles!G128*VLOOKUP(DataByMiles!AE128,DataByMiles!$AT$5:$AU$6,2,FALSE) -> 0 | P130: =M130*$P$2*VLOOKUP(DataByMiles!AE128,DataByMiles!$AT$5:$AU$6,2,FALSE) -> 0 | Q130: =DataByMiles!H128*VLOOKUP(DataByMiles!AE128,DataByMiles!$AT$5:$AU$6,2,FALSE) -> 0 | T130: =Q130*$T$2*VLOOKUP(DataByMiles!AE128,DataByMiles!$AT$5:$AU$6,2,FALSE) -> 0 | U130: =DataByMiles!I128*VLOOKUP(DataByMiles!AE128,DataByMiles!$AT$5:$AU$6,2,FALSE) -> 0 | X130: =U130*$X$2*VLOOKUP(DataByMiles!AE128,DataByMiles!$AT$5:$AU$6,2,FALSE) -> 0 | Y130: =DataByMiles!J128*VLOOKUP(DataByMiles!AE128,DataByMiles!$AT$5:$AU$6,2,FALSE) -> 0 | Z130: =DataByMiles!K128 -> 0 | AA130: =DataByMiles!L128 -> 0 | AD130: =(Y130/IF(Z130=0,$AD$1,Z130)*$AD$2)/IF(AA130=0,1,AA130)*VLOOKUP(DataByMiles!AE128,DataByMiles!$AT$5:$AU$6,2,FALSE) -> 0 | AF130: 0 | AG130: 0 | AH130: =(AF130+AG130)*VLOOKUP(DataByMiles!AE128,DataByMiles!$AT$5:$AU$6,2,FALSE) -> 0 | AI130: 0
B131: =DataByMiles!C129 -> ----125 | C131: =DataByMiles!E129*VLOOKUP(DataByMiles!AE129,DataByMiles!$AT$5:$AU$6,2,FALSE) -> 0 | F131: 0 | G131: =C131*$G$2*VLOOKUP(DataByMiles!AE129,DataByMiles!$AT$5:$AU$6,2,FALSE) -> 0 | H131: =DataByMiles!F129*VLOOKUP(DataByMiles!AE129,DataByMiles!$AT$5:$AU$6,2,FALSE) -> 0 | K131: 0 | L131: =H131*$L$2*VLOOKUP(DataByMiles!AE129,DataByMiles!$AT$5:$AU$6,2,FALSE) -> 0 | M131: =DataByMiles!G129*VLOOKUP(DataByMiles!AE129,DataByMiles!$AT$5:$AU$6,2,FALSE) -> 0 | P131: =M131*$P$2*VLOOKUP(DataByMiles!AE129,DataByMiles!$AT$5:$AU$6,2,FALSE) -> 0 | Q131: =DataByMiles!H129*VLOOKUP(DataByMiles!AE129,DataByMiles!$AT$5:$AU$6,2,FALSE) -> 0 | T131: =Q131*$T$2*VLOOKUP(DataByMiles!AE129,DataByMiles!$AT$5:$AU$6,2,FALSE) -> 0 | U131: =DataByMiles!I129*VLOOKUP(DataByMiles!AE129,DataByMiles!$AT$5:$AU$6,2,FALSE) -> 0 | X131: =U131*$X$2*VLOOKUP(DataByMiles!AE129,DataByMiles!$AT$5:$AU$6,2,FALSE) -> 0 | Y131: =DataByMiles!J129*VLOOKUP(DataByMiles!AE129,DataByMiles!$AT$5:$AU$6,2,FALSE) -> 0 | Z131: =DataByMiles!K129 -> 0 | AA131: =DataByMiles!L129 -> 0 | AD131: =(Y131/IF(Z131=0,$AD$1,Z131)*$AD$2)/IF(AA131=0,1,AA131)*VLOOKUP(DataByMiles!AE129,DataByMiles!$AT$5:$AU$6,2,FALSE) -> 0 | AF131: 0 | AG131: 0 | AH131: =(AF131+AG131)*VLOOKUP(DataByMiles!AE129,DataByMiles!$AT$5:$AU$6,2,FALSE) -> 0 | AI131: 0
B132: =DataByMiles!C130 -> ----126 | C132: =DataByMiles!E130*VLOOKUP(DataByMiles!AE130,DataByMiles!$AT$5:$AU$6,2,FALSE) -> 0 | F132: 0 | G132: =C132*$G$2*VLOOKUP(DataByMiles!AE130,DataByMiles!$AT$5:$AU$6,2,FALSE) -> 0 | H132: =DataByMiles!F130*VLOOKUP(DataByMiles!AE130,DataByMiles!$AT$5:$AU$6,2,FALSE) -> 0 | K132: 0 | L132: =H132*$L$2*VLOOKUP(DataByMiles!AE130,DataByMiles!$AT$5:$AU$6,2,FALSE) -> 0 | M132: =DataByMiles!G130*VLOOKUP(DataByMiles!AE130,DataByMiles!$AT$5:$AU$6,2,FALSE) -> 0 | P132: =M132*$P$2*VLOOKUP(DataByMiles!AE130,DataByMiles!$AT$5:$AU$6,2,FALSE) -> 0 | Q132: =DataByMiles!H130*VLOOKUP(DataByMiles!AE130,DataByMiles!$AT$5:$AU$6,2,FALSE) -> 0 | T132: =Q132*$T$2*VLOOKUP(DataByMiles!AE130,DataByMiles!$AT$5:$AU$6,2,FALSE) -> 0 | U132: =DataByMiles!I130*VLOOKUP(DataByMiles!AE130,DataByMiles!$AT$5:$AU$6,2,FALSE) -> 0 | X132: =U132*$X$2*VLOOKUP(DataByMiles!AE130,DataByMiles!$AT$5:$AU$6,2,FALSE) -> 0 | Y132: =DataByMiles!J130*VLOOKUP(DataByMiles!AE130,DataByMiles!$AT$5:$AU$6,2,FALSE) -> 0 | Z132: =DataByMiles!K130 -> 0 | AA132: =DataByMiles!L130 -> 0 | AD132: =(Y132/IF(Z132=0,$AD$1,Z132)*$AD$2)/IF(AA132=0,1,AA132)*VLOOKUP(DataByMiles!AE130,DataByMiles!$AT$5:$AU$6,2,FALSE) -> 0 | AF132: 0 | AG132: 0 | AH132: =(AF132+AG132)*VLOOKUP(DataByMiles!AE130,DataByMiles!$AT$5:$AU$6,2,FALSE) -> 0 | AI132: 0
B133: =DataByMiles!C131 -> ----127 | C133: =DataByMiles!E131*VLOOKUP(DataByMiles!AE131,DataByMiles!$AT$5:$AU$6,2,FALSE) -> 0 | F133: 0 | G133: =C133*$G$2*VLOOKUP(DataByMiles!AE131,DataByMiles!$AT$5:$AU$6,2,FALSE) -> 0 | H133: =DataByMiles!F131*VLOOKUP(DataByMiles!AE131,DataByMiles!$AT$5:$AU$6,2,FALSE) -> 0 | K133: 0 | L133: =H133*$L$2*VLOOKUP(DataByMiles!AE131,DataByMiles!$AT$5:$AU$6,2,FALSE) -> 0 | M133: =DataByMiles!G131*VLOOKUP(DataByMiles!AE131,DataByMiles!$AT$5:$AU$6,2,FALSE) -> 0 | P133: =M133*$P$2*VLOOKUP(DataByMiles!AE131,DataByMiles!$AT$5:$AU$6,2,FALSE) -> 0 | Q133: =DataByMiles!H131*VLOOKUP(DataByMiles!AE131,DataByMiles!$AT$5:$AU$6,2,FALSE) -> 0 | T133: =Q133*$T$2*VLOOKUP(DataByMiles!AE131,DataByMiles!$AT$5:$AU$6,2,FALSE) -> 0 | U133: =DataByMiles!I131*VLOOKUP(DataByMiles!AE131,DataByMiles!$AT$5:$AU$6,2,FALSE) -> 0 | X133: =U133*$X$2*VLOOKUP(DataByMiles!AE131,DataByMiles!$AT$5:$AU$6,2,FALSE) -> 0 | Y133: =DataByMiles!J131*VLOOKUP(DataByMiles!AE131,DataByMiles!$AT$5:$AU$6,2,FALSE) -> 0 | Z133: =DataByMiles!K131 -> 0 | AA133: =DataByMiles!L131 -> 0 | AD133: =(Y133/IF(Z133=0,$AD$1,Z133)*$AD$2)/IF(AA133=0,1,AA133)*VLOOKUP(DataByMiles!AE131,DataByMiles!$AT$5:$AU$6,2,FALSE) -> 0 | AF133: 0 | AG133: 0 | AH133: =(AF133+AG133)*VLOOKUP(DataByMiles!AE131,DataByMiles!$AT$5:$AU$6,2,FALSE) -> 0 | AI133: 0
B134: =DataByMiles!C132 -> ----128 | C134: =DataByMiles!E132*VLOOKUP(DataByMiles!AE132,DataByMiles!$AT$5:$AU$6,2,FALSE) -> 0 | F134: 0 | G134: =C134*$G$2*VLOOKUP(DataByMiles!AE132,DataByMiles!$AT$5:$AU$6,2,FALSE) -> 0 | H134: =DataByMiles!F132*VLOOKUP(DataByMiles!AE132,DataByMiles!$AT$5:$AU$6,2,FALSE) -> 0 | K134: 0 | L134: =H134*$L$2*VLOOKUP(DataByMiles!AE132,DataByMiles!$AT$5:$AU$6,2,FALSE) -> 0 | M134: =DataByMiles!G132*VLOOKUP(DataByMiles!AE132,DataByMiles!$AT$5:$AU$6,2,FALSE) -> 0 | P134: =M134*$P$2*VLOOKUP(DataByMiles!AE132,DataByMiles!$AT$5:$AU$6,2,FALSE) -> 0 | Q134: =DataByMiles!H132*VLOOKUP(DataByMiles!AE132,DataByMiles!$AT$5:$AU$6,2,FALSE) -> 0 | T134: =Q134*$T$2*VLOOKUP(DataByMiles!AE132,DataByMiles!$AT$5:$AU$6,2,FALSE) -> 0 | U134: =DataByMiles!I132*VLOOKUP(DataByMiles!AE132,DataByMiles!$AT$5:$AU$6,2,FALSE) -> 0 | X134: =U134*$X$2*VLOOKUP(DataByMiles!AE132,DataByMiles!$AT$5:$AU$6,2,FALSE) -> 0 | Y134: =DataByMiles!J132*VLOOKUP(DataByMiles!AE132,DataByMiles!$AT$5:$AU$6,2,FALSE) -> 0 | Z134: =DataByMiles!K132 -> 0 | AA134: =DataByMiles!L132 -> 0 | AD134: =(Y134/IF(Z134=0,$AD$1,Z134)*$AD$2)/IF(AA134=0,1,AA134)*VLOOKUP(DataByMiles!AE132,DataByMiles!$AT$5:$AU$6,2,FALSE) -> 0 | AF134: 0 | AG134: 0 | AH134: =(AF134+AG134)*VLOOKUP(DataByMiles!AE132,DataByMiles!$AT$5:$AU$6,2,FALSE) -> 0 | AI134: 0
B135: =DataByMiles!C133 -> ----129 | C135: =DataByMiles!E133*VLOOKUP(DataByMiles!AE133,DataByMiles!$AT$5:$AU$6,2,FALSE) -> 0 | F135: 0 | G135: =C135*$G$2*VLOOKUP(DataByMiles!AE133,DataByMiles!$AT$5:$AU$6,2,FALSE) -> 0 | H135: =DataByMiles!F133*VLOOKUP(DataByMiles!AE133,DataByMiles!$AT$5:$AU$6,2,FALSE) -> 0 | K135: 0 | L135: =H135*$L$2*VLOOKUP(DataByMiles!AE133,DataByMiles!$AT$5:$AU$6,2,FALSE) -> 0 | M135: =DataByMiles!G133*VLOOKUP(DataByMiles!AE133,DataByMiles!$AT$5:$AU$6,2,FALSE) -> 0 | P135: =M135*$P$2*VLOOKUP(DataByMiles!AE133,DataByMiles!$AT$5:$AU$6,2,FALSE) -> 0 | Q135: =DataByMiles!H133*VLOOKUP(DataByMiles!AE133,DataByMiles!$AT$5:$AU$6,2,FALSE) -> 0 | T135: =Q135*$T$2*VLOOKUP(DataByMiles!AE133,DataByMiles!$AT$5:$AU$6,2,FALSE) -> 0 | U135: =DataByMiles!I133*VLOOKUP(DataByMiles!AE133,DataByMiles!$AT$5:$AU$6,2,FALSE) -> 0 | X135: =U135*$X$2*VLOOKUP(DataByMiles!AE133,DataByMiles!$AT$5:$AU$6,2,FALSE) -> 0 | Y135: =DataByMiles!J133*VLOOKUP(DataByMiles!AE133,DataByMiles!$AT$5:$AU$6,2,FALSE) -> 0 | Z135: =DataByMiles!K133 -> 0 | AA135: =DataByMiles!L133 -> 0 | AD135: =(Y135/IF(Z135=0,$AD$1,Z135)*$AD$2)/IF(AA135=0,1,AA135)*VLOOKUP(DataByMiles!AE133,DataByMiles!$AT$5:$AU$6,2,FALSE) -> 0 | AF135: 0 | AG135: 0 | AH135: =(AF135+AG135)*VLOOKUP(DataByMiles!AE133,DataByMiles!$AT$5:$AU$6,2,FALSE) -> 0 | AI135: 0
B136: =DataByMiles!C134 -> ----130 | C136: =DataByMiles!E134*VLOOKUP(DataByMiles!AE134,DataByMiles!$AT$5:$AU$6,2,FALSE) -> 0 | F136: 0 | G136: =C136*$G$2*VLOOKUP(DataByMiles!AE134,DataByMiles!$AT$5:$AU$6,2,FALSE) -> 0 | H136: =DataByMiles!F134*VLOOKUP(DataByMiles!AE134,DataByMiles!$AT$5:$AU$6,2,FALSE) -> 0 | K136: 0 | L136: =H136*$L$2*VLOOKUP(DataByMiles!AE134,DataByMiles!$AT$5:$AU$6,2,FALSE) -> 0 | M136: =DataByMiles!G134*VLOOKUP(DataByMiles!AE134,DataByMiles!$AT$5:$AU$6,2,FALSE) -> 0 | P136: =M136*$P$2*VLOOKUP(DataByMiles!AE134,DataByMiles!$AT$5:$AU$6,2,FALSE) -> 0 | Q136: =DataByMiles!H134*VLOOKUP(DataByMiles!AE134,DataByMiles!$AT$5:$AU$6,2,FALSE) -> 0 | T136: =Q136*$T$2*VLOOKUP(DataByMiles!AE134,DataByMiles!$AT$5:$AU$6,2,FALSE) -> 0 | U136: =DataByMiles!I134*VLOOKUP(DataByMiles!AE134,DataByMiles!$AT$5:$AU$6,2,FALSE) -> 0 | X136: =U136*$X$2*VLOOKUP(DataByMiles!AE134,DataByMiles!$AT$5:$AU$6,2,FALSE) -> 0 | Y136: =DataByMiles!J134*VLOOKUP(DataByMiles!AE134,DataByMiles!$AT$5:$AU$6,2,FALSE) -> 0 | Z136: =DataByMiles!K134 -> 0 | AA136: =DataByMiles!L134 -> 0 | AD136: =(Y136/IF(Z136=0,$AD$1,Z136)*$AD$2)/IF(AA136=0,1,AA136)*VLOOKUP(DataByMiles!AE134,DataByMiles!$AT$5:$AU$6,2,FALSE) -> 0 | AF136: 0 | AG136: 0 | AH136: =(AF136+AG136)*VLOOKUP(DataByMiles!AE134,DataByMiles!$AT$5:$AU$6,2,FALSE) -> 0 | AI136: 0
B137: =DataByMiles!C135 -> ----131 | C137: =DataByMiles!E135*VLOOKUP(DataByMiles!AE135,DataByMiles!$AT$5:$AU$6,2,FALSE) -> 0 | F137: 0 | G137: =C137*$G$2*VLOOKUP(DataByMiles!AE135,DataByMiles!$AT$5:$AU$6,2,FALSE) -> 0 | H137: =DataByMiles!F135*VLOOKUP(DataByMiles!AE135,DataByMiles!$AT$5:$AU$6,2,FALSE) -> 0 | K137: 0 | L137: =H137*$L$2*VLOOKUP(DataByMiles!AE135,DataByMiles!$AT$5:$AU$6,2,FALSE) -> 0 | M137: =DataByMiles!G135*VLOOKUP(DataByMiles!AE135,DataByMiles!$AT$5:$AU$6,2,FALSE) -> 0 | P137: =M137*$P$2*VLOOKUP(DataByMiles!AE135,DataByMiles!$AT$5:$AU$6,2,FALSE) -> 0 | Q137: =DataByMiles!H135*VLOOKUP(DataByMiles!AE135,DataByMiles!$AT$5:$AU$6,2,FALSE) -> 0 | T137: =Q137*$T$2*VLOOKUP(DataByMiles!AE135,DataByMiles!$AT$5:$AU$6,2,FALSE) -> 0 | U137: =DataByMiles!I135*VLOOKUP(DataByMiles!AE135,DataByMiles!$AT$5:$AU$6,2,FALSE) -> 0 | X137: =U137*$X$2*VLOOKUP(DataByMiles!AE135,DataByMiles!$AT$5:$AU$6,2,FALSE) -> 0 | Y137: =DataByMiles!J135*VLOOKUP(DataByMiles!AE135,DataByMiles!$AT$5:$AU$6,2,FALSE) -> 0 | Z137: =DataByMiles!K135 -> 0 | AA137: =DataByMiles!L135 -> 0 | AD137: =(Y137/IF(Z137=0,$AD$1,Z137)*$AD$2)/IF(AA137=0,1,AA137)*VLOOKUP(DataByMiles!AE135,DataByMiles!$AT$5:$AU$6,2,FALSE) -> 0 | AF137: 0 | AG137: 0 | AH137: =(AF137+AG137)*VLOOKUP(DataByMiles!AE135,DataByMiles!$AT$5:$AU$6,2,FALSE) -> 0 | AI137: 0
B138: =DataByMiles!C136 -> ----132 | C138: =DataByMiles!E136*VLOOKUP(DataByMiles!AE136,DataByMiles!$AT$5:$AU$6,2,FALSE) -> 0 | F138: 0 | G138: =C138*$G$2*VLOOKUP(DataByMiles!AE136,DataByMiles!$AT$5:$AU$6,2,FALSE) -> 0 | H138: =DataByMiles!F136*VLOOKUP(DataByMiles!AE136,DataByMiles!$AT$5:$AU$6,2,FALSE) -> 0 | K138: 0 | L138: =H138*$L$2*VLOOKUP(DataByMiles!AE136,DataByMiles!$AT$5:$AU$6,2,FALSE) -> 0 | M138: =DataByMiles!G136*VLOOKUP(DataByMiles!AE136,DataByMiles!$AT$5:$AU$6,2,FALSE) -> 0 | P138: =M138*$P$2*VLOOKUP(DataByMiles!AE136,DataByMiles!$AT$5:$AU$6,2,FALSE) -> 0 | Q138: =DataByMiles!H136*VLOOKUP(DataByMiles!AE136,DataByMiles!$AT$5:$AU$6,2,FALSE) -> 0 | T138: =Q138*$T$2*VLOOKUP(DataByMiles!AE136,DataByMiles!$AT$5:$AU$6,2,FALSE) -> 0 | U138: =DataByMiles!I136*VLOOKUP(DataByMiles!AE136,DataByMiles!$AT$5:$AU$6,2,FALSE) -> 0 | X138: =U138*$X$2*VLOOKUP(DataByMiles!AE136,DataByMiles!$AT$5:$AU$6,2,FALSE) -> 0 | Y138: =DataByMiles!J136*VLOOKUP(DataByMiles!AE136,DataByMiles!$AT$5:$AU$6,2,FALSE) -> 0 | Z138: =DataByMiles!K136 -> 0 | AA138: =DataByMiles!L136 -> 0 | AD138: =(Y138/IF(Z138=0,$AD$1,Z138)*$AD$2)/IF(AA138=0,1,AA138)*VLOOKUP(DataByMiles!AE136,DataByMiles!$AT$5:$AU$6,2,FALSE) -> 0 | AF138: 0 | AG138: 0 | AH138: =(AF138+AG138)*VLOOKUP(DataByMiles!AE136,DataByMiles!$AT$5:$AU$6,2,FALSE) -> 0 | AI138: 0
B139: =DataByMiles!C137 -> ----133 | C139: =DataByMiles!E137*VLOOKUP(DataByMiles!AE137,DataByMiles!$AT$5:$AU$6,2,FALSE) -> 0 | F139: 0 | G139: =C139*$G$2*VLOOKUP(DataByMiles!AE137,DataByMiles!$AT$5:$AU$6,2,FALSE) -> 0 | H139: =DataByMiles!F137*VLOOKUP(DataByMiles!AE137,DataByMiles!$AT$5:$AU$6,2,FALSE) -> 0 | K139: 0 | L139: =H139*$L$2*VLOOKUP(DataByMiles!AE137,DataByMiles!$AT$5:$AU$6,2,FALSE) -> 0 | M139: =DataByMiles!G137*VLOOKUP(DataByMiles!AE137,DataByMiles!$AT$5:$AU$6,2,FALSE) -> 0 | P139: =M139*$P$2*VLOOKUP(DataByMiles!AE137,DataByMiles!$AT$5:$AU$6,2,FALSE) -> 0 | Q139: =DataByMiles!H137*VLOOKUP(DataByMiles!AE137,DataByMiles!$AT$5:$AU$6,2,FALSE) -> 0 | T139: =Q139*$T$2*VLOOKUP(DataByMiles!AE137,DataByMiles!$AT$5:$AU$6,2,FALSE) -> 0 | U139: =DataByMiles!I137*VLOOKUP(DataByMiles!AE137,DataByMiles!$AT$5:$AU$6,2,FALSE) -> 0 | X139: =U139*$X$2*VLOOKUP(DataByMiles!AE137,DataByMiles!$AT$5:$AU$6,2,FALSE) -> 0 | Y139: =DataByMiles!J137*VLOOKUP(DataByMiles!AE137,DataByMiles!$AT$5:$AU$6,2,FALSE) -> 0 | Z139: =DataByMiles!K137 -> 0 | AA139: =DataByMiles!L137 -> 0 | AD139: =(Y139/IF(Z139=0,$AD$1,Z139)*$AD$2)/IF(AA139=0,1,AA139)*VLOOKUP(DataByMiles!AE137,DataByMiles!$AT$5:$AU$6,2,FALSE) -> 0 | AF139: 0 | AG139: 0 | AH139: =(AF139+AG139)*VLOOKUP(DataByMiles!AE137,DataByMiles!$AT$5:$AU$6,2,FALSE) -> 0 | AI139: 0
B140: =DataByMiles!C138 -> ----134 | C140: =DataByMiles!E138*VLOOKUP(DataByMiles!AE138,DataByMiles!$AT$5:$AU$6,2,FALSE) -> 0 | F140: 0 | G140: =C140*$G$2*VLOOKUP(DataByMiles!AE138,DataByMiles!$AT$5:$AU$6,2,FALSE) -> 0 | H140: =DataByMiles!F138*VLOOKUP(DataByMiles!AE138,DataByMiles!$AT$5:$AU$6,2,FALSE) -> 0 | K140: 0 | L140: =H140*$L$2*VLOOKUP(DataByMiles!AE138,DataByMiles!$AT$5:$AU$6,2,FALSE) -> 0 | M140: =DataByMiles!G138*VLOOKUP(DataByMiles!AE138,DataByMiles!$AT$5:$AU$6,2,FALSE) -> 0 | P140: =M140*$P$2*VLOOKUP(DataByMiles!AE138,DataByMiles!$AT$5:$AU$6,2,FALSE) -> 0 | Q140: =DataByMiles!H138*VLOOKUP(DataByMiles!AE138,DataByMiles!$AT$5:$AU$6,2,FALSE) -> 0 | T140: =Q140*$T$2*VLOOKUP(DataByMiles!AE138,DataByMiles!$AT$5:$AU$6,2,FALSE) -> 0 | U140: =DataByMiles!I138*VLOOKUP(DataByMiles!AE138,DataByMiles!$AT$5:$AU$6,2,FALSE) -> 0 | X140: =U140*$X$2*VLOOKUP(DataByMiles!AE138,DataByMiles!$AT$5:$AU$6,2,FALSE) -> 0 | Y140: =DataByMiles!J138*VLOOKUP(DataByMiles!AE138,DataByMiles!$AT$5:$AU$6,2,FALSE) -> 0 | Z140: =DataByMiles!K138 -> 0 | AA140: =DataByMiles!L138 -> 0 | AD140: =(Y140/IF(Z140=0,$AD$1,Z140)*$AD$2)/IF(AA140=0,1,AA140)*VLOOKUP(DataByMiles!AE138,DataByMiles!$AT$5:$AU$6,2,FALSE) -> 0 | AF140: 0 | AG140: 0 | AH140: =(AF140+AG140)*VLOOKUP(DataByMiles!AE138,DataByMiles!$AT$5:$AU$6,2,FALSE) -> 0 | AI140: 0
B141: =DataByMiles!C139 -> ----135 | C141: =DataByMiles!E139*VLOOKUP(DataByMiles!AE139,DataByMiles!$AT$5:$AU$6,2,FALSE) -> 0 | F141: 0 | G141: =C141*$G$2*VLOOKUP(DataByMiles!AE139,DataByMiles!$AT$5:$AU$6,2,FALSE) -> 0 | H141: =DataByMiles!F139*VLOOKUP(DataByMiles!AE139,DataByMiles!$AT$5:$AU$6,2,FALSE) -> 0 | K141: 0 | L141: =H141*$L$2*VLOOKUP(DataByMiles!AE139,DataByMiles!$AT$5:$AU$6,2,FALSE) -> 0 | M141: =DataByMiles!G139*VLOOKUP(DataByMiles!AE139,DataByMiles!$AT$5:$AU$6,2,FALSE) -> 0 | P141: =M141*$P$2*VLOOKUP(DataByMiles!AE139,DataByMiles!$AT$5:$AU$6,2,FALSE) -> 0 | Q141: =DataByMiles!H139*VLOOKUP(DataByMiles!AE139,DataByMiles!$AT$5:$AU$6,2,FALSE) -> 0 | T141: =Q141*$T$2*VLOOKUP(DataByMiles!AE139,DataByMiles!$AT$5:$AU$6,2,FALSE) -> 0 | U141: =DataByMiles!I139*VLOOKUP(DataByMiles!AE139,DataByMiles!$AT$5:$AU$6,2,FALSE) -> 0 | X141: =U141*$X$2*VLOOKUP(DataByMiles!AE139,DataByMiles!$AT$5:$AU$6,2,FALSE) -> 0 | Y141: =DataByMiles!J139*VLOOKUP(DataByMiles!AE139,DataByMiles!$AT$5:$AU$6,2,FALSE) -> 0 | Z141: =DataByMiles!K139 -> 0 | AA141: =DataByMiles!L139 -> 0 | AD141: =(Y141/IF(Z141=0,$AD$1,Z141)*$AD$2)/IF(AA141=0,1,AA141)*VLOOKUP(DataByMiles!AE139,DataByMiles!$AT$5:$AU$6,2,FALSE) -> 0 | AF141: 0 | AG141: 0 | AH141: =(AF141+AG141)*VLOOKUP(DataByMiles!AE139,DataByMiles!$AT$5:$AU$6,2,FALSE) -> 0 | AI141: 0
B142: =DataByMiles!C140 -> ----136 | C142: =DataByMiles!E140*VLOOKUP(DataByMiles!AE140,DataByMiles!$AT$5:$AU$6,2,FALSE) -> 0 | F142: 0 | G142: =C142*$G$2*VLOOKUP(DataByMiles!AE140,DataByMiles!$AT$5:$AU$6,2,FALSE) -> 0 | H142: =DataByMiles!F140*VLOOKUP(DataByMiles!AE140,DataByMiles!$AT$5:$AU$6,2,FALSE) -> 0 | K142: 0 | L142: =H142*$L$2*VLOOKUP(DataByMiles!AE140,DataByMiles!$AT$5:$AU$6,2,FALSE) -> 0 | M142: =DataByMiles!G140*VLOOKUP(DataByMiles!AE140,DataByMiles!$AT$5:$AU$6,2,FALSE) -> 0 | P142: =M142*$P$2*VLOOKUP(DataByMiles!AE140,DataByMiles!$AT$5:$AU$6,2,FALSE) -> 0 | Q142: =DataByMiles!H140*VLOOKUP(DataByMiles!AE140,DataByMiles!$AT$5:$AU$6,2,FALSE) -> 0 | T142: =Q142*$T$2*VLOOKUP(DataByMiles!AE140,DataByMiles!$AT$5:$AU$6,2,FALSE) -> 0 | U142: =DataByMiles!I140*VLOOKUP(DataByMiles!AE140,DataByMiles!$AT$5:$AU$6,2,FALSE) -> 0 | X142: =U142*$X$2*VLOOKUP(DataByMiles!AE140,DataByMiles!$AT$5:$AU$6,2,FALSE) -> 0 | Y142: =DataByMiles!J140*VLOOKUP(DataByMiles!AE140,DataByMiles!$AT$5:$AU$6,2,FALSE) -> 0 | Z142: =DataByMiles!K140 -> 0 | AA142: =DataByMiles!L140 -> 0 | AD142: =(Y142/IF(Z142=0,$AD$1,Z142)*$AD$2)/IF(AA142=0,1,AA142)*VLOOKUP(DataByMiles!AE140,DataByMiles!$AT$5:$AU$6,2,FALSE) -> 0 | AF142: 0 | AG142: 0 | AH142: =(AF142+AG142)*VLOOKUP(DataByMiles!AE140,DataByMiles!$AT$5:$AU$6,2,FALSE) -> 0 | AI142: 0
B143: =DataByMiles!C141 -> ----137 | C143: =DataByMiles!E141*VLOOKUP(DataByMiles!AE141,DataByMiles!$AT$5:$AU$6,2,FALSE) -> 0 | F143: 0 | G143: =C143*$G$2*VLOOKUP(DataByMiles!AE141,DataByMiles!$AT$5:$AU$6,2,FALSE) -> 0 | H143: =DataByMiles!F141*VLOOKUP(DataByMiles!AE141,DataByMiles!$AT$5:$AU$6,2,FALSE) -> 0 | K143: 0 | L143: =H143*$L$2*VLOOKUP(DataByMiles!AE141,DataByMiles!$AT$5:$AU$6,2,FALSE) -> 0 | M143: =DataByMiles!G141*VLOOKUP(DataByMiles!AE141,DataByMiles!$AT$5:$AU$6,2,FALSE) -> 0 | P143: =M143*$P$2*VLOOKUP(DataByMiles!AE141,DataByMiles!$AT$5:$AU$6,2,FALSE) -> 0 | Q143: =DataByMiles!H141*VLOOKUP(DataByMiles!AE141,DataByMiles!$AT$5:$AU$6,2,FALSE) -> 0 | T143: =Q143*$T$2*VLOOKUP(DataByMiles!AE141,DataByMiles!$AT$5:$AU$6,2,FALSE) -> 0 | U143: =DataByMiles!I141*VLOOKUP(DataByMiles!AE141,DataByMiles!$AT$5:$AU$6,2,FALSE) -> 0 | X143: =U143*$X$2*VLOOKUP(DataByMiles!AE141,DataByMiles!$AT$5:$AU$6,2,FALSE) -> 0 | Y143: =DataByMiles!J141*VLOOKUP(DataByMiles!AE141,DataByMiles!$AT$5:$AU$6,2,FALSE) -> 0 | Z143: =DataByMiles!K141 -> 0 | AA143: =DataByMiles!L141 -> 0 | AD143: =(Y143/IF(Z143=0,$AD$1,Z143)*$AD$2)/IF(AA143=0,1,AA143)*VLOOKUP(DataByMiles!AE141,DataByMiles!$AT$5:$AU$6,2,FALSE) -> 0 | AF143: 0 | AG143: 0 | AH143: =(AF143+AG143)*VLOOKUP(DataByMiles!AE141,DataByMiles!$AT$5:$AU$6,2,FALSE) -> 0 | AI143: 0
B144: =DataByMiles!C142 -> ----138 | C144: =DataByMiles!E142*VLOOKUP(DataByMiles!AE142,DataByMiles!$AT$5:$AU$6,2,FALSE) -> 0 | F144: 0 | G144: =C144*$G$2*VLOOKUP(DataByMiles!AE142,DataByMiles!$AT$5:$AU$6,2,FALSE) -> 0 | H144: =DataByMiles!F142*VLOOKUP(DataByMiles!AE142,DataByMiles!$AT$5:$AU$6,2,FALSE) -> 0 | K144: 0 | L144: =H144*$L$2*VLOOKUP(DataByMiles!AE142,DataByMiles!$AT$5:$AU$6,2,FALSE) -> 0 | M144: =DataByMiles!G142*VLOOKUP(DataByMiles!AE142,DataByMiles!$AT$5:$AU$6,2,FALSE) -> 0 | P144: =M144*$P$2*VLOOKUP(DataByMiles!AE142,DataByMiles!$AT$5:$AU$6,2,FALSE) -> 0 | Q144: =DataByMiles!H142*VLOOKUP(DataByMiles!AE142,DataByMiles!$AT$5:$AU$6,2,FALSE) -> 0 | T144: =Q144*$T$2*VLOOKUP(DataByMiles!AE142,DataByMiles!$AT$5:$AU$6,2,FALSE) -> 0 | U144: =DataByMiles!I142*VLOOKUP(DataByMiles!AE142,DataByMiles!$AT$5:$AU$6,2,FALSE) -> 0 | X144: =U144*$X$2*VLOOKUP(DataByMiles!AE142,DataByMiles!$AT$5:$AU$6,2,FALSE) -> 0 | Y144: =DataByMiles!J142*VLOOKUP(DataByMiles!AE142,DataByMiles!$AT$5:$AU$6,2,FALSE) -> 0 | Z144: =DataByMiles!K142 -> 0 | AA144: =DataByMiles!L142 -> 0 | AD144: =(Y144/IF(Z144=0,$AD$1,Z144)*$AD$2)/IF(AA144=0,1,AA144)*VLOOKUP(DataByMiles!AE142,DataByMiles!$AT$5:$AU$6,2,FALSE) -> 0 | AF144: 0 | AG144: 0 | AH144: =(AF144+AG144)*VLOOKUP(DataByMiles!AE142,DataByMiles!$AT$5:$AU$6,2,FALSE) -> 0 | AI144: 0
B145: =DataByMiles!C143 -> ----139 | C145: =DataByMiles!E143*VLOOKUP(DataByMiles!AE143,DataByMiles!$AT$5:$AU$6,2,FALSE) -> 0 | F145: 0 | G145: =C145*$G$2*VLOOKUP(DataByMiles!AE143,DataByMiles!$AT$5:$AU$6,2,FALSE) -> 0 | H145: =DataByMiles!F143*VLOOKUP(DataByMiles!AE143,DataByMiles!$AT$5:$AU$6,2,FALSE) -> 0 | K145: 0 | L145: =H145*$L$2*VLOOKUP(DataByMiles!AE143,DataByMiles!$AT$5:$AU$6,2,FALSE) -> 0 | M145: =DataByMiles!G143*VLOOKUP(DataByMiles!AE143,DataByMiles!$AT$5:$AU$6,2,FALSE) -> 0 | P145: =M145*$P$2*VLOOKUP(DataByMiles!AE143,DataByMiles!$AT$5:$AU$6,2,FALSE) -> 0 | Q145: =DataByMiles!H143*VLOOKUP(DataByMiles!AE143,DataByMiles!$AT$5:$AU$6,2,FALSE) -> 0 | T145: =Q145*$T$2*VLOOKUP(DataByMiles!AE143,DataByMiles!$AT$5:$AU$6,2,FALSE) -> 0 | U145: =DataByMiles!I143*VLOOKUP(DataByMiles!AE143,DataByMiles!$AT$5:$AU$6,2,FALSE) -> 0 | X145: =U145*$X$2*VLOOKUP(DataByMiles!AE143,DataByMiles!$AT$5:$AU$6,2,FALSE) -> 0 | Y145: =DataByMiles!J143*VLOOKUP(DataByMiles!AE143,DataByMiles!$AT$5:$AU$6,2,FALSE) -> 0 | Z145: =DataByMiles!K143 -> 0 | AA145: =DataByMiles!L143 -> 0 | AD145: =(Y145/IF(Z145=0,$AD$1,Z145)*$AD$2)/IF(AA145=0,1,AA145)*VLOOKUP(DataByMiles!AE143,DataByMiles!$AT$5:$AU$6,2,FALSE) -> 0 | AF145: 0 | AG145: 0 | AH145: =(AF145+AG145)*VLOOKUP(DataByMiles!AE143,DataByMiles!$AT$5:$AU$6,2,FALSE) -> 0 | AI145: 0
B146: =DataByMiles!C144 -> ----140 | C146: =DataByMiles!E144*VLOOKUP(DataByMiles!AE144,DataByMiles!$AT$5:$AU$6,2,FALSE) -> 0 | F146: 0 | G146: =C146*$G$2*VLOOKUP(DataByMiles!AE144,DataByMiles!$AT$5:$AU$6,2,FALSE) -> 0 | H146: =DataByMiles!F144*VLOOKUP(DataByMiles!AE144,DataByMiles!$AT$5:$AU$6,2,FALSE) -> 0 | K146: 0 | L146: =H146*$L$2*VLOOKUP(DataByMiles!AE144,DataByMiles!$AT$5:$AU$6,2,FALSE) -> 0 | M146: =DataByMiles!G144*VLOOKUP(DataByMiles!AE144,DataByMiles!$AT$5:$AU$6,2,FALSE) -> 0 | P146: =M146*$P$2*VLOOKUP(DataByMiles!AE144,DataByMiles!$AT$5:$AU$6,2,FALSE) -> 0 | Q146: =DataByMiles!H144*VLOOKUP(DataByMiles!AE144,DataByMiles!$AT$5:$AU$6,2,FALSE) -> 0 | T146: =Q146*$T$2*VLOOKUP(DataByMiles!AE144,DataByMiles!$AT$5:$AU$6,2,FALSE) -> 0 | U146: =DataByMiles!I144*VLOOKUP(DataByMiles!AE144,DataByMiles!$AT$5:$AU$6,2,FALSE) -> 0 | X146: =U146*$X$2*VLOOKUP(DataByMiles!AE144,DataByMiles!$AT$5:$AU$6,2,FALSE) -> 0 | Y146: =DataByMiles!J144*VLOOKUP(DataByMiles!AE144,DataByMiles!$AT$5:$AU$6,2,FALSE) -> 0 | Z146: =DataByMiles!K144 -> 0 | AA146: =DataByMiles!L144 -> 0 | AD146: =(Y146/IF(Z146=0,$AD$1,Z146)*$AD$2)/IF(AA146=0,1,AA146)*VLOOKUP(DataByMiles!AE144,DataByMiles!$AT$5:$AU$6,2,FALSE) -> 0 | AF146: 0 | AG146: 0 | AH146: =(AF146+AG146)*VLOOKUP(DataByMiles!AE144,DataByMiles!$AT$5:$AU$6,2,FALSE) -> 0 | AI146: 0
B147: =DataByMiles!C145 -> ----141 | C147: =DataByMiles!E145*VLOOKUP(DataByMiles!AE145,DataByMiles!$AT$5:$AU$6,2,FALSE) -> 0 | F147: 0 | G147: =C147*$G$2*VLOOKUP(DataByMiles!AE145,DataByMiles!$AT$5:$AU$6,2,FALSE) -> 0 | H147: =DataByMiles!F145*VLOOKUP(DataByMiles!AE145,DataByMiles!$AT$5:$AU$6,2,FALSE) -> 0 | K147: 0 | L147: =H147*$L$2*VLOOKUP(DataByMiles!AE145,DataByMiles!$AT$5:$AU$6,2,FALSE) -> 0 | M147: =DataByMiles!G145*VLOOKUP(DataByMiles!AE145,DataByMiles!$AT$5:$AU$6,2,FALSE) -> 0 | P147: =M147*$P$2*VLOOKUP(DataByMiles!AE145,DataByMiles!$AT$5:$AU$6,2,FALSE) -> 0 | Q147: =DataByMiles!H145*VLOOKUP(DataByMiles!AE145,DataByMiles!$AT$5:$AU$6,2,FALSE) -> 0 | T147: =Q147*$T$2*VLOOKUP(DataByMiles!AE145,DataByMiles!$AT$5:$AU$6,2,FALSE) -> 0 | U147: =DataByMiles!I145*VLOOKUP(DataByMiles!AE145,DataByMiles!$AT$5:$AU$6,2,FALSE) -> 0 | X147: =U147*$X$2*VLOOKUP(DataByMiles!AE145,DataByMiles!$AT$5:$AU$6,2,FALSE) -> 0 | Y147: =DataByMiles!J145*VLOOKUP(DataByMiles!AE145,DataByMiles!$AT$5:$AU$6,2,FALSE) -> 0 | Z147: =DataByMiles!K145 -> 0 | AA147: =DataByMiles!L145 -> 0 | AD147: =(Y147/IF(Z147=0,$AD$1,Z147)*$AD$2)/IF(AA147=0,1,AA147)*VLOOKUP(DataByMiles!AE145,DataByMiles!$AT$5:$AU$6,2,FALSE) -> 0 | AF147: 0 | AG147: 0 | AH147: =(AF147+AG147)*VLOOKUP(DataByMiles!AE145,DataByMiles!$AT$5:$AU$6,2,FALSE) -> 0 | AI147: 0
B148: =DataByMiles!C146 -> ----142 | C148: =DataByMiles!E146*VLOOKUP(DataByMiles!AE146,DataByMiles!$AT$5:$AU$6,2,FALSE) -> 0 | F148: 0 | G148: =C148*$G$2*VLOOKUP(DataByMiles!AE146,DataByMiles!$AT$5:$AU$6,2,FALSE) -> 0 | H148: =DataByMiles!F146*VLOOKUP(DataByMiles!AE146,DataByMiles!$AT$5:$AU$6,2,FALSE) -> 0 | K148: 0 | L148: =H148*$L$2*VLOOKUP(DataByMiles!AE146,DataByMiles!$AT$5:$AU$6,2,FALSE) -> 0 | M148: =DataByMiles!G146*VLOOKUP(DataByMiles!AE146,DataByMiles!$AT$5:$AU$6,2,FALSE) -> 0 | P148: =M148*$P$2*VLOOKUP(DataByMiles!AE146,DataByMiles!$AT$5:$AU$6,2,FALSE) -> 0 | Q148: =DataByMiles!H146*VLOOKUP(DataByMiles!AE146,DataByMiles!$AT$5:$AU$6,2,FALSE) -> 0 | T148: =Q148*$T$2*VLOOKUP(DataByMiles!AE146,DataByMiles!$AT$5:$AU$6,2,FALSE) -> 0 | U148: =DataByMiles!I146*VLOOKUP(DataByMiles!AE146,DataByMiles!$AT$5:$AU$6,2,FALSE) -> 0 | X148: =U148*$X$2*VLOOKUP(DataByMiles!AE146,DataByMiles!$AT$5:$AU$6,2,FALSE) -> 0 | Y148: =DataByMiles!J146*VLOOKUP(DataByMiles!AE146,DataByMiles!$AT$5:$AU$6,2,FALSE) -> 0 | Z148: =DataByMiles!K146 -> 0 | AA148: =DataByMiles!L146 -> 0 | AD148: =(Y148/IF(Z148=0,$AD$1,Z148)*$AD$2)/IF(AA148=0,1,AA148)*VLOOKUP(DataByMiles!AE146,DataByMiles!$AT$5:$AU$6,2,FALSE) -> 0 | AF148: 0 | AG148: 0 | AH148: =(AF148+AG148)*VLOOKUP(DataByMiles!AE146,DataByMiles!$AT$5:$AU$6,2,FALSE) -> 0 | AI148: 0
B149: =DataByMiles!C147 -> ----143 | C149: =DataByMiles!E147*VLOOKUP(DataByMiles!AE147,DataByMiles!$AT$5:$AU$6,2,FALSE) -> 0 | F149: 0 | G149: =C149*$G$2*VLOOKUP(DataByMiles!AE147,DataByMiles!$AT$5:$AU$6,2,FALSE) -> 0 | H149: =DataByMiles!F147*VLOOKUP(DataByMiles!AE147,DataByMiles!$AT$5:$AU$6,2,FALSE) -> 0 | K149: 0 | L149: =H149*$L$2*VLOOKUP(DataByMiles!AE147,DataByMiles!$AT$5:$AU$6,2,FALSE) -> 0 | M149: =DataByMiles!G147*VLOOKUP(DataByMiles!AE147,DataByMiles!$AT$5:$AU$6,2,FALSE) -> 0 | P149: =M149*$P$2*VLOOKUP(DataByMiles!AE147,DataByMiles!$AT$5:$AU$6,2,FALSE) -> 0 | Q149: =DataByMiles!H147*VLOOKUP(DataByMiles!AE147,DataByMiles!$AT$5:$AU$6,2,FALSE) -> 0 | T149: =Q149*$T$2*VLOOKUP(DataByMiles!AE147,DataByMiles!$AT$5:$AU$6,2,FALSE) -> 0 | U149: =DataByMiles!I147*VLOOKUP(DataByMiles!AE147,DataByMiles!$AT$5:$AU$6,2,FALSE) -> 0 | X149: =U149*$X$2*VLOOKUP(DataByMiles!AE147,DataByMiles!$AT$5:$AU$6,2,FALSE) -> 0 | Y149: =DataByMiles!J147*VLOOKUP(DataByMiles!AE147,DataByMiles!$AT$5:$AU$6,2,FALSE) -> 0 | Z149: =DataByMiles!K147 -> 0 | AA149: =DataByMiles!L147 -> 0 | AD149: =(Y149/IF(Z149=0,$AD$1,Z149)*$AD$2)/IF(AA149=0,1,AA149)*VLOOKUP(DataByMiles!AE147,DataByMiles!$AT$5:$AU$6,2,FALSE) -> 0 | AF149: 0 | AG149: 0 | AH149: =(AF149+AG149)*VLOOKUP(DataByMiles!AE147,DataByMiles!$AT$5:$AU$6,2,FALSE) -> 0 | AI149: 0
B150: =DataByMiles!C148 -> ----144 | C150: =DataByMiles!E148*VLOOKUP(DataByMiles!AE148,DataByMiles!$AT$5:$AU$6,2,FALSE) -> 0 | F150: 0 | G150: =C150*$G$2*VLOOKUP(DataByMiles!AE148,DataByMiles!$AT$5:$AU$6,2,FALSE) -> 0 | H150: =DataByMiles!F148*VLOOKUP(DataByMiles!AE148,DataByMiles!$AT$5:$AU$6,2,FALSE) -> 0 | K150: 0 | L150: =H150*$L$2*VLOOKUP(DataByMiles!AE148,DataByMiles!$AT$5:$AU$6,2,FALSE) -> 0 | M150: =DataByMiles!G148*VLOOKUP(DataByMiles!AE148,DataByMiles!$AT$5:$AU$6,2,FALSE) -> 0 | P150: =M150*$P$2*VLOOKUP(DataByMiles!AE148,DataByMiles!$AT$5:$AU$6,2,FALSE) -> 0 | Q150: =DataByMiles!H148*VLOOKUP(DataByMiles!AE148,DataByMiles!$AT$5:$AU$6,2,FALSE) -> 0 | T150: =Q150*$T$2*VLOOKUP(DataByMiles!AE148,DataByMiles!$AT$5:$AU$6,2,FALSE) -> 0 | U150: =DataByMiles!I148*VLOOKUP(DataByMiles!AE148,DataByMiles!$AT$5:$AU$6,2,FALSE) -> 0 | X150: =U150*$X$2*VLOOKUP(DataByMiles!AE148,DataByMiles!$AT$5:$AU$6,2,FALSE) -> 0 | Y150: =DataByMiles!J148*VLOOKUP(DataByMiles!AE148,DataByMiles!$AT$5:$AU$6,2,FALSE) -> 0 | Z150: =DataByMiles!K148 -> 0 | AA150: =DataByMiles!L148 -> 0 | AD150: =(Y150/IF(Z150=0,$AD$1,Z150)*$AD$2)/IF(AA150=0,1,AA150)*VLOOKUP(DataByMiles!AE148,DataByMiles!$AT$5:$AU$6,2,FALSE) -> 0 | AF150: 0 | AG150: 0 | AH150: =(AF150+AG150)*VLOOKUP(DataByMiles!AE148,DataByMiles!$AT$5:$AU$6,2,FALSE) -> 0 | AI150: 0
B151: =DataByMiles!C149 -> ----145 | C151: =DataByMiles!E149*VLOOKUP(DataByMiles!AE149,DataByMiles!$AT$5:$AU$6,2,FALSE) -> 0 | F151: 0 | G151: =C151*$G$2*VLOOKUP(DataByMiles!AE149,DataByMiles!$AT$5:$AU$6,2,FALSE) -> 0 | H151: =DataByMiles!F149*VLOOKUP(DataByMiles!AE149,DataByMiles!$AT$5:$AU$6,2,FALSE) -> 0 | K151: 0 | L151: =H151*$L$2*VLOOKUP(DataByMiles!AE149,DataByMiles!$AT$5:$AU$6,2,FALSE) -> 0 | M151: =DataByMiles!G149*VLOOKUP(DataByMiles!AE149,DataByMiles!$AT$5:$AU$6,2,FALSE) -> 0 | P151: =M151*$P$2*VLOOKUP(DataByMiles!AE149,DataByMiles!$AT$5:$AU$6,2,FALSE) -> 0 | Q151: =DataByMiles!H149*VLOOKUP(DataByMiles!AE149,DataByMiles!$AT$5:$AU$6,2,FALSE) -> 0 | T151: =Q151*$T$2*VLOOKUP(DataByMiles!AE149,DataByMiles!$AT$5:$AU$6,2,FALSE) -> 0 | U151: =DataByMiles!I149*VLOOKUP(DataByMiles!AE149,DataByMiles!$AT$5:$AU$6,2,FALSE) -> 0 | X151: =U151*$X$2*VLOOKUP(DataByMiles!AE149,DataByMiles!$AT$5:$AU$6,2,FALSE) -> 0 | Y151: =DataByMiles!J149*VLOOKUP(DataByMiles!AE149,DataByMiles!$AT$5:$AU$6,2,FALSE) -> 0 | Z151: =DataByMiles!K149 -> 0 | AA151: =DataByMiles!L149 -> 0 | AD151: =(Y151/IF(Z151=0,$AD$1,Z151)*$AD$2)/IF(AA151=0,1,AA151)*VLOOKUP(DataByMiles!AE149,DataByMiles!$AT$5:$AU$6,2,FALSE) -> 0 | AF151: 0 | AG151: 0 | AH151: =(AF151+AG151)*VLOOKUP(DataByMiles!AE149,DataByMiles!$AT$5:$AU$6,2,FALSE) -> 0 | AI151: 0
B152: =DataByMiles!C150 -> ----146 | C152: =DataByMiles!E150*VLOOKUP(DataByMiles!AE150,DataByMiles!$AT$5:$AU$6,2,FALSE) -> 0 | F152: 0 | G152: =C152*$G$2*VLOOKUP(DataByMiles!AE150,DataByMiles!$AT$5:$AU$6,2,FALSE) -> 0 | H152: =DataByMiles!F150*VLOOKUP(DataByMiles!AE150,DataByMiles!$AT$5:$AU$6,2,FALSE) -> 0 | K152: 0 | L152: =H152*$L$2*VLOOKUP(DataByMiles!AE150,DataByMiles!$AT$5:$AU$6,2,FALSE) -> 0 | M152: =DataByMiles!G150*VLOOKUP(DataByMiles!AE150,DataByMiles!$AT$5:$AU$6,2,FALSE) -> 0 | P152: =M152*$P$2*VLOOKUP(DataByMiles!AE150,DataByMiles!$AT$5:$AU$6,2,FALSE) -> 0 | Q152: =DataByMiles!H150*VLOOKUP(DataByMiles!AE150,DataByMiles!$AT$5:$AU$6,2,FALSE) -> 0 | T152: =Q152*$T$2*VLOOKUP(DataByMiles!AE150,DataByMiles!$AT$5:$AU$6,2,FALSE) -> 0 | U152: =DataByMiles!I150*VLOOKUP(DataByMiles!AE150,DataByMiles!$AT$5:$AU$6,2,FALSE) -> 0 | X152: =U152*$X$2*VLOOKUP(DataByMiles!AE150,DataByMiles!$AT$5:$AU$6,2,FALSE) -> 0 | Y152: =DataByMiles!J150*VLOOKUP(DataByMiles!AE150,DataByMiles!$AT$5:$AU$6,2,FALSE) -> 0 | Z152: =DataByMiles!K150 -> 0 | AA152: =DataByMiles!L150 -> 0 | AD152: =(Y152/IF(Z152=0,$AD$1,Z152)*$AD$2)/IF(AA152=0,1,AA152)*VLOOKUP(DataByMiles!AE150,DataByMiles!$AT$5:$AU$6,2,FALSE) -> 0 | AF152: 0 | AG152: 0 | AH152: =(AF152+AG152)*VLOOKUP(DataByMiles!AE150,DataByMiles!$AT$5:$AU$6,2,FALSE) -> 0 | AI152: 0
B153: =DataByMiles!C151 -> ----147 | C153: =DataByMiles!E151*VLOOKUP(DataByMiles!AE151,DataByMiles!$AT$5:$AU$6,2,FALSE) -> 0 | F153: 0 | G153: =C153*$G$2*VLOOKUP(DataByMiles!AE151,DataByMiles!$AT$5:$AU$6,2,FALSE) -> 0 | H153: =DataByMiles!F151*VLOOKUP(DataByMiles!AE151,DataByMiles!$AT$5:$AU$6,2,FALSE) -> 0 | K153: 0 | L153: =H153*$L$2*VLOOKUP(DataByMiles!AE151,DataByMiles!$AT$5:$AU$6,2,FALSE) -> 0 | M153: =DataByMiles!G151*VLOOKUP(DataByMiles!AE151,DataByMiles!$AT$5:$AU$6,2,FALSE) -> 0 | P153: =M153*$P$2*VLOOKUP(DataByMiles!AE151,DataByMiles!$AT$5:$AU$6,2,FALSE) -> 0 | Q153: =DataByMiles!H151*VLOOKUP(DataByMiles!AE151,DataByMiles!$AT$5:$AU$6,2,FALSE) -> 0 | T153: =Q153*$T$2*VLOOKUP(DataByMiles!AE151,DataByMiles!$AT$5:$AU$6,2,FALSE) -> 0 | U153: =DataByMiles!I151*VLOOKUP(DataByMiles!AE151,DataByMiles!$AT$5:$AU$6,2,FALSE) -> 0 | X153: =U153*$X$2*VLOOKUP(DataByMiles!AE151,DataByMiles!$AT$5:$AU$6,2,FALSE) -> 0 | Y153: =DataByMiles!J151*VLOOKUP(DataByMiles!AE151,DataByMiles!$AT$5:$AU$6,2,FALSE) -> 0 | Z153: =DataByMiles!K151 -> 0 | AA153: =DataByMiles!L151 -> 0 | AD153: =(Y153/IF(Z153=0,$AD$1,Z153)*$AD$2)/IF(AA153=0,1,AA153)*VLOOKUP(DataByMiles!AE151,DataByMiles!$AT$5:$AU$6,2,FALSE) -> 0 | AF153: 0 | AG153: 0 | AH153: =(AF153+AG153)*VLOOKUP(DataByMiles!AE151,DataByMiles!$AT$5:$AU$6,2,FALSE) -> 0 | AI153: 0
B154: =DataByMiles!C152 -> ----148 | C154: =DataByMiles!E152*VLOOKUP(DataByMiles!AE152,DataByMiles!$AT$5:$AU$6,2,FALSE) -> 0 | F154: 0 | G154: =C154*$G$2*VLOOKUP(DataByMiles!AE152,DataByMiles!$AT$5:$AU$6,2,FALSE) -> 0 | H154: =DataByMiles!F152*VLOOKUP(DataByMiles!AE152,DataByMiles!$AT$5:$AU$6,2,FALSE) -> 0 | K154: 0 | L154: =H154*$L$2*VLOOKUP(DataByMiles!AE152,DataByMiles!$AT$5:$AU$6,2,FALSE) -> 0 | M154: =DataByMiles!G152*VLOOKUP(DataByMiles!AE152,DataByMiles!$AT$5:$AU$6,2,FALSE) -> 0 | P154: =M154*$P$2*VLOOKUP(DataByMiles!AE152,DataByMiles!$AT$5:$AU$6,2,FALSE) -> 0 | Q154: =DataByMiles!H152*VLOOKUP(DataByMiles!AE152,DataByMiles!$AT$5:$AU$6,2,FALSE) -> 0 | T154: =Q154*$T$2*VLOOKUP(DataByMiles!AE152,DataByMiles!$AT$5:$AU$6,2,FALSE) -> 0 | U154: =DataByMiles!I152*VLOOKUP(DataByMiles!AE152,DataByMiles!$AT$5:$AU$6,2,FALSE) -> 0 | X154: =U154*$X$2*VLOOKUP(DataByMiles!AE152,DataByMiles!$AT$5:$AU$6,2,FALSE) -> 0 | Y154: =DataByMiles!J152*VLOOKUP(DataByMiles!AE152,DataByMiles!$AT$5:$AU$6,2,FALSE) -> 0 | Z154: =DataByMiles!K152 -> 0 | AA154: =DataByMiles!L152 -> 0 | AD154: =(Y154/IF(Z154=0,$AD$1,Z154)*$AD$2)/IF(AA154=0,1,AA154)*VLOOKUP(DataByMiles!AE152,DataByMiles!$AT$5:$AU$6,2,FALSE) -> 0 | AF154: 0 | AG154: 0 | AH154: =(AF154+AG154)*VLOOKUP(DataByMiles!AE152,DataByMiles!$AT$5:$AU$6,2,FALSE) -> 0 | AI154: 0
B155: =DataByMiles!C153 -> ----149 | C155: =DataByMiles!E153*VLOOKUP(DataByMiles!AE153,DataByMiles!$AT$5:$AU$6,2,FALSE) -> 0 | F155: 0 | G155: =C155*$G$2*VLOOKUP(DataByMiles!AE153,DataByMiles!$AT$5:$AU$6,2,FALSE) -> 0 | H155: =DataByMiles!F153*VLOOKUP(DataByMiles!AE153,DataByMiles!$AT$5:$AU$6,2,FALSE) -> 0 | K155: 0 | L155: =H155*$L$2*VLOOKUP(DataByMiles!AE153,DataByMiles!$AT$5:$AU$6,2,FALSE) -> 0 | M155: =DataByMiles!G153*VLOOKUP(DataByMiles!AE153,DataByMiles!$AT$5:$AU$6,2,FALSE) -> 0 | P155: =M155*$P$2*VLOOKUP(DataByMiles!AE153,DataByMiles!$AT$5:$AU$6,2,FALSE) -> 0 | Q155: =DataByMiles!H153*VLOOKUP(DataByMiles!AE153,DataByMiles!$AT$5:$AU$6,2,FALSE) -> 0 | T155: =Q155*$T$2*VLOOKUP(DataByMiles!AE153,DataByMiles!$AT$5:$AU$6,2,FALSE) -> 0 | U155: =DataByMiles!I153*VLOOKUP(DataByMiles!AE153,DataByMiles!$AT$5:$AU$6,2,FALSE) -> 0 | X155: =U155*$X$2*VLOOKUP(DataByMiles!AE153,DataByMiles!$AT$5:$AU$6,2,FALSE) -> 0 | Y155: =DataByMiles!J153*VLOOKUP(DataByMiles!AE153,DataByMiles!$AT$5:$AU$6,2,FALSE) -> 0 | Z155: =DataByMiles!K153 -> 0 | AA155: =DataByMiles!L153 -> 0 | AD155: =(Y155/IF(Z155=0,$AD$1,Z155)*$AD$2)/IF(AA155=0,1,AA155)*VLOOKUP(DataByMiles!AE153,DataByMiles!$AT$5:$AU$6,2,FALSE) -> 0 | AF155: 0 | AG155: 0 | AH155: =(AF155+AG155)*VLOOKUP(DataByMiles!AE153,DataByMiles!$AT$5:$AU$6,2,FALSE) -> 0 | AI155: 0
B156: =DataByMiles!C154 -> ----150 | C156: =DataByMiles!E154*VLOOKUP(DataByMiles!AE154,DataByMiles!$AT$5:$AU$6,2,FALSE) -> 0 | F156: 0 | G156: =C156*$G$2*VLOOKUP(DataByMiles!AE154,DataByMiles!$AT$5:$AU$6,2,FALSE) -> 0 | H156: =DataByMiles!F154*VLOOKUP(DataByMiles!AE154,DataByMiles!$AT$5:$AU$6,2,FALSE) -> 0 | K156: 0 | L156: =H156*$L$2*VLOOKUP(DataByMiles!AE154,DataByMiles!$AT$5:$AU$6,2,FALSE) -> 0 | M156: =DataByMiles!G154*VLOOKUP(DataByMiles!AE154,DataByMiles!$AT$5:$AU$6,2,FALSE) -> 0 | P156: =M156*$P$2*VLOOKUP(DataByMiles!AE154,DataByMiles!$AT$5:$AU$6,2,FALSE) -> 0 | Q156: =DataByMiles!H154*VLOOKUP(DataByMiles!AE154,DataByMiles!$AT$5:$AU$6,2,FALSE) -> 0 | T156: =Q156*$T$2*VLOOKUP(DataByMiles!AE154,DataByMiles!$AT$5:$AU$6,2,FALSE) -> 0 | U156: =DataByMiles!I154*VLOOKUP(DataByMiles!AE154,DataByMiles!$AT$5:$AU$6,2,FALSE) -> 0 | X156: =U156*$X$2*VLOOKUP(DataByMiles!AE154,DataByMiles!$AT$5:$AU$6,2,FALSE) -> 0 | Y156: =DataByMiles!J154*VLOOKUP(DataByMiles!AE154,DataByMiles!$AT$5:$AU$6,2,FALSE) -> 0 | Z156: =DataByMiles!K154 -> 0 | AA156: =DataByMiles!L154 -> 0 | AD156: =(Y156/IF(Z156=0,$AD$1,Z156)*$AD$2)/IF(AA156=0,1,AA156)*VLOOKUP(DataByMiles!AE154,DataByMiles!$AT$5:$AU$6,2,FALSE) -> 0 | AF156: 0 | AG156: 0 | AH156: =(AF156+AG156)*VLOOKUP(DataByMiles!AE154,DataByMiles!$AT$5:$AU$6,2,FALSE) -> 0 | AI156: 0
B157: =DataByMiles!C155 -> ----151 | C157: =DataByMiles!E155*VLOOKUP(DataByMiles!AE155,DataByMiles!$AT$5:$AU$6,2,FALSE) -> 0 | F157: 0 | G157: =C157*$G$2*VLOOKUP(DataByMiles!AE155,DataByMiles!$AT$5:$AU$6,2,FALSE) -> 0 | H157: =DataByMiles!F155*VLOOKUP(DataByMiles!AE155,DataByMiles!$AT$5:$AU$6,2,FALSE) -> 0 | K157: 0 | L157: =H157*$L$2*VLOOKUP(DataByMiles!AE155,DataByMiles!$AT$5:$AU$6,2,FALSE) -> 0 | M157: =DataByMiles!G155*VLOOKUP(DataByMiles!AE155,DataByMiles!$AT$5:$AU$6,2,FALSE) -> 0 | P157: =M157*$P$2*VLOOKUP(DataByMiles!AE155,DataByMiles!$AT$5:$AU$6,2,FALSE) -> 0 | Q157: =DataByMiles!H155*VLOOKUP(DataByMiles!AE155,DataByMiles!$AT$5:$AU$6,2,FALSE) -> 0 | T157: =Q157*$T$2*VLOOKUP(DataByMiles!AE155,DataByMiles!$AT$5:$AU$6,2,FALSE) -> 0 | U157: =DataByMiles!I155*VLOOKUP(DataByMiles!AE155,DataByMiles!$AT$5:$AU$6,2,FALSE) -> 0 | X157: =U157*$X$2*VLOOKUP(DataByMiles!AE155,DataByMiles!$AT$5:$AU$6,2,FALSE) -> 0 | Y157: =DataByMiles!J155*VLOOKUP(DataByMiles!AE155,DataByMiles!$AT$5:$AU$6,2,FALSE) -> 0 | Z157: =DataByMiles!K155 -> 0 | AA157: =DataByMiles!L155 -> 0 | AD157: =(Y157/IF(Z157=0,$AD$1,Z157)*$AD$2)/IF(AA157=0,1,AA157)*VLOOKUP(DataByMiles!AE155,DataByMiles!$AT$5:$AU$6,2,FALSE) -> 0 | AF157: 0 | AG157: 0 | AH157: =(AF157+AG157)*VLOOKUP(DataByMiles!AE155,DataByMiles!$AT$5:$AU$6,2,FALSE) -> 0 | AI157: 0
B158: =DataByMiles!C156 -> ----152 | C158: =DataByMiles!E156*VLOOKUP(DataByMiles!AE156,DataByMiles!$AT$5:$AU$6,2,FALSE) -> 0 | F158: 0 | G158: =C158*$G$2*VLOOKUP(DataByMiles!AE156,DataByMiles!$AT$5:$AU$6,2,FALSE) -> 0 | H158: =DataByMiles!F156*VLOOKUP(DataByMiles!AE156,DataByMiles!$AT$5:$AU$6,2,FALSE) -> 0 | K158: 0 | L158: =H158*$L$2*VLOOKUP(DataByMiles!AE156,DataByMiles!$AT$5:$AU$6,2,FALSE) -> 0 | M158: =DataByMiles!G156*VLOOKUP(DataByMiles!AE156,DataByMiles!$AT$5:$AU$6,2,FALSE) -> 0 | P158: =M158*$P$2*VLOOKUP(DataByMiles!AE156,DataByMiles!$AT$5:$AU$6,2,FALSE) -> 0 | Q158: =DataByMiles!H156*VLOOKUP(DataByMiles!AE156,DataByMiles!$AT$5:$AU$6,2,FALSE) -> 0 | T158: =Q158*$T$2*VLOOKUP(DataByMiles!AE156,DataByMiles!$AT$5:$AU$6,2,FALSE) -> 0 | U158: =DataByMiles!I156*VLOOKUP(DataByMiles!AE156,DataByMiles!$AT$5:$AU$6,2,FALSE) -> 0 | X158: =U158*$X$2*VLOOKUP(DataByMiles!AE156,DataByMiles!$AT$5:$AU$6,2,FALSE) -> 0 | Y158: =DataByMiles!J156*VLOOKUP(DataByMiles!AE156,DataByMiles!$AT$5:$AU$6,2,FALSE) -> 0 | Z158: =DataByMiles!K156 -> 0 | AA158: =DataByMiles!L156 -> 0 | AD158: =(Y158/IF(Z158=0,$AD$1,Z158)*$AD$2)/IF(AA158=0,1,AA158)*VLOOKUP(DataByMiles!AE156,DataByMiles!$AT$5:$AU$6,2,FALSE) -> 0 | AF158: 0 | AG158: 0 | AH158: =(AF158+AG158)*VLOOKUP(DataByMiles!AE156,DataByMiles!$AT$5:$AU$6,2,FALSE) -> 0 | AI158: 0
B159: =DataByMiles!C157 -> ----153 | C159: =DataByMiles!E157*VLOOKUP(DataByMiles!AE157,DataByMiles!$AT$5:$AU$6,2,FALSE) -> 0 | F159: 0 | G159: =C159*$G$2*VLOOKUP(DataByMiles!AE157,DataByMiles!$AT$5:$AU$6,2,FALSE) -> 0 | H159: =DataByMiles!F157*VLOOKUP(DataByMiles!AE157,DataByMiles!$AT$5:$AU$6,2,FALSE) -> 0 | K159: 0 | L159: =H159*$L$2*VLOOKUP(DataByMiles!AE157,DataByMiles!$AT$5:$AU$6,2,FALSE) -> 0 | M159: =DataByMiles!G157*VLOOKUP(DataByMiles!AE157,DataByMiles!$AT$5:$AU$6,2,FALSE) -> 0 | P159: =M159*$P$2*VLOOKUP(DataByMiles!AE157,DataByMiles!$AT$5:$AU$6,2,FALSE) -> 0 | Q159: =DataByMiles!H157*VLOOKUP(DataByMiles!AE157,DataByMiles!$AT$5:$AU$6,2,FALSE) -> 0 | T159: =Q159*$T$2*VLOOKUP(DataByMiles!AE157,DataByMiles!$AT$5:$AU$6,2,FALSE) -> 0 | U159: =DataByMiles!I157*VLOOKUP(DataByMiles!AE157,DataByMiles!$AT$5:$AU$6,2,FALSE) -> 0 | X159: =U159*$X$2*VLOOKUP(DataByMiles!AE157,DataByMiles!$AT$5:$AU$6,2,FALSE) -> 0 | Y159: =DataByMiles!J157*VLOOKUP(DataByMiles!AE157,DataByMiles!$AT$5:$AU$6,2,FALSE) -> 0 | Z159: =DataByMiles!K157 -> 0 | AA159: =DataByMiles!L157 -> 0 | AD159: =(Y159/IF(Z159=0,$AD$1,Z159)*$AD$2)/IF(AA159=0,1,AA159)*VLOOKUP(DataByMiles!AE157,DataByMiles!$AT$5:$AU$6,2,FALSE) -> 0 | AF159: 0 | AG159: 0 | AH159: =(AF159+AG159)*VLOOKUP(DataByMiles!AE157,DataByMiles!$AT$5:$AU$6,2,FALSE) -> 0 | AI159: 0
B160: =DataByMiles!C158 -> ----154 | C160: =DataByMiles!E158*VLOOKUP(DataByMiles!AE158,DataByMiles!$AT$5:$AU$6,2,FALSE) -> 0 | F160: 0 | G160: =C160*$G$2*VLOOKUP(DataByMiles!AE158,DataByMiles!$AT$5:$AU$6,2,FALSE) -> 0 | H160: =DataByMiles!F158*VLOOKUP(DataByMiles!AE158,DataByMiles!$AT$5:$AU$6,2,FALSE) -> 0 | K160: 0 | L160: =H160*$L$2*VLOOKUP(DataByMiles!AE158,DataByMiles!$AT$5:$AU$6,2,FALSE) -> 0 | M160: =DataByMiles!G158*VLOOKUP(DataByMiles!AE158,DataByMiles!$AT$5:$AU$6,2,FALSE) -> 0 | P160: =M160*$P$2*VLOOKUP(DataByMiles!AE158,DataByMiles!$AT$5:$AU$6,2,FALSE) -> 0 | Q160: =DataByMiles!H158*VLOOKUP(DataByMiles!AE158,DataByMiles!$AT$5:$AU$6,2,FALSE) -> 0 | T160: =Q160*$T$2*VLOOKUP(DataByMiles!AE158,DataByMiles!$AT$5:$AU$6,2,FALSE) -> 0 | U160: =DataByMiles!I158*VLOOKUP(DataByMiles!AE158,DataByMiles!$AT$5:$AU$6,2,FALSE) -> 0 | X160: =U160*$X$2*VLOOKUP(DataByMiles!AE158,DataByMiles!$AT$5:$AU$6,2,FALSE) -> 0 | Y160: =DataByMiles!J158*VLOOKUP(DataByMiles!AE158,DataByMiles!$AT$5:$AU$6,2,FALSE) -> 0 | Z160: =DataByMiles!K158 -> 0 | AA160: =DataByMiles!L158 -> 0 | AD160: =(Y160/IF(Z160=0,$AD$1,Z160)*$AD$2)/IF(AA160=0,1,AA160)*VLOOKUP(DataByMiles!AE158,DataByMiles!$AT$5:$AU$6,2,FALSE) -> 0 | AF160: 0 | AG160: 0 | AH160: =(AF160+AG160)*VLOOKUP(DataByMiles!AE158,DataByMiles!$AT$5:$AU$6,2,FALSE) -> 0 | AI160: 0
B161: =DataByMiles!C159 -> ----155 | C161: =DataByMiles!E159*VLOOKUP(DataByMiles!AE159,DataByMiles!$AT$5:$AU$6,2,FALSE) -> 0 | F161: 0 | G161: =C161*$G$2*VLOOKUP(DataByMiles!AE159,DataByMiles!$AT$5:$AU$6,2,FALSE) -> 0 | H161: =DataByMiles!F159*VLOOKUP(DataByMiles!AE159,DataByMiles!$AT$5:$AU$6,2,FALSE) -> 0 | K161: 0 | L161: =H161*$L$2*VLOOKUP(DataByMiles!AE159,DataByMiles!$AT$5:$AU$6,2,FALSE) -> 0 | M161: =DataByMiles!G159*VLOOKUP(DataByMiles!AE159,DataByMiles!$AT$5:$AU$6,2,FALSE) -> 0 | P161: =M161*$P$2*VLOOKUP(DataByMiles!AE159,DataByMiles!$AT$5:$AU$6,2,FALSE) -> 0 | Q161: =DataByMiles!H159*VLOOKUP(DataByMiles!AE159,DataByMiles!$AT$5:$AU$6,2,FALSE) -> 0 | T161: =Q161*$T$2*VLOOKUP(DataByMiles!AE159,DataByMiles!$AT$5:$AU$6,2,FALSE) -> 0 | U161: =DataByMiles!I159*VLOOKUP(DataByMiles!AE159,DataByMiles!$AT$5:$AU$6,2,FALSE) -> 0 | X161: =U161*$X$2*VLOOKUP(DataByMiles!AE159,DataByMiles!$AT$5:$AU$6,2,FALSE) -> 0 | Y161: =DataByMiles!J159*VLOOKUP(DataByMiles!AE159,DataByMiles!$AT$5:$AU$6,2,FALSE) -> 0 | Z161: =DataByMiles!K159 -> 0 | AA161: =DataByMiles!L159 -> 0 | AD161: =(Y161/IF(Z161=0,$AD$1,Z161)*$AD$2)/IF(AA161=0,1,AA161)*VLOOKUP(DataByMiles!AE159,DataByMiles!$AT$5:$AU$6,2,FALSE) -> 0 | AF161: 0 | AG161: 0 | AH161: =(AF161+AG161)*VLOOKUP(DataByMiles!AE159,DataByMiles!$AT$5:$AU$6,2,FALSE) -> 0 | AI161: 0
B162: =DataByMiles!C160 -> ----156 | C162: =DataByMiles!E160*VLOOKUP(DataByMiles!AE160,DataByMiles!$AT$5:$AU$6,2,FALSE) -> 0 | F162: 0 | G162: =C162*$G$2*VLOOKUP(DataByMiles!AE160,DataByMiles!$AT$5:$AU$6,2,FALSE) -> 0 | H162: =DataByMiles!F160*VLOOKUP(DataByMiles!AE160,DataByMiles!$AT$5:$AU$6,2,FALSE) -> 0 | K162: 0 | L162: =H162*$L$2*VLOOKUP(DataByMiles!AE160,DataByMiles!$AT$5:$AU$6,2,FALSE) -> 0 | M162: =DataByMiles!G160*VLOOKUP(DataByMiles!AE160,DataByMiles!$AT$5:$AU$6,2,FALSE) -> 0 | P162: =M162*$P$2*VLOOKUP(DataByMiles!AE160,DataByMiles!$AT$5:$AU$6,2,FALSE) -> 0 | Q162: =DataByMiles!H160*VLOOKUP(DataByMiles!AE160,DataByMiles!$AT$5:$AU$6,2,FALSE) -> 0 | T162: =Q162*$T$2*VLOOKUP(DataByMiles!AE160,DataByMiles!$AT$5:$AU$6,2,FALSE) -> 0 | U162: =DataByMiles!I160*VLOOKUP(DataByMiles!AE160,DataByMiles!$AT$5:$AU$6,2,FALSE) -> 0 | X162: =U162*$X$2*VLOOKUP(DataByMiles!AE160,DataByMiles!$AT$5:$AU$6,2,FALSE) -> 0 | Y162: =DataByMiles!J160*VLOOKUP(DataByMiles!AE160,DataByMiles!$AT$5:$AU$6,2,FALSE) -> 0 | Z162: =DataByMiles!K160 -> 0 | AA162: =DataByMiles!L160 -> 0 | AD162: =(Y162/IF(Z162=0,$AD$1,Z162)*$AD$2)/IF(AA162=0,1,AA162)*VLOOKUP(DataByMiles!AE160,DataByMiles!$AT$5:$AU$6,2,FALSE) -> 0 | AF162: 0 | AG162: 0 | AH162: =(AF162+AG162)*VLOOKUP(DataByMiles!AE160,DataByMiles!$AT$5:$AU$6,2,FALSE) -> 0 | AI162: 0
B163: =DataByMiles!C161 -> ----157 | C163: =DataByMiles!E161*VLOOKUP(DataByMiles!AE161,DataByMiles!$AT$5:$AU$6,2,FALSE) -> 0 | F163: 0 | G163: =C163*$G$2*VLOOKUP(DataByMiles!AE161,DataByMiles!$AT$5:$AU$6,2,FALSE) -> 0 | H163: =DataByMiles!F161*VLOOKUP(DataByMiles!AE161,DataByMiles!$AT$5:$AU$6,2,FALSE) -> 0 | K163: 0 | L163: =H163*$L$2*VLOOKUP(DataByMiles!AE161,DataByMiles!$AT$5:$AU$6,2,FALSE) -> 0 | M163: =DataByMiles!G161*VLOOKUP(DataByMiles!AE161,DataByMiles!$AT$5:$AU$6,2,FALSE) -> 0 | P163: =M163*$P$2*VLOOKUP(DataByMiles!AE161,DataByMiles!$AT$5:$AU$6,2,FALSE) -> 0 | Q163: =DataByMiles!H161*VLOOKUP(DataByMiles!AE161,DataByMiles!$AT$5:$AU$6,2,FALSE) -> 0 | T163: =Q163*$T$2*VLOOKUP(DataByMiles!AE161,DataByMiles!$AT$5:$AU$6,2,FALSE) -> 0 | U163: =DataByMiles!I161*VLOOKUP(DataByMiles!AE161,DataByMiles!$AT$5:$AU$6,2,FALSE) -> 0 | X163: =U163*$X$2*VLOOKUP(DataByMiles!AE161,DataByMiles!$AT$5:$AU$6,2,FALSE) -> 0 | Y163: =DataByMiles!J161*VLOOKUP(DataByMiles!AE161,DataByMiles!$AT$5:$AU$6,2,FALSE) -> 0 | Z163: =DataByMiles!K161 -> 0 | AA163: =DataByMiles!L161 -> 0 | AD163: =(Y163/IF(Z163=0,$AD$1,Z163)*$AD$2)/IF(AA163=0,1,AA163)*VLOOKUP(DataByMiles!AE161,DataByMiles!$AT$5:$AU$6,2,FALSE) -> 0 | AF163: 0 | AG163: 0 | AH163: =(AF163+AG163)*VLOOKUP(DataByMiles!AE161,DataByMiles!$AT$5:$AU$6,2,FALSE) -> 0 | AI163: 0
B164: =DataByMiles!C162 -> ----158 | C164: =DataByMiles!E162*VLOOKUP(DataByMiles!AE162,DataByMiles!$AT$5:$AU$6,2,FALSE) -> 0 | F164: 0 | G164: =C164*$G$2*VLOOKUP(DataByMiles!AE162,DataByMiles!$AT$5:$AU$6,2,FALSE) -> 0 | H164: =DataByMiles!F162*VLOOKUP(DataByMiles!AE162,DataByMiles!$AT$5:$AU$6,2,FALSE) -> 0 | K164: 0 | L164: =H164*$L$2*VLOOKUP(DataByMiles!AE162,DataByMiles!$AT$5:$AU$6,2,FALSE) -> 0 | M164: =DataByMiles!G162*VLOOKUP(DataByMiles!AE162,DataByMiles!$AT$5:$AU$6,2,FALSE) -> 0 | P164: =M164*$P$2*VLOOKUP(DataByMiles!AE162,DataByMiles!$AT$5:$AU$6,2,FALSE) -> 0 | Q164: =DataByMiles!H162*VLOOKUP(DataByMiles!AE162,DataByMiles!$AT$5:$AU$6,2,FALSE) -> 0 | T164: =Q164*$T$2*VLOOKUP(DataByMiles!AE162,DataByMiles!$AT$5:$AU$6,2,FALSE) -> 0 | U164: =DataByMiles!I162*VLOOKUP(DataByMiles!AE162,DataByMiles!$AT$5:$AU$6,2,FALSE) -> 0 | X164: =U164*$X$2*VLOOKUP(DataByMiles!AE162,DataByMiles!$AT$5:$AU$6,2,FALSE) -> 0 | Y164: =DataByMiles!J162*VLOOKUP(DataByMiles!AE162,DataByMiles!$AT$5:$AU$6,2,FALSE) -> 0 | Z164: =DataByMiles!K162 -> 0 | AA164: =DataByMiles!L162 -> 0 | AD164: =(Y164/IF(Z164=0,$AD$1,Z164)*$AD$2)/IF(AA164=0,1,AA164)*VLOOKUP(DataByMiles!AE162,DataByMiles!$AT$5:$AU$6,2,FALSE) -> 0 | AF164: 0 | AG164: 0 | AH164: =(AF164+AG164)*VLOOKUP(DataByMiles!AE162,DataByMiles!$AT$5:$AU$6,2,FALSE) -> 0 | AI164: 0
B165: =DataByMiles!C163 -> ----159 | C165: =DataByMiles!E163*VLOOKUP(DataByMiles!AE163,DataByMiles!$AT$5:$AU$6,2,FALSE) -> 0 | F165: 0 | G165: =C165*$G$2*VLOOKUP(DataByMiles!AE163,DataByMiles!$AT$5:$AU$6,2,FALSE) -> 0 | H165: =DataByMiles!F163*VLOOKUP(DataByMiles!AE163,DataByMiles!$AT$5:$AU$6,2,FALSE) -> 0 | K165: 0 | L165: =H165*$L$2*VLOOKUP(DataByMiles!AE163,DataByMiles!$AT$5:$AU$6,2,FALSE) -> 0 | M165: =DataByMiles!G163*VLOOKUP(DataByMiles!AE163,DataByMiles!$AT$5:$AU$6,2,FALSE) -> 0 | P165: =M165*$P$2*VLOOKUP(DataByMiles!AE163,DataByMiles!$AT$5:$AU$6,2,FALSE) -> 0 | Q165: =DataByMiles!H163*VLOOKUP(DataByMiles!AE163,DataByMiles!$AT$5:$AU$6,2,FALSE) -> 0 | T165: =Q165*$T$2*VLOOKUP(DataByMiles!AE163,DataByMiles!$AT$5:$AU$6,2,FALSE) -> 0 | U165: =DataByMiles!I163*VLOOKUP(DataByMiles!AE163,DataByMiles!$AT$5:$AU$6,2,FALSE) -> 0 | X165: =U165*$X$2*VLOOKUP(DataByMiles!AE163,DataByMiles!$AT$5:$AU$6,2,FALSE) -> 0 | Y165: =DataByMiles!J163*VLOOKUP(DataByMiles!AE163,DataByMiles!$AT$5:$AU$6,2,FALSE) -> 0 | Z165: =DataByMiles!K163 -> 0 | AA165: =DataByMiles!L163 -> 0 | AD165: =(Y165/IF(Z165=0,$AD$1,Z165)*$AD$2)/IF(AA165=0,1,AA165)*VLOOKUP(DataByMiles!AE163,DataByMiles!$AT$5:$AU$6,2,FALSE) -> 0 | AF165: 0 | AG165: 0 | AH165: =(AF165+AG165)*VLOOKUP(DataByMiles!AE163,DataByMiles!$AT$5:$AU$6,2,FALSE) -> 0 | AI165: 0
B166: =DataByMiles!C164 -> ----160 | C166: =DataByMiles!E164*VLOOKUP(DataByMiles!AE164,DataByMiles!$AT$5:$AU$6,2,FALSE) -> 0 | F166: 0 | G166: =C166*$G$2*VLOOKUP(DataByMiles!AE164,DataByMiles!$AT$5:$AU$6,2,FALSE) -> 0 | H166: =DataByMiles!F164*VLOOKUP(DataByMiles!AE164,DataByMiles!$AT$5:$AU$6,2,FALSE) -> 0 | K166: 0 | L166: =H166*$L$2*VLOOKUP(DataByMiles!AE164,DataByMiles!$AT$5:$AU$6,2,FALSE) -> 0 | M166: =DataByMiles!G164*VLOOKUP(DataByMiles!AE164,DataByMiles!$AT$5:$AU$6,2,FALSE) -> 0 | P166: =M166*$P$2*VLOOKUP(DataByMiles!AE164,DataByMiles!$AT$5:$AU$6,2,FALSE) -> 0 | Q166: =DataByMiles!H164*VLOOKUP(DataByMiles!AE164,DataByMiles!$AT$5:$AU$6,2,FALSE) -> 0 | T166: =Q166*$T$2*VLOOKUP(DataByMiles!AE164,DataByMiles!$AT$5:$AU$6,2,FALSE) -> 0 | U166: =DataByMiles!I164*VLOOKUP(DataByMiles!AE164,DataByMiles!$AT$5:$AU$6,2,FALSE) -> 0 | X166: =U166*$X$2*VLOOKUP(DataByMiles!AE164,DataByMiles!$AT$5:$AU$6,2,FALSE) -> 0 | Y166: =DataByMiles!J164*VLOOKUP(DataByMiles!AE164,DataByMiles!$AT$5:$AU$6,2,FALSE) -> 0 | Z166: =DataByMiles!K164 -> 0 | AA166: =DataByMiles!L164 -> 0 | AD166: =(Y166/IF(Z166=0,$AD$1,Z166)*$AD$2)/IF(AA166=0,1,AA166)*VLOOKUP(DataByMiles!AE164,DataByMiles!$AT$5:$AU$6,2,FALSE) -> 0 | AF166: 0 | AG166: 0 | AH166: =(AF166+AG166)*VLOOKUP(DataByMiles!AE164,DataByMiles!$AT$5:$AU$6,2,FALSE) -> 0 | AI166: 0
B167: =DataByMiles!C165 -> ----161 | C167: =DataByMiles!E165*VLOOKUP(DataByMiles!AE165,DataByMiles!$AT$5:$AU$6,2,FALSE) -> 0 | F167: 0 | G167: =C167*$G$2*VLOOKUP(DataByMiles!AE165,DataByMiles!$AT$5:$AU$6,2,FALSE) -> 0 | H167: =DataByMiles!F165*VLOOKUP(DataByMiles!AE165,DataByMiles!$AT$5:$AU$6,2,FALSE) -> 0 | K167: 0 | L167: =H167*$L$2*VLOOKUP(DataByMiles!AE165,DataByMiles!$AT$5:$AU$6,2,FALSE) -> 0 | M167: =DataByMiles!G165*VLOOKUP(DataByMiles!AE165,DataByMiles!$AT$5:$AU$6,2,FALSE) -> 0 | P167: =M167*$P$2*VLOOKUP(DataByMiles!AE165,DataByMiles!$AT$5:$AU$6,2,FALSE) -> 0 | Q167: =DataByMiles!H165*VLOOKUP(DataByMiles!AE165,DataByMiles!$AT$5:$AU$6,2,FALSE) -> 0 | T167: =Q167*$T$2*VLOOKUP(DataByMiles!AE165,DataByMiles!$AT$5:$AU$6,2,FALSE) -> 0 | U167: =DataByMiles!I165*VLOOKUP(DataByMiles!AE165,DataByMiles!$AT$5:$AU$6,2,FALSE) -> 0 | X167: =U167*$X$2*VLOOKUP(DataByMiles!AE165,DataByMiles!$AT$5:$AU$6,2,FALSE) -> 0 | Y167: =DataByMiles!J165*VLOOKUP(DataByMiles!AE165,DataByMiles!$AT$5:$AU$6,2,FALSE) -> 0 | Z167: =DataByMiles!K165 -> 0 | AA167: =DataByMiles!L165 -> 0 | AD167: =(Y167/IF(Z167=0,$AD$1,Z167)*$AD$2)/IF(AA167=0,1,AA167)*VLOOKUP(DataByMiles!AE165,DataByMiles!$AT$5:$AU$6,2,FALSE) -> 0 | AF167: 0 | AG167: 0 | AH167: =(AF167+AG167)*VLOOKUP(DataByMiles!AE165,DataByMiles!$AT$5:$AU$6,2,FALSE) -> 0 | AI167: 0
B168: =DataByMiles!C166 -> ----162 | C168: =DataByMiles!E166*VLOOKUP(DataByMiles!AE166,DataByMiles!$AT$5:$AU$6,2,FALSE) -> 0 | F168: 0 | G168: =C168*$G$2*VLOOKUP(DataByMiles!AE166,DataByMiles!$AT$5:$AU$6,2,FALSE) -> 0 | H168: =DataByMiles!F166*VLOOKUP(DataByMiles!AE166,DataByMiles!$AT$5:$AU$6,2,FALSE) -> 0 | K168: 0 | L168: =H168*$L$2*VLOOKUP(DataByMiles!AE166,DataByMiles!$AT$5:$AU$6,2,FALSE) -> 0 | M168: =DataByMiles!G166*VLOOKUP(DataByMiles!AE166,DataByMiles!$AT$5:$AU$6,2,FALSE) -> 0 | P168: =M168*$P$2*VLOOKUP(DataByMiles!AE166,DataByMiles!$AT$5:$AU$6,2,FALSE) -> 0 | Q168: =DataByMiles!H166*VLOOKUP(DataByMiles!AE166,DataByMiles!$AT$5:$AU$6,2,FALSE) -> 0 | T168: =Q168*$T$2*VLOOKUP(DataByMiles!AE166,DataByMiles!$AT$5:$AU$6,2,FALSE) -> 0 | U168: =DataByMiles!I166*VLOOKUP(DataByMiles!AE166,DataByMiles!$AT$5:$AU$6,2,FALSE) -> 0 | X168: =U168*$X$2*VLOOKUP(DataByMiles!AE166,DataByMiles!$AT$5:$AU$6,2,FALSE) -> 0 | Y168: =DataByMiles!J166*VLOOKUP(DataByMiles!AE166,DataByMiles!$AT$5:$AU$6,2,FALSE) -> 0 | Z168: =DataByMiles!K166 -> 0 | AA168: =DataByMiles!L166 -> 0 | AD168: =(Y168/IF(Z168=0,$AD$1,Z168)*$AD$2)/IF(AA168=0,1,AA168)*VLOOKUP(DataByMiles!AE166,DataByMiles!$AT$5:$AU$6,2,FALSE) -> 0 | AF168: 0 | AG168: 0 | AH168: =(AF168+AG168)*VLOOKUP(DataByMiles!AE166,DataByMiles!$AT$5:$AU$6,2,FALSE) -> 0 | AI168: 0
B169: =DataByMiles!C167 -> ----163 | C169: =DataByMiles!E167*VLOOKUP(DataByMiles!AE167,DataByMiles!$AT$5:$AU$6,2,FALSE) -> 0 | F169: 0 | G169: =C169*$G$2*VLOOKUP(DataByMiles!AE167,DataByMiles!$AT$5:$AU$6,2,FALSE) -> 0 | H169: =DataByMiles!F167*VLOOKUP(DataByMiles!AE167,DataByMiles!$AT$5:$AU$6,2,FALSE) -> 0 | K169: 0 | L169: =H169*$L$2*VLOOKUP(DataByMiles!AE167,DataByMiles!$AT$5:$AU$6,2,FALSE) -> 0 | M169: =DataByMiles!G167*VLOOKUP(DataByMiles!AE167,DataByMiles!$AT$5:$AU$6,2,FALSE) -> 0 | P169: =M169*$P$2*VLOOKUP(DataByMiles!AE167,DataByMiles!$AT$5:$AU$6,2,FALSE) -> 0 | Q169: =DataByMiles!H167*VLOOKUP(DataByMiles!AE167,DataByMiles!$AT$5:$AU$6,2,FALSE) -> 0 | T169: =Q169*$T$2*VLOOKUP(DataByMiles!AE167,DataByMiles!$AT$5:$AU$6,2,FALSE) -> 0 | U169: =DataByMiles!I167*VLOOKUP(DataByMiles!AE167,DataByMiles!$AT$5:$AU$6,2,FALSE) -> 0 | X169: =U169*$X$2*VLOOKUP(DataByMiles!AE167,DataByMiles!$AT$5:$AU$6,2,FALSE) -> 0 | Y169: =DataByMiles!J167*VLOOKUP(DataByMiles!AE167,DataByMiles!$AT$5:$AU$6,2,FALSE) -> 0 | Z169: =DataByMiles!K167 -> 0 | AA169: =DataByMiles!L167 -> 0 | AD169: =(Y169/IF(Z169=0,$AD$1,Z169)*$AD$2)/IF(AA169=0,1,AA169)*VLOOKUP(DataByMiles!AE167,DataByMiles!$AT$5:$AU$6,2,FALSE) -> 0 | AF169: 0 | AG169: 0 | AH169: =(AF169+AG169)*VLOOKUP(DataByMiles!AE167,DataByMiles!$AT$5:$AU$6,2,FALSE) -> 0 | AI169: 0
B170: =DataByMiles!C168 -> ----164 | C170: =DataByMiles!E168*VLOOKUP(DataByMiles!AE168,DataByMiles!$AT$5:$AU$6,2,FALSE) -> 0 | F170: 0 | G170: =C170*$G$2*VLOOKUP(DataByMiles!AE168,DataByMiles!$AT$5:$AU$6,2,FALSE) -> 0 | H170: =DataByMiles!F168*VLOOKUP(DataByMiles!AE168,DataByMiles!$AT$5:$AU$6,2,FALSE) -> 0 | K170: 0 | L170: =H170*$L$2*VLOOKUP(DataByMiles!AE168,DataByMiles!$AT$5:$AU$6,2,FALSE) -> 0 | M170: =DataByMiles!G168*VLOOKUP(DataByMiles!AE168,DataByMiles!$AT$5:$AU$6,2,FALSE) -> 0 | P170: =M170*$P$2*VLOOKUP(DataByMiles!AE168,DataByMiles!$AT$5:$AU$6,2,FALSE) -> 0 | Q170: =DataByMiles!H168*VLOOKUP(DataByMiles!AE168,DataByMiles!$AT$5:$AU$6,2,FALSE) -> 0 | T170: =Q170*$T$2*VLOOKUP(DataByMiles!AE168,DataByMiles!$AT$5:$AU$6,2,FALSE) -> 0 | U170: =DataByMiles!I168*VLOOKUP(DataByMiles!AE168,DataByMiles!$AT$5:$AU$6,2,FALSE) -> 0 | X170: =U170*$X$2*VLOOKUP(DataByMiles!AE168,DataByMiles!$AT$5:$AU$6,2,FALSE) -> 0 | Y170: =DataByMiles!J168*VLOOKUP(DataByMiles!AE168,DataByMiles!$AT$5:$AU$6,2,FALSE) -> 0 | Z170: =DataByMiles!K168 -> 0 | AA170: =DataByMiles!L168 -> 0 | AD170: =(Y170/IF(Z170=0,$AD$1,Z170)*$AD$2)/IF(AA170=0,1,AA170)*VLOOKUP(DataByMiles!AE168,DataByMiles!$AT$5:$AU$6,2,FALSE) -> 0 | AF170: 0 | AG170: 0 | AH170: =(AF170+AG170)*VLOOKUP(DataByMiles!AE168,DataByMiles!$AT$5:$AU$6,2,FALSE) -> 0 | AI170: 0
B171: =DataByMiles!C169 -> ----165 | C171: =DataByMiles!E169*VLOOKUP(DataByMiles!AE169,DataByMiles!$AT$5:$AU$6,2,FALSE) -> 0 | F171: 0 | G171: =C171*$G$2*VLOOKUP(DataByMiles!AE169,DataByMiles!$AT$5:$AU$6,2,FALSE) -> 0 | H171: =DataByMiles!F169*VLOOKUP(DataByMiles!AE169,DataByMiles!$AT$5:$AU$6,2,FALSE) -> 0 | K171: 0 | L171: =H171*$L$2*VLOOKUP(DataByMiles!AE169,DataByMiles!$AT$5:$AU$6,2,FALSE) -> 0 | M171: =DataByMiles!G169*VLOOKUP(DataByMiles!AE169,DataByMiles!$AT$5:$AU$6,2,FALSE) -> 0 | P171: =M171*$P$2*VLOOKUP(DataByMiles!AE169,DataByMiles!$AT$5:$AU$6,2,FALSE) -> 0 | Q171: =DataByMiles!H169*VLOOKUP(DataByMiles!AE169,DataByMiles!$AT$5:$AU$6,2,FALSE) -> 0 | T171: =Q171*$T$2*VLOOKUP(DataByMiles!AE169,DataByMiles!$AT$5:$AU$6,2,FALSE) -> 0 | U171: =DataByMiles!I169*VLOOKUP(DataByMiles!AE169,DataByMiles!$AT$5:$AU$6,2,FALSE) -> 0 | X171: =U171*$X$2*VLOOKUP(DataByMiles!AE169,DataByMiles!$AT$5:$AU$6,2,FALSE) -> 0 | Y171: =DataByMiles!J169*VLOOKUP(DataByMiles!AE169,DataByMiles!$AT$5:$AU$6,2,FALSE) -> 0 | Z171: =DataByMiles!K169 -> 0 | AA171: =DataByMiles!L169 -> 0 | AD171: =(Y171/IF(Z171=0,$AD$1,Z171)*$AD$2)/IF(AA171=0,1,AA171)*VLOOKUP(DataByMiles!AE169,DataByMiles!$AT$5:$AU$6,2,FALSE) -> 0 | AF171: 0 | AG171: 0 | AH171: =(AF171+AG171)*VLOOKUP(DataByMiles!AE169,DataByMiles!$AT$5:$AU$6,2,FALSE) -> 0 | AI171: 0
B172: =DataByMiles!C170 -> ----166 | C172: =DataByMiles!E170*VLOOKUP(DataByMiles!AE170,DataByMiles!$AT$5:$AU$6,2,FALSE) -> 0 | F172: 0 | G172: =C172*$G$2*VLOOKUP(DataByMiles!AE170,DataByMiles!$AT$5:$AU$6,2,FALSE) -> 0 | H172: =DataByMiles!F170*VLOOKUP(DataByMiles!AE170,DataByMiles!$AT$5:$AU$6,2,FALSE) -> 0 | K172: 0 | L172: =H172*$L$2*VLOOKUP(DataByMiles!AE170,DataByMiles!$AT$5:$AU$6,2,FALSE) -> 0 | M172: =DataByMiles!G170*VLOOKUP(DataByMiles!AE170,DataByMiles!$AT$5:$AU$6,2,FALSE) -> 0 | P172: =M172*$P$2*VLOOKUP(DataByMiles!AE170,DataByMiles!$AT$5:$AU$6,2,FALSE) -> 0 | Q172: =DataByMiles!H170*VLOOKUP(DataByMiles!AE170,DataByMiles!$AT$5:$AU$6,2,FALSE) -> 0 | T172: =Q172*$T$2*VLOOKUP(DataByMiles!AE170,DataByMiles!$AT$5:$AU$6,2,FALSE) -> 0 | U172: =DataByMiles!I170*VLOOKUP(DataByMiles!AE170,DataByMiles!$AT$5:$AU$6,2,FALSE) -> 0 | X172: =U172*$X$2*VLOOKUP(DataByMiles!AE170,DataByMiles!$AT$5:$AU$6,2,FALSE) -> 0 | Y172: =DataByMiles!J170*VLOOKUP(DataByMiles!AE170,DataByMiles!$AT$5:$AU$6,2,FALSE) -> 0 | Z172: =DataByMiles!K170 -> 0 | AA172: =DataByMiles!L170 -> 0 | AD172: =(Y172/IF(Z172=0,$AD$1,Z172)*$AD$2)/IF(AA172=0,1,AA172)*VLOOKUP(DataByMiles!AE170,DataByMiles!$AT$5:$AU$6,2,FALSE) -> 0 | AF172: 0 | AG172: 0 | AH172: =(AF172+AG172)*VLOOKUP(DataByMiles!AE170,DataByMiles!$AT$5:$AU$6,2,FALSE) -> 0 | AI172: 0
B173: =DataByMiles!C171 -> ----167 | C173: =DataByMiles!E171*VLOOKUP(DataByMiles!AE171,DataByMiles!$AT$5:$AU$6,2,FALSE) -> 0 | F173: 0 | G173: =C173*$G$2*VLOOKUP(DataByMiles!AE171,DataByMiles!$AT$5:$AU$6,2,FALSE) -> 0 | H173: =DataByMiles!F171*VLOOKUP(DataByMiles!AE171,DataByMiles!$AT$5:$AU$6,2,FALSE) -> 0 | K173: 0 | L173: =H173*$L$2*VLOOKUP(DataByMiles!AE171,DataByMiles!$AT$5:$AU$6,2,FALSE) -> 0 | M173: =DataByMiles!G171*VLOOKUP(DataByMiles!AE171,DataByMiles!$AT$5:$AU$6,2,FALSE) -> 0 | P173: =M173*$P$2*VLOOKUP(DataByMiles!AE171,DataByMiles!$AT$5:$AU$6,2,FALSE) -> 0 | Q173: =DataByMiles!H171*VLOOKUP(DataByMiles!AE171,DataByMiles!$AT$5:$AU$6,2,FALSE) -> 0 | T173: =Q173*$T$2*VLOOKUP(DataByMiles!AE171,DataByMiles!$AT$5:$AU$6,2,FALSE) -> 0 | U173: =DataByMiles!I171*VLOOKUP(DataByMiles!AE171,DataByMiles!$AT$5:$AU$6,2,FALSE) -> 0 | X173: =U173*$X$2*VLOOKUP(DataByMiles!AE171,DataByMiles!$AT$5:$AU$6,2,FALSE) -> 0 | Y173: =DataByMiles!J171*VLOOKUP(DataByMiles!AE171,DataByMiles!$AT$5:$AU$6,2,FALSE) -> 0 | Z173: =DataByMiles!K171 -> 0 | AA173: =DataByMiles!L171 -> 0 | AD173: =(Y173/IF(Z173=0,$AD$1,Z173)*$AD$2)/IF(AA173=0,1,AA173)*VLOOKUP(DataByMiles!AE171,DataByMiles!$AT$5:$AU$6,2,FALSE) -> 0 | AF173: 0 | AG173: 0 | AH173: =(AF173+AG173)*VLOOKUP(DataByMiles!AE171,DataByMiles!$AT$5:$AU$6,2,FALSE) -> 0 | AI173: 0
B174: =DataByMiles!C172 -> ----168 | C174: =DataByMiles!E172*VLOOKUP(DataByMiles!AE172,DataByMiles!$AT$5:$AU$6,2,FALSE) -> 0 | F174: =C174*$F$2 -> 0 | G174: =C174*$G$2*VLOOKUP(DataByMiles!AE172,DataByMiles!$AT$5:$AU$6,2,FALSE) -> 0 | H174: =DataByMiles!F172*VLOOKUP(DataByMiles!AE172,DataByMiles!$AT$5:$AU$6,2,FALSE) -> 0 | K174: =H174*$K$2 -> 0 | L174: =H174*$L$2*VLOOKUP(DataByMiles!AE172,DataByMiles!$AT$5:$AU$6,2,FALSE) -> 0 | M174: =DataByMiles!G172*VLOOKUP(DataByMiles!AE172,DataByMiles!$AT$5:$AU$6,2,FALSE) -> 0 | P174: =M174*$P$2*VLOOKUP(DataByMiles!AE172,DataByMiles!$AT$5:$AU$6,2,FALSE) -> 0 | Q174: =DataByMiles!H172*VLOOKUP(DataByMiles!AE172,DataByMiles!$AT$5:$AU$6,2,FALSE) -> 0 | T174: =Q174*$T$2*VLOOKUP(DataByMiles!AE172,DataByMiles!$AT$5:$AU$6,2,FALSE) -> 0 | U174: =DataByMiles!I172*VLOOKUP(DataByMiles!AE172,DataByMiles!$AT$5:$AU$6,2,FALSE) -> 0 | X174: =U174*$X$2*VLOOKUP(DataByMiles!AE172,DataByMiles!$AT$5:$AU$6,2,FALSE) -> 0 | Y174: =DataByMiles!J172*VLOOKUP(DataByMiles!AE172,DataByMiles!$AT$5:$AU$6,2,FALSE) -> 0 | Z174: =DataByMiles!K172 -> 0 | AA174: =DataByMiles!L172 -> 0 | AD174: =(Y174/IF(Z174=0,$AD$1,Z174)*$AD$2)/IF(AA174=0,1,AA174)*VLOOKUP(DataByMiles!AE172,DataByMiles!$AT$5:$AU$6,2,FALSE) -> 0 | AE174: =IF(C174+H174+M174+Q174+U174+Y174>0,C174+H174+M174+Q174+U174+Y174,"") ->  | AF174: =F174+K174+P174+T174+X174+AD174 -> 0 | AG174: =G174+L174 -> 0 | AH174: =(AF174+AG174)*VLOOKUP(DataByMiles!AE172,DataByMiles!$AT$5:$AU$6,2,FALSE) -> 0 | AI174: =IFERROR(AH174/AE174,0) -> 0
B175: =DataByMiles!C173 -> ----169 | C175: =DataByMiles!E173*VLOOKUP(DataByMiles!AE173,DataByMiles!$AT$5:$AU$6,2,FALSE) -> 0 | F175: 0 | G175: =C175*$G$2*VLOOKUP(DataByMiles!AE173,DataByMiles!$AT$5:$AU$6,2,FALSE) -> 0 | H175: =DataByMiles!F173*VLOOKUP(DataByMiles!AE173,DataByMiles!$AT$5:$AU$6,2,FALSE) -> 0 | K175: 0 | L175: =H175*$L$2*VLOOKUP(DataByMiles!AE173,DataByMiles!$AT$5:$AU$6,2,FALSE) -> 0 | M175: =DataByMiles!G173*VLOOKUP(DataByMiles!AE173,DataByMiles!$AT$5:$AU$6,2,FALSE) -> 0 | P175: =M175*$P$2*VLOOKUP(DataByMiles!AE173,DataByMiles!$AT$5:$AU$6,2,FALSE) -> 0 | Q175: =DataByMiles!H173*VLOOKUP(DataByMiles!AE173,DataByMiles!$AT$5:$AU$6,2,FALSE) -> 0 | T175: =Q175*$T$2*VLOOKUP(DataByMiles!AE173,DataByMiles!$AT$5:$AU$6,2,FALSE) -> 0 | U175: =DataByMiles!I173*VLOOKUP(DataByMiles!AE173,DataByMiles!$AT$5:$AU$6,2,FALSE) -> 0 | X175: =U175*$X$2*VLOOKUP(DataByMiles!AE173,DataByMiles!$AT$5:$AU$6,2,FALSE) -> 0 | Y175: =DataByMiles!J173*VLOOKUP(DataByMiles!AE173,DataByMiles!$AT$5:$AU$6,2,FALSE) -> 0 | Z175: =DataByMiles!K173 -> 0 | AA175: =DataByMiles!L173 -> 0 | AD175: =(Y175/IF(Z175=0,$AD$1,Z175)*$AD$2)/IF(AA175=0,1,AA175)*VLOOKUP(DataByMiles!AE173,DataByMiles!$AT$5:$AU$6,2,FALSE) -> 0 | AF175: 0 | AG175: 0 | AH175: =(AF175+AG175)*VLOOKUP(DataByMiles!AE173,DataByMiles!$AT$5:$AU$6,2,FALSE) -> 0 | AI175: 0
B176: =DataByMiles!C174 -> ----170 | C176: =DataByMiles!E174*VLOOKUP(DataByMiles!AE174,DataByMiles!$AT$5:$AU$6,2,FALSE) -> 0 | F176: 0 | G176: =C176*$G$2*VLOOKUP(DataByMiles!AE174,DataByMiles!$AT$5:$AU$6,2,FALSE) -> 0 | H176: =DataByMiles!F174*VLOOKUP(DataByMiles!AE174,DataByMiles!$AT$5:$AU$6,2,FALSE) -> 0 | K176: 0 | L176: =H176*$L$2*VLOOKUP(DataByMiles!AE174,DataByMiles!$AT$5:$AU$6,2,FALSE) -> 0 | M176: =DataByMiles!G174*VLOOKUP(DataByMiles!AE174,DataByMiles!$AT$5:$AU$6,2,FALSE) -> 0 | P176: =M176*$P$2*VLOOKUP(DataByMiles!AE174,DataByMiles!$AT$5:$AU$6,2,FALSE) -> 0 | Q176: =DataByMiles!H174*VLOOKUP(DataByMiles!AE174,DataByMiles!$AT$5:$AU$6,2,FALSE) -> 0 | T176: =Q176*$T$2*VLOOKUP(DataByMiles!AE174,DataByMiles!$AT$5:$AU$6,2,FALSE) -> 0 | U176: =DataByMiles!I174*VLOOKUP(DataByMiles!AE174,DataByMiles!$AT$5:$AU$6,2,FALSE) -> 0 | X176: =U176*$X$2*VLOOKUP(DataByMiles!AE174,DataByMiles!$AT$5:$AU$6,2,FALSE) -> 0 | Y176: =DataByMiles!J174*VLOOKUP(DataByMiles!AE174,DataByMiles!$AT$5:$AU$6,2,FALSE) -> 0 | Z176: =DataByMiles!K174 -> 0 | AA176: =DataByMiles!L174 -> 0 | AD176: =(Y176/IF(Z176=0,$AD$1,Z176)*$AD$2)/IF(AA176=0,1,AA176)*VLOOKUP(DataByMiles!AE174,DataByMiles!$AT$5:$AU$6,2,FALSE) -> 0 | AF176: 0 | AG176: 0 | AH176: =(AF176+AG176)*VLOOKUP(DataByMiles!AE174,DataByMiles!$AT$5:$AU$6,2,FALSE) -> 0 | AI176: 0
B177: =DataByMiles!C175 -> ----171 | C177: =DataByMiles!E175*VLOOKUP(DataByMiles!AE175,DataByMiles!$AT$5:$AU$6,2,FALSE) -> 0 | F177: 0 | G177: =C177*$G$2*VLOOKUP(DataByMiles!AE175,DataByMiles!$AT$5:$AU$6,2,FALSE) -> 0 | H177: =DataByMiles!F175*VLOOKUP(DataByMiles!AE175,DataByMiles!$AT$5:$AU$6,2,FALSE) -> 0 | K177: 0 | L177: =H177*$L$2*VLOOKUP(DataByMiles!AE175,DataByMiles!$AT$5:$AU$6,2,FALSE) -> 0 | M177: =DataByMiles!G175*VLOOKUP(DataByMiles!AE175,DataByMiles!$AT$5:$AU$6,2,FALSE) -> 0 | P177: =M177*$P$2*VLOOKUP(DataByMiles!AE175,DataByMiles!$AT$5:$AU$6,2,FALSE) -> 0 | Q177: =DataByMiles!H175*VLOOKUP(DataByMiles!AE175,DataByMiles!$AT$5:$AU$6,2,FALSE) -> 0 | T177: =Q177*$T$2*VLOOKUP(DataByMiles!AE175,DataByMiles!$AT$5:$AU$6,2,FALSE) -> 0 | U177: =DataByMiles!I175*VLOOKUP(DataByMiles!AE175,DataByMiles!$AT$5:$AU$6,2,FALSE) -> 0 | X177: =U177*$X$2*VLOOKUP(DataByMiles!AE175,DataByMiles!$AT$5:$AU$6,2,FALSE) -> 0 | Y177: =DataByMiles!J175*VLOOKUP(DataByMiles!AE175,DataByMiles!$AT$5:$AU$6,2,FALSE) -> 0 | Z177: =DataByMiles!K175 -> 0 | AA177: =DataByMiles!L175 -> 0 | AD177: =(Y177/IF(Z177=0,$AD$1,Z177)*$AD$2)/IF(AA177=0,1,AA177)*VLOOKUP(DataByMiles!AE175,DataByMiles!$AT$5:$AU$6,2,FALSE) -> 0 | AF177: 0 | AG177: 0 | AH177: =(AF177+AG177)*VLOOKUP(DataByMiles!AE175,DataByMiles!$AT$5:$AU$6,2,FALSE) -> 0 | AI177: 0
B178: =DataByMiles!C176 -> ----172 | C178: =DataByMiles!E176*VLOOKUP(DataByMiles!AE176,DataByMiles!$AT$5:$AU$6,2,FALSE) -> 0 | F178: 0 | G178: =C178*$G$2*VLOOKUP(DataByMiles!AE176,DataByMiles!$AT$5:$AU$6,2,FALSE) -> 0 | H178: =DataByMiles!F176*VLOOKUP(DataByMiles!AE176,DataByMiles!$AT$5:$AU$6,2,FALSE) -> 0 | K178: 0 | L178: =H178*$L$2*VLOOKUP(DataByMiles!AE176,DataByMiles!$AT$5:$AU$6,2,FALSE) -> 0 | M178: =DataByMiles!G176*VLOOKUP(DataByMiles!AE176,DataByMiles!$AT$5:$AU$6,2,FALSE) -> 0 | P178: =M178*$P$2*VLOOKUP(DataByMiles!AE176,DataByMiles!$AT$5:$AU$6,2,FALSE) -> 0 | Q178: =DataByMiles!H176*VLOOKUP(DataByMiles!AE176,DataByMiles!$AT$5:$AU$6,2,FALSE) -> 0 | T178: =Q178*$T$2*VLOOKUP(DataByMiles!AE176,DataByMiles!$AT$5:$AU$6,2,FALSE) -> 0 | U178: =DataByMiles!I176*VLOOKUP(DataByMiles!AE176,DataByMiles!$AT$5:$AU$6,2,FALSE) -> 0 | X178: =U178*$X$2*VLOOKUP(DataByMiles!AE176,DataByMiles!$AT$5:$AU$6,2,FALSE) -> 0 | Y178: =DataByMiles!J176*VLOOKUP(DataByMiles!AE176,DataByMiles!$AT$5:$AU$6,2,FALSE) -> 0 | Z178: =DataByMiles!K176 -> 0 | AA178: =DataByMiles!L176 -> 0 | AD178: =(Y178/IF(Z178=0,$AD$1,Z178)*$AD$2)/IF(AA178=0,1,AA178)*VLOOKUP(DataByMiles!AE176,DataByMiles!$AT$5:$AU$6,2,FALSE) -> 0 | AF178: 0 | AG178: 0 | AH178: =(AF178+AG178)*VLOOKUP(DataByMiles!AE176,DataByMiles!$AT$5:$AU$6,2,FALSE) -> 0 | AI178: 0
